Workbook

Sheet How To Use This Spreadsheet
J7: Want help building your investment property portfolio?
J9: Click the red button below. You'll then see a form on our website, where you can send us your details. We'll then give you a buzz to book your free Portfolio Planning Session with our team here at Opes.
N10: Keen for a free portfolio planning session?
N11: <- ❶ Click this link
J13: Who are Opes Partners and what do you do?
J14: Most Kiwis want to invest in property, but it's hard to get started. So at Opes we help you create a plan and find right properties for you. Ultimately this gives you the guts to give it a go and build your wealth through property.

Sheet My Wealth Plan Summary
B7: My Wealth Plan Period | C7: 20 | E7: Assets Needed | F7: 2500000 | H7: Asset Gap | I7: 2000000 | J7: =I7/F7 -> 0.8
B8: Default Number of Years | C8: =IF(ISBLANK(C7),15,C7) -> 20
C12: ='Property Set Up'!C12 -> Property #1 | F12: ='Property Set Up'!D12 -> Property #2 | I12: ='Property Set Up'!E12 -> Property #3
B14: MyWealth Plan Filled (%) | C14: =C18/$F7 -> 0.3082706054 | F14: =F18/$F7 ->  | I14: =I18/$F7 -> 
B15: Equity | C15: =(INDEX('Projection – Property #1'!D39:AI39,C8+1)-INDEX('Projection – Property #1'!D40:AI40,C8+1))/(1+Assumptions!D9)^'My Wealth Plan Summary'!C8 -> 741374.5004 | F15: =(INDEX('Projection – Property #2'!D39:AI39,C8+1)-INDEX('Projection – Property #2'!D40:AI40,C8+1))/(1+Assumptions!E9)^'My Wealth Plan Summary'!C8 ->  | I15: =(INDEX('Projection – Property #3'!D39:AI39,C8+1)-INDEX('Projection – Property #3'!D40:AI40,C8+1))/(1+Assumptions!F9)^'My Wealth Plan Summary'!C8 -> 
B16: Cashflow (Hidden Formula) | C16: =(INDEX('Projection – Property #1'!D147:AI147,C8))/(1+Assumptions!D9)^'My Wealth Plan Summary'!C8 -> 29302.01306 | F16: =(INDEX('Projection – Property #2'!D147:AI147,C8))/(1+Assumptions!E9)^'My Wealth Plan Summary'!C8 -> -113421.2536 | I16: =(INDEX('Projection – Property #3'!D147:AI147,C8))/(1+Assumptions!F9)^'My Wealth Plan Summary'!C8 -> -122828.3308
B17: Cash on Hand | C17: =IF(C16<0,0,C16) -> 29302.01306 | F17: =IF(F16<0,0,F16) -> 0 | I17: =IF(I16<0,0,I16) -> 0
B18: Total Returns | C18: =C15+C17 -> 770676.5135 | F18: =F15+F17 ->  | I18: =I15+I17 -> 
B20: Pre-Tax Cashflow / Week Year 1 | C20: =('Property Set Up'!C42*(52-'Property Set Up'!C43)-'Property Set Up'!C51-'Property Set Up'!C69)/52 -> -226.4483173 | F20: =('Property Set Up'!D42*(52-'Property Set Up'!D43)-'Property Set Up'!D51-'Property Set Up'!D69)/52 -> -139.5673077 | I20: =('Property Set Up'!E42*(52-'Property Set Up'!E43)-'Property Set Up'!E51-'Property Set Up'!E69)/52 -> -151.1057692
B22: Cumulative Cashflow Invested | C22: =C23/(1+Assumptions!D9)^'My Wealth Plan Summary'!C25 -> -41532.74122 | F22: =F23/(1+Assumptions!E9)^'My Wealth Plan Summary'!F25 -> -77855.83726 | I22: =I23/(1+Assumptions!F9)^I25 -> -84313.14442
B23: Cumulative Cashflow Invested (Future Dollars) | C23: =IF(MIN('Projection – Property #1'!D150:AI150)<0,MIN('Projection – Property #1'!D150:AI150),0) -> -49635.47038 | F23: =IF(MIN('Projection – Property #2'!D150:AI150)<0,MIN('Projection – Property #2'!D150:AI150),0) -> -115689.6786 | I23: =IF(MIN('Projection – Property #3'!D150:AI150)<0,MIN('Projection – Property #3'!D150:AI150),0) -> -125284.8974
B24: Average Top-up Per Week | C24: =IFERROR(-C23/(C25*52),0) -> 106.0586974 | F24: =IFERROR(-F23/(F25*52),0) -> 111.2400756 | I24: =IFERROR(-I23/(I25*52),0) -> 120.4662475
B25: Top-up Lasts For | C25: =IFERROR(MATCH(C23,'Projection – Property #1'!D150:AI150,0),0) -> 9 | F25: =IFERROR(MATCH(F23,'Projection – Property #2'!D150:AI150,0),0) -> 20 | I25: =IFERROR(MATCH(I23,'Projection – Property #3'!D150:AI150,0),0) -> 20
B27: Note: All figures in today's dollars (i.e.inflation adjusted)

Sheet Results + Summary
C6: ='Property Set Up'!C12 -> Property #1 | E6: ='Property Set Up'!D12 -> Property #2 | G6: ='Property Set Up'!E12 -> Property #3
B8: RETURN ON INVESTMENT OVER 15 YEARS
B11: Return Summary
B12: Inflation Adjusted Capital Gains | C12: ='Projection – Property #1'!D9 -> 521078.6944 | E12: ='Projection – Property #2'!D9 ->  | G12: ='Projection – Property #3'!D9 -> 
B13: Inflation Adjusted Instant Equity | C13: ='Projection – Property #1'!D10 -> 22290.4419 | E13: ='Projection – Property #2'!D10 -> 0 | G13: ='Projection – Property #3'!D10 -> 0
B14: Inflation Adjusted Debt Repayments | C14: ='Projection – Property #1'!D11 -> 0 | E14: ='Projection – Property #2'!D11 -> 0 | G14: ='Projection – Property #3'!D11 -> 0
B15: Inflation Adjusted Cashflow | C15: ='Projection – Property #1'!D12 -> 20594.88576 | E15: ='Projection – Property #2'!D12 -> 0 | G15: ='Projection – Property #3'!D12 -> 0
B16: Total Returns | C16: ='Projection – Property #1'!D13 -> 563964.0221 | E16: ='Projection – Property #2'!D13 ->  | G16: ='Projection – Property #3'!D13 -> 
B18: Investment Summary
B19: Equity Investment | C19: ='Projection – Property #1'!D16 -> 127000 | E19: ='Projection – Property #2'!D16 -> 3000 | G19: ='Projection – Property #3'!D16 -> 3000
B20: Cashflow Investment | C20: ='Projection – Property #1'!D17 -> 54914.81985 | E20: ='Projection – Property #2'!D17 -> 101385.8199 | G20: ='Projection – Property #3'!D17 -> 109785.8199
B21: Total Investment | C21: ='Projection – Property #1'!D18 -> 181914.8198 | E21: ='Projection – Property #2'!D18 -> 104385.8199 | G21: ='Projection – Property #3'!D18 -> 112785.8199
B23: Return on Investment | C23: =IFERROR('Projection – Property #1'!D20,0) -> 3.100154361 | E23: =IFERROR('Projection – Property #2'!D20,0) -> 0 | G23: =IFERROR('Projection – Property #3'!D20,0) -> 0
B25: Average Top-up Per Week | C25: =IFERROR(-C26/(C27*52),0) -> 106.0586974 | E25: =IFERROR(-E26/(E27*52),0) -> 114.6308925 | G25: =IFERROR(-G26/(G27*52),0) -> 124.1296415
B26: Cumulative Cashflow Invested | C26: =IF(MIN('Projection – Property #1'!D148:AI148)<0,MIN('Projection – Property #1'!D148:R148),0) -> -49635.47038 | E26: =IF(MIN('Projection – Property #2'!D150:AI150)<0,MIN('Projection – Property #2'!D148:R148),0) -> -89412.09612 | G26: =IF(MIN('Projection – Property #3'!D150:AI150)<0,MIN('Projection – Property #3'!D148:R148),0) -> -96821.12036
B27: Top-up Lasts For | C27: =IFERROR(MATCH(C26,'Projection – Property #1'!D148:R148,0),0) -> 9 | E27: =IFERROR(MATCH(E26,'Projection – Property #2'!D148:R148,0),0) -> 15 | G27: =IFERROR(MATCH(G26,'Projection – Property #3'!D148:R148,0),0) -> 15
B28: Equivalent Savings Per Week | C28: =-PMT(Assumptions!D19/52,52*15,0,'Results + Summary'!C16*(1+Assumptions!D9)^15,0) -> 834.6117039 | E28: =-PMT(Assumptions!E19/52,52*15,0,'Results + Summary'!E16*(1+Assumptions!E9)^15,0) ->  | G28: =-PMT(Assumptions!F19/52,52*15,0,'Results + Summary'!G16*(1+Assumptions!F9)^15,0) -> 
B31: ASSETS + LIABILITIES
B76: GROSS YIELD
B79: Gross Yield | C79: ='Property Set Up'!C42*52/'Property Set Up'!C23 -> 0.042 | E79: ='Property Set Up'!D42*52/'Property Set Up'!D23 ->  | G79: ='Property Set Up'!E42*52/'Property Set Up'!E23 -> 
B83: NET YIELD
B86: Revenue | C86: ='Property Set Up'!C42*(52-'Property Set Up'!C43) -> 26250 | E86: ='Property Set Up'!D42*(52-'Property Set Up'!D43) -> 0 | G86: ='Property Set Up'!E42*(52-'Property Set Up'!E43) -> 0
B87: Operating Costs | C87: =SUM('Property Set Up'!C60:C68)+'Property Set Up'!C57*1.15*'Results + Summary'!C96 -> 11140.3125 | E87: =SUM('Property Set Up'!D60:D68)+'Property Set Up'!D57*1.15*'Results + Summary'!E96 -> 8272.5 | G87: =SUM('Property Set Up'!E60:E68)+'Property Set Up'!E57*1.15*'Results + Summary'!G96 -> 8872.5
B88: Operating Profit | C88: =C86-C87 -> 15109.6875 | E88: =E86-E87 -> -8272.5 | G88: =G86-G87 -> -8872.5
B89: Net Yield | C89: =C88/'Property Set Up'!C23 -> 0.02324567308 | E89: =E88/'Property Set Up'!D23 ->  | G89: =G88/'Property Set Up'!E23 -> 
B93: CASHFLOW YIELD
B96: Revenue | C96: ='Property Set Up'!C42*(52-'Property Set Up'!C43) -> 26250 | E96: ='Property Set Up'!D42*(52-'Property Set Up'!D43) -> 0 | G96: ='Property Set Up'!E42*(52-'Property Set Up'!E43) -> 0
B97: Operating Costs | C97: =SUM('Property Set Up'!C60:C68)+'Property Set Up'!C57*1.15*'Results + Summary'!C96 -> 11140.3125 | E97: =SUM('Property Set Up'!D60:D68)+'Property Set Up'!D57*1.15*'Results + Summary'!E96 -> 8272.5 | G97: =SUM('Property Set Up'!E60:E68)+'Property Set Up'!E57*1.15*'Results + Summary'!G96 -> 8872.5
B98: Financing Costs | C98: ='Property Set Up'!C51 -> 28035 | E98: ='Property Set Up'!D51 -> 135 | G98: ='Property Set Up'!E51 -> 135
B99: Tax | C99: ='Projection – Property #1'!D134 -> 0 | E99: ='Projection – Property #2'!D134 -> 0 | G99: ='Projection – Property #3'!D134 -> 0
B100: Pre-Tax Annual Cashflow (1st Year) | C100: =C96-SUM(C97:C99) -> -12925.3125 | E100: =E96-SUM(E97:E99) -> -8407.5 | G100: =G96-SUM(G97:G99) -> -9007.5
B101: Pre-Tax Weekly Cashflow (1st Year) | C101: =C100/52 -> -248.5637019 | E101: =E100/52 -> -161.6826923 | G101: =G100/52 -> -173.2211538
B102: Cashflow Yield | C102: =C100/'Property Set Up'!C23 -> -0.01988509615 | E102: =E100/'Property Set Up'!D23 ->  | G102: =G100/'Property Set Up'!E23 -> 

Sheet Property Set Up
B6: Date | C6: 2022-04-27
B7: Version 3.3.1
B9: PROPERTY SET-UP
C11: Property #1 | D11: Property #2 | E11: Property #3
B12: Street Address | C12: Property #1 | D12: Property #2 | E12: Property #3
B13: Council Area | C13: Christchurch
B14: Council Area (Substitute) | C14: =SUBSTITUTE(C13," ","_") -> Christchurch | D14: =SUBSTITUTE(D13," ","_") ->  | E14: =SUBSTITUTE(E13," ","_") -> 
B15: Suburb | C15: Addington
B16: Investment Type | C16: Growth
B17: Investment Details
B19: Property Type | C19: New Build | D19: New Build | E19: New Build
B20: Acquired By Date | C20: After March 27th 2021 | D20: Before March 27th 2021 | E20: After March 27th 2021
B21: Tax Treatment | C21: =IF(C19="New Build","NB",IF(C20="Before March 27th 2021","ST","FULL")) -> NB | D21: =IF(D19="New Build","NB",IF(D20="Before March 27th 2021","ST","FULL")) -> NB | E21: =IF(E19="New Build","NB",IF(E20="Before March 27th 2021","ST","FULL")) -> NB
B23: Current Value | C23: 650000
B24: Purchase Price (if different) | C24: 620000
B25: Set Up Costs (Lawyer, Valuation, etc) | C25: 3000 | D25: 3000 | E25: 3000
B26: Cash Deposit (If Any) | C26: 0 | D26: 0 | E26: 0
B27: Minimum Deposit Required at Purchase | C27: 0.2 | D27: 0.2 | E27: 0.2
B28: Loan Amount | C28: =IF(ISBLANK(C30),IF(ISBLANK(C24),C23+C25-C26,C24+C25-C26),C30) -> 623000 | D28: =IF(ISBLANK(D30),IF(ISBLANK(D24),D23+D25-D26,D24+D25-D26),D30) -> 3000 | E28: =IF(ISBLANK(E30),IF(ISBLANK(E24),E23+E25-E26,E24+E25-E26),E30) -> 3000
B30: Mortgage (Override)
B32: Property Market Information | C32: ='Median Prices'!H15 -> The median house value in Addington was $462,350.00 on the 1st September 2021, according to CoreLogic. | D32: ='Median Prices'!H32 -> The median value of the suburb that your property is in will display here. Scroll back up and select a council area and suburb to see information about the property market your property operates within. | E32: ='Median Prices'!H49 -> The median value of the suburb that your property is in will display here. Scroll back up and select a council area and suburb to see information about the property market your property operates within.
B35: FINANCING + TENANCY SET UP
B38: Loan Type | C38: Interest only | D38: Interest only | E38: Interest only
B39: Loan Term | C39: 30 | D39: 25 | E39: 30
B40: Interest Rate | C40: 0.045 | D40: 0.045 | E40: 0.045
B42: Rental Income (Today's Market) | C42: 525
B43: Vacancy | C43: 2 | D43: 2 | E43: 2
B45: Rental Market Information | C45: =Rents!L15 -> The median rent in Addington is $380 according to MBIE data of 1506 bonds collected between Feb 2021 and July 2021. 25% of properties within the suburb rent for below $220. And 25% of properties rent for above $449. | D45: =Rents!L31 -> Rental data for your property's area will display here. Scroll back up and select a council area and suburb to see information about the rental market your property operates within. | E45: =Rents!L47 -> Rental data for your property's area will display here. Scroll back up and select a council area and suburb to see information about the rental market your property operates within.
B48: FINANCING COSTS
B51: Mortgage Costs (First Year) | C51: =IF(C38="interest only",C28*C40,IF(C38="Principal & interest",-PMT(C40/12,C39*12,C28,0)*12)) -> 28035 | D51: =IF(D38="interest only",D28*D40,IF(D38="Principal & interest",-PMT(D40/12,D39*12,D28,0)*12)) -> 135 | E51: =IF(E38="interest only",E28*E40,IF(E38="Principal & interest",-PMT(E40/12,E39*12,E28,0)*12)) -> 135
B54: OPERATING COSTS
B57: Property Management | C57: 0.075 | D57: 0.075 | E57: 0.075
B58: Tenant Sourcing Fee Type | C58: Weeks | D58: Weeks | E58: Weeks
B59: Tenant Sourcing Fee Amount | C59: 1 | D59: 1 | E59: 1
B60: Tenant Sourcing Fee Amount (Calculated) | C60: =IF(C58="Fixed",C59*1.15,C59*C42*1.15) -> 603.75 | D60: =IF(D58="Fixed",D59*1.15,D59*D42*1.15) -> 0 | E60: =IF(E58="Fixed",E59*1.15,E59*E42*1.15) -> 0
B61: Rates | C61: 3000 | D61: 3000 | E61: 3000
B62: Insurance | C62: 1800 | D62: 1800 | E62: 1800
B63: Body Corporate | C63: 0 | D63: 0 | E63: 0
B64: Residents Association | C64: 500 | D64: 500 | E64: 700
B65: Maintenance | C65: 500 | D65: 500 | E65: 500
B66: Accounting | C66: 1150 | D66: 1150 | E66: 1150
B67: Accounting (Hidden) | C67: =C66*1.15 -> 1322.5 | D67: =D66*1.15 -> 1322.5 | E67: =E66*1.15 -> 1322.5
B68: Other Costs | C68: 0 | D68: 0 | E68: 400
B69: Operating Costs | C69: =SUM(C60:C65)+SUM(C67:C68)+C57*1.15*C42*(52-C43) -> 9990.3125 | D69: =SUM(D60:D65)+SUM(D67:D68)+D57*1.15*D42*(52-D43) -> 7122.5 | E69: =SUM(E60:E65)+SUM(E67:E68)+E57*1.15*E42*(52-E43) -> 7722.5
B71: Average Rates in Each Property's area | C71: ='Council Rates'!E8 -> The average council rates paid in 2021 for Christchurch were $2,747. According to the NZ Tax Payers Union. | D71: ='Council Rates'!E18 -> The average rates for your property's area will display here. Scroll back up and select a council area to see the average rates. | E71: ='Council Rates'!E28 -> The average rates for your property's area will display here. Scroll back up and select a council area to see the average rates.
B74: LONG TERM FORECASTING
B77: General Inflation Rate | C77: =Assumptions!D9 -> 0.02 | D77: =Assumptions!E9 -> 0.02 | E77: =Assumptions!F9 -> 0.02
B78: Rental Inflation Rate | C78: =Assumptions!D10 -> 0.047 | D78: =Assumptions!E10 -> 0.047 | E78: =Assumptions!F10 -> 0.047
B79: Location | C79: =IF(C13="Auckland","Auckland",IF(ISBLANK(C13),"Not set above","Outside Auckland")) -> Outside Auckland | D79: =IF(D13="Auckland","Auckland",IF(ISBLANK(D13),"Not set above","Outside Auckland")) -> Not set above | E79: =IF(E13="Auckland","Auckland",IF(ISBLANK(E13),"Not set above","Outside Auckland")) -> Not set above
B80: Tax Treatment | C80: =IF(C19="New Build",C19,IF(ISBLANK(C19),"Not set above","Does Not Have Tax Deductibility")) -> New Build | D80: =IF(D19="New Build",D19,IF(ISBLANK(D19),"Not set above","Does Not Have Tax Deductibility")) -> New Build | E80: =IF(E19="New Build",E19,IF(ISBLANK(E19),"Not set above","Does Not Have Tax Deductibility")) -> New Build
B81: Investment Type | C81: =IF(ISBLANK(C16),"Not set above",C16) -> Growth | D81: =IF(ISBLANK(D16),"Not set above",D16) -> Not set above | E81: =IF(ISBLANK(E16),"Not set above",E16) -> Not set above
B82: All Assumptions Given (Hidden) | C82: =IF(OR(C79="Not set above",C80="Not set above",C81="Not set above"),"No","Yes") -> Yes | D82: =IF(OR(D79="Not set above",D80="Not set above",D81="Not set above"),"No","Yes") -> No | E82: =IF(OR(E79="Not set above",E80="Not set above",E81="Not set above"),"No","Yes") -> No
B83: Capital Growth – Location Test (Hidden) | C83: =IF(C79="Auckland",Assumptions!$D$38,Assumptions!$D$39) -> 0.05 | D83: =IF(D79="Auckland",Assumptions!$D$38,Assumptions!$D$39) -> 0.05 | E83: =IF(E79="Auckland",Assumptions!$D$38,Assumptions!$D$39) -> 0.05
B84: Capital Growth – Tax Treatment test (Hidden) | C84: =IF(C80="New Build",0,Assumptions!$D$40) -> 0 | D84: =IF(D80="New Build",0,Assumptions!$D$40) -> 0 | E84: =IF(E80="New Build",0,Assumptions!$D$40) -> 0
B85: Capital Growth – Property Type Test (Hidden) | C85: =IF(C81="Yield",Assumptions!$D$41,0) -> 0 | D85: =IF(D81="Yield",Assumptions!$D$41,0) -> 0 | E85: =IF(E81="Yield",Assumptions!$D$41,0) -> 0
B87: Capital Growth Rate | C87: =IF(AND(C82="Yes",C88="Yes"),SUM(C83:C85),IF(AND(C88="No",ISBLANK(C89)),"Insert capital growth rate below",IF(AND(C88="Yes",C82="No"),"Please set assumptions as above",C89))) -> 0.05 | D87: =IF(AND(D82="Yes",D88="Yes"),SUM(D83:D85),IF(AND(D88="No",ISBLANK(D89)),"Insert capital growth rate below",IF(AND(D88="Yes",D82="No"),"Please set assumptions as above",D89))) -> Please set assumptions as above | E87: =IF(AND(E82="Yes",E88="Yes"),SUM(E83:E85),IF(AND(E88="No",ISBLANK(E89)),"Insert capital growth rate below",IF(AND(E88="Yes",E82="No"),"Please set assumptions as above",E89))) -> Please set assumptions as above
B88: Use Opes' Capital Growth Assumptions? | C88: Yes | D88: Yes | E88: Yes
B89: Use Your Own Capital Growth Rate | C89: 0.06 | D89: 0.05 | E89: 0.05
B91: Chattel Value | C91: 45000 | D91: 45000 | E91: 45000
B92: Diminishing Value Depreciation Rate | C92: =Assumptions!D16 -> 0.22 | D92: =Assumptions!E16 -> 0.22 | E92: =Assumptions!F16 -> 0.22
B93: Marginal Tax Rate | C93: =Assumptions!D18 -> 0.33 | D93: =Assumptions!E18 -> 0.33 | E93: =Assumptions!F18 -> 0.33
B94: Long Term Interest Rate (From Year 6 Onwards) | C94: =Assumptions!#REF! ->  | D94: =Assumptions!#REF! ->  | E94: =Assumptions!#REF! -> 
B95: Long Run Risk Free Rate of Return | C95: =Assumptions!D19 -> 0.02 | D95: =Assumptions!E19 -> 0.02 | E95: =Assumptions!F19 -> 0.02
B97: Average Capital Growth Rates | C97: ='Capital Growth Rates Suburb'!H14 -> Between Jan 2000 and Sep 2021, Addington experienced an average annual capital growth rate of 6.28% according to Core Logic Data. | D97: ='Capital Growth Rates Suburb'!H30 -> The average capital growth rate of the suburb that your property is in will display here. Scroll back up and select a council area and suburb to see information about the capital growth rate of the market that your property operates within. | E97: ='Capital Growth Rates Suburb'!H46 -> The average capital growth rate of the suburb that your property is in will display here. Scroll back up and select a council area and suburb to see information about the capital growth rate of the market that your property operates within.
B100: CONSTRUCTION
B103: Is The Property Under Construction? | C103: Yes | D103: Yes | E103: Yes
B104: Months Until Completion | C104: 12 | D104: 12 | E104: 12
B105: Deposit Required During Construction | C105: 0.1 | D105: 0.1 | E105: 0.1
B106: Amount Borrowed For Construction Deposit | C106: =IF((C108-C26)>0,C108-C26,0) -> 62000 | D106: =IF((D108-D26)>0,D108-D26,0) -> 0 | E106: =IF((E108-E26)>0,E108-E26,0) -> 0
B107: Deposit Interest Rate | C107: 0.023 | D107: 0.023 | E107: 0.023
B108: Total Deposit Required | C108: =C24*C105 -> 62000 | D108: =D24*D105 -> 0 | E108: =E24*E105 -> 0
B109: Interest Per Month If Borrowed | C109: =C107*C106/12 -> 118.8333333 | D109: =D107*D106/12 -> 0 | E109: =E107*E106/12 -> 0

Sheet Projection – Property #1
B6: =UPPER(CONCATENATE('Property Set Up'!C12," Return on Investment")) -> PROPERTY #1 RETURN ON INVESTMENT
B8: Return Summary
B9: Inflation Adjusted Capital Gains | D9: =(S39-D39)/(1+'Property Set Up'!$C$77)^S26 -> 521078.6944 | E9: =D9/$D$13 -> 0.9239573342
B10: Inflation Adjusted Instant Equity | D10: =IF(ISBLANK('Property Set Up'!C24),0,MAX(0,('Property Set Up'!C23-'Property Set Up'!C24)/(1+Assumptions!D9)^15)) -> 22290.4419 | E10: =D10/$D$13 -> 0.0395245814
B11: Inflation Adjusted Debt Repayments | D11: =SUM(D41:R41) -> 0 | E11: =D11/D13 -> 0
B12: Inflation Adjusted Cashflow | D12: =SUM(C146:R146) -> 20594.88576 | E12: =D12/$D$13 -> 0.03651808441
B13: Total Returns | D13: =SUM(D9:D12) -> 563964.0221
B15: Investment Summary
B16: Equity Investment | D16: =MAX('Property Set Up'!$C$26,'Property Set Up'!$C$27*MIN('Property Set Up'!C23,'Property Set Up'!$C$24)+'Property Set Up'!$C$25) -> 127000 | E16: =D16/D18 -> 0.6981289381
B17: Cashflow Investment | D17: =-SUM(C143:R143) -> 54914.81985 | E17: =D17/D18 -> 0.3018710619
B18: Total Investment | D18: =SUM(D16:D17) -> 181914.8198
B20: Return on Investment | D20: =D13/D18 -> 3.100154361
B23: =UPPER(CONCATENATE('Property Set Up'!C12," Cashflow Projection & Analysis")) -> PROPERTY #1 CASHFLOW PROJECTION & ANALYSIS
B26: Inflation Adjusted Years | D26: 0 | E26: =D26+1 -> 1 | F26: 2 | G26: 3 | H26: 4 | I26: 5 | J26: 6 | K26: 7 | L26: 8 | M26: 9 | N26: 10 | O26: 11 | P26: 12 | Q26: 13 | R26: 14 | S26: 15 | T26: =S26+1 -> 16 | U26: 17 | V26: 18 | W26: 19 | X26: 20 | Y26: 21 | Z26: 22 | AA26: 23 | AB26: 24 | AC26: 25 | AD26: 26 | AE26: 27 | AF26: 28 | AG26: 29 | AH26: =AG26+1 -> 30 | AI26: 31
B27: P+I Starting Period (Months) – Construction | D27: =IF(D67>=12,0,1) -> 0 | E27: =IF(E67=12,0,D28+1) -> 1 | F27: =E28+1 -> 13 | G27: =F28+1 -> 25 | H27: 37 | I27: 49 | J27: 61 | K27: 73 | L27: 85 | M27: 97 | N27: 109 | O27: 121 | P27: 133 | Q27: 145 | R27: 157 | S27: 169 | T27: =S28+1 -> 181 | U27: 193 | V27: 205 | W27: 217 | X27: 229 | Y27: 241 | Z27: 253 | AA27: 265 | AB27: 277 | AC27: 289 | AD27: 301 | AE27: 313 | AF27: 325 | AG27: 337 | AH27: 349 | AI27: 361
B28: P+I Ending Period (Months) – Construction | D28: =IF(D27=0,0,12-D67) -> 0 | E28: =IF(D28=0,12-E67,E27+11) -> 12 | F28: =F27+11 -> 24 | G28: 36 | H28: 48 | I28: 60 | J28: 72 | K28: 84 | L28: 96 | M28: 108 | N28: 120 | O28: 132 | P28: 144 | Q28: 156 | R28: 168 | S28: 180 | T28: =T27+11 -> 192 | U28: 204 | V28: 216 | W28: 228 | X28: 240 | Y28: 252 | Z28: 264 | AA28: =AA27+11 -> 276 | AB28: 288 | AC28: 300 | AD28: 312 | AE28: 324 | AF28: 336 | AG28: 348 | AH28: 360 | AI28: 372
B29: Months Left on Principal | D29: =MAX(0,'Property Set Up'!$C39*12-'Projection – Property #1'!C28) -> 360 | E29: =MAX(0,'Property Set Up'!$C39*12-'Projection – Property #1'!D28) -> 360 | F29: =MAX(0,'Property Set Up'!$C39*12-'Projection – Property #1'!E28) -> 348 | G29: =MAX(0,'Property Set Up'!$C39*12-'Projection – Property #1'!F28) -> 336 | H29: =MAX(0,'Property Set Up'!$C39*12-'Projection – Property #1'!G28) -> 324 | I29: =MAX(0,'Property Set Up'!$C39*12-'Projection – Property #1'!H28) -> 312 | J29: =MAX(0,'Property Set Up'!$C39*12-'Projection – Property #1'!I28) -> 300 | K29: =MAX(0,'Property Set Up'!$C39*12-'Projection – Property #1'!J28) -> 288 | L29: =MAX(0,'Property Set Up'!$C39*12-'Projection – Property #1'!K28) -> 276 | M29: =MAX(0,'Property Set Up'!$C39*12-'Projection – Property #1'!L28) -> 264 | N29: =MAX(0,'Property Set Up'!$C39*12-'Projection – Property #1'!M28) -> 252 | O29: =MAX(0,'Property Set Up'!$C39*12-'Projection – Property #1'!N28) -> 240 | P29: =MAX(0,'Property Set Up'!$C39*12-'Projection – Property #1'!O28) -> 228 | Q29: =MAX(0,'Property Set Up'!$C39*12-'Projection – Property #1'!P28) -> 216 | R29: =MAX(0,'Property Set Up'!$C39*12-'Projection – Property #1'!Q28) -> 204 | S29: =MAX(0,'Property Set Up'!$C39*12-'Projection – Property #1'!R28) -> 192 | T29: =MAX(0,'Property Set Up'!$C39*12-'Projection – Property #1'!S28) -> 180 | U29: =MAX(0,'Property Set Up'!$C39*12-'Projection – Property #1'!T28) -> 168 | V29: =MAX(0,'Property Set Up'!$C39*12-'Projection – Property #1'!U28) -> 156 | W29: =MAX(0,'Property Set Up'!$C39*12-'Projection – Property #1'!V28) -> 144 | X29: =MAX(0,'Property Set Up'!$C39*12-'Projection – Property #1'!W28) -> 132 | Y29: =MAX(0,'Property Set Up'!$C39*12-'Projection – Property #1'!X28) -> 120 | Z29: =MAX(0,'Property Set Up'!$C39*12-'Projection – Property #1'!Y28) -> 108 | AA29: =MAX(0,'Property Set Up'!$C39*12-'Projection – Property #1'!Z28) -> 96 | AB29: =MAX(0,'Property Set Up'!$C39*12-'Projection – Property #1'!AA28) -> 84 | AC29: =MAX(0,'Property Set Up'!$C39*12-'Projection – Property #1'!AB28) -> 72 | AD29: =MAX(0,'Property Set Up'!$C39*12-'Projection – Property #1'!AC28) -> 60 | AE29: =MAX(0,'Property Set Up'!$C39*12-'Projection – Property #1'!AD28) -> 48 | AF29: =MAX(0,'Property Set Up'!$C39*12-'Projection – Property #1'!AE28) -> 36 | AG29: =MAX(0,'Property Set Up'!$C39*12-'Projection – Property #1'!AF28) -> 24 | AH29: =MAX(0,'Property Set Up'!$C39*12-'Projection – Property #1'!AG28) -> 12 | AI29: =MAX(0,'Property Set Up'!$C39*12-'Projection – Property #1'!AH28) -> 0
B30: Months Left on Principal (Years) | C30: 5 | D30: ='Projection – Property #1'!D29/12 -> 30 | E30: ='Projection – Property #1'!E29/12 -> 30 | F30: ='Projection – Property #1'!F29/12 -> 29 | G30: ='Projection – Property #1'!G29/12 -> 28 | H30: ='Projection – Property #1'!H29/12 -> 27 | I30: ='Projection – Property #1'!I29/12 -> 26 | J30: ='Projection – Property #1'!J29/12 -> 25 | K30: ='Projection – Property #1'!K29/12 -> 24 | L30: ='Projection – Property #1'!L29/12 -> 23 | M30: ='Projection – Property #1'!M29/12 -> 22 | N30: ='Projection – Property #1'!N29/12 -> 21 | O30: ='Projection – Property #1'!O29/12 -> 20 | P30: ='Projection – Property #1'!P29/12 -> 19 | Q30: ='Projection – Property #1'!Q29/12 -> 18 | R30: ='Projection – Property #1'!R29/12 -> 17 | S30: ='Projection – Property #1'!S29/12 -> 16 | T30: ='Projection – Property #1'!T29/12 -> 15 | U30: ='Projection – Property #1'!U29/12 -> 14 | V30: ='Projection – Property #1'!V29/12 -> 13 | W30: ='Projection – Property #1'!W29/12 -> 12 | X30: ='Projection – Property #1'!X29/12 -> 11 | Y30: ='Projection – Property #1'!Y29/12 -> 10 | Z30: ='Projection – Property #1'!Z29/12 -> 9 | AA30: ='Projection – Property #1'!AA29/12 -> 8 | AB30: ='Projection – Property #1'!AB29/12 -> 7 | AC30: ='Projection – Property #1'!AC29/12 -> 6 | AD30: ='Projection – Property #1'!AD29/12 -> 5 | AE30: ='Projection – Property #1'!AE29/12 -> 4 | AF30: ='Projection – Property #1'!AF29/12 -> 3 | AG30: ='Projection – Property #1'!AG29/12 -> 2 | AH30: ='Projection – Property #1'!AH29/12 -> 1 | AI30: ='Projection – Property #1'!AI29/12 -> 0
B31: Principal Payments Denominator. Months of Year | D31: =IF('Property Set Up'!$C38="Interest Only",2,IF(AND(D29>0,D29<=11),D29/12,IF(D29=0,0,1))) -> 2 | E31: =IF('Property Set Up'!$C38="Interest Only",2,IF(AND(E29>0,E29<=11),E29/12,IF(E29=0,0,1))) -> 2 | F31: =IF('Property Set Up'!$C38="Interest Only",2,IF(AND(F29>0,F29<=11),F29/12,IF(F29=0,0,1))) -> 2 | G31: =IF('Property Set Up'!$C38="Interest Only",2,IF(AND(G29>0,G29<=11),G29/12,IF(G29=0,0,1))) -> 2 | H31: =IF('Property Set Up'!$C38="Interest Only",2,IF(AND(H29>0,H29<=11),H29/12,IF(H29=0,0,1))) -> 2 | I31: =IF('Property Set Up'!$C38="Interest Only",2,IF(AND(I29>0,I29<=11),I29/12,IF(I29=0,0,1))) -> 2 | J31: =IF('Property Set Up'!$C38="Interest Only",2,IF(AND(J29>0,J29<=11),J29/12,IF(J29=0,0,1))) -> 2 | K31: =IF('Property Set Up'!$C38="Interest Only",2,IF(AND(K29>0,K29<=11),K29/12,IF(K29=0,0,1))) -> 2 | L31: =IF('Property Set Up'!$C38="Interest Only",2,IF(AND(L29>0,L29<=11),L29/12,IF(L29=0,0,1))) -> 2 | M31: =IF('Property Set Up'!$C38="Interest Only",2,IF(AND(M29>0,M29<=11),M29/12,IF(M29=0,0,1))) -> 2 | N31: =IF('Property Set Up'!$C38="Interest Only",2,IF(AND(N29>0,N29<=11),N29/12,IF(N29=0,0,1))) -> 2 | O31: =IF('Property Set Up'!$C38="Interest Only",2,IF(AND(O29>0,O29<=11),O29/12,IF(O29=0,0,1))) -> 2 | P31: =IF('Property Set Up'!$C38="Interest Only",2,IF(AND(P29>0,P29<=11),P29/12,IF(P29=0,0,1))) -> 2 | Q31: =IF('Property Set Up'!$C38="Interest Only",2,IF(AND(Q29>0,Q29<=11),Q29/12,IF(Q29=0,0,1))) -> 2 | R31: =IF('Property Set Up'!$C38="Interest Only",2,IF(AND(R29>0,R29<=11),R29/12,IF(R29=0,0,1))) -> 2 | S31: =IF('Property Set Up'!$C38="Interest Only",2,IF(AND(S29>0,S29<=11),S29/12,IF(S29=0,0,1))) -> 2 | T31: =IF('Property Set Up'!$C38="Interest Only",2,IF(AND(T29>0,T29<=11),T29/12,IF(T29=0,0,1))) -> 2 | U31: =IF('Property Set Up'!$C38="Interest Only",2,IF(AND(U29>0,U29<=11),U29/12,IF(U29=0,0,1))) -> 2 | V31: =IF('Property Set Up'!$C38="Interest Only",2,IF(AND(V29>0,V29<=11),V29/12,IF(V29=0,0,1))) -> 2 | W31: =IF('Property Set Up'!$C38="Interest Only",2,IF(AND(W29>0,W29<=11),W29/12,IF(W29=0,0,1))) -> 2 | X31: =IF('Property Set Up'!$C38="Interest Only",2,IF(AND(X29>0,X29<=11),X29/12,IF(X29=0,0,1))) -> 2 | Y31: =IF('Property Set Up'!$C38="Interest Only",2,IF(AND(Y29>0,Y29<=11),Y29/12,IF(Y29=0,0,1))) -> 2 | Z31: =IF('Property Set Up'!$C38="Interest Only",2,IF(AND(Z29>0,Z29<=11),Z29/12,IF(Z29=0,0,1))) -> 2 | AA31: =IF('Property Set Up'!$C38="Interest Only",2,IF(AND(AA29>0,AA29<=11),AA29/12,IF(AA29=0,0,1))) -> 2 | AB31: =IF('Property Set Up'!$C38="Interest Only",2,IF(AND(AB29>0,AB29<=11),AB29/12,IF(AB29=0,0,1))) -> 2 | AC31: =IF('Property Set Up'!$C38="Interest Only",2,IF(AND(AC29>0,AC29<=11),AC29/12,IF(AC29=0,0,1))) -> 2 | AD31: =IF('Property Set Up'!$C38="Interest Only",2,IF(AND(AD29>0,AD29<=11),AD29/12,IF(AD29=0,0,1))) -> 2 | AE31: =IF('Property Set Up'!$C38="Interest Only",2,IF(AND(AE29>0,AE29<=11),AE29/12,IF(AE29=0,0,1))) -> 2 | AF31: =IF('Property Set Up'!$C38="Interest Only",2,IF(AND(AF29>0,AF29<=11),AF29/12,IF(AF29=0,0,1))) -> 2 | AG31: =IF('Property Set Up'!$C38="Interest Only",2,IF(AND(AG29>0,AG29<=11),AG29/12,IF(AG29=0,0,1))) -> 2 | AH31: =IF('Property Set Up'!$C38="Interest Only",2,IF(AND(AH29>0,AH29<=11),AH29/12,IF(AH29=0,0,1))) -> 2 | AI31: =IF('Property Set Up'!$C38="Interest Only",2,IF(AND(AI29>0,AI29<=11),AI29/12,IF(AI29=0,0,1))) -> 2
B32: Years | C32: Now | D32: 1 | E32: 2 | F32: 3 | G32: 4 | H32: 5 | I32: 6 | J32: 7 | K32: 8 | L32: 9 | M32: 10 | N32: 11 | O32: 12 | P32: 13 | Q32: 14 | R32: 15 | S32: 16 | T32: 17 | U32: 18 | V32: 19 | W32: 20 | X32: 21 | Y32: 22 | Z32: 23 | AA32: 24 | AB32: 25 | AC32: 26 | AD32: 27 | AE32: 28 | AF32: 29 | AG32: 30 | AH32: 31 | AI32: 32
D33: =CONCATENATE(TEXT(D85,"mmm-yy")," – ",TEXT(D86,"mmm-yy")) -> May-22 – Apr-23 | E33: =CONCATENATE(TEXT(E85,"mmm-yy")," – ",TEXT(E86,"mmm-yy")) -> May-23 – Apr-24 | F33: May-24 – Apr-25 | G33: May-25 – Apr-26 | H33: May-26 – Apr-27 | I33: May-27 – Apr-28 | J33: May-28 – Apr-29 | K33: May-29 – Apr-30 | L33: May-30 – Apr-31 | M33: May-31 – Apr-32 | N33: May-32 – Apr-33 | O33: May-33 – Apr-34 | P33: May-34 – Apr-35 | Q33: May-35 – Apr-36 | R33: May-36 – Apr-37 | S33: =CONCATENATE(TEXT(S85,"mmm-yy")," – ",TEXT(S86,"mmm-yy")) -> May-37 – Apr-38 | T33: =CONCATENATE(TEXT(T85,"mmm-yy")," – ",TEXT(T86,"mmm-yy")) -> May-38 – Apr-39 | U33: =CONCATENATE(TEXT(U85,"mmm-yy")," – ",TEXT(U86,"mmm-yy")) -> May-39 – Apr-40 | V33: May-40 – Apr-41 | W33: May-41 – Apr-42 | X33: May-42 – Apr-43 | Y33: May-43 – Apr-44 | Z33: May-44 – Apr-45 | AA33: =CONCATENATE(TEXT(AA85,"mmm-yy")," – ",TEXT(AA86,"mmm-yy")) -> May-45 – Apr-46 | AB33: May-46 – Apr-47 | AC33: May-47 – Apr-48 | AD33: May-48 – Apr-49 | AE33: May-49 – Apr-50 | AF33: May-50 – Apr-51 | AG33: May-51 – Apr-52 | AH33: May-52 – Apr-53 | AI33: May-53 – Apr-54
B36: ASSETS AND LIABILITIES
B39: Asset Value (Start of Year) | C39: 0 | D39: ='Property Set Up'!$C$23*(1+'Property Set Up'!C87)^'Projection – Property #1'!D26 -> 650000 | E39: =D39*(1+'Property Set Up'!$C$87) -> 682500 | F39: =E39*(1+'Property Set Up'!$C$87) -> 716625 | G39: =F39*(1+'Property Set Up'!$C$87) -> 752456.25 | H39: =G39*(1+'Property Set Up'!$C$87) -> 790079.0625 | I39: =H39*(1+'Property Set Up'!$C$87) -> 829583.0156 | J39: =I39*(1+'Property Set Up'!$C$87) -> 871062.1664 | K39: =J39*(1+'Property Set Up'!$C$87) -> 914615.2747 | L39: =K39*(1+'Property Set Up'!$C$87) -> 960346.0385 | M39: =L39*(1+'Property Set Up'!$C$87) -> 1008363.34 | N39: =M39*(1+'Property Set Up'!$C$87) -> 1058781.507 | O39: =N39*(1+'Property Set Up'!$C$87) -> 1111720.583 | P39: =O39*(1+'Property Set Up'!$C$87) -> 1167306.612 | Q39: =P39*(1+'Property Set Up'!$C$87) -> 1225671.943 | R39: =Q39*(1+'Property Set Up'!$C$87) -> 1286955.54 | S39: =R39*(1+'Property Set Up'!$C$87) -> 1351303.317 | T39: =S39*(1+'Property Set Up'!$C$87) -> 1418868.482 | U39: =T39*(1+'Property Set Up'!$C$87) -> 1489811.907 | V39: =U39*(1+'Property Set Up'!$C$87) -> 1564302.502 | W39: =V39*(1+'Property Set Up'!$C$87) -> 1642517.627 | X39: =W39*(1+'Property Set Up'!$C$87) -> 1724643.508 | Y39: =X39*(1+'Property Set Up'!$C$87) -> 1810875.684 | Z39: =Y39*(1+'Property Set Up'!$C$87) -> 1901419.468 | AA39: =Z39*(1+'Property Set Up'!$C$87) -> 1996490.441 | AB39: =AA39*(1+'Property Set Up'!$C$87) -> 2096314.963 | AC39: =AB39*(1+'Property Set Up'!$C$87) -> 2201130.712 | AD39: =AC39*(1+'Property Set Up'!$C$87) -> 2311187.247 | AE39: =AD39*(1+'Property Set Up'!$C$87) -> 2426746.61 | AF39: =AE39*(1+'Property Set Up'!$C$87) -> 2548083.94 | AG39: =AF39*(1+'Property Set Up'!$C$87) -> 2675488.137 | AH39: =AG39*(1+'Property Set Up'!$C$87) -> 2809262.544 | AI39: =AH39*(1+'Property Set Up'!$C$87) -> 2949725.671
B40: Mortgage (Start of Year) | C40: 0 | D40: ='Property Set Up'!$C$28 -> 623000 | E40: =MAX(0,D40-D42) -> 623000 | F40: =MAX(0,E40-E42) -> 623000 | G40: =MAX(0,F40-F42) -> 623000 | H40: 623000 | I40: 623000 | J40: 623000 | K40: 623000 | L40: 623000 | M40: 623000 | N40: 623000 | O40: 623000 | P40: 623000 | Q40: 623000 | R40: 623000 | S40: 623000 | T40: 623000 | U40: 623000 | V40: 623000 | W40: 623000 | X40: =MAX(0,W40-W42) -> 623000 | Y40: 623000 | Z40: 623000 | AA40: 623000 | AB40: 623000 | AC40: 623000 | AD40: 623000 | AE40: 623000 | AF40: 623000 | AG40: 623000 | AH40: 623000 | AI40: 623000
B41: Inflation Adjusted Debt Repayments In The Year | C41: 0 | D41: =($D$40-E40)/(1+'Property Set Up'!$C$77)^D26 -> 0 | E41: =(E40-F40)/(1+'Property Set Up'!$C$77)^E26 -> 0 | F41: =(F40-G40)/(1+'Property Set Up'!$C$77)^F26 -> 0 | G41: =(G40-H40)/(1+'Property Set Up'!$C$77)^G26 -> 0 | H41: =(H40-I40)/(1+'Property Set Up'!$C$77)^H26 -> 0 | I41: =(I40-J40)/(1+'Property Set Up'!$C$77)^I26 -> 0 | J41: =(J40-K40)/(1+'Property Set Up'!$C$77)^J26 -> 0 | K41: =(K40-L40)/(1+'Property Set Up'!$C$77)^K26 -> 0 | L41: =(L40-M40)/(1+'Property Set Up'!$C$77)^L26 -> 0 | M41: =(M40-N40)/(1+'Property Set Up'!$C$77)^M26 -> 0 | N41: =(N40-O40)/(1+'Property Set Up'!$C$77)^N26 -> 0 | O41: =(O40-P40)/(1+'Property Set Up'!$C$77)^O26 -> 0 | P41: =(P40-Q40)/(1+'Property Set Up'!$C$77)^P26 -> 0 | Q41: =(Q40-R40)/(1+'Property Set Up'!$C$77)^Q26 -> 0 | R41: =(R40-S40)/(1+'Property Set Up'!$C$77)^R26 -> 0 | S41: =(S40-T40)/(1+'Property Set Up'!$C$77)^S26 -> 0 | T41: =(T40-U40)/(1+'Property Set Up'!$C$77)^T26 -> 0 | U41: =(U40-V40)/(1+'Property Set Up'!$C$77)^U26 -> 0 | V41: =(V40-W40)/(1+'Property Set Up'!$C$77)^V26 -> 0 | W41: =(W40-X40)/(1+'Property Set Up'!$C$77)^W26 -> 0 | X41: =(X40-Y40)/(1+'Property Set Up'!$C$77)^X26 -> 0 | Y41: =(Y40-Z40)/(1+'Property Set Up'!$C$77)^Y26 -> 0 | Z41: =(Z40-AA40)/(1+'Property Set Up'!$C$77)^Z26 -> 0 | AA41: =(AA40-AB40)/(1+'Property Set Up'!$C$77)^AA26 -> 0 | AB41: =(AB40-AC40)/(1+'Property Set Up'!$C$77)^AB26 -> 0 | AC41: =(AC40-AD40)/(1+'Property Set Up'!$C$77)^AC26 -> 0 | AD41: =(AD40-AE40)/(1+'Property Set Up'!$C$77)^AD26 -> 0 | AE41: =(AE40-AF40)/(1+'Property Set Up'!$C$77)^AE26 -> 0 | AF41: =(AF40-AG40)/(1+'Property Set Up'!$C$77)^AF26 -> 0 | AG41: =(AG40-AH40)/(1+'Property Set Up'!$C$77)^AG26 -> 0 | AH41: =(AH40-AI40)/(1+'Property Set Up'!$C$77)^AH26 -> 0 | AI41: =(AI40-AJ40)/(1+'Property Set Up'!$C$77)^AI26 -> 337196.2391
B42: Hidden – Principal paid in year | D42: =IFERROR(IF(D45="Interest Only",0,IF(D28=0,0,-CUMPRINC(D59/12,12*D46,D40,D27,D28,0))),0) -> 0 | E42: =IFERROR(IF(E45="Interest Only",0,IF(E28=0,0,-CUMPRINC(E59/12,12*E46,E40,E27,E28,0))),0) -> 0 | F42: =IFERROR(IF(F45="Interest Only",0,IF(F28=0,0,-CUMPRINC(F59/12,12*F46,F40,F27,F28,0))),0) -> 0 | G42: =IFERROR(IF(G45="interest only",0,-CUMPRINC(G59/12,12*G46,G40,1,12,0)),0) -> 0 | H42: 0 | I42: 0 | J42: 0 | K42: 0 | L42: 0 | M42: 0 | N42: 0 | O42: 0 | P42: 0 | Q42: 0 | R42: 0 | S42: 0 | T42: 0 | U42: 0 | V42: 0 | W42: 0 | X42: 0 | Y42: 0 | Z42: 0 | AA42: 0 | AB42: 0 | AC42: 0 | AD42: 0 | AE42: 0 | AF42: 0 | AG42: 0 | AH42: 0 | AI42: 0
B43: Net Equity | D43: =D39-D40 -> 27000 | E43: 59500 | F43: 93625 | G43: 129456.25 | H43: 167079.0625 | I43: 206583.0156 | J43: 248062.1664 | K43: 291615.2747 | L43: 337346.0385 | M43: 385363.3404 | N43: 435781.5074 | O43: 488720.5828 | P43: 544306.6119 | Q43: 602671.9425 | R43: 663955.5396 | S43: 728303.3166 | T43: 795868.4824 | U43: 866811.9066 | V43: 941302.5019 | W43: 1019517.627 | X43: 1101643.508 | Y43: 1187875.684 | Z43: 1278419.468 | AA43: 1373490.441 | AB43: 1473314.963 | AC43: 1578130.712 | AD43: 1688187.247 | AE43: 1803746.61 | AF43: 1925083.94 | AG43: 2052488.137 | AH43: 2186262.544 | AI43: 2326725.671
B45: Mortgage Type | D45: =IF('Property Set Up'!$C$38="Principal & interest","P+I","Interest Only") -> Interest Only | E45: =IF('Property Set Up'!$C$38="Principal & interest","P+I","Interest Only") -> Interest Only | F45: =IF('Property Set Up'!$C$38="Principal & interest","P+I","Interest Only") -> Interest Only | G45: =IF(ISBLANK(G48),F45,G48) -> Interest Only | H45: =IF(ISBLANK(H48),G45,H48) -> Interest Only | I45: Interest Only | J45: Interest Only | K45: Interest Only | L45: Interest Only | M45: Interest Only | N45: Interest Only | O45: Interest Only | P45: Interest Only | Q45: Interest Only | R45: Interest Only | S45: =IF(ISBLANK(S48),R45,S48) -> Interest Only | T45: =IF(ISBLANK(T48),S45,T48) -> Interest Only | U45: =IF(ISBLANK(U48),T45,U48) -> Interest Only | V45: =IF(ISBLANK(V48),U45,V48) -> Interest Only | W45: =IF(ISBLANK(W48),V45,W48) -> Interest Only | X45: =IF(ISBLANK(X48),W45,X48) -> Interest Only | Y45: =IF(ISBLANK(Y48),X45,Y48) -> Interest Only | Z45: =IF(ISBLANK(Z48),Y45,Z48) -> Interest Only | AA45: =IF(ISBLANK(AA48),Z45,AA48) -> Interest Only | AB45: =IF(ISBLANK(AB48),AA45,AB48) -> Interest Only | AC45: =IF(ISBLANK(AC48),AB45,AC48) -> Interest Only | AD45: =IF(ISBLANK(AD48),AC45,AD48) -> Interest Only | AE45: =IF(ISBLANK(AE48),AD45,AE48) -> Interest Only | AF45: =IF(ISBLANK(AF48),AE45,AF48) -> Interest Only | AG45: =IF(ISBLANK(AG48),AF45,AG48) -> Interest Only | AH45: =IF(ISBLANK(AH48),AG45,AH48) -> Interest Only | AI45: =IF(ISBLANK(AI48),AH45,AI48) -> Interest Only
B46: Mortgage Term | D46: =IF(D45="P+I",D30,"N/A") -> N/A | E46: =IF(E45="P+I",E30,"N/A") -> N/A | F46: =IF(F45="P+I",F30,"N/A") -> N/A | G46: =IF(G45="Interest Only","N/A",IF(G45=F45,IF(F46<>"N/A",MAX(F46-1,0),F46),G49)) -> N/A | H46: =IF(H45="Interest Only","N/A",IF(H45=G45,IF(G46<>"N/A",MAX(G46-1,0),G46),H49)) -> N/A | I46: N/A | J46: N/A | K46: N/A | L46: N/A | M46: N/A | N46: N/A | O46: N/A | P46: N/A | Q46: N/A | R46: N/A | S46: =IF(S45="Interest Only","N/A",IF(S45=R45,IF(R46<>"N/A",MAX(R46-1,0),R46),S49)) -> N/A | T46: =IF(T45="Interest Only","N/A",IF(T45=S45,IF(S46<>"N/A",MAX(S46-1,0),S46),T49)) -> N/A | U46: =IF(U45="Interest Only","N/A",IF(U45=T45,IF(T46<>"N/A",MAX(T46-1,0),T46),U49)) -> N/A | V46: =IF(V45="Interest Only","N/A",IF(V45=U45,IF(U46<>"N/A",MAX(U46-1,0),U46),V49)) -> N/A | W46: =IF(W45="Interest Only","N/A",IF(W45=V45,IF(V46<>"N/A",MAX(V46-1,0),V46),W49)) -> N/A | X46: =IF(X45="Interest Only","N/A",IF(X45=W45,IF(W46<>"N/A",MAX(W46-1,0),W46),X49)) -> N/A | Y46: =IF(Y45="Interest Only","N/A",IF(Y45=X45,IF(X46<>"N/A",MAX(X46-1,0),X46),Y49)) -> N/A | Z46: =IF(Z45="Interest Only","N/A",IF(Z45=Y45,IF(Y46<>"N/A",MAX(Y46-1,0),Y46),Z49)) -> N/A | AA46: =IF(AA45="Interest Only","N/A",IF(AA45=Z45,IF(Z46<>"N/A",MAX(Z46-1,0),Z46),AA49)) -> N/A | AB46: =IF(AB45="Interest Only","N/A",IF(AB45=AA45,IF(AA46<>"N/A",MAX(AA46-1,0),AA46),AB49)) -> N/A | AC46: =IF(AC45="Interest Only","N/A",IF(AC45=AB45,IF(AB46<>"N/A",MAX(AB46-1,0),AB46),AC49)) -> N/A | AD46: =IF(AD45="Interest Only","N/A",IF(AD45=AC45,IF(AC46<>"N/A",MAX(AC46-1,0),AC46),AD49)) -> N/A | AE46: =IF(AE45="Interest Only","N/A",IF(AE45=AD45,IF(AD46<>"N/A",MAX(AD46-1,0),AD46),AE49)) -> N/A | AF46: =IF(AF45="Interest Only","N/A",IF(AF45=AE45,IF(AE46<>"N/A",MAX(AE46-1,0),AE46),AF49)) -> N/A | AG46: =IF(AG45="Interest Only","N/A",IF(AG45=AF45,IF(AF46<>"N/A",MAX(AF46-1,0),AF46),AG49)) -> N/A | AH46: =IF(AH45="Interest Only","N/A",IF(AH45=AG45,IF(AG46<>"N/A",MAX(AG46-1,0),AG46),AH49)) -> N/A | AI46: =IF(AI45="Interest Only","N/A",IF(AI45=AH45,IF(AH46<>"N/A",MAX(AH46-1,0),AH46),AI49)) -> N/A
B48: Change Mortgage Type | D48: N/A | E48: N/A | F48: N/A
B49: Change Mortgage Term | D49: N/A | E49: N/A | F49: N/A
B52: PRE-TAX CASHFLOW
B55: Rent Per Annum | D55: =IF(D67>=12,0,IF(D67>0,(12-D67)/12*D71,D71)) -> 0 | E55: =IF(E67>=12,0,IF(E67>0,(12-E67)/12*E71,E71)) -> 27825 | F55: =IF(F67>=12,0,IF(F67>0,(12-F67)/12*F71,F71)) -> 29494.5 | G55: 31264.17 | H55: 32733.58599 | I55: =IF(I67>=12,0,IF(I67>0,(12-I67)/12*I71,I71)) -> 34272.06453 | J55: 35882.85156 | K55: 37569.34559 | L55: 39335.10483 | M55: 41183.85476 | N55: 43119.49593 | O55: 45146.11224 | P55: 47267.97952 | Q55: 49489.57455 | R55: 51815.58456 | S55: =R55*(1+R76) -> 54250.91703 | T55: 56800.71013 | U55: 59470.34351 | V55: 62265.44965 | W55: 65191.92579 | X55: 68255.9463 | Y55: 71463.97577 | Z55: 74822.78264 | AA55: 78339.45342 | AB55: 82021.40773 | AC55: 85876.41389 | AD55: 89912.60535 | AE55: 94138.4978 | AF55: 98563.00719 | AG55: 103195.4685 | AH55: 108045.6556 | AI55: 113123.8014
B56: Financing Costs | D56: =SUM(D78:D79) -> 2790 | E56: =SUM(E78:E79) -> 32707.5 | F56: =SUM(F78:F79) -> 31150 | G56: 28035 | H56: 28035 | I56: 28035 | J56: 28035 | K56: 28035 | L56: 28035 | M56: =SUM(M78:M79) -> 28035 | N56: 28035 | O56: =SUM(O78:O79) -> 28035 | P56: 28035 | Q56: 28035 | R56: 28035 | S56: =SUM(S78:S79) -> 28035 | T56: 28035 | U56: 28035 | V56: 28035 | W56: 28035 | X56: 28035 | Y56: 28035 | Z56: 28035 | AA56: 28035 | AB56: 28035 | AC56: 28035 | AD56: 28035 | AE56: 28035 | AF56: 28035 | AG56: 28035 | AH56: 28035 | AI56: 28035
B57: Operating Costs | D57: =IF(D67>=12,0,IF(D67>0,(12-D67)/12*(D72+D73),D72+D73)) -> 0 | E57: =IF(E67>=12,0,IF(E67>0,(12-E67)/12*(E72+E73),E72+E73)) -> 10304.83125 | F57: 10632.52312 | G57: 10974.06455 | H57: 11285.76733 | I57: 11608.03857 | J57: 11941.29336 | K57: 12285.96467 | L57: 12642.50414 | M57: 13011.38295 | N57: 13393.09269 | O57: 13788.14627 | P57: 14197.07894 | Q57: 14620.44925 | R57: 15058.8401 | S57: 15512.85993 | T57: 15983.14377 | U57: 16470.35454 | V57: 16975.18427 | W57: 17498.35547 | X57: 18040.62246 | Y57: 18602.77289 | Z57: 19185.62921 | AA57: 19790.0503 | AB57: 20416.9331 | AC57: 21067.21441 | AD57: 21741.87265 | AE57: 22441.92981 | AF57: 23168.45344 | AG57: 23922.55874 | AH57: 24705.41075 | AI57: 25518.22664
B59: Interest Rate | D59: =Assumptions!I26 -> 0.045 | E59: =Assumptions!J26 -> 0.0525 | F59: =Assumptions!K26 -> 0.05 | G59: =Assumptions!L26 -> 0.045 | H59: =Assumptions!M26 -> 0.045 | I59: =Assumptions!N26 -> 0.045 | J59: =Assumptions!O26 -> 0.045 | K59: =Assumptions!P26 -> 0.045 | L59: =Assumptions!Q26 -> 0.045 | M59: =Assumptions!R26 -> 0.045 | N59: =Assumptions!S26 -> 0.045 | O59: =Assumptions!T26 -> 0.045 | P59: =Assumptions!U26 -> 0.045 | Q59: =Assumptions!V26 -> 0.045 | R59: =Assumptions!W26 -> 0.045 | S59: =Assumptions!X26 -> 0.045 | T59: =Assumptions!Y26 -> 0.045 | U59: =Assumptions!Z26 -> 0.045 | V59: =Assumptions!AA26 -> 0.045 | W59: =Assumptions!AB26 -> 0.045 | X59: =Assumptions!AC26 -> 0.045 | Y59: =Assumptions!AD26 -> 0.045 | Z59: =Assumptions!AE26 -> 0.045 | AA59: =Assumptions!AF26 -> 0.045 | AB59: =Assumptions!AG26 -> 0.045 | AC59: =Assumptions!AH26 -> 0.045 | AD59: =Assumptions!AI26 -> 0.045 | AE59: =Assumptions!AJ26 -> 0.045 | AF59: =Assumptions!AK26 -> 0.045 | AG59: =Assumptions!AL26 -> 0.045 | AH59: =Assumptions!AM26 -> 0.045 | AI59: =Assumptions!AN26 -> 0.045
B61: Annual Pre-Tax Cashflow | D61: =D55-SUM(D56:D57) -> -2790 | E61: -15187.33125 | F61: -12288.02312 | G61: -7744.894552 | H61: -6587.181339 | I61: -5370.974039 | J61: -4093.4418 | K61: -2751.619085 | L61: -1342.399313 | M61: 137.4718054 | N61: 1691.403244 | O61: 3322.965966 | P61: 5035.900572 | Q61: 6834.125307 | R61: 8721.744454 | S61: 10703.05711 | T61: 12782.56636 | U61: 14964.98897 | V61: 17255.26538 | W61: 19658.57032 | X61: 22180.32384 | Y61: 24826.20289 | Z61: 27602.15343 | AA61: 30514.40312 | AB61: 33569.47463 | AC61: 36774.19948 | AD61: 40135.73269 | AE61: 43661.56798 | AF61: 47359.55375 | AG61: 51237.90979 | AH61: 55305.2448 | AI61: 59570.57472
B64: HIDDEN RENTAL INFLATION CALCULATIONS
B67: Months Left in Contruction | D67: =IF('Property Set Up'!C103="Yes",'Property Set Up'!C104,0) -> 12 | E67: =D67-12 -> 0 | F67: =E67-12 -> -12 | G67: -24 | H67: -36 | I67: -48 | J67: -60 | K67: -72 | L67: -84 | M67: -96 | N67: -108 | O67: -120 | P67: -132 | Q67: -144 | R67: -156 | S67: =R67-12 -> -168 | T67: -180 | U67: -192 | V67: -204 | W67: -216 | X67: -228 | Y67: -240 | Z67: -252 | AA67: -264 | AB67: -276 | AC67: -288 | AD67: -300 | AE67: -312 | AF67: -324 | AG67: -336 | AH67: -348 | AI67: -360
B68: Months in Construction | D68: =12-D69 -> 12 | E68: =12-E69 -> 0 | F68: 0 | G68: 0 | H68: 0 | I68: 0 | J68: 0 | K68: 0 | L68: 0 | M68: 0 | N68: 0 | O68: 0 | P68: 0 | Q68: 0 | R68: 0 | S68: 0 | T68: 0 | U68: 0 | V68: 0 | W68: 0 | X68: 0 | Y68: 0 | Z68: 0 | AA68: 0 | AB68: 0 | AC68: 0 | AD68: 0 | AE68: 0 | AF68: 0 | AG68: 0 | AH68: 0 | AI68: 0
B69: Months Operating | D69: =MAX(MIN(12-D67,12),0) -> 0 | E69: =MAX(MIN(12-E67,12),0) -> 12 | F69: 12 | G69: 12 | H69: 12 | I69: 12 | J69: 12 | K69: 12 | L69: 12 | M69: 12 | N69: 12 | O69: 12 | P69: 12 | Q69: 12 | R69: 12 | S69: =MAX(MIN(12-S67,12),0) -> 12 | T69: 12 | U69: 12 | V69: 12 | W69: 12 | X69: 12 | Y69: 12 | Z69: 12 | AA69: 12 | AB69: 12 | AC69: 12 | AD69: 12 | AE69: 12 | AF69: 12 | AG69: 12 | AH69: 12 | AI69: 12
B70: P+I Term | D70: ='Property Set Up'!$C39 -> 30 | E70: ='Property Set Up'!$C39 -> 30 | F70: ='Property Set Up'!$C39 -> 30 | G70: ='Property Set Up'!$C39 -> 30 | H70: ='Property Set Up'!$C39 -> 30 | I70: ='Property Set Up'!$C39 -> 30 | J70: ='Property Set Up'!$C39 -> 30 | K70: ='Property Set Up'!$C39 -> 30 | L70: ='Property Set Up'!$C39 -> 30 | M70: ='Property Set Up'!$C39 -> 30 | N70: ='Property Set Up'!$C39 -> 30 | O70: ='Property Set Up'!$C39 -> 30 | P70: ='Property Set Up'!$C39 -> 30 | Q70: ='Property Set Up'!$C39 -> 30 | R70: ='Property Set Up'!$C39 -> 30 | S70: ='Property Set Up'!$C39 -> 30 | T70: ='Property Set Up'!$C39 -> 30 | U70: ='Property Set Up'!$C39 -> 30 | V70: ='Property Set Up'!$C39 -> 30 | W70: ='Property Set Up'!$C39 -> 30 | X70: ='Property Set Up'!$C39 -> 30 | Y70: ='Property Set Up'!$C39 -> 30 | Z70: ='Property Set Up'!$C39 -> 30 | AA70: ='Property Set Up'!$C39 -> 30 | AB70: ='Property Set Up'!$C39 -> 30 | AC70: ='Property Set Up'!$C39 -> 30 | AD70: ='Property Set Up'!$C39 -> 30 | AE70: ='Property Set Up'!$C39 -> 30 | AF70: ='Property Set Up'!$C39 -> 30 | AG70: ='Property Set Up'!$C39 -> 30 | AH70: ='Property Set Up'!$C39 -> 30 | AI70: ='Property Set Up'!$C39 -> 30
B71: Full Sized Annual Rent | D71: ='Property Set Up'!$C$42*(52-'Property Set Up'!$C$43) -> 26250 | E71: =D71*(1+D76) -> 27825 | F71: =E71*(1+E76) -> 29494.5 | G71: 31264.17 | H71: 32733.58599 | I71: 34272.06453 | J71: 35882.85156 | K71: 37569.34559 | L71: 39335.10483 | M71: 41183.85476 | N71: 43119.49593 | O71: 45146.11224 | P71: 47267.97952 | Q71: 49489.57455 | R71: 51815.58456 | S71: =R71*(1+R76) -> 54250.91703 | T71: 56800.71013 | U71: 59470.34351 | V71: 62265.44965 | W71: 65191.92579 | X71: 68255.9463 | Y71: 71463.97577 | Z71: 74822.78264 | AA71: 78339.45342 | AB71: 82021.40773 | AC71: 85876.41389 | AD71: 89912.60535 | AE71: 94138.4978 | AF71: 98563.00719 | AG71: 103195.4685 | AH71: 108045.6556 | AI71: 113123.8014
B72: Full Sized Rental Inflation Based Operating Costs | D72: =IF('Property Set Up'!$C$58="Weeks",'Projection – Property #1'!D71*(1/(52-'Property Set Up'!$C$43))*1.15+'Property Set Up'!$C$57*1.15*'Projection – Property #1'!D71,'Property Set Up'!$C$57*1.15*'Projection – Property #1'!D71) -> 2867.8125 | E72: =IF('Property Set Up'!$C$58="Weeks",'Projection – Property #1'!E71*(1/(52-'Property Set Up'!$C$43))*1.15+'Property Set Up'!$C$57*1.15*'Projection – Property #1'!E71,'Property Set Up'!$C$57*1.15*'Projection – Property #1'!E71) -> 3039.88125 | F72: =IF('Property Set Up'!$C$58="Weeks",'Projection – Property #1'!F71*(1/(52-'Property Set Up'!$C$43))*1.15+'Property Set Up'!$C$57*1.15*'Projection – Property #1'!F71,'Property Set Up'!$C$57*1.15*'Projection – Property #1'!F71) -> 3222.274125 | G72: =IF('Property Set Up'!$C$58="Weeks",'Projection – Property #1'!G71*(1/(52-'Property Set Up'!$C$43))*1.15+'Property Set Up'!$C$57*1.15*'Projection – Property #1'!G71,'Property Set Up'!$C$57*1.15*'Projection – Property #1'!G71) -> 3415.610572 | H72: =IF('Property Set Up'!$C$58="Weeks",'Projection – Property #1'!H71*(1/(52-'Property Set Up'!$C$43))*1.15+'Property Set Up'!$C$57*1.15*'Projection – Property #1'!H71,'Property Set Up'!$C$57*1.15*'Projection – Property #1'!H71) -> 3576.144269 | I72: =IF('Property Set Up'!$C$58="Weeks",'Projection – Property #1'!I71*(1/(52-'Property Set Up'!$C$43))*1.15+'Property Set Up'!$C$57*1.15*'Projection – Property #1'!I71,'Property Set Up'!$C$57*1.15*'Projection – Property #1'!I71) -> 3744.22305 | J72: =IF('Property Set Up'!$C$58="Weeks",'Projection – Property #1'!J71*(1/(52-'Property Set Up'!$C$43))*1.15+'Property Set Up'!$C$57*1.15*'Projection – Property #1'!J71,'Property Set Up'!$C$57*1.15*'Projection – Property #1'!J71) -> 3920.201533 | K72: =IF('Property Set Up'!$C$58="Weeks",'Projection – Property #1'!K71*(1/(52-'Property Set Up'!$C$43))*1.15+'Property Set Up'!$C$57*1.15*'Projection – Property #1'!K71,'Property Set Up'!$C$57*1.15*'Projection – Property #1'!K71) -> 4104.451005 | L72: =IF('Property Set Up'!$C$58="Weeks",'Projection – Property #1'!L71*(1/(52-'Property Set Up'!$C$43))*1.15+'Property Set Up'!$C$57*1.15*'Projection – Property #1'!L71,'Property Set Up'!$C$57*1.15*'Projection – Property #1'!L71) -> 4297.360203 | M72: =IF('Property Set Up'!$C$58="Weeks",'Projection – Property #1'!M71*(1/(52-'Property Set Up'!$C$43))*1.15+'Property Set Up'!$C$57*1.15*'Projection – Property #1'!M71,'Property Set Up'!$C$57*1.15*'Projection – Property #1'!M71) -> 4499.336132 | N72: =IF('Property Set Up'!$C$58="Weeks",'Projection – Property #1'!N71*(1/(52-'Property Set Up'!$C$43))*1.15+'Property Set Up'!$C$57*1.15*'Projection – Property #1'!N71,'Property Set Up'!$C$57*1.15*'Projection – Property #1'!N71) -> 4710.80493 | O72: =IF('Property Set Up'!$C$58="Weeks",'Projection – Property #1'!O71*(1/(52-'Property Set Up'!$C$43))*1.15+'Property Set Up'!$C$57*1.15*'Projection – Property #1'!O71,'Property Set Up'!$C$57*1.15*'Projection – Property #1'!O71) -> 4932.212762 | P72: =IF('Property Set Up'!$C$58="Weeks",'Projection – Property #1'!P71*(1/(52-'Property Set Up'!$C$43))*1.15+'Property Set Up'!$C$57*1.15*'Projection – Property #1'!P71,'Property Set Up'!$C$57*1.15*'Projection – Property #1'!P71) -> 5164.026762 | Q72: =IF('Property Set Up'!$C$58="Weeks",'Projection – Property #1'!Q71*(1/(52-'Property Set Up'!$C$43))*1.15+'Property Set Up'!$C$57*1.15*'Projection – Property #1'!Q71,'Property Set Up'!$C$57*1.15*'Projection – Property #1'!Q71) -> 5406.73602 | R72: =IF('Property Set Up'!$C$58="Weeks",'Projection – Property #1'!R71*(1/(52-'Property Set Up'!$C$43))*1.15+'Property Set Up'!$C$57*1.15*'Projection – Property #1'!R71,'Property Set Up'!$C$57*1.15*'Projection – Property #1'!R71) -> 5660.852613 | S72: =IF('Property Set Up'!$C$58="Weeks",'Projection – Property #1'!S71*(1/(52-'Property Set Up'!$C$43))*1.15+'Property Set Up'!$C$57*1.15*'Projection – Property #1'!S71,'Property Set Up'!$C$57*1.15*'Projection – Property #1'!S71) -> 5926.912686 | T72: =IF('Property Set Up'!$C$58="Weeks",'Projection – Property #1'!T71*(1/(52-'Property Set Up'!$C$43))*1.15+'Property Set Up'!$C$57*1.15*'Projection – Property #1'!T71,'Property Set Up'!$C$57*1.15*'Projection – Property #1'!T71) -> 6205.477582 | U72: =IF('Property Set Up'!$C$58="Weeks",'Projection – Property #1'!U71*(1/(52-'Property Set Up'!$C$43))*1.15+'Property Set Up'!$C$57*1.15*'Projection – Property #1'!U71,'Property Set Up'!$C$57*1.15*'Projection – Property #1'!U71) -> 6497.135028 | V72: =IF('Property Set Up'!$C$58="Weeks",'Projection – Property #1'!V71*(1/(52-'Property Set Up'!$C$43))*1.15+'Property Set Up'!$C$57*1.15*'Projection – Property #1'!V71,'Property Set Up'!$C$57*1.15*'Projection – Property #1'!V71) -> 6802.500375 | W72: =IF('Property Set Up'!$C$58="Weeks",'Projection – Property #1'!W71*(1/(52-'Property Set Up'!$C$43))*1.15+'Property Set Up'!$C$57*1.15*'Projection – Property #1'!W71,'Property Set Up'!$C$57*1.15*'Projection – Property #1'!W71) -> 7122.217892 | X72: =IF('Property Set Up'!$C$58="Weeks",'Projection – Property #1'!X71*(1/(52-'Property Set Up'!$C$43))*1.15+'Property Set Up'!$C$57*1.15*'Projection – Property #1'!X71,'Property Set Up'!$C$57*1.15*'Projection – Property #1'!X71) -> 7456.962133 | Y72: =IF('Property Set Up'!$C$58="Weeks",'Projection – Property #1'!Y71*(1/(52-'Property Set Up'!$C$43))*1.15+'Property Set Up'!$C$57*1.15*'Projection – Property #1'!Y71,'Property Set Up'!$C$57*1.15*'Projection – Property #1'!Y71) -> 7807.439353 | Z72: =IF('Property Set Up'!$C$58="Weeks",'Projection – Property #1'!Z71*(1/(52-'Property Set Up'!$C$43))*1.15+'Property Set Up'!$C$57*1.15*'Projection – Property #1'!Z71,'Property Set Up'!$C$57*1.15*'Projection – Property #1'!Z71) -> 8174.389003 | AA72: =IF('Property Set Up'!$C$58="Weeks",'Projection – Property #1'!AA71*(1/(52-'Property Set Up'!$C$43))*1.15+'Property Set Up'!$C$57*1.15*'Projection – Property #1'!AA71,'Property Set Up'!$C$57*1.15*'Projection – Property #1'!AA71) -> 8558.585286 | AB72: =IF('Property Set Up'!$C$58="Weeks",'Projection – Property #1'!AB71*(1/(52-'Property Set Up'!$C$43))*1.15+'Property Set Up'!$C$57*1.15*'Projection – Property #1'!AB71,'Property Set Up'!$C$57*1.15*'Projection – Property #1'!AB71) -> 8960.838794 | AC72: =IF('Property Set Up'!$C$58="Weeks",'Projection – Property #1'!AC71*(1/(52-'Property Set Up'!$C$43))*1.15+'Property Set Up'!$C$57*1.15*'Projection – Property #1'!AC71,'Property Set Up'!$C$57*1.15*'Projection – Property #1'!AC71) -> 9381.998218 | AD72: =IF('Property Set Up'!$C$58="Weeks",'Projection – Property #1'!AD71*(1/(52-'Property Set Up'!$C$43))*1.15+'Property Set Up'!$C$57*1.15*'Projection – Property #1'!AD71,'Property Set Up'!$C$57*1.15*'Projection – Property #1'!AD71) -> 9822.952134 | AE72: =IF('Property Set Up'!$C$58="Weeks",'Projection – Property #1'!AE71*(1/(52-'Property Set Up'!$C$43))*1.15+'Property Set Up'!$C$57*1.15*'Projection – Property #1'!AE71,'Property Set Up'!$C$57*1.15*'Projection – Property #1'!AE71) -> 10284.63088 | AF72: =IF('Property Set Up'!$C$58="Weeks",'Projection – Property #1'!AF71*(1/(52-'Property Set Up'!$C$43))*1.15+'Property Set Up'!$C$57*1.15*'Projection – Property #1'!AF71,'Property Set Up'!$C$57*1.15*'Projection – Property #1'!AF71) -> 10768.00854 | AG72: =IF('Property Set Up'!$C$58="Weeks",'Projection – Property #1'!AG71*(1/(52-'Property Set Up'!$C$43))*1.15+'Property Set Up'!$C$57*1.15*'Projection – Property #1'!AG71,'Property Set Up'!$C$57*1.15*'Projection – Property #1'!AG71) -> 11274.10494 | AH72: =IF('Property Set Up'!$C$58="Weeks",'Projection – Property #1'!AH71*(1/(52-'Property Set Up'!$C$43))*1.15+'Property Set Up'!$C$57*1.15*'Projection – Property #1'!AH71,'Property Set Up'!$C$57*1.15*'Projection – Property #1'!AH71) -> 11803.98787 | AI72: =IF('Property Set Up'!$C$58="Weeks",'Projection – Property #1'!AI71*(1/(52-'Property Set Up'!$C$43))*1.15+'Property Set Up'!$C$57*1.15*'Projection – Property #1'!AI71,'Property Set Up'!$C$57*1.15*'Projection – Property #1'!AI71) -> 12358.7753
B73: Full Sized Inflation Based Operating Costs | D73: =IF('Property Set Up'!C58="Weeks",(SUM('Property Set Up'!$C$61:$C$68)-'Property Set Up'!C66)*(1+'Property Set Up'!C77)^'Projection – Property #1'!D26,(SUM('Property Set Up'!$C$60:$C$68)-'Property Set Up'!C66)*(1+'Property Set Up'!C77)^'Projection – Property #1'!D26) -> 7122.5 | E73: =D73*(1+'Property Set Up'!$C$77) -> 7264.95 | F73: =E73*(1+'Property Set Up'!$C$77) -> 7410.249 | G73: =F73*(1+'Property Set Up'!$C$77) -> 7558.45398 | H73: =G73*(1+'Property Set Up'!$C$77) -> 7709.62306 | I73: =H73*(1+'Property Set Up'!$C$77) -> 7863.815521 | J73: =I73*(1+'Property Set Up'!$C$77) -> 8021.091831 | K73: =J73*(1+'Property Set Up'!$C$77) -> 8181.513668 | L73: =K73*(1+'Property Set Up'!$C$77) -> 8345.143941 | M73: =L73*(1+'Property Set Up'!$C$77) -> 8512.04682 | N73: =M73*(1+'Property Set Up'!$C$77) -> 8682.287756 | O73: =N73*(1+'Property Set Up'!$C$77) -> 8855.933512 | P73: =O73*(1+'Property Set Up'!$C$77) -> 9033.052182 | Q73: =P73*(1+'Property Set Up'!$C$77) -> 9213.713225 | R73: =Q73*(1+'Property Set Up'!$C$77) -> 9397.98749 | S73: =R73*(1+'Property Set Up'!$C$77) -> 9585.94724 | T73: =S73*(1+'Property Set Up'!$C$77) -> 9777.666185 | U73: =T73*(1+'Property Set Up'!$C$77) -> 9973.219508 | V73: =U73*(1+'Property Set Up'!$C$77) -> 10172.6839 | W73: =V73*(1+'Property Set Up'!$C$77) -> 10376.13758 | X73: =W73*(1+'Property Set Up'!$C$77) -> 10583.66033 | Y73: =X73*(1+'Property Set Up'!$C$77) -> 10795.33353 | Z73: =Y73*(1+'Property Set Up'!$C$77) -> 11011.24021 | AA73: =Z73*(1+'Property Set Up'!$C$77) -> 11231.46501 | AB73: =AA73*(1+'Property Set Up'!$C$77) -> 11456.09431 | AC73: =AB73*(1+'Property Set Up'!$C$77) -> 11685.2162 | AD73: =AC73*(1+'Property Set Up'!$C$77) -> 11918.92052 | AE73: =AD73*(1+'Property Set Up'!$C$77) -> 12157.29893 | AF73: =AE73*(1+'Property Set Up'!$C$77) -> 12400.44491 | AG73: =AF73*(1+'Property Set Up'!$C$77) -> 12648.45381 | AH73: =AG73*(1+'Property Set Up'!$C$77) -> 12901.42288 | AI73: =AH73*(1+'Property Set Up'!$C$77) -> 13159.45134
B74: Months Left At Short Term Rental Inflation Rate | D74: =Assumptions!D13*12 -> 36 | E74: =D74-D75 -> 24 | F74: 12 | G74: =F74-F75 -> 0 | H74: -12 | I74: -24 | J74: -36 | K74: -48 | L74: -60 | M74: -72 | N74: -84 | O74: -96 | P74: -108 | Q74: -120 | R74: -132 | S74: =R74-R75 -> -144 | T74: -157 | U74: -171 | V74: -186 | W74: -202 | X74: -219 | Y74: -237 | Z74: -256 | AA74: -276 | AB74: -297 | AC74: -319 | AD74: -342 | AE74: -366 | AF74: -391 | AG74: -417 | AH74: -444 | AI74: -472
B75: Months in period | D75: 12 | E75: 12 | F75: 12 | G75: 12 | H75: 12 | I75: 12 | J75: 12 | K75: 12 | L75: 12 | M75: 12 | N75: 12 | O75: 12 | P75: 12 | Q75: 12 | R75: 12 | S75: 13 | T75: 14 | U75: 15 | V75: 16 | W75: 17 | X75: 18 | Y75: 19 | Z75: 20 | AA75: 21 | AB75: 22 | AC75: 23 | AD75: 24 | AE75: 25 | AF75: 26 | AG75: 27 | AH75: 28 | AI75: 29
B76: Rental Inflation Rate In Period | D76: =IF(D77>0,Assumptions!$D$12,Assumptions!$D$10) -> 0.06 | E76: =IF(E77>0,Assumptions!$D$12,Assumptions!$D$10) -> 0.06 | F76: =IF(F77>0,Assumptions!$D$12,Assumptions!$D$10) -> 0.06 | G76: =IF(G77>0,Assumptions!$D$12,Assumptions!$D$10) -> 0.047 | H76: =IF(H77>0,Assumptions!$D$12,Assumptions!$D$10) -> 0.047 | I76: =IF(I77>0,Assumptions!$D$12,Assumptions!$D$10) -> 0.047 | J76: =IF(J77>0,Assumptions!$D$12,Assumptions!$D$10) -> 0.047 | K76: =IF(K77>0,Assumptions!$D$12,Assumptions!$D$10) -> 0.047 | L76: =IF(L77>0,Assumptions!$D$12,Assumptions!$D$10) -> 0.047 | M76: =IF(M77>0,Assumptions!$D$12,Assumptions!$D$10) -> 0.047 | N76: =IF(N77>0,Assumptions!$D$12,Assumptions!$D$10) -> 0.047 | O76: =IF(O77>0,Assumptions!$D$12,Assumptions!$D$10) -> 0.047 | P76: =IF(P77>0,Assumptions!$D$12,Assumptions!$D$10) -> 0.047 | Q76: =IF(Q77>0,Assumptions!$D$12,Assumptions!$D$10) -> 0.047 | R76: =IF(R77>0,Assumptions!$D$12,Assumptions!$D$10) -> 0.047 | S76: =IF(S74>=12,(1+Assumptions!$D12)^(1/Assumptions!$D13)-1,IF(AND(S74<12,S74>0),(1+Assumptions!$D14)^('Projection – Property #1'!S74)*(1+Assumptions!$D11)^(12-'Projection – Property #1'!S74)-1,Assumptions!$D10)) -> 0.047 | T76: =IF(T74>=12,(1+Assumptions!$D12)^(1/Assumptions!$D13)-1,IF(AND(T74<12,T74>0),(1+Assumptions!$D14)^('Projection – Property #1'!T74)*(1+Assumptions!$D11)^(12-'Projection – Property #1'!T74)-1,Assumptions!$D10)) -> 0.047 | U76: =IF(U74>=12,(1+Assumptions!$D12)^(1/Assumptions!$D13)-1,IF(AND(U74<12,U74>0),(1+Assumptions!$D14)^('Projection – Property #1'!U74)*(1+Assumptions!$D11)^(12-'Projection – Property #1'!U74)-1,Assumptions!$D10)) -> 0.047 | V76: =IF(V74>=12,(1+Assumptions!$D12)^(1/Assumptions!$D13)-1,IF(AND(V74<12,V74>0),(1+Assumptions!$D14)^('Projection – Property #1'!V74)*(1+Assumptions!$D11)^(12-'Projection – Property #1'!V74)-1,Assumptions!$D10)) -> 0.047 | W76: =IF(W74>=12,(1+Assumptions!$D12)^(1/Assumptions!$D13)-1,IF(AND(W74<12,W74>0),(1+Assumptions!$D14)^('Projection – Property #1'!W74)*(1+Assumptions!$D11)^(12-'Projection – Property #1'!W74)-1,Assumptions!$D10)) -> 0.047 | X76: =IF(X74>=12,(1+Assumptions!$D12)^(1/Assumptions!$D13)-1,IF(AND(X74<12,X74>0),(1+Assumptions!$D14)^('Projection – Property #1'!X74)*(1+Assumptions!$D11)^(12-'Projection – Property #1'!X74)-1,Assumptions!$D10)) -> 0.047 | Y76: =IF(Y74>=12,(1+Assumptions!$D12)^(1/Assumptions!$D13)-1,IF(AND(Y74<12,Y74>0),(1+Assumptions!$D14)^('Projection – Property #1'!Y74)*(1+Assumptions!$D11)^(12-'Projection – Property #1'!Y74)-1,Assumptions!$D10)) -> 0.047 | Z76: =IF(Z74>=12,(1+Assumptions!$D12)^(1/Assumptions!$D13)-1,IF(AND(Z74<12,Z74>0),(1+Assumptions!$D14)^('Projection – Property #1'!Z74)*(1+Assumptions!$D11)^(12-'Projection – Property #1'!Z74)-1,Assumptions!$D10)) -> 0.047 | AA76: =IF(AA74>=12,(1+Assumptions!$D12)^(1/Assumptions!$D13)-1,IF(AND(AA74<12,AA74>0),(1+Assumptions!$D14)^('Projection – Property #1'!AA74)*(1+Assumptions!$D11)^(12-'Projection – Property #1'!AA74)-1,Assumptions!$D10)) -> 0.047 | AB76: =IF(AB74>=12,(1+Assumptions!$D12)^(1/Assumptions!$D13)-1,IF(AND(AB74<12,AB74>0),(1+Assumptions!$D14)^('Projection – Property #1'!AB74)*(1+Assumptions!$D11)^(12-'Projection – Property #1'!AB74)-1,Assumptions!$D10)) -> 0.047 | AC76: =IF(AC74>=12,(1+Assumptions!$D12)^(1/Assumptions!$D13)-1,IF(AND(AC74<12,AC74>0),(1+Assumptions!$D14)^('Projection – Property #1'!AC74)*(1+Assumptions!$D11)^(12-'Projection – Property #1'!AC74)-1,Assumptions!$D10)) -> 0.047 | AD76: =IF(AD74>=12,(1+Assumptions!$D12)^(1/Assumptions!$D13)-1,IF(AND(AD74<12,AD74>0),(1+Assumptions!$D14)^('Projection – Property #1'!AD74)*(1+Assumptions!$D11)^(12-'Projection – Property #1'!AD74)-1,Assumptions!$D10)) -> 0.047 | AE76: =IF(AE74>=12,(1+Assumptions!$D12)^(1/Assumptions!$D13)-1,IF(AND(AE74<12,AE74>0),(1+Assumptions!$D14)^('Projection – Property #1'!AE74)*(1+Assumptions!$D11)^(12-'Projection – Property #1'!AE74)-1,Assumptions!$D10)) -> 0.047 | AF76: =IF(AF74>=12,(1+Assumptions!$D12)^(1/Assumptions!$D13)-1,IF(AND(AF74<12,AF74>0),(1+Assumptions!$D14)^('Projection – Property #1'!AF74)*(1+Assumptions!$D11)^(12-'Projection – Property #1'!AF74)-1,Assumptions!$D10)) -> 0.047 | AG76: =IF(AG74>=12,(1+Assumptions!$D12)^(1/Assumptions!$D13)-1,IF(AND(AG74<12,AG74>0),(1+Assumptions!$D14)^('Projection – Property #1'!AG74)*(1+Assumptions!$D11)^(12-'Projection – Property #1'!AG74)-1,Assumptions!$D10)) -> 0.047 | AH76: =IF(AH74>=12,(1+Assumptions!$D12)^(1/Assumptions!$D13)-1,IF(AND(AH74<12,AH74>0),(1+Assumptions!$D14)^('Projection – Property #1'!AH74)*(1+Assumptions!$D11)^(12-'Projection – Property #1'!AH74)-1,Assumptions!$D10)) -> 0.047 | AI76: =IF(AI74>=12,(1+Assumptions!$D12)^(1/Assumptions!$D13)-1,IF(AND(AI74<12,AI74>0),(1+Assumptions!$D14)^('Projection – Property #1'!AI74)*(1+Assumptions!$D11)^(12-'Projection – Property #1'!AI74)-1,Assumptions!$D10)) -> 0.047
B77: Years of Above average inflation | D77: =Assumptions!D13 -> 3 | E77: =MAX(D77-1,0) -> 2 | F77: =MAX(E77-1,0) -> 1 | G77: 0 | H77: 0 | I77: 0 | J77: 0 | K77: 0 | L77: 0 | M77: 0 | N77: 0 | O77: 0 | P77: 0 | Q77: 0 | R77: 0
B78: Construction Financing Costs | D78: =(D68/12)*(D59*'Property Set Up'!$C106) -> 2790 | E78: =(E68/12)*(E59*'Property Set Up'!$C106) -> 0 | F78: =(F68/12)*(F59*'Property Set Up'!$C106) -> 0 | G78: =(G68/12)*(G59*'Property Set Up'!$C106) -> 0 | H78: =(H68/12)*(H59*'Property Set Up'!$C106) -> 0 | I78: =(I68/12)*(I59*'Property Set Up'!$C106) -> 0 | J78: =(J68/12)*(J59*'Property Set Up'!$C106) -> 0 | K78: =(K68/12)*(K59*'Property Set Up'!$C106) -> 0 | L78: =(L68/12)*(L59*'Property Set Up'!$C106) -> 0 | M78: =(M68/12)*(M59*'Property Set Up'!$C106) -> 0 | N78: =(N68/12)*(N59*'Property Set Up'!$C106) -> 0 | O78: =(O68/12)*(O59*'Property Set Up'!$C106) -> 0 | P78: =(P68/12)*(P59*'Property Set Up'!$C106) -> 0 | Q78: =(Q68/12)*(Q59*'Property Set Up'!$C106) -> 0 | R78: =(R68/12)*(R59*'Property Set Up'!$C106) -> 0 | S78: =(S68/12)*(S59*'Property Set Up'!$C106) -> 0 | T78: =(T68/12)*(T59*'Property Set Up'!$C106) -> 0 | U78: =(U68/12)*(U59*'Property Set Up'!$C106) -> 0 | V78: =(V68/12)*(V59*'Property Set Up'!$C106) -> 0 | W78: =(W68/12)*(W59*'Property Set Up'!$C106) -> 0 | X78: =(X68/12)*(X59*'Property Set Up'!$C106) -> 0 | Y78: =(Y68/12)*(Y59*'Property Set Up'!$C106) -> 0 | Z78: =(Z68/12)*(Z59*'Property Set Up'!$C106) -> 0 | AA78: =(AA68/12)*(AA59*'Property Set Up'!$C106) -> 0 | AB78: =(AB68/12)*(AB59*'Property Set Up'!$C106) -> 0 | AC78: =(AC68/12)*(AC59*'Property Set Up'!$C106) -> 0 | AD78: =(AD68/12)*(AD59*'Property Set Up'!$C106) -> 0 | AE78: =(AE68/12)*(AE59*'Property Set Up'!$C106) -> 0 | AF78: =(AF68/12)*(AF59*'Property Set Up'!$C106) -> 0 | AG78: =(AG68/12)*(AG59*'Property Set Up'!$C106) -> 0 | AH78: =(AH68/12)*(AH59*'Property Set Up'!$C106) -> 0 | AI78: =(AI68/12)*(AI59*'Property Set Up'!$C106) -> 0
B79: Operating Financing Costs | D79: =IFERROR(IF(D45="Interest Only",D40*D59/12,-PMT(D59/12,D46*12,D40,,0))*D69,0) -> 0 | E79: 32707.5 | F79: 31150 | G79: 28035 | H79: 28035 | I79: 28035 | J79: 28035 | K79: 28035 | L79: 28035 | M79: 28035 | N79: 28035 | O79: 28035 | P79: 28035 | Q79: 28035 | R79: 28035 | S79: 28035 | T79: 28035 | U79: 28035 | V79: 28035 | W79: 28035 | X79: 28035 | Y79: 28035 | Z79: 28035 | AA79: 28035 | AB79: 28035 | AC79: 28035 | AD79: 28035 | AE79: 28035 | AF79: 28035 | AG79: 28035 | AH79: 28035 | AI79: 28035
B82: HIDDEN INTEREST DEDUCTIBILITY CALCULATIONS
B85: Start Calendar Year | D85: =DATE(YEAR('Property Set Up'!C6),MONTH('Property Set Up'!C6)+1,1) -> 2022-05-01 | E85: =D86+1 -> 2023-05-01 | F85: 2024-05-01 | G85: 2025-05-01 | H85: 2026-05-01 | I85: 2027-05-01 | J85: 2028-05-01 | K85: 2029-05-01 | L85: 2030-05-01 | M85: 2031-05-01 | N85: 2032-05-01 | O85: 2033-05-01 | P85: 2034-05-01 | Q85: 2035-05-01 | R85: 2036-05-01 | S85: =R86+1 -> 2037-05-01 | T85: 2038-05-01 | U85: 2039-05-01 | V85: 2040-05-01 | W85: 2041-05-01 | X85: 2042-05-01 | Y85: 2043-05-01 | Z85: 2044-05-01 | AA85: 2045-05-01 | AB85: 2046-05-01 | AC85: 2047-05-01 | AD85: 2048-05-01 | AE85: 2049-05-01 | AF85: 2050-05-01 | AG85: 2051-05-01 | AH85: 2052-05-01 | AI85: 2053-05-01
B86: End Calendar Year | D86: =DATE(YEAR(D85)+1,MONTH(D85),DAY(D85)-1) -> 2023-04-30 | E86: 2024-04-30 | F86: 2025-04-30 | G86: 2026-04-30 | H86: 2027-04-30 | I86: 2028-04-30 | J86: 2029-04-30 | K86: 2030-04-30 | L86: 2031-04-30 | M86: 2032-04-30 | N86: 2033-04-30 | O86: 2034-04-30 | P86: 2035-04-30 | Q86: 2036-04-30 | R86: 2037-04-30 | S86: =DATE(YEAR(S85)+1,MONTH(S85),DAY(S85)-1) -> 2038-04-30 | T86: 2039-04-30 | U86: 2040-04-30 | V86: 2041-04-30 | W86: 2042-04-30 | X86: 2043-04-30 | Y86: 2044-04-30 | Z86: 2045-04-30 | AA86: 2046-04-30 | AB86: 2047-04-30 | AC86: =DATE(YEAR(AC85)+1,MONTH(AC85),DAY(AC85)-1) -> 2048-04-30 | AD86: 2049-04-30 | AE86: 2050-04-30 | AF86: 2051-04-30 | AG86: 2052-04-30 | AH86: 2053-04-30 | AI86: 2054-04-30
B88: Middle Tax Year | D88: =IF(MONTH(D85)>3,YEAR(D86),YEAR(D85)) -> 2023 | E88: 2024 | F88: 2025 | G88: 2026 | H88: 2027 | I88: 2028 | J88: 2029 | K88: 2030 | L88: 2031 | M88: 2032 | N88: 2033 | O88: 2034 | P88: 2035 | Q88: 2036 | R88: 2037 | S88: =IF(MONTH(S85)>3,YEAR(S86),YEAR(S85)) -> 2038 | T88: 2039 | U88: 2040 | V88: 2041 | W88: 2042 | X88: 2043 | Y88: 2044 | Z88: 2045 | AA88: 2046 | AB88: 2047 | AC88: 2048 | AD88: 2049 | AE88: 2050 | AF88: 2051 | AG88: 2052 | AH88: 2053 | AI88: 2054
B89: Months in First Tax Period | D89: =IF(AND(YEAR(D85)=2021,MONTH(D85)<10),10-MONTH(D85),IF(MONTH(D85)>3,16-MONTH(D85),4-MONTH(D85))) -> 11 | E89: =IF(MONTH(E85)>3,16-MONTH(E85),4-MONTH(E85)) -> 11 | F89: 11 | G89: 11 | H89: 11 | I89: 11 | J89: 11 | K89: 11 | L89: 11 | M89: 11 | N89: 11 | O89: 11 | P89: 11 | Q89: 11 | R89: 11 | S89: =IF(MONTH(S85)>3,16-MONTH(S85),4-MONTH(S85)) -> 11 | T89: 11 | U89: 11 | V89: 11 | W89: 11 | X89: 11 | Y89: 11 | Z89: 11 | AA89: 11 | AB89: 11 | AC89: 11 | AD89: 11 | AE89: 11 | AF89: 11 | AG89: 11 | AH89: 11 | AI89: 11
B90: Months in 2nd Tax Period | D90: =12-D89 -> 1 | E90: 1 | F90: 1 | G90: 1 | H90: 1 | I90: 1 | J90: 1 | K90: 1 | L90: 1 | M90: 1 | N90: 1 | O90: 1 | P90: 1 | Q90: 1 | R90: 1 | S90: =12-S89 -> 1 | T90: 1 | U90: 1 | V90: 1 | W90: 1 | X90: 1 | Y90: 1 | Z90: 1 | AA90: 1 | AB90: 1 | AC90: 1 | AD90: 1 | AE90: 1 | AF90: 1 | AG90: 1 | AH90: 1 | AI90: 1
B92: P+I Starting Period (Months) – First Tax Period | D92: =IF(D67>=D89,0,1) -> 0 | E92: =IF(E67>=E89,0,D95+1) -> 1
B93: P+I Ending Period (Months) – First Tax Period | D93: =IF(D89>=D67,D89-D67,0) -> 0 | E93: =IF(E89>E67,E89-E67,0) -> 11
B94: P+I Starting Period (Months) – Second Tax Period | D94: =IF(D67>=12,0,D93+1) -> 0 | E94: =IF(E90=0,0,IF(E67=12,0,E93+1)) -> 12
B95: P+I Ending Period (Months) – Second Tax Period | D95: =IF(D67>=12,0,12-D67) -> 0 | E95: =IF(E94=0,0,12-E67) -> 12
B97: Interest in first half of the tax year | D97: =IF('Property Set Up'!$C38="Interest Only",D105+D106,D105+D107) -> 2557.5 | E97: =IF('Property Set Up'!$C38="Interest Only",E105+E106,E105+E107) -> 29981.875 | F97: =IF('Property Set Up'!$C38="Interest only",F59*'Property Set Up'!$C28*('Projection – Property #1'!F89/12),IFERROR(-CUMIPMT(F59/12,'Property Set Up'!$C39*12,'Property Set Up'!$C28,F27,F27+F89-1,0),0)) -> 28554.16667 | G97: =IFERROR(IF(G45="Interest Only",(G40*G59)*G89/12,-CUMIPMT(G59/12,12*G46,G40,1,G89,0)),0) -> 25698.75 | H97: 25698.75 | I97: 25698.75 | J97: 25698.75 | K97: 25698.75 | L97: 25698.75 | M97: 25698.75 | N97: 25698.75 | O97: 25698.75 | P97: 25698.75 | Q97: 25698.75 | R97: 25698.75 | S97: 25698.75 | T97: 25698.75 | U97: 25698.75 | V97: 25698.75 | W97: 25698.75 | X97: 25698.75 | Y97: 25698.75 | Z97: 25698.75 | AA97: 25698.75 | AB97: 25698.75 | AC97: 25698.75 | AD97: 25698.75 | AE97: 25698.75 | AF97: 25698.75 | AG97: 25698.75 | AH97: 25698.75 | AI97: 25698.75
B98: Interest in second half of the tax year | D98: =IF('Property Set Up'!$C38="Interest Only",D114+D115,D114+D116) -> 232.5 | E98: =IF('Property Set Up'!$C38="Interest Only",E114+E115,E114+E116) -> 2725.625 | F98: =IF('Property Set Up'!$C38="Interest only",F59*'Property Set Up'!$C28*(F90/12),IFERROR(-CUMIPMT(F59/12,'Property Set Up'!$C39*12,'Property Set Up'!$C28,F27+F89,F28,0),0)) -> 2595.833333 | G98: =IFERROR(IF(G45="Interest Only",(G40*G59)*G90/12,IFERROR(-CUMIPMT(G59/12,12*G46,G40,G89+1,12,0),0)),0) -> 2336.25 | H98: 2336.25 | I98: 2336.25 | J98: 2336.25 | K98: 2336.25 | L98: 2336.25 | M98: 2336.25 | N98: 2336.25 | O98: 2336.25 | P98: 2336.25 | Q98: 2336.25 | R98: 2336.25 | S98: 2336.25 | T98: 2336.25 | U98: 2336.25 | V98: 2336.25 | W98: 2336.25 | X98: 2336.25 | Y98: 2336.25 | Z98: 2336.25 | AA98: 2336.25 | AB98: 2336.25 | AC98: 2336.25 | AD98: 2336.25 | AE98: 2336.25 | AF98: 2336.25 | AG98: 2336.25 | AH98: 2336.25 | AI98: 2336.25
B100: 1st Half Months in Period | D100: =D89 -> 11 | E100: =E89 -> 11
B101: 1st Half Construction | D101: =IF(D103>=1,D100,D100+D103) -> 11 | E101: =IF(D112>E100,E100,IF(D112=0,0,D112)) -> 0
B102: 1st Half Operating | D102: =D100-D101 -> 0 | E102: =E100-E101 -> 11
B103: 1st Half Residual | D103: =D67-D100 -> 1 | E103: =D112-E101 -> 0
B105: 1st Half (Interest Resulting From Construction) | D105: ='Property Set Up'!$C106*D59*(D101/12) -> 2557.5 | E105: ='Property Set Up'!$C106*E59*(E101/12) -> 0
B106: 1st Half interest if i/o | D106: =(D102/12)*('Property Set Up'!$C28*D59) -> 0 | E106: =(E102/12)*('Property Set Up'!$C28*E59) -> 29981.875
B107: 1st Half interest if P+I | D107: =IFERROR(-CUMIPMT(D59/12,'Property Set Up'!$C39*12,'Property Set Up'!$C28,D92,D93,0),0) -> 0 | E107: =IFERROR(-CUMIPMT(E59/12,'Property Set Up'!$C39*12,'Property Set Up'!$C28,E92,E93,0),0) -> 29807.64666
B109: 2nd Half Months in Period | D109: =D90 -> 1 | E109: =E90 -> 1
B110: 2nd Half Construction | D110: =IF(D103>=D109,D109,IF(D103>0,D103,0)) -> 1 | E110: =E103 -> 0
B111: 2nd Half Operating | D111: =D109-D110 -> 0 | E111: =E109-E110 -> 1
B112: 2nd Half Residual | D112: =IF(D103-D109<1,0,D103-D109) -> 0 | E112: =E109-SUM(E110:E111) -> 0
B114: 2nd Half (Interest Resulting From Construction) | D114: ='Property Set Up'!$C106*D59*(D110/12) -> 232.5 | E114: ='Property Set Up'!$C106*E59*(E110/12) -> 0
B115: 2nd Half interest if i/o | D115: =(D111/12)*('Property Set Up'!$C28*D59) -> 0 | E115: =(E111/12)*('Property Set Up'!$C28*E59) -> 2725.625
B116: 2nd Half interest if P+I | D116: =IFERROR(-CUMIPMT(D59/12,'Property Set Up'!$C39*12,'Property Set Up'!$C28,D94,D95,0),0) -> 0 | E116: =IFERROR(-CUMIPMT(E59/12,'Property Set Up'!$C39*12,'Property Set Up'!$C28,E94,E95,0),0) -> 2690.47243
B118: Tax Treatment First Tax Year | D118: =IF('Property Set Up'!C21="NB",100%,IF(AND(YEAR(D85)=2021,MONTH(D85)<10),100%,IF('Property Set Up'!C21="Full",0,IF(D88=2022,100%,IF(D88=2023,75%,IF(D88=2024,50%,IF(D88=2025,25%,0%))))))) -> 1 | E118: =IF('Property Set Up'!$C21="NB",100%,IF('Property Set Up'!$C21="full",0,IF(E88=2022,100%,IF(E88=2023,75%,IF(E88=2024,50%,IF(E88=2025,25%,0%)))))) -> 1 | F118: =IF('Property Set Up'!$C21="NB",100%,IF('Property Set Up'!$C21="full",0,IF(F88=2022,100%,IF(F88=2023,75%,IF(F88=2024,50%,IF(F88=2025,25%,0%)))))) -> 1 | G118: =IF('Property Set Up'!$C21="NB",100%,IF('Property Set Up'!$C21="full",0,IF(G88=2022,100%,IF(G88=2023,75%,IF(G88=2024,50%,IF(G88=2025,25%,0%)))))) -> 1 | H118: =IF('Property Set Up'!$C21="NB",100%,IF('Property Set Up'!$C21="full",0,IF(H88=2022,100%,IF(H88=2023,75%,IF(H88=2024,50%,IF(H88=2025,25%,0%)))))) -> 1 | I118: =IF('Property Set Up'!$C21="NB",100%,IF('Property Set Up'!$C21="full",0,IF(I88=2022,100%,IF(I88=2023,75%,IF(I88=2024,50%,IF(I88=2025,25%,0%)))))) -> 1 | J118: =IF('Property Set Up'!$C21="NB",100%,IF('Property Set Up'!$C21="full",0,IF(J88=2022,100%,IF(J88=2023,75%,IF(J88=2024,50%,IF(J88=2025,25%,0%)))))) -> 1 | K118: =IF('Property Set Up'!$C21="NB",100%,IF('Property Set Up'!$C21="full",0,IF(K88=2022,100%,IF(K88=2023,75%,IF(K88=2024,50%,IF(K88=2025,25%,0%)))))) -> 1 | L118: =IF('Property Set Up'!$C21="NB",100%,IF('Property Set Up'!$C21="full",0,IF(L88=2022,100%,IF(L88=2023,75%,IF(L88=2024,50%,IF(L88=2025,25%,0%)))))) -> 1 | M118: =IF('Property Set Up'!$C21="NB",100%,IF('Property Set Up'!$C21="full",0,IF(M88=2022,100%,IF(M88=2023,75%,IF(M88=2024,50%,IF(M88=2025,25%,0%)))))) -> 1 | N118: =IF('Property Set Up'!$C21="NB",100%,IF('Property Set Up'!$C21="full",0,IF(N88=2022,100%,IF(N88=2023,75%,IF(N88=2024,50%,IF(N88=2025,25%,0%)))))) -> 1 | O118: =IF('Property Set Up'!$C21="NB",100%,IF('Property Set Up'!$C21="full",0,IF(O88=2022,100%,IF(O88=2023,75%,IF(O88=2024,50%,IF(O88=2025,25%,0%)))))) -> 1 | P118: =IF('Property Set Up'!$C21="NB",100%,IF('Property Set Up'!$C21="full",0,IF(P88=2022,100%,IF(P88=2023,75%,IF(P88=2024,50%,IF(P88=2025,25%,0%)))))) -> 1 | Q118: =IF('Property Set Up'!$C21="NB",100%,IF('Property Set Up'!$C21="full",0,IF(Q88=2022,100%,IF(Q88=2023,75%,IF(Q88=2024,50%,IF(Q88=2025,25%,0%)))))) -> 1 | R118: =IF('Property Set Up'!$C21="NB",100%,IF('Property Set Up'!$C21="full",0,IF(R88=2022,100%,IF(R88=2023,75%,IF(R88=2024,50%,IF(R88=2025,25%,0%)))))) -> 1 | S118: =IF('Property Set Up'!$C21="NB",100%,IF('Property Set Up'!$C21="full",0,IF(S88=2022,100%,IF(S88=2023,75%,IF(S88=2024,50%,IF(S88=2025,25%,0%)))))) -> 1 | T118: =IF('Property Set Up'!$C21="NB",100%,IF('Property Set Up'!$C21="full",0,IF(T88=2022,100%,IF(T88=2023,75%,IF(T88=2024,50%,IF(T88=2025,25%,0%)))))) -> 1 | U118: =IF('Property Set Up'!$C21="NB",100%,IF('Property Set Up'!$C21="full",0,IF(U88=2022,100%,IF(U88=2023,75%,IF(U88=2024,50%,IF(U88=2025,25%,0%)))))) -> 1 | V118: =IF('Property Set Up'!$C21="NB",100%,IF('Property Set Up'!$C21="full",0,IF(V88=2022,100%,IF(V88=2023,75%,IF(V88=2024,50%,IF(V88=2025,25%,0%)))))) -> 1 | W118: =IF('Property Set Up'!$C21="NB",100%,IF('Property Set Up'!$C21="full",0,IF(W88=2022,100%,IF(W88=2023,75%,IF(W88=2024,50%,IF(W88=2025,25%,0%)))))) -> 1 | X118: =IF('Property Set Up'!$C21="NB",100%,IF('Property Set Up'!$C21="full",0,IF(X88=2022,100%,IF(X88=2023,75%,IF(X88=2024,50%,IF(X88=2025,25%,0%)))))) -> 1 | Y118: =IF('Property Set Up'!$C21="NB",100%,IF('Property Set Up'!$C21="full",0,IF(Y88=2022,100%,IF(Y88=2023,75%,IF(Y88=2024,50%,IF(Y88=2025,25%,0%)))))) -> 1 | Z118: =IF('Property Set Up'!$C21="NB",100%,IF('Property Set Up'!$C21="full",0,IF(Z88=2022,100%,IF(Z88=2023,75%,IF(Z88=2024,50%,IF(Z88=2025,25%,0%)))))) -> 1 | AA118: =IF('Property Set Up'!$C21="NB",100%,IF('Property Set Up'!$C21="full",0,IF(AA88=2022,100%,IF(AA88=2023,75%,IF(AA88=2024,50%,IF(AA88=2025,25%,0%)))))) -> 1 | AB118: =IF('Property Set Up'!$C21="NB",100%,IF('Property Set Up'!$C21="full",0,IF(AB88=2022,100%,IF(AB88=2023,75%,IF(AB88=2024,50%,IF(AB88=2025,25%,0%)))))) -> 1 | AC118: =IF('Property Set Up'!$C21="NB",100%,IF('Property Set Up'!$C21="full",0,IF(AC88=2022,100%,IF(AC88=2023,75%,IF(AC88=2024,50%,IF(AC88=2025,25%,0%)))))) -> 1 | AD118: =IF('Property Set Up'!$C21="NB",100%,IF('Property Set Up'!$C21="full",0,IF(AD88=2022,100%,IF(AD88=2023,75%,IF(AD88=2024,50%,IF(AD88=2025,25%,0%)))))) -> 1 | AE118: =IF('Property Set Up'!$C21="NB",100%,IF('Property Set Up'!$C21="full",0,IF(AE88=2022,100%,IF(AE88=2023,75%,IF(AE88=2024,50%,IF(AE88=2025,25%,0%)))))) -> 1 | AF118: =IF('Property Set Up'!$C21="NB",100%,IF('Property Set Up'!$C21="full",0,IF(AF88=2022,100%,IF(AF88=2023,75%,IF(AF88=2024,50%,IF(AF88=2025,25%,0%)))))) -> 1 | AG118: =IF('Property Set Up'!$C21="NB",100%,IF('Property Set Up'!$C21="full",0,IF(AG88=2022,100%,IF(AG88=2023,75%,IF(AG88=2024,50%,IF(AG88=2025,25%,0%)))))) -> 1 | AH118: =IF('Property Set Up'!$C21="NB",100%,IF('Property Set Up'!$C21="full",0,IF(AH88=2022,100%,IF(AH88=2023,75%,IF(AH88=2024,50%,IF(AH88=2025,25%,0%)))))) -> 1 | AI118: =IF('Property Set Up'!$C21="NB",100%,IF('Property Set Up'!$C21="full",0,IF(AI88=2022,100%,IF(AI88=2023,75%,IF(AI88=2024,50%,IF(AI88=2025,25%,0%)))))) -> 1
B119: Tax Treatment 2nd Tax Year | D119: =IF('Property Set Up'!C21="NB",100%,IF('Property Set Up'!C21="Full",0,IF(AND(YEAR(D85)=2021,MONTH(D85)<10),75%,IF(D88=2022,75%,IF(D88=2023,50%,IF(D88=2024,25%,IF(D88=2025,0%,0%))))))) -> 1 | E119: =IF('Property Set Up'!$C21="NB",100%,IF('Property Set Up'!$C21="Full",0,IF(E88=2022,75%,IF(E88=2023,50%,IF(E88=2024,25%,0))))) -> 1 | F119: =IF('Property Set Up'!$C21="NB",100%,IF('Property Set Up'!$C21="Full",0,IF(F88=2022,75%,IF(F88=2023,50%,IF(F88=2024,25%,0))))) -> 1 | G119: =IF('Property Set Up'!$C21="NB",100%,IF('Property Set Up'!$C21="Full",0,IF(G88=2022,75%,IF(G88=2023,50%,IF(G88=2024,25%,0))))) -> 1 | H119: =IF('Property Set Up'!$C21="NB",100%,IF('Property Set Up'!$C21="Full",0,IF(H88=2022,75%,IF(H88=2023,50%,IF(H88=2024,25%,0))))) -> 1 | I119: =IF('Property Set Up'!$C21="NB",100%,IF('Property Set Up'!$C21="Full",0,IF(I88=2022,75%,IF(I88=2023,50%,IF(I88=2024,25%,0))))) -> 1 | J119: =IF('Property Set Up'!$C21="NB",100%,IF('Property Set Up'!$C21="Full",0,IF(J88=2022,75%,IF(J88=2023,50%,IF(J88=2024,25%,0))))) -> 1 | K119: =IF('Property Set Up'!$C21="NB",100%,IF('Property Set Up'!$C21="Full",0,IF(K88=2022,75%,IF(K88=2023,50%,IF(K88=2024,25%,0))))) -> 1 | L119: =IF('Property Set Up'!$C21="NB",100%,IF('Property Set Up'!$C21="Full",0,IF(L88=2022,75%,IF(L88=2023,50%,IF(L88=2024,25%,0))))) -> 1 | M119: =IF('Property Set Up'!$C21="NB",100%,IF('Property Set Up'!$C21="Full",0,IF(M88=2022,75%,IF(M88=2023,50%,IF(M88=2024,25%,0))))) -> 1 | N119: =IF('Property Set Up'!$C21="NB",100%,IF('Property Set Up'!$C21="Full",0,IF(N88=2022,75%,IF(N88=2023,50%,IF(N88=2024,25%,0))))) -> 1 | O119: =IF('Property Set Up'!$C21="NB",100%,IF('Property Set Up'!$C21="Full",0,IF(O88=2022,75%,IF(O88=2023,50%,IF(O88=2024,25%,0))))) -> 1 | P119: =IF('Property Set Up'!$C21="NB",100%,IF('Property Set Up'!$C21="Full",0,IF(P88=2022,75%,IF(P88=2023,50%,IF(P88=2024,25%,0))))) -> 1 | Q119: =IF('Property Set Up'!$C21="NB",100%,IF('Property Set Up'!$C21="Full",0,IF(Q88=2022,75%,IF(Q88=2023,50%,IF(Q88=2024,25%,0))))) -> 1 | R119: =IF('Property Set Up'!$C21="NB",100%,IF('Property Set Up'!$C21="Full",0,IF(R88=2022,75%,IF(R88=2023,50%,IF(R88=2024,25%,0))))) -> 1 | S119: =IF('Property Set Up'!$C21="NB",100%,IF('Property Set Up'!$C21="Full",0,IF(S88=2022,75%,IF(S88=2023,50%,IF(S88=2024,25%,0))))) -> 1 | T119: =IF('Property Set Up'!$C21="NB",100%,IF('Property Set Up'!$C21="Full",0,IF(T88=2022,75%,IF(T88=2023,50%,IF(T88=2024,25%,0))))) -> 1 | U119: =IF('Property Set Up'!$C21="NB",100%,IF('Property Set Up'!$C21="Full",0,IF(U88=2022,75%,IF(U88=2023,50%,IF(U88=2024,25%,0))))) -> 1 | V119: =IF('Property Set Up'!$C21="NB",100%,IF('Property Set Up'!$C21="Full",0,IF(V88=2022,75%,IF(V88=2023,50%,IF(V88=2024,25%,0))))) -> 1 | W119: =IF('Property Set Up'!$C21="NB",100%,IF('Property Set Up'!$C21="Full",0,IF(W88=2022,75%,IF(W88=2023,50%,IF(W88=2024,25%,0))))) -> 1 | X119: =IF('Property Set Up'!$C21="NB",100%,IF('Property Set Up'!$C21="Full",0,IF(X88=2022,75%,IF(X88=2023,50%,IF(X88=2024,25%,0))))) -> 1 | Y119: =IF('Property Set Up'!$C21="NB",100%,IF('Property Set Up'!$C21="Full",0,IF(Y88=2022,75%,IF(Y88=2023,50%,IF(Y88=2024,25%,0))))) -> 1 | Z119: =IF('Property Set Up'!$C21="NB",100%,IF('Property Set Up'!$C21="Full",0,IF(Z88=2022,75%,IF(Z88=2023,50%,IF(Z88=2024,25%,0))))) -> 1 | AA119: =IF('Property Set Up'!$C21="NB",100%,IF('Property Set Up'!$C21="Full",0,IF(AA88=2022,75%,IF(AA88=2023,50%,IF(AA88=2024,25%,0))))) -> 1 | AB119: =IF('Property Set Up'!$C21="NB",100%,IF('Property Set Up'!$C21="Full",0,IF(AB88=2022,75%,IF(AB88=2023,50%,IF(AB88=2024,25%,0))))) -> 1 | AC119: =IF('Property Set Up'!$C21="NB",100%,IF('Property Set Up'!$C21="Full",0,IF(AC88=2022,75%,IF(AC88=2023,50%,IF(AC88=2024,25%,0))))) -> 1 | AD119: =IF('Property Set Up'!$C21="NB",100%,IF('Property Set Up'!$C21="Full",0,IF(AD88=2022,75%,IF(AD88=2023,50%,IF(AD88=2024,25%,0))))) -> 1 | AE119: =IF('Property Set Up'!$C21="NB",100%,IF('Property Set Up'!$C21="Full",0,IF(AE88=2022,75%,IF(AE88=2023,50%,IF(AE88=2024,25%,0))))) -> 1 | AF119: =IF('Property Set Up'!$C21="NB",100%,IF('Property Set Up'!$C21="Full",0,IF(AF88=2022,75%,IF(AF88=2023,50%,IF(AF88=2024,25%,0))))) -> 1 | AG119: =IF('Property Set Up'!$C21="NB",100%,IF('Property Set Up'!$C21="Full",0,IF(AG88=2022,75%,IF(AG88=2023,50%,IF(AG88=2024,25%,0))))) -> 1 | AH119: =IF('Property Set Up'!$C21="NB",100%,IF('Property Set Up'!$C21="Full",0,IF(AH88=2022,75%,IF(AH88=2023,50%,IF(AH88=2024,25%,0))))) -> 1 | AI119: =IF('Property Set Up'!$C21="NB",100%,IF('Property Set Up'!$C21="Full",0,IF(AI88=2022,75%,IF(AI88=2023,50%,IF(AI88=2024,25%,0))))) -> 1
B122: TAX
B125: Tax Deductible Finance Costs | C125: =C56 -> 0 | D125: =(D97*D118)+(D98*D119) -> 2790 | E125: =(E97*E118)+(E98*E119) -> 32707.5 | F125: 31150 | G125: 28035 | H125: 28035 | I125: 28035 | J125: 28035 | K125: 28035 | L125: 28035 | M125: 28035 | N125: 28035 | O125: 28035 | P125: 28035 | Q125: 28035 | R125: 28035 | S125: =(S97*S118)+(S98*S119) -> 28035 | T125: 28035 | U125: 28035 | V125: 28035 | W125: 28035 | X125: 28035 | Y125: 28035 | Z125: 28035 | AA125: 28035 | AB125: 28035 | AC125: 28035 | AD125: 28035 | AE125: 28035 | AF125: 28035 | AG125: 28035 | AH125: 28035 | AI125: 28035
B126: Tax Deductible Operating Costs | C126: 0 | D126: =D57 -> 0 | E126: 10304.83125 | F126: 10632.52312 | G126: 10974.06455 | H126: 11285.76733 | I126: 11608.03857 | J126: 11941.29336 | K126: 12285.96467 | L126: 12642.50414 | M126: 13011.38295 | N126: 13393.09269 | O126: 13788.14627 | P126: 14197.07894 | Q126: 14620.44925 | R126: 15058.8401 | S126: 15512.85993 | T126: 15983.14377 | U126: 16470.35454 | V126: 16975.18427 | W126: 17498.35547 | X126: 18040.62246 | Y126: 18602.77289 | Z126: 19185.62921 | AA126: 19790.0503 | AB126: 20416.9331 | AC126: 21067.21441 | AD126: 21741.87265 | AE126: 22441.92981 | AF126: 23168.45344 | AG126: 23922.55874 | AH126: 24705.41075 | AI126: 25518.22664
B128: Operating Months | D128: =IF((12-D67)<0,0,IF((12-D67)>12,12,12-D67)) -> 0 | E128: 12 | F128: 12 | G128: 12 | H128: 12 | I128: 12 | J128: 12 | K128: 12 | L128: 12 | M128: 12 | N128: 12 | O128: 12 | P128: 12 | Q128: 12 | R128: 12 | S128: 12 | T128: 12 | U128: 12 | V128: 12 | W128: 12 | X128: 12 | Y128: 12 | Z128: 12 | AA128: 12 | AB128: 12 | AC128: 12 | AD128: 12 | AE128: 12 | AF128: 12 | AG128: 12 | AH128: 12 | AI128: 12
B129: Chattel Value | C129: 0 | D129: =IF(D128=0,0,'Property Set Up'!C91) -> 0 | E129: =IF(D129>0,D129-D130,IF(E128>0,'Property Set Up'!C91,0)) -> 45000 | F129: =IF(E128=0,'Property Set Up'!C91,E129-E130) -> 35100 | G129: =F129-F130 -> 27378 | H129: 21354.84 | I129: 16656.7752 | J129: 12992.28466 | K129: 10133.98203 | L129: 7904.505985 | M129: 6165.514668 | N129: 4809.101441 | O129: 3751.099124 | P129: 2925.857317 | Q129: 2282.168707 | R129: 1780.091592 | S129: =R129-R130 -> 1388.471441 | T129: 1083.007724 | U129: 844.7460249 | V129: 658.9018995 | W129: 513.9434816 | X129: 400.8759156 | Y129: 312.6832142 | Z129: 243.8929071 | AA129: 190.2364675 | AB129: 148.3844447 | AC129: 115.7398668 | AD129: 90.27709613 | AE129: 70.41613498 | AF129: 54.92458529 | AG129: 42.84117652 | AH129: 33.41611769 | AI129: 26.0645718
B130: Depreciation | C130: 0 | D130: =D129-D129*(1-Assumptions!$D17)^'Projection – Property #1'!D128 -> 0 | E130: =E129-E129*(1-Assumptions!$D17)^'Projection – Property #1'!E128 -> 9900 | F130: =F129-F129*(1-Assumptions!$D17)^'Projection – Property #1'!F128 -> 7722 | G130: =G129-G129*(1-Assumptions!$D17)^'Projection – Property #1'!G128 -> 6023.16 | H130: =H129-H129*(1-Assumptions!$D17)^'Projection – Property #1'!H128 -> 4698.0648 | I130: =I129-I129*(1-Assumptions!$D17)^'Projection – Property #1'!I128 -> 3664.490544 | J130: =J129-J129*(1-Assumptions!$D17)^'Projection – Property #1'!J128 -> 2858.302624 | K130: =K129-K129*(1-Assumptions!$D17)^'Projection – Property #1'!K128 -> 2229.476047 | L130: =L129-L129*(1-Assumptions!$D17)^'Projection – Property #1'!L128 -> 1738.991317 | M130: =M129-M129*(1-Assumptions!$D17)^'Projection – Property #1'!M128 -> 1356.413227 | N130: =N129-N129*(1-Assumptions!$D17)^'Projection – Property #1'!N128 -> 1058.002317 | O130: =O129-O129*(1-Assumptions!$D17)^'Projection – Property #1'!O128 -> 825.2418073 | P130: =P129-P129*(1-Assumptions!$D17)^'Projection – Property #1'!P128 -> 643.6886097 | Q130: =Q129-Q129*(1-Assumptions!$D17)^'Projection – Property #1'!Q128 -> 502.0771156 | R130: =R129-R129*(1-Assumptions!$D17)^'Projection – Property #1'!R128 -> 391.6201501 | S130: =S129-S129*(1-Assumptions!$D17)^'Projection – Property #1'!S128 -> 305.4637171 | T130: =T129-T129*(1-Assumptions!$D17)^'Projection – Property #1'!T128 -> 238.2616993 | U130: =U129-U129*(1-Assumptions!$D17)^'Projection – Property #1'!U128 -> 185.8441255 | V130: =V129-V129*(1-Assumptions!$D17)^'Projection – Property #1'!V128 -> 144.9584179 | W130: =W129-W129*(1-Assumptions!$D17)^'Projection – Property #1'!W128 -> 113.0675659 | X130: =X129-X129*(1-Assumptions!$D17)^'Projection – Property #1'!X128 -> 88.19270144 | Y130: =Y129-Y129*(1-Assumptions!$D17)^'Projection – Property #1'!Y128 -> 68.79030712 | Z130: =Z129-Z129*(1-Assumptions!$D17)^'Projection – Property #1'!Z128 -> 53.65643955 | AA130: =AA129-AA129*(1-Assumptions!$D17)^'Projection – Property #1'!AA128 -> 41.85202285 | AB130: =AB129-AB129*(1-Assumptions!$D17)^'Projection – Property #1'!AB128 -> 32.64457783 | AC130: =AC129-AC129*(1-Assumptions!$D17)^'Projection – Property #1'!AC128 -> 25.4627707 | AD130: =AD129-AD129*(1-Assumptions!$D17)^'Projection – Property #1'!AD128 -> 19.86096115 | AE130: =AE129-AE129*(1-Assumptions!$D17)^'Projection – Property #1'!AE128 -> 15.4915497 | AF130: =AF129-AF129*(1-Assumptions!$D17)^'Projection – Property #1'!AF128 -> 12.08340876 | AG130: =AG129-AG129*(1-Assumptions!$D17)^'Projection – Property #1'!AG128 -> 9.425058835 | AH130: =AH129-AH129*(1-Assumptions!$D17)^'Projection – Property #1'!AH128 -> 7.351545891 | AI130: =AI129-AI129*(1-Assumptions!$D17)^'Projection – Property #1'!AI128 -> 5.734205795
B132: Taxable Profit | C132: =C55-C125-C126-C130 -> 0 | D132: -2790 | E132: -25087.33125 | F132: =F55-F125-F126-F130 -> -20010.02312 | G132: -13768.05455 | H132: -11285.24614 | I132: -9035.464583 | J132: -6951.744424 | K132: -4981.095132 | L132: -3081.39063 | M132: -1218.941422 | N132: 633.4009274 | O132: 2497.724159 | P132: 4392.211962 | Q132: 6332.048192 | R132: 8330.124304 | S132: 10397.59339 | T132: 12544.30467 | U132: 14779.14485 | V132: 17110.30696 | W132: 19545.50275 | X132: 22092.13114 | Y132: 24757.41258 | Z132: 27548.49699 | AA132: 30472.5511 | AB132: 33536.83005 | AC132: 36748.73671 | AD132: 40115.87173 | AE132: 43646.07643 | AF132: 47347.47034 | AG132: 51228.48473 | AH132: 55297.89325 | AI132: 59564.84052
B133: Tax Losses Carried Forward | C133: =IF(C132<0,C132,0) -> 0 | D133: =IF(D132+C133<0,D132+C133,0)-Assumptions!D15 -> -2790 | E133: =IF(E132+D133<0,E132+D133,0) -> -27877.33125 | F133: -47887.35437 | G133: -61655.40893 | H133: -72940.65507 | I133: -81976.11965 | J133: -88927.86407 | K133: -93908.95921 | L133: -96990.34984 | M133: -98209.29126 | N133: -97575.89033 | O133: -95078.16617 | P133: -90685.95421 | Q133: -84353.90602 | R133: -76023.78171 | S133: =IF(S132+R133<0,S132+R133,0) -> -65626.18833 | T133: -53081.88366 | U133: -38302.73881 | V133: -21192.43185 | W133: -1646.929102 | X133: 0 | Y133: 0 | Z133: 0 | AA133: 0 | AB133: 0 | AC133: 0 | AD133: 0 | AE133: 0 | AF133: 0 | AG133: 0 | AH133: 0 | AI133: 0
B134: Tax to Pay | C134: =IF(C132<0,0,IFERROR(C132*'Property Set Up'!B93,0)) -> 0 | D134: =IF(D132<0,0,D132*'Property Set Up'!C93) -> 0 | E134: =IF((D133+E132)>0,(D133+E132)*'Property Set Up'!$C$93,0) -> 0 | F134: =IF((E133+F132)>0,(E133+F132)*'Property Set Up'!$C$93,0) -> 0 | G134: =IF((F133+G132)>0,(F133+G132)*'Property Set Up'!$C$93,0) -> 0 | H134: =IF((G133+H132)>0,(G133+H132)*'Property Set Up'!$C$93,0) -> 0 | I134: =IF((H133+I132)>0,(H133+I132)*'Property Set Up'!$C$93,0) -> 0 | J134: =IF((I133+J132)>0,(I133+J132)*'Property Set Up'!$C$93,0) -> 0 | K134: =IF((J133+K132)>0,(J133+K132)*'Property Set Up'!$C$93,0) -> 0 | L134: =IF((K133+L132)>0,(K133+L132)*'Property Set Up'!$C$93,0) -> 0 | M134: =IF((L133+M132)>0,(L133+M132)*'Property Set Up'!$C$93,0) -> 0 | N134: =IF((M133+N132)>0,(M133+N132)*'Property Set Up'!$C$93,0) -> 0 | O134: =IF((N133+O132)>0,(N133+O132)*'Property Set Up'!$C$93,0) -> 0 | P134: =IF((O133+P132)>0,(O133+P132)*'Property Set Up'!$C$93,0) -> 0 | Q134: =IF((P133+Q132)>0,(P133+Q132)*'Property Set Up'!$C$93,0) -> 0 | R134: =IF((Q133+R132)>0,(Q133+R132)*'Property Set Up'!$C$93,0) -> 0 | S134: =IF((R133+S132)>0,(R133+S132)*'Property Set Up'!$C$93,0) -> 0 | T134: =IF((S133+T132)>0,(S133+T132)*'Property Set Up'!$C$93,0) -> 0 | U134: =IF((T133+U132)>0,(T133+U132)*'Property Set Up'!$C$93,0) -> 0 | V134: =IF((U133+V132)>0,(U133+V132)*'Property Set Up'!$C$93,0) -> 0 | W134: =IF((V133+W132)>0,(V133+W132)*'Property Set Up'!$C$93,0) -> 0 | X134: =IF((W133+X132)>0,(W133+X132)*'Property Set Up'!$C$93,0) -> 6746.916671 | Y134: =IF((X133+Y132)>0,(X133+Y132)*'Property Set Up'!$C$93,0) -> 8169.946151 | Z134: =IF((Y133+Z132)>0,(Y133+Z132)*'Property Set Up'!$C$93,0) -> 9091.004006 | AA134: =IF((Z133+AA132)>0,(Z133+AA132)*'Property Set Up'!$C$93,0) -> 10055.94186 | AB134: =IF((AA133+AB132)>0,(AA133+AB132)*'Property Set Up'!$C$93,0) -> 11067.15392 | AC134: =IF((AB133+AC132)>0,(AB133+AC132)*'Property Set Up'!$C$93,0) -> 12127.08311 | AD134: =IF((AC133+AD132)>0,(AC133+AD132)*'Property Set Up'!$C$93,0) -> 13238.23767 | AE134: =IF((AD133+AE132)>0,(AD133+AE132)*'Property Set Up'!$C$93,0) -> 14403.20522 | AF134: =IF((AE133+AF132)>0,(AE133+AF132)*'Property Set Up'!$C$93,0) -> 15624.66521 | AG134: =IF((AF133+AG132)>0,(AF133+AG132)*'Property Set Up'!$C$93,0) -> 16905.39996 | AH134: =IF((AG133+AH132)>0,(AG133+AH132)*'Property Set Up'!$C$93,0) -> 18248.30477 | AI134: =IF((AH133+AI132)>0,(AH133+AI132)*'Property Set Up'!$C$93,0) -> 19656.39737
B137: POST-TAX CASHFLOW
B140: Post Tax Cashflow | C140: =C61-C134 -> 0 | D140: -2790 | E140: -15187.33125 | F140: -12288.02312 | G140: -7744.894552 | H140: -6587.181339 | I140: -5370.974039 | J140: -4093.4418 | K140: -2751.619085 | L140: -1342.399313 | M140: 137.4718054 | N140: 1691.403244 | O140: 3322.965966 | P140: 5035.900572 | Q140: 6834.125307 | R140: 8721.744454 | S140: 10703.05711 | T140: 12782.56636 | U140: 14964.98897 | V140: 17255.26538 | W140: 19658.57032 | X140: 15433.40717 | Y140: 16656.25674 | Z140: 18511.14942 | AA140: 20458.46126 | AB140: 22502.32071 | AC140: 24647.11637 | AD140: 26897.49502 | AE140: 29258.36276 | AF140: 31734.88854 | AG140: 34332.50983 | AH140: 37056.94003 | AI140: 39914.17735
B141: Inflation Adjusted Post Tax Cashflow | C141: =C140 -> 0 | D141: =D140/(1+'Property Set Up'!$C$77)^'Projection – Property #1'!D26 -> -2790 | E141: =E140/(1+'Property Set Up'!$C$77)^'Projection – Property #1'!E26 -> -14889.54044 | F141: =F140/(1+'Property Set Up'!$C$77)^'Projection – Property #1'!F26 -> -11810.86421 | G141: =G140/(1+'Property Set Up'!$C$77)^'Projection – Property #1'!G26 -> -7298.187116 | H141: =H140/(1+'Property Set Up'!$C$77)^'Projection – Property #1'!H26 -> -6085.53735 | I141: =I140/(1+'Property Set Up'!$C$77)^'Projection – Property #1'!I26 -> -4864.656666 | J141: =J140/(1+'Property Set Up'!$C$77)^'Projection – Property #1'!J26 -> -3634.859173 | K141: =K140/(1+'Property Set Up'!$C$77)^'Projection – Property #1'!K26 -> -2395.450002 | L141: =L140/(1+'Property Set Up'!$C$77)^'Projection – Property #1'!L26 -> -1145.724888 | M141: =M140/(1+'Property Set Up'!$C$77)^'Projection – Property #1'!M26 -> 115.0302571 | N141: =N140/(1+'Property Set Up'!$C$77)^'Projection – Property #1'!N26 -> 1387.539776 | O141: =O140/(1+'Property Set Up'!$C$77)^'Projection – Property #1'!O26 -> 2672.538707 | P141: =P140/(1+'Property Set Up'!$C$77)^'Projection – Property #1'!P26 -> 3970.773234 | Q141: =Q140/(1+'Property Set Up'!$C$77)^'Projection – Property #1'!Q26 -> 5283.001143 | R141: =R140/(1+'Property Set Up'!$C$77)^'Projection – Property #1'!R26 -> 6609.992292 | S141: =S140/(1+'Property Set Up'!$C$77)^'Projection – Property #1'!S26 -> 7952.529085 | T141: =T140/(1+'Property Set Up'!$C$77)^'Projection – Property #1'!T26 -> 9311.406957 | U141: =U140/(1+'Property Set Up'!$C$77)^'Projection – Property #1'!U26 -> 10687.43487 | V141: =V140/(1+'Property Set Up'!$C$77)^'Projection – Property #1'!V26 -> 12081.43582 | W141: =W140/(1+'Property Set Up'!$C$77)^'Projection – Property #1'!W26 -> 13494.24736 | X141: =X140/(1+'Property Set Up'!$C$77)^'Projection – Property #1'!X26 -> 10386.24059 | Y141: =Y140/(1+'Property Set Up'!$C$77)^'Projection – Property #1'!Y26 -> 10989.39539 | Z141: =Z140/(1+'Property Set Up'!$C$77)^'Projection – Property #1'!Z26 -> 11973.73405 | AA141: =AA140/(1+'Property Set Up'!$C$77)^'Projection – Property #1'!AA26 -> 12973.85428 | AB141: =AB140/(1+'Property Set Up'!$C$77)^'Projection – Property #1'!AB26 -> 13990.17631 | AC141: =AC140/(1+'Property Set Up'!$C$77)^'Projection – Property #1'!AC26 -> 15023.17829 | AD141: =AD140/(1+'Property Set Up'!$C$77)^'Projection – Property #1'!AD26 -> 16073.38584 | AE141: =AE140/(1+'Property Set Up'!$C$77)^'Projection – Property #1'!AE26 -> 17141.36421 | AF141: =AF140/(1+'Property Set Up'!$C$77)^'Projection – Property #1'!AF26 -> 18227.71241 | AG141: =AG140/(1+'Property Set Up'!$C$77)^'Projection – Property #1'!AG26 -> 19333.05881 | AH141: =AH140/(1+'Property Set Up'!$C$77)^'Projection – Property #1'!AH26 -> 20458.05782 | AI141: =AI140/(1+'Property Set Up'!$C$77)^'Projection – Property #1'!AI26 -> 21603.38762
B142: Inflation Adjusted Post Tax Cashflow (Per Week) | C142: =C140/52 -> 0 | D142: =(D140/52)/(1+Assumptions!$D$9)^'Projection – Property #1'!D26 -> -53.65384615 | E142: =(E140/52)/(1+Assumptions!$D$9)^'Projection – Property #1'!E26 -> -286.3373162 | F142: =(F140/52)/(1+Assumptions!$D$9)^'Projection – Property #1'!F26 -> -227.1320041 | G142: =(G140/52)/(1+Assumptions!$D$9)^'Projection – Property #1'!G26 -> -140.3497522 | H142: =(H140/52)/(1+Assumptions!$D$9)^'Projection – Property #1'!H26 -> -117.0295644 | I142: =(I140/52)/(1+Assumptions!$D$9)^'Projection – Property #1'!I26 -> -93.55108973 | J142: =(J140/52)/(1+Assumptions!$D$9)^'Projection – Property #1'!J26 -> -69.90113795 | K142: =(K140/52)/(1+Assumptions!$D$9)^'Projection – Property #1'!K26 -> -46.0663462 | L142: =(L140/52)/(1+Assumptions!$D$9)^'Projection – Property #1'!L26 -> -22.03317093 | M142: =(M140/52)/(1+Assumptions!$D$9)^'Projection – Property #1'!M26 -> 2.212120329 | N142: =(N140/52)/(1+Assumptions!$D$9)^'Projection – Property #1'!N26 -> 26.68345723 | O142: =(O140/52)/(1+Assumptions!$D$9)^'Projection – Property #1'!O26 -> 51.39497513 | P142: =(P140/52)/(1+Assumptions!$D$9)^'Projection – Property #1'!P26 -> 76.36102372 | Q142: =(Q140/52)/(1+Assumptions!$D$9)^'Projection – Property #1'!Q26 -> 101.5961758 | R142: =(R140/52)/(1+Assumptions!$D$9)^'Projection – Property #1'!R26 -> 127.1152364 | S142: =S140/52 -> 205.8280213 | T142: 245.8185839 | U142: 287.7882494 | V142: 331.8320265 | W142: 378.0494292 | X142: 296.7962917 | Y142: 320.3126295 | Z142: 355.9836427 | AA142: 393.4319473 | AB142: 432.7369367 | AC142: 473.983007 | AD142: 517.2595196 | AE142: 562.6608223 | AF142: 610.286318 | AG142: 660.2405736 | AH142: 712.6334621 | AI142: 767.5803337
B143: Negatively Geared Test For Investment | C143: =IF(C141<0,C141,0) -> 0 | D143: -2790 | E143: -14889.54044 | F143: -11810.86421 | G143: -7298.187116 | H143: -6085.53735 | I143: -4864.656666 | J143: -3634.859173 | K143: -2395.450002 | L143: -1145.724888 | M143: 0 | N143: 0 | O143: 0 | P143: 0 | Q143: 0 | R143: 0 | S143: 0 | T143: 0 | U143: 0 | V143: 0 | W143: 0 | X143: 0 | Y143: 0 | Z143: 0 | AA143: 0 | AB143: 0 | AC143: 0 | AD143: 0 | AE143: 0 | AF143: 0 | AG143: 0 | AH143: 0 | AI143: 0
B144: Positively Geared Test For Investment | C144: =IF(C141>0,C141,0) -> 0 | D144: 0 | E144: 0 | F144: 0 | G144: 0 | H144: 0 | I144: 0 | J144: 0 | K144: 0 | L144: 0 | M144: 115.0302571 | N144: 1387.539776 | O144: 2672.538707 | P144: 3970.773234 | Q144: 5283.001143 | R144: 6609.992292 | S144: 7952.529085 | T144: 9311.406957 | U144: 10687.43487 | V144: 12081.43582 | W144: 13494.24736 | X144: 10386.24059 | Y144: 10989.39539 | Z144: 11973.73405 | AA144: 12973.85428 | AB144: 13990.17631 | AC144: 15023.17829 | AD144: 16073.38584 | AE144: 17141.36421 | AF144: 18227.71241 | AG144: 19333.05881 | AH144: 20458.05782 | AI144: 21603.38762
B145: Positive Returns After adjusting for risk free rate (Not inflation adjusted) | C145: =IF(C144>0,C140*(1+'Property Set Up'!$C$95)^('Projection – Property #1'!$R26-'Projection – Property #1'!C26),0) -> 0 | D145: =IF(D144>0,D140*(1+'Property Set Up'!$C$95)^('Projection – Property #1'!$R26-'Projection – Property #1'!D26),0) -> 0 | E145: =IF(E144>0,E140*(1+'Property Set Up'!$C$95)^('Projection – Property #1'!$R26-'Projection – Property #1'!E26),0) -> 0 | F145: =IF(F144>0,F140*(1+'Property Set Up'!$C$95)^('Projection – Property #1'!$R26-'Projection – Property #1'!F26),0) -> 0 | G145: =IF(G144>0,G140*(1+'Property Set Up'!$C$95)^('Projection – Property #1'!$R26-'Projection – Property #1'!G26),0) -> 0 | H145: =IF(H144>0,H140*(1+'Property Set Up'!$C$95)^('Projection – Property #1'!$R26-'Projection – Property #1'!H26),0) -> 0 | I145: =IF(I144>0,I140*(1+'Property Set Up'!$C$95)^('Projection – Property #1'!$R26-'Projection – Property #1'!I26),0) -> 0 | J145: =IF(J144>0,J140*(1+'Property Set Up'!$C$95)^('Projection – Property #1'!$R26-'Projection – Property #1'!J26),0) -> 0 | K145: =IF(K144>0,K140*(1+'Property Set Up'!$C$95)^('Projection – Property #1'!$R26-'Projection – Property #1'!K26),0) -> 0 | L145: =IF(L144>0,L140*(1+'Property Set Up'!$C$95)^('Projection – Property #1'!$R26-'Projection – Property #1'!L26),0) -> 0 | M145: =IF(M144>0,M140*(1+'Property Set Up'!$C$95)^('Projection – Property #1'!$R26-'Projection – Property #1'!M26),0) -> 151.7799814 | N145: =IF(N144>0,N140*(1+'Property Set Up'!$C$95)^('Projection – Property #1'!$R26-'Projection – Property #1'!N26),0) -> 1830.829267 | O145: =IF(O144>0,O140*(1+'Property Set Up'!$C$95)^('Projection – Property #1'!$R26-'Projection – Property #1'!O26),0) -> 3526.358067 | P145: =IF(P144>0,P140*(1+'Property Set Up'!$C$95)^('Projection – Property #1'!$R26-'Projection – Property #1'!P26),0) -> 5239.350955 | Q145: =IF(Q144>0,Q140*(1+'Property Set Up'!$C$95)^('Projection – Property #1'!$R26-'Projection – Property #1'!Q26),0) -> 6970.807813 | R145: =IF(R144>0,R140*(1+'Property Set Up'!$C$95)^('Projection – Property #1'!$R26-'Projection – Property #1'!R26),0) -> 8721.744454 | S145: =IF(S144>0,S140*(1+'Property Set Up'!$C$95)^('Projection – Property #1'!$R26-'Projection – Property #1'!S26),0) -> 10493.19324 | T145: =IF(T144>0,T140*(1+'Property Set Up'!$C$95)^('Projection – Property #1'!$R26-'Projection – Property #1'!T26),0) -> 12286.20373 | U145: =IF(U144>0,U140*(1+'Property Set Up'!$C$95)^('Projection – Property #1'!$R26-'Projection – Property #1'!U26),0) -> 14101.84334 | V145: =IF(V144>0,V140*(1+'Property Set Up'!$C$95)^('Projection – Property #1'!$R26-'Projection – Property #1'!V26),0) -> 15941.198 | W145: =IF(W144>0,W140*(1+'Property Set Up'!$C$95)^('Projection – Property #1'!$R26-'Projection – Property #1'!W26),0) -> 17805.37281 | X145: =IF(X144>0,X140*(1+'Property Set Up'!$C$95)^('Projection – Property #1'!$R26-'Projection – Property #1'!X26),0) -> 13704.42389 | Y145: =IF(Y144>0,Y140*(1+'Property Set Up'!$C$95)^('Projection – Property #1'!$R26-'Projection – Property #1'!Y26),0) -> 14500.27384 | Z145: =IF(Z144>0,Z140*(1+'Property Set Up'!$C$95)^('Projection – Property #1'!$R26-'Projection – Property #1'!Z26),0) -> 15799.08779 | AA145: =IF(AA144>0,AA140*(1+'Property Set Up'!$C$95)^('Projection – Property #1'!$R26-'Projection – Property #1'!AA26),0) -> 17118.72519 | AB145: =IF(AB144>0,AB140*(1+'Property Set Up'!$C$95)^('Projection – Property #1'!$R26-'Projection – Property #1'!AB26),0) -> 18459.74054 | AC145: =IF(AC144>0,AC140*(1+'Property Set Up'!$C$95)^('Projection – Property #1'!$R26-'Projection – Property #1'!AC26),0) -> 19822.76471 | AD145: =IF(AD144>0,AD140*(1+'Property Set Up'!$C$95)^('Projection – Property #1'!$R26-'Projection – Property #1'!AD26),0) -> 21208.49126 | AE145: =IF(AE144>0,AE140*(1+'Property Set Up'!$C$95)^('Projection – Property #1'!$R26-'Projection – Property #1'!AE26),0) -> 22617.66604 | AF145: =IF(AF144>0,AF140*(1+'Property Set Up'!$C$95)^('Projection – Property #1'!$R26-'Projection – Property #1'!AF26),0) -> 24051.07943 | AG145: =IF(AG144>0,AG140*(1+'Property Set Up'!$C$95)^('Projection – Property #1'!$R26-'Projection – Property #1'!AG26),0) -> 25509.56052 | AH145: =IF(AH144>0,AH140*(1+'Property Set Up'!$C$95)^('Projection – Property #1'!$R26-'Projection – Property #1'!AH26),0) -> 26993.97283 | AI145: =IF(AI144>0,AI140*(1+'Property Set Up'!$C$95)^('Projection – Property #1'!$R26-'Projection – Property #1'!AI26),0) -> 28505.21118
B146: Inflation adjusted Positive Returns after risk free rate | C146: =C145/(1+'Property Set Up'!$C$77)^('Projection – Property #1'!C26) -> 0 | D146: =D145/(1+'Property Set Up'!$C$77)^('Projection – Property #1'!D26) -> 0 | E146: =E145/(1+'Property Set Up'!$C$77)^('Projection – Property #1'!E26) -> 0 | F146: =F145/(1+'Property Set Up'!$C$77)^('Projection – Property #1'!F26) -> 0 | G146: =G145/(1+'Property Set Up'!$C$77)^('Projection – Property #1'!G26) -> 0 | H146: =H145/(1+'Property Set Up'!$C$77)^('Projection – Property #1'!H26) -> 0 | I146: =I145/(1+'Property Set Up'!$C$77)^('Projection – Property #1'!I26) -> 0 | J146: =J145/(1+'Property Set Up'!$C$77)^('Projection – Property #1'!J26) -> 0 | K146: =K145/(1+'Property Set Up'!$C$77)^('Projection – Property #1'!K26) -> 0 | L146: =L145/(1+'Property Set Up'!$C$77)^('Projection – Property #1'!L26) -> 0 | M146: =M145/(1+'Property Set Up'!$C$77)^('Projection – Property #1'!M26) -> 127.0026987 | N146: =N145/(1+'Property Set Up'!$C$77)^('Projection – Property #1'!N26) -> 1501.917677 | O146: =O145/(1+'Property Set Up'!$C$77)^('Projection – Property #1'!O26) -> 2836.119456 | P146: =P145/(1+'Property Set Up'!$C$77)^('Projection – Property #1'!P26) -> 4131.192472 | Q146: =Q145/(1+'Property Set Up'!$C$77)^('Projection – Property #1'!Q26) -> 5388.661166 | R146: =R145/(1+'Property Set Up'!$C$77)^('Projection – Property #1'!R26) -> 6609.992292 | S146: =S145/(1+'Property Set Up'!$C$77)^('Projection – Property #1'!S26) -> 7796.597142 | T146: =T145/(1+'Property Set Up'!$C$77)^('Projection – Property #1'!T26) -> 8949.833676 | U146: =U145/(1+'Property Set Up'!$C$77)^('Projection – Property #1'!U26) -> 10071.00858 | V146: =V145/(1+'Property Set Up'!$C$77)^('Projection – Property #1'!V26) -> 11161.37922 | W146: =W145/(1+'Property Set Up'!$C$77)^('Projection – Property #1'!W26) -> 12222.15559 | X146: =X145/(1+'Property Set Up'!$C$77)^('Projection – Property #1'!X26) -> 9222.684417 | Y146: =Y145/(1+'Property Set Up'!$C$77)^('Projection – Property #1'!Y26) -> 9566.930015 | Z146: =Z145/(1+'Property Set Up'!$C$77)^('Projection – Property #1'!Z26) -> 10219.46672 | AA146: =AA145/(1+'Property Set Up'!$C$77)^('Projection – Property #1'!AA26) -> 10855.94088 | AB146: =AB145/(1+'Property Set Up'!$C$77)^('Projection – Property #1'!AB26) -> 11476.81735 | AC146: =AC145/(1+'Property Set Up'!$C$77)^('Projection – Property #1'!AC26) -> 12082.58703 | AD146: =AD145/(1+'Property Set Up'!$C$77)^('Projection – Property #1'!AD26) -> 12673.75504 | AE146: =AE145/(1+'Property Set Up'!$C$77)^('Projection – Property #1'!AE26) -> 13250.83206 | AF146: =AF145/(1+'Property Set Up'!$C$77)^('Projection – Property #1'!AF26) -> 13814.32799 | AG146: =AG145/(1+'Property Set Up'!$C$77)^('Projection – Property #1'!AG26) -> 14364.74747 | AH146: =AH145/(1+'Property Set Up'!$C$77)^('Projection – Property #1'!AH26) -> 14902.58658 | AI146: =AI145/(1+'Property Set Up'!$C$77)^('Projection – Property #1'!AI26) -> 15428.33066
B147: Uninflation Adjusted Cululative Cashflow | C147: =C140 -> 0 | D147: =IF(C147>0,(C147*(1+Assumptions!$D19)+'Projection – Property #1'!D140),(C147+'Projection – Property #1'!D140)) -> -2790 | E147: =IF(D147>0,(D147*(1+Assumptions!$D19)+'Projection – Property #1'!E140),(D147+'Projection – Property #1'!E140)) -> -17977.33125 | F147: =IF(E147>0,(E147*(1+Assumptions!$D19)+'Projection – Property #1'!F140),(E147+'Projection – Property #1'!F140)) -> -30265.35438 | G147: =IF(F147>0,(F147*(1+Assumptions!$D19)+'Projection – Property #1'!G140),(F147+'Projection – Property #1'!G140)) -> -38010.24893 | H147: =IF(G147>0,(G147*(1+Assumptions!$D19)+'Projection – Property #1'!H140),(G147+'Projection – Property #1'!H140)) -> -44597.43027 | I147: =IF(H147>0,(H147*(1+Assumptions!$D19)+'Projection – Property #1'!I140),(H147+'Projection – Property #1'!I140)) -> -49968.40431 | J147: =IF(I147>0,(I147*(1+Assumptions!$D19)+'Projection – Property #1'!J140),(I147+'Projection – Property #1'!J140)) -> -54061.84611 | K147: =IF(J147>0,(J147*(1+Assumptions!$D19)+'Projection – Property #1'!K140),(J147+'Projection – Property #1'!K140)) -> -56813.46519 | L147: =IF(K147>0,(K147*(1+Assumptions!$D19)+'Projection – Property #1'!L140),(K147+'Projection – Property #1'!L140)) -> -58155.8645 | M147: =IF(L147>0,(L147*(1+Assumptions!$D19)+'Projection – Property #1'!M140),(L147+'Projection – Property #1'!M140)) -> -58018.3927 | N147: =IF(M147>0,(M147*(1+Assumptions!$D19)+'Projection – Property #1'!N140),(M147+'Projection – Property #1'!N140)) -> -56326.98945 | O147: =IF(N147>0,(N147*(1+Assumptions!$D19)+'Projection – Property #1'!O140),(N147+'Projection – Property #1'!O140)) -> -53004.02349 | P147: =IF(O147>0,(O147*(1+Assumptions!$D19)+'Projection – Property #1'!P140),(O147+'Projection – Property #1'!P140)) -> -47968.12292 | Q147: =IF(P147>0,(P147*(1+Assumptions!$D19)+'Projection – Property #1'!Q140),(P147+'Projection – Property #1'!Q140)) -> -41133.99761 | R147: =IF(Q147>0,(Q147*(1+Assumptions!$D19)+'Projection – Property #1'!R140),(Q147+'Projection – Property #1'!R140)) -> -32412.25316 | S147: =IF(R147>0,(R147*(1+Assumptions!$D19)+'Projection – Property #1'!S140),(R147+'Projection – Property #1'!S140)) -> -21709.19605 | T147: =IF(S147>0,(S147*(1+Assumptions!$D19)+'Projection – Property #1'!T140),(S147+'Projection – Property #1'!T140)) -> -8926.629685 | U147: =IF(T147>0,(T147*(1+Assumptions!$D19)+'Projection – Property #1'!U140),(T147+'Projection – Property #1'!U140)) -> 6038.359286 | V147: =IF(U147>0,(U147*(1+Assumptions!$D19)+'Projection – Property #1'!V140),(U147+'Projection – Property #1'!V140)) -> 23414.39185 | W147: =IF(V147>0,(V147*(1+Assumptions!$D19)+'Projection – Property #1'!W140),(V147+'Projection – Property #1'!W140)) -> 43541.25001 | X147: =IF(W147>0,(W147*(1+Assumptions!$D19)+'Projection – Property #1'!X140),(W147+'Projection – Property #1'!X140)) -> 59845.48217 | Y147: =IF(X147>0,(X147*(1+Assumptions!$D19)+'Projection – Property #1'!Y140),(X147+'Projection – Property #1'!Y140)) -> 77698.64855 | Z147: =IF(Y147>0,(Y147*(1+Assumptions!$D19)+'Projection – Property #1'!Z140),(Y147+'Projection – Property #1'!Z140)) -> 97763.77094 | AA147: =IF(Z147>0,(Z147*(1+Assumptions!$D19)+'Projection – Property #1'!AA140),(Z147+'Projection – Property #1'!AA140)) -> 120177.5076 | AB147: =IF(AA147>0,(AA147*(1+Assumptions!$D19)+'Projection – Property #1'!AB140),(AA147+'Projection – Property #1'!AB140)) -> 145083.3785 | AC147: =IF(AB147>0,(AB147*(1+Assumptions!$D19)+'Projection – Property #1'!AC140),(AB147+'Projection – Property #1'!AC140)) -> 172632.1624 | AD147: =IF(AC147>0,(AC147*(1+Assumptions!$D19)+'Projection – Property #1'!AD140),(AC147+'Projection – Property #1'!AD140)) -> 202982.3007 | AE147: =IF(AD147>0,(AD147*(1+Assumptions!$D19)+'Projection – Property #1'!AE140),(AD147+'Projection – Property #1'!AE140)) -> 236300.3095 | AF147: =IF(AE147>0,(AE147*(1+Assumptions!$D19)+'Projection – Property #1'!AF140),(AE147+'Projection – Property #1'!AF140)) -> 272761.2042 | AG147: =IF(AF147>0,(AF147*(1+Assumptions!$D19)+'Projection – Property #1'!AG140),(AF147+'Projection – Property #1'!AG140)) -> 312548.9381 | AH147: =IF(AG147>0,(AG147*(1+Assumptions!$D19)+'Projection – Property #1'!AH140),(AG147+'Projection – Property #1'!AH140)) -> 355856.8569 | AI147: =IF(AH147>0,(AH147*(1+Assumptions!$D19)+'Projection – Property #1'!AI140),(AH147+'Projection – Property #1'!AI140)) -> 402888.1714
B148: Inflation Adjusted Cululative Cashflow | C148: =C147/(1+Assumptions!$D9)^'Projection – Property #1'!C26 -> 0 | D148: =D147/(1+Assumptions!$D9)^'Projection – Property #1'!D26 -> -2790 | E148: =E147/(1+Assumptions!$D9)^'Projection – Property #1'!E26 -> -17624.83456 | F148: =F147/(1+Assumptions!$D9)^'Projection – Property #1'!F26 -> -29090.11378 | G148: =G147/(1+Assumptions!$D9)^'Projection – Property #1'!G26 -> -35817.90651 | H148: =H147/(1+Assumptions!$D9)^'Projection – Property #1'!H26 -> -41201.13196 | I148: =I147/(1+Assumptions!$D9)^'Projection – Property #1'!I26 -> -45257.9233 | J148: =J147/(1+Assumptions!$D9)^'Projection – Property #1'!J26 -> -48005.37221 | K148: =K147/(1+Assumptions!$D9)^'Projection – Property #1'!K26 -> -49459.5404 | L148: =L147/(1+Assumptions!$D9)^'Projection – Property #1'!L26 -> -49635.47038 | M148: =M147/(1+Assumptions!$D9)^'Projection – Property #1'!M26 -> -48547.19561 | N148: =N147/(1+Assumptions!$D9)^'Projection – Property #1'!N26 -> -46207.75004 | O148: =O147/(1+Assumptions!$D9)^'Projection – Property #1'!O26 -> -42629.17701 | P148: =P147/(1+Assumptions!$D9)^'Projection – Property #1'!P26 -> -37822.53757 | Q148: =Q147/(1+Assumptions!$D9)^'Projection – Property #1'!Q26 -> -31797.91804 | R148: =R147/(1+Assumptions!$D9)^'Projection – Property #1'!R26 -> -24564.43716 | S148: =S147/(1+Assumptions!$D9)^'Projection – Property #1'!S26 -> -16130.25244 | T148: =T147/(1+Assumptions!$D9)^'Projection – Property #1'!T26 -> -6502.566025 | U148: =U147/(1+Assumptions!$D9)^'Projection – Property #1'!U26 -> 4312.370141 | V148: =V147/(1+Assumptions!$D9)^'Projection – Property #1'!V26 -> 16393.80596 | W148: =W147/(1+Assumptions!$D9)^'Projection – Property #1'!W26 -> 29888.05332 | X148: =X147/(1+Assumptions!$D9)^'Projection – Property #1'!X26 -> 40274.29392 | Y148: =Y147/(1+Assumptions!$D9)^'Projection – Property #1'!Y26 -> 51263.68931 | Z148: =Z147/(1+Assumptions!$D9)^'Projection – Property #1'!Z26 -> 63237.42336 | AA148: =AA147/(1+Assumptions!$D9)^'Projection – Property #1'!AA26 -> 76211.27763 | AB148: =AB147/(1+Assumptions!$D9)^'Projection – Property #1'!AB26 -> 90201.45395 | AC148: =AC147/(1+Assumptions!$D9)^'Projection – Property #1'!AC26 -> 105224.6322 | AD148: =AD147/(1+Assumptions!$D9)^'Projection – Property #1'!AD26 -> 121298.0181 | AE148: =AE147/(1+Assumptions!$D9)^'Projection – Property #1'!AE26 -> 138439.3823 | AF148: =AF147/(1+Assumptions!$D9)^'Projection – Property #1'!AF26 -> 156667.0947 | AG148: =AG147/(1+Assumptions!$D9)^'Projection – Property #1'!AG26 -> 176000.1535 | AH148: =AH147/(1+Assumptions!$D9)^'Projection – Property #1'!AH26 -> 196458.2113 | AI148: =AI147/(1+Assumptions!$D9)^'Projection – Property #1'!AI26 -> 218061.599
B149: In Range For Minimum Cashflow Calculation? | D149: =IF('My Wealth Plan Summary'!$C8-'Projection – Property #1'!D32<0,"No","Yes") -> Yes | E149: =IF('My Wealth Plan Summary'!$C8-'Projection – Property #1'!E32<0,"No","Yes") -> Yes | F149: =IF('My Wealth Plan Summary'!$C8-'Projection – Property #1'!F32<0,"No","Yes") -> Yes | G149: =IF('My Wealth Plan Summary'!$C8-'Projection – Property #1'!G32<0,"No","Yes") -> Yes | H149: =IF('My Wealth Plan Summary'!$C8-'Projection – Property #1'!H32<0,"No","Yes") -> Yes | I149: =IF('My Wealth Plan Summary'!$C8-'Projection – Property #1'!I32<0,"No","Yes") -> Yes | J149: =IF('My Wealth Plan Summary'!$C8-'Projection – Property #1'!J32<0,"No","Yes") -> Yes | K149: =IF('My Wealth Plan Summary'!$C8-'Projection – Property #1'!K32<0,"No","Yes") -> Yes | L149: =IF('My Wealth Plan Summary'!$C8-'Projection – Property #1'!L32<0,"No","Yes") -> Yes | M149: =IF('My Wealth Plan Summary'!$C8-'Projection – Property #1'!M32<0,"No","Yes") -> Yes | N149: =IF('My Wealth Plan Summary'!$C8-'Projection – Property #1'!N32<0,"No","Yes") -> Yes | O149: =IF('My Wealth Plan Summary'!$C8-'Projection – Property #1'!O32<0,"No","Yes") -> Yes | P149: =IF('My Wealth Plan Summary'!$C8-'Projection – Property #1'!P32<0,"No","Yes") -> Yes | Q149: =IF('My Wealth Plan Summary'!$C8-'Projection – Property #1'!Q32<0,"No","Yes") -> Yes | R149: =IF('My Wealth Plan Summary'!$C8-'Projection – Property #1'!R32<0,"No","Yes") -> Yes | S149: =IF('My Wealth Plan Summary'!$C8-'Projection – Property #1'!S32<0,"No","Yes") -> Yes | T149: =IF('My Wealth Plan Summary'!$C8-'Projection – Property #1'!T32<0,"No","Yes") -> Yes | U149: =IF('My Wealth Plan Summary'!$C8-'Projection – Property #1'!U32<0,"No","Yes") -> Yes | V149: =IF('My Wealth Plan Summary'!$C8-'Projection – Property #1'!V32<0,"No","Yes") -> Yes | W149: =IF('My Wealth Plan Summary'!$C8-'Projection – Property #1'!W32<0,"No","Yes") -> Yes | X149: =IF('My Wealth Plan Summary'!$C8-'Projection – Property #1'!X32<0,"No","Yes") -> No | Y149: =IF('My Wealth Plan Summary'!$C8-'Projection – Property #1'!Y32<0,"No","Yes") -> No | Z149: =IF('My Wealth Plan Summary'!$C8-'Projection – Property #1'!Z32<0,"No","Yes") -> No | AA149: =IF('My Wealth Plan Summary'!$C8-'Projection – Property #1'!AA32<0,"No","Yes") -> No | AB149: =IF('My Wealth Plan Summary'!$C8-'Projection – Property #1'!AB32<0,"No","Yes") -> No | AC149: =IF('My Wealth Plan Summary'!$C8-'Projection – Property #1'!AC32<0,"No","Yes") -> No | AD149: =IF('My Wealth Plan Summary'!$C8-'Projection – Property #1'!AD32<0,"No","Yes") -> No | AE149: =IF('My Wealth Plan Summary'!$C8-'Projection – Property #1'!AE32<0,"No","Yes") -> No | AF149: =IF('My Wealth Plan Summary'!$C8-'Projection – Property #1'!AF32<0,"No","Yes") -> No | AG149: =IF('My Wealth Plan Summary'!$C8-'Projection – Property #1'!AG32<0,"No","Yes") -> No | AH149: =IF('My Wealth Plan Summary'!$C8-'Projection – Property #1'!AH32<0,"No","Yes") -> No | AI149: =IF('My Wealth Plan Summary'!$C8-'Projection – Property #1'!AI32<0,"No","Yes") -> No
B150: Minimum Cashflow Position | D150: =IF(D149="Yes",D148,0) -> -2790 | E150: =IF(E149="Yes",E148,0) -> -17624.83456 | F150: -29090.11378 | G150: -35817.90651 | H150: -41201.13196 | I150: -45257.9233 | J150: -48005.37221 | K150: -49459.5404 | L150: -49635.47038 | M150: -48547.19561 | N150: -46207.75004 | O150: -42629.17701 | P150: -37822.53757 | Q150: -31797.91804 | R150: =IF(R149="Yes",R148,0) -> -24564.43716 | S150: -16130.25244 | T150: -6502.566025 | U150: 4312.370141 | V150: 16393.80596 | W150: 29888.05332 | X150: 0 | Y150: 0 | Z150: 0 | AA150: 0 | AB150: 0 | AC150: 0 | AD150: 0 | AE150: 0 | AF150: 0 | AG150: 0 | AH150: 0 | AI150: 0
B151: Net Position (Equity + Cashflow) | D151: =D147+E39-E40 -> 56710 | E151: =E147+F39-F40 -> 75647.66875 | F151: 99190.89563 | G151: 129068.8136 | H151: 161985.5854 | I151: 198093.7621 | J151: 237553.4286 | K151: 280532.5733 | L151: 327207.4759 | M151: 377763.1147 | N151: 432393.5933 | O151: 491302.5884 | P151: 554703.8196 | Q151: 622821.542 | R151: 695891.0635 | S151: 774159.2864 | T151: 857885.2769 | U151: 947340.8612 | V151: 1042932.019 | W151: 1145184.758 | X151: 1247721.166 | Y151: 1356118.116 | Z151: 1471254.212 | AA151: 1593492.471 | AB151: 1723214.09 | AC151: 1860819.41 | AD151: 2006728.91 | AE151: 2161384.249 | AF151: 2325249.341 | AG151: 2498811.482 | AH151: 2682582.528 | AI151: =AI148+AJ39-AJ40 -> 218061.599
B152: Inflation Adjusted Post Tax Cashflow | C152: Max Position | D152: =MATCH(MAX(C141:R141),C141:R141,0) -> 16 | E152: Min Position | F152: =MATCH(MIN(C141:R141),C141:R141,0) -> 3 | G152: Max/Min Bigger | H152: =IF(ABS(MIN(C141:R141))>ABS(MAX(C141:R141)),"Min","Max") -> Min | I152: Cumulative | J152: Max Position | K152: =MATCH(MAX(C148:R148),C148:R148,0) -> 1 | L152: Min Position | M152: =MATCH(MIN(C148:R148),C148:R148,0) -> 10 | N152: Ratio | O152: =IF(H152="Max",INDEX(C141:R141,D152)/INDEX(C148:R148,K152),INDEX(C141:R141,F152)/INDEX(C148:R148,M152)) -> 0.2999778249 | P152: Secondary | Q152: =INDEX(C141:R141,F152)/O152 -> -49635.47038 | R152: =INDEX(C141:R141,D152)/O152 -> 22034.9364
B153: Inflation Adjusted Gross Return Per Week | D153: =((MAX(0,D140)+(D40-E40)+(E39-D39))/(1+Assumptions!$D$9)^'Projection – Property #1'!D26)/52 -> 625 | E153: =((MAX(0,E140)+(E40-F40)+(F39-E39))/(1+Assumptions!$D$9)^'Projection – Property #1'!E26)/52 -> 643.3823529 | F153: =((MAX(0,F140)+(F40-G40)+(G39-F39))/(1+Assumptions!$D$9)^'Projection – Property #1'!F26)/52 -> 662.3053633 | G153: =((MAX(0,G140)+(G40-H40)+(H39-G39))/(1+Assumptions!$D$9)^'Projection – Property #1'!G26)/52 -> 681.7849328 | H153: =((MAX(0,H140)+(H40-I40)+(I39-H39))/(1+Assumptions!$D$9)^'Projection – Property #1'!H26)/52 -> 701.8374309 | I153: =((MAX(0,I140)+(I40-J40)+(J39-I39))/(1+Assumptions!$D$9)^'Projection – Property #1'!I26)/52 -> 722.4797082 | J153: =((MAX(0,J140)+(J40-K40)+(K39-J39))/(1+Assumptions!$D$9)^'Projection – Property #1'!J26)/52 -> 743.7291114 | K153: =((MAX(0,K140)+(K40-L40)+(L39-K39))/(1+Assumptions!$D$9)^'Projection – Property #1'!K26)/52 -> 765.603497 | L153: =((MAX(0,L140)+(L40-M40)+(M39-L39))/(1+Assumptions!$D$9)^'Projection – Property #1'!L26)/52 -> 788.121247 | M153: =((MAX(0,M140)+(M40-N40)+(N39-M39))/(1+Assumptions!$D$9)^'Projection – Property #1'!M26)/52 -> 813.513404 | N153: =((MAX(0,N140)+(N40-O40)+(O39-N39))/(1+Assumptions!$D$9)^'Projection – Property #1'!N26)/52 -> 861.8465433 | O153: =((MAX(0,O140)+(O40-P40)+(P39-O39))/(1+Assumptions!$D$9)^'Projection – Property #1'!O26)/52 -> 911.1216814 | P153: =((MAX(0,P140)+(P40-Q40)+(Q39-P39))/(1+Assumptions!$D$9)^'Projection – Property #1'!P26)/52 -> 961.3738096 | Q153: =((MAX(0,Q140)+(Q40-R40)+(R39-Q39))/(1+Assumptions!$D$9)^'Projection – Property #1'!Q26)/52 -> 1012.63875 | R153: =((MAX(0,R140)+(R40-S40)+(S39-R39))/(1+Assumptions!$D$9)^'Projection – Property #1'!R26)/52 -> 1064.95318
B154: Inflation Adjusted Input Per Week | D154: =MAX(-D142,0) -> 53.65384615 | E154: =MAX(-E142,0) -> 286.3373162 | F154: 227.1320041 | G154: 140.3497522 | H154: 117.0295644 | I154: 93.55108973 | J154: 69.90113795 | K154: 46.0663462 | L154: 22.03317093 | M154: 0 | N154: 0 | O154: 0 | P154: 0 | Q154: 0 | R154: 0 | S154: 0 | T154: 0 | U154: 0 | V154: 0 | W154: 0 | X154: 0 | Y154: 0 | Z154: 0 | AA154: 0 | AB154: 0 | AC154: 0 | AD154: 0 | AE154: 0 | AF154: 0 | AG154: 0 | AH154: 0 | AI154: 0
B156: Hidden Values
B157: Name of 1st Chart | D157: =CONCATENATE('Property Set Up'!C12," Cashflow") -> Property #1 Cashflow
B158: Name of 2nd Chart | D158: =CONCATENATE('Property Set Up'!C12," Return vs Cash Input") -> Property #1 Return vs Cash Input
B159: Name of 3rd Chart | D159: =CONCATENATE('Property Set Up'!C12," Net Equity (Including Cashflow)") -> Property #1 Net Equity (Including Cashflow)
B160: Name of 4th Chart | D160: =CONCATENATE('Property Set Up'!C12," Cumulative Cashflow") -> Property #1 Cumulative Cashflow
B162: REVOLVING CREDIT
B165: Top Up Amount Per week | D165: 158
B166: Investor Top Up | D166: =D165*52 -> 8216 | E166: =D166 -> 8216 | F166: =E166 -> 8216 | G166: 8216 | H166: 8216 | I166: 8216 | J166: 8216 | K166: 8216 | L166: 8216 | M166: 8216 | N166: 8216 | O166: 8216 | P166: 8216 | Q166: 8216 | R166: 8216
B167: Investment Cashflow Net of Investor Contribution | D167: =D140+D166 -> 5426 | E167: =E140+E166 -> -6971.33125 | F167: -4072.023125 | G167: 471.1054475 | H167: 1628.818661 | I167: 2845.025961 | J167: 4122.5582 | K167: 5464.380915 | L167: 6873.600687 | M167: 8353.471805 | N167: 9907.403244 | O167: 11538.96597 | P167: 13251.90057 | Q167: 15050.12531 | R167: 16937.74445
B168: Revolving Credit Balance | D168: =D167 -> 5426 | E168: =D168+E167-IF((D168+E167)<0,500,0) -> -2045.33125 | F168: -6617.354375 | G168: -6646.248928 | H168: -5517.430267 | I168: -3172.404306 | J168: 950.153894 | K168: 6414.534809 | L168: 13288.1355 | M168: 21641.6073 | N168: 31549.01055 | O168: 43087.97651 | P168: 56339.87708 | Q168: 71390.00239 | R168: 88327.74684 | S168: =R168+S167 -> 88327.74684 | T168: =S168+T167 -> 88327.74684 | U168: 88327.74684 | V168: 88327.74684 | W168: 88327.74684 | X168: 88327.74684 | Y168: 88327.74684 | Z168: 88327.74684 | AA168: 88327.74684 | AB168: 88327.74684 | AC168: 88327.74684 | AD168: 88327.74684 | AE168: 88327.74684 | AF168: 88327.74684 | AG168: 88327.74684 | AH168: 88327.74684 | AI168: 88327.74684

Sheet Projection – Property #2
B6: =UPPER(CONCATENATE('Property Set Up'!D12," Return on Investment")) -> PROPERTY #2 RETURN ON INVESTMENT
B8: Return Summary
B9: Inflation Adjusted Capital Gains | D9: =(S39-D39)/(1+'Property Set Up'!$D$77)^S26 ->  | E9: =D9/$D$13 -> 
B10: Inflation Adjusted Instant Equity | D10: =IF(ISBLANK('Property Set Up'!D24),0,MAX(0,('Property Set Up'!D23-'Property Set Up'!D24)/(1+Assumptions!E9)^15)) -> 0 | E10: =D10/$D$13 -> 
B11: Inflation Adjusted Debt Repayments | D11: =SUM(D41:R41) -> 0 | E11: =D11/D13 -> 
B12: Inflation Adjusted Cashflow | D12: =SUM(C146:R146) -> 0 | E12: =D12/$D$13 -> 
B13: Total Returns | D13: =SUM(D9:D12) -> 
B15: Investment Summary
B16: Equity Investment | D16: =MAX('Property Set Up'!$D$26,'Property Set Up'!$D$27*MIN('Property Set Up'!D23,'Property Set Up'!$D$24)+'Property Set Up'!$D$25) -> 3000 | E16: =D16/D18 -> 0.02873953571
B17: Cashflow Investment | D17: =-SUM(C143:R143) -> 101385.8199 | E17: =D17/D18 -> 0.9712604643
B18: Total Investment | D18: =SUM(D16:D17) -> 104385.8199
B20: Return on Investment | D20: =D13/D18 -> 
B23: =UPPER(CONCATENATE('Property Set Up'!D12," Cashflow Projection & Analysis")) -> PROPERTY #2 CASHFLOW PROJECTION & ANALYSIS
B26: Inflation Adjusted Years | D26: 0 | E26: =D26+1 -> 1 | F26: =E26+1 -> 2 | G26: 3 | H26: 4 | I26: 5 | J26: 6 | K26: 7 | L26: 8 | M26: 9 | N26: 10 | O26: 11 | P26: 12 | Q26: 13 | R26: 14 | S26: 15 | T26: =S26+1 -> 16 | U26: 17 | V26: 18 | W26: 19 | X26: 20 | Y26: 21 | Z26: 22 | AA26: 23 | AB26: 24 | AC26: 25 | AD26: 26 | AE26: 27 | AF26: 28 | AG26: 29 | AH26: 30 | AI26: 31
B27: P+I Starting Period (Months) – Construction | D27: =IF(D67>=12,0,1) -> 0 | E27: =IF(E67=12,0,D28+1) -> 1 | F27: =E28+1 -> 13 | G27: =F28+1 -> 25 | H27: 37 | I27: 49 | J27: 61 | K27: 73 | L27: 85 | M27: 97 | N27: 109 | O27: 121 | P27: 133 | Q27: 145 | R27: 157 | S27: 169 | T27: =S28+1 -> 181 | U27: 193 | V27: 205 | W27: 217 | X27: 229 | Y27: 241 | Z27: 253 | AA27: 265 | AB27: 277 | AC27: 289 | AD27: 301 | AE27: 313 | AF27: 325 | AG27: 337 | AH27: 349 | AI27: 361
B28: P+I Ending Period (Months) – Construction | D28: =IF(D27=0,0,12-D67) -> 0 | E28: =IF(D28=0,12-E67,E27+11) -> 12 | F28: =F27+11 -> 24 | G28: 36 | H28: 48 | I28: 60 | J28: 72 | K28: 84 | L28: 96 | M28: 108 | N28: 120 | O28: 132 | P28: 144 | Q28: 156 | R28: 168 | S28: 180 | T28: =T27+11 -> 192 | U28: 204 | V28: 216 | W28: 228 | X28: 240 | Y28: 252 | Z28: 264 | AA28: 276 | AB28: =AB27+11 -> 288 | AC28: 300 | AD28: 312 | AE28: 324 | AF28: 336 | AG28: 348 | AH28: 360 | AI28: 372
B29: Months Left on Principal | D29: =MAX(0,'Property Set Up'!$D39*12-'Projection – Property #2'!C28) -> 300 | E29: =MAX(0,'Property Set Up'!$D39*12-'Projection – Property #2'!D28) -> 300 | F29: =MAX(0,'Property Set Up'!$D39*12-'Projection – Property #2'!E28) -> 288 | G29: =MAX(0,'Property Set Up'!$D39*12-'Projection – Property #2'!F28) -> 276 | H29: =MAX(0,'Property Set Up'!$D39*12-'Projection – Property #2'!G28) -> 264 | I29: =MAX(0,'Property Set Up'!$D39*12-'Projection – Property #2'!H28) -> 252 | J29: =MAX(0,'Property Set Up'!$D39*12-'Projection – Property #2'!I28) -> 240 | K29: =MAX(0,'Property Set Up'!$D39*12-'Projection – Property #2'!J28) -> 228 | L29: =MAX(0,'Property Set Up'!$D39*12-'Projection – Property #2'!K28) -> 216 | M29: =MAX(0,'Property Set Up'!$D39*12-'Projection – Property #2'!L28) -> 204 | N29: =MAX(0,'Property Set Up'!$D39*12-'Projection – Property #2'!M28) -> 192 | O29: =MAX(0,'Property Set Up'!$D39*12-'Projection – Property #2'!N28) -> 180 | P29: =MAX(0,'Property Set Up'!$D39*12-'Projection – Property #2'!O28) -> 168 | Q29: =MAX(0,'Property Set Up'!$D39*12-'Projection – Property #2'!P28) -> 156 | R29: =MAX(0,'Property Set Up'!$D39*12-'Projection – Property #2'!Q28) -> 144 | S29: =MAX(0,'Property Set Up'!$D39*12-'Projection – Property #2'!R28) -> 132 | T29: =MAX(0,'Property Set Up'!$D39*12-'Projection – Property #2'!S28) -> 120 | U29: =MAX(0,'Property Set Up'!$D39*12-'Projection – Property #2'!T28) -> 108 | V29: =MAX(0,'Property Set Up'!$D39*12-'Projection – Property #2'!U28) -> 96 | W29: =MAX(0,'Property Set Up'!$D39*12-'Projection – Property #2'!V28) -> 84 | X29: =MAX(0,'Property Set Up'!$D39*12-'Projection – Property #2'!W28) -> 72 | Y29: =MAX(0,'Property Set Up'!$D39*12-'Projection – Property #2'!X28) -> 60 | Z29: =MAX(0,'Property Set Up'!$D39*12-'Projection – Property #2'!Y28) -> 48 | AA29: =MAX(0,'Property Set Up'!$D39*12-'Projection – Property #2'!Z28) -> 36 | AB29: =MAX(0,'Property Set Up'!$D39*12-'Projection – Property #2'!AA28) -> 24 | AC29: =MAX(0,'Property Set Up'!$D39*12-'Projection – Property #2'!AB28) -> 12 | AD29: =MAX(0,'Property Set Up'!$D39*12-'Projection – Property #2'!AC28) -> 0 | AE29: =MAX(0,'Property Set Up'!$D39*12-'Projection – Property #2'!AD28) -> 0 | AF29: =MAX(0,'Property Set Up'!$D39*12-'Projection – Property #2'!AE28) -> 0 | AG29: =MAX(0,'Property Set Up'!$D39*12-'Projection – Property #2'!AF28) -> 0 | AH29: =MAX(0,'Property Set Up'!$D39*12-'Projection – Property #2'!AG28) -> 0 | AI29: =MAX(0,'Property Set Up'!$D39*12-'Projection – Property #2'!AH28) -> 0
B30: Months Left on Principal (Years) | C30: 5 | D30: ='Projection – Property #2'!D29/12 -> 25 | E30: ='Projection – Property #2'!E29/12 -> 25 | F30: ='Projection – Property #2'!F29/12 -> 24 | G30: ='Projection – Property #2'!G29/12 -> 23 | H30: ='Projection – Property #2'!H29/12 -> 22 | I30: ='Projection – Property #2'!I29/12 -> 21 | J30: ='Projection – Property #2'!J29/12 -> 20 | K30: ='Projection – Property #2'!K29/12 -> 19 | L30: ='Projection – Property #2'!L29/12 -> 18 | M30: ='Projection – Property #2'!M29/12 -> 17 | N30: ='Projection – Property #2'!N29/12 -> 16 | O30: ='Projection – Property #2'!O29/12 -> 15 | P30: ='Projection – Property #2'!P29/12 -> 14 | Q30: ='Projection – Property #2'!Q29/12 -> 13 | R30: ='Projection – Property #2'!R29/12 -> 12 | S30: ='Projection – Property #2'!S29/12 -> 11 | T30: ='Projection – Property #2'!T29/12 -> 10 | U30: ='Projection – Property #2'!U29/12 -> 9 | V30: ='Projection – Property #2'!V29/12 -> 8 | W30: ='Projection – Property #2'!W29/12 -> 7 | X30: ='Projection – Property #2'!X29/12 -> 6 | Y30: ='Projection – Property #2'!Y29/12 -> 5 | Z30: ='Projection – Property #2'!Z29/12 -> 4 | AA30: ='Projection – Property #2'!AA29/12 -> 3 | AB30: ='Projection – Property #2'!AB29/12 -> 2 | AC30: ='Projection – Property #2'!AC29/12 -> 1 | AD30: ='Projection – Property #2'!AD29/12 -> 0 | AE30: ='Projection – Property #2'!AE29/12 -> 0 | AF30: ='Projection – Property #2'!AF29/12 -> 0 | AG30: ='Projection – Property #2'!AG29/12 -> 0 | AH30: ='Projection – Property #2'!AH29/12 -> 0 | AI30: ='Projection – Property #2'!AI29/12 -> 0
B31: Principal Payments Denominator. Months of Year | D31: =IF('Property Set Up'!$D38="Interest Only",2,IF(AND(D29>0,D29<=11),D29/12,IF(D29=0,0,1))) -> 2 | E31: =IF('Property Set Up'!$D38="Interest Only",2,IF(AND(E29>0,E29<=11),E29/12,IF(E29=0,0,1))) -> 2 | F31: =IF('Property Set Up'!$D38="Interest Only",2,IF(AND(F29>0,F29<=11),F29/12,IF(F29=0,0,1))) -> 2 | G31: =IF('Property Set Up'!$D38="Interest Only",2,IF(AND(G29>0,G29<=11),G29/12,IF(G29=0,0,1))) -> 2 | H31: =IF('Property Set Up'!$D38="Interest Only",2,IF(AND(H29>0,H29<=11),H29/12,IF(H29=0,0,1))) -> 2 | I31: =IF('Property Set Up'!$D38="Interest Only",2,IF(AND(I29>0,I29<=11),I29/12,IF(I29=0,0,1))) -> 2 | J31: =IF('Property Set Up'!$D38="Interest Only",2,IF(AND(J29>0,J29<=11),J29/12,IF(J29=0,0,1))) -> 2 | K31: =IF('Property Set Up'!$D38="Interest Only",2,IF(AND(K29>0,K29<=11),K29/12,IF(K29=0,0,1))) -> 2 | L31: =IF('Property Set Up'!$D38="Interest Only",2,IF(AND(L29>0,L29<=11),L29/12,IF(L29=0,0,1))) -> 2 | M31: =IF('Property Set Up'!$D38="Interest Only",2,IF(AND(M29>0,M29<=11),M29/12,IF(M29=0,0,1))) -> 2 | N31: =IF('Property Set Up'!$D38="Interest Only",2,IF(AND(N29>0,N29<=11),N29/12,IF(N29=0,0,1))) -> 2 | O31: =IF('Property Set Up'!$D38="Interest Only",2,IF(AND(O29>0,O29<=11),O29/12,IF(O29=0,0,1))) -> 2 | P31: =IF('Property Set Up'!$D38="Interest Only",2,IF(AND(P29>0,P29<=11),P29/12,IF(P29=0,0,1))) -> 2 | Q31: =IF('Property Set Up'!$D38="Interest Only",2,IF(AND(Q29>0,Q29<=11),Q29/12,IF(Q29=0,0,1))) -> 2 | R31: =IF('Property Set Up'!$D38="Interest Only",2,IF(AND(R29>0,R29<=11),R29/12,IF(R29=0,0,1))) -> 2 | S31: =IF('Property Set Up'!$D38="Interest Only",2,IF(AND(S29>0,S29<=11),S29/12,IF(S29=0,0,1))) -> 2 | T31: =IF('Property Set Up'!$D38="Interest Only",2,IF(AND(T29>0,T29<=11),T29/12,IF(T29=0,0,1))) -> 2 | U31: =IF('Property Set Up'!$D38="Interest Only",2,IF(AND(U29>0,U29<=11),U29/12,IF(U29=0,0,1))) -> 2 | V31: =IF('Property Set Up'!$D38="Interest Only",2,IF(AND(V29>0,V29<=11),V29/12,IF(V29=0,0,1))) -> 2 | W31: =IF('Property Set Up'!$D38="Interest Only",2,IF(AND(W29>0,W29<=11),W29/12,IF(W29=0,0,1))) -> 2 | X31: =IF('Property Set Up'!$D38="Interest Only",2,IF(AND(X29>0,X29<=11),X29/12,IF(X29=0,0,1))) -> 2 | Y31: =IF('Property Set Up'!$D38="Interest Only",2,IF(AND(Y29>0,Y29<=11),Y29/12,IF(Y29=0,0,1))) -> 2 | Z31: =IF('Property Set Up'!$D38="Interest Only",2,IF(AND(Z29>0,Z29<=11),Z29/12,IF(Z29=0,0,1))) -> 2 | AA31: =IF('Property Set Up'!$D38="Interest Only",2,IF(AND(AA29>0,AA29<=11),AA29/12,IF(AA29=0,0,1))) -> 2 | AB31: =IF('Property Set Up'!$D38="Interest Only",2,IF(AND(AB29>0,AB29<=11),AB29/12,IF(AB29=0,0,1))) -> 2 | AC31: =IF('Property Set Up'!$D38="Interest Only",2,IF(AND(AC29>0,AC29<=11),AC29/12,IF(AC29=0,0,1))) -> 2 | AD31: =IF('Property Set Up'!$D38="Interest Only",2,IF(AND(AD29>0,AD29<=11),AD29/12,IF(AD29=0,0,1))) -> 2 | AE31: =IF('Property Set Up'!$D38="Interest Only",2,IF(AND(AE29>0,AE29<=11),AE29/12,IF(AE29=0,0,1))) -> 2 | AF31: =IF('Property Set Up'!$D38="Interest Only",2,IF(AND(AF29>0,AF29<=11),AF29/12,IF(AF29=0,0,1))) -> 2 | AG31: =IF('Property Set Up'!$D38="Interest Only",2,IF(AND(AG29>0,AG29<=11),AG29/12,IF(AG29=0,0,1))) -> 2 | AH31: =IF('Property Set Up'!$D38="Interest Only",2,IF(AND(AH29>0,AH29<=11),AH29/12,IF(AH29=0,0,1))) -> 2 | AI31: =IF('Property Set Up'!$D38="Interest Only",2,IF(AND(AI29>0,AI29<=11),AI29/12,IF(AI29=0,0,1))) -> 2
B32: Years | D32: 1 | E32: 2 | F32: 3 | G32: 4 | H32: 5 | I32: 6 | J32: 7 | K32: 8 | L32: 9 | M32: 10 | N32: 11 | O32: 12 | P32: 13 | Q32: 14 | R32: 15 | S32: 16 | T32: 17 | U32: 18 | V32: 19 | W32: 20 | X32: 21 | Y32: 22 | Z32: 23 | AA32: 24 | AB32: 25 | AC32: 26 | AD32: 27 | AE32: 28 | AF32: 29 | AG32: 30 | AH32: 31 | AI32: 32
D33: =CONCATENATE(TEXT(D85,"mmm-yy")," – ",TEXT(D86,"mmm-yy")) -> May-22 – Apr-23 | E33: May-23 – Apr-24 | F33: May-24 – Apr-25 | G33: May-25 – Apr-26 | H33: May-26 – Apr-27 | I33: May-27 – Apr-28 | J33: May-28 – Apr-29 | K33: May-29 – Apr-30 | L33: May-30 – Apr-31 | M33: May-31 – Apr-32 | N33: May-32 – Apr-33 | O33: May-33 – Apr-34 | P33: May-34 – Apr-35 | Q33: May-35 – Apr-36 | R33: May-36 – Apr-37 | S33: May-37 – Apr-38 | T33: May-38 – Apr-39 | U33: May-39 – Apr-40 | V33: May-40 – Apr-41 | W33: May-41 – Apr-42 | X33: May-42 – Apr-43 | Y33: May-43 – Apr-44 | Z33: May-44 – Apr-45 | AA33: May-45 – Apr-46 | AB33: May-46 – Apr-47 | AC33: May-47 – Apr-48 | AD33: May-48 – Apr-49 | AE33: May-49 – Apr-50 | AF33: May-50 – Apr-51 | AG33: May-51 – Apr-52 | AH33: May-52 – Apr-53 | AI33: May-53 – Apr-54
B36: ASSETS AND LIABILITIES
B39: Asset Value (Start of Year) | C39: 0 | D39: ='Property Set Up'!$D$23*(1+'Property Set Up'!D87)^'Projection – Property #2'!D26 ->  | E39: =D39*(1+'Property Set Up'!$D$87) ->  | F39: =E39*(1+'Property Set Up'!$D$87) ->  | G39: =F39*(1+'Property Set Up'!$D$87) ->  | H39: =G39*(1+'Property Set Up'!$D$87) ->  | I39: =H39*(1+'Property Set Up'!$D$87) ->  | J39: =I39*(1+'Property Set Up'!$D$87) ->  | K39: =J39*(1+'Property Set Up'!$D$87) ->  | L39: =K39*(1+'Property Set Up'!$D$87) ->  | M39: =L39*(1+'Property Set Up'!$D$87) ->  | N39: =M39*(1+'Property Set Up'!$D$87) ->  | O39: =N39*(1+'Property Set Up'!$D$87) ->  | P39: =O39*(1+'Property Set Up'!$D$87) ->  | Q39: =P39*(1+'Property Set Up'!$D$87) ->  | R39: =Q39*(1+'Property Set Up'!$D$87) ->  | S39: =R39*(1+'Property Set Up'!$D$87) ->  | T39: =S39*(1+'Property Set Up'!$D$87) ->  | U39: =T39*(1+'Property Set Up'!$D$87) ->  | V39: =U39*(1+'Property Set Up'!$D$87) ->  | W39: =V39*(1+'Property Set Up'!$D$87) ->  | X39: =W39*(1+'Property Set Up'!$D$87) ->  | Y39: =X39*(1+'Property Set Up'!$D$87) ->  | Z39: =Y39*(1+'Property Set Up'!$D$87) ->  | AA39: =Z39*(1+'Property Set Up'!$D$87) ->  | AB39: =AA39*(1+'Property Set Up'!$D$87) ->  | AC39: =AB39*(1+'Property Set Up'!$D$87) ->  | AD39: =AC39*(1+'Property Set Up'!$D$87) ->  | AE39: =AD39*(1+'Property Set Up'!$D$87) ->  | AF39: =AE39*(1+'Property Set Up'!$D$87) ->  | AG39: =AF39*(1+'Property Set Up'!$D$87) ->  | AH39: =AG39*(1+'Property Set Up'!$D$87) ->  | AI39: =AH39*(1+'Property Set Up'!$D$87) -> 
B40: Mortgage (Start of Year) | C40: 0 | D40: ='Property Set Up'!$D$28 -> 3000 | E40: =MAX(0,D40-D42) -> 3000 | F40: =MAX(0,E40-E42) -> 3000 | G40: =MAX(0,F40-F42) -> 3000 | H40: 3000 | I40: 3000 | J40: 3000 | K40: 3000 | L40: 3000 | M40: 3000 | N40: 3000 | O40: 3000 | P40: 3000 | Q40: 3000 | R40: =MAX(0,Q40-Q42) -> 3000 | S40: =MAX(0,R40-R42) -> 3000 | T40: =MAX(0,S40-S42) -> 3000 | U40: =MAX(0,T40-T42) -> 3000 | V40: =MAX(0,U40-U42) -> 3000 | W40: =MAX(0,V40-V42) -> 3000 | X40: =MAX(0,W40-W42) -> 3000 | Y40: =MAX(0,X40-X42) -> 3000 | Z40: =MAX(0,Y40-Y42) -> 3000 | AA40: =MAX(0,Z40-Z42) -> 3000 | AB40: =MAX(0,AA40-AA42) -> 3000 | AC40: =MAX(0,AB40-AB42) -> 3000 | AD40: =MAX(0,AC40-AC42) -> 3000 | AE40: =MAX(0,AD40-AD42) -> 3000 | AF40: =MAX(0,AE40-AE42) -> 3000 | AG40: =MAX(0,AF40-AF42) -> 3000 | AH40: =MAX(0,AG40-AG42) -> 3000 | AI40: =MAX(0,AH40-AH42) -> 3000
B41: Inflation Adjusted Debt Repayments In The Year | C41: 0 | D41: =(D40-E40)/(1+'Property Set Up'!$D$77)^D26 -> 0 | E41: =(E40-F40)/(1+'Property Set Up'!$D$77)^E26 -> 0 | F41: =(F40-G40)/(1+'Property Set Up'!$D$77)^F26 -> 0 | G41: =(G40-H40)/(1+'Property Set Up'!$D$77)^G26 -> 0 | H41: =(H40-I40)/(1+'Property Set Up'!$D$77)^H26 -> 0 | I41: =(I40-J40)/(1+'Property Set Up'!$D$77)^I26 -> 0 | J41: =(J40-K40)/(1+'Property Set Up'!$D$77)^J26 -> 0 | K41: =(K40-L40)/(1+'Property Set Up'!$D$77)^K26 -> 0 | L41: =(L40-M40)/(1+'Property Set Up'!$D$77)^L26 -> 0 | M41: =(M40-N40)/(1+'Property Set Up'!$D$77)^M26 -> 0 | N41: =(N40-O40)/(1+'Property Set Up'!$D$77)^N26 -> 0 | O41: =(O40-P40)/(1+'Property Set Up'!$D$77)^O26 -> 0 | P41: =(P40-Q40)/(1+'Property Set Up'!$D$77)^P26 -> 0 | Q41: =(Q40-R40)/(1+'Property Set Up'!$D$77)^Q26 -> 0 | R41: =(R40-S40)/(1+'Property Set Up'!$D$77)^R26 -> 0 | S41: =(S40-T40)/(1+'Property Set Up'!$D$77)^S26 -> 0 | T41: =(T40-U40)/(1+'Property Set Up'!$D$77)^T26 -> 0 | U41: =(U40-V40)/(1+'Property Set Up'!$D$77)^U26 -> 0 | V41: =(V40-W40)/(1+'Property Set Up'!$D$77)^V26 -> 0 | W41: =(W40-X40)/(1+'Property Set Up'!$D$77)^W26 -> 0 | X41: =(X40-Y40)/(1+'Property Set Up'!$D$77)^X26 -> 0 | Y41: =(Y40-Z40)/(1+'Property Set Up'!$D$77)^Y26 -> 0 | Z41: =(Z40-AA40)/(1+'Property Set Up'!$D$77)^Z26 -> 0 | AA41: =(AA40-AB40)/(1+'Property Set Up'!$D$77)^AA26 -> 0 | AB41: =(AB40-AC40)/(1+'Property Set Up'!$D$77)^AB26 -> 0 | AC41: =(AC40-AD40)/(1+'Property Set Up'!$D$77)^AC26 -> 0 | AD41: =(AD40-AE40)/(1+'Property Set Up'!$D$77)^AD26 -> 0 | AE41: =(AE40-AF40)/(1+'Property Set Up'!$D$77)^AE26 -> 0 | AF41: =(AF40-AG40)/(1+'Property Set Up'!$D$77)^AF26 -> 0 | AG41: =(AG40-AH40)/(1+'Property Set Up'!$D$77)^AG26 -> 0 | AH41: =(AH40-AI40)/(1+'Property Set Up'!$D$77)^AH26 -> 0 | AI41: =(AI40-AJ40)/(1+'Property Set Up'!$D$77)^AI26 -> 1623.737909
B42: Hidden – Principal paid in year | D42: =IFERROR(IF(D45="Interest Only",0,IF(D28=0,0,-CUMPRINC(D59/12,12*D46,D40,D27,D28,0))),0) -> 0 | E42: =IFERROR(IF(E45="Interest Only",0,IF(E28=0,0,-CUMPRINC(E59/12,12*E46,E40,E27,E28,0))),0) -> 0 | F42: =IFERROR(IF(F45="Interest Only",0,IF(F28=0,0,-CUMPRINC(F59/12,12*F46,F40,F27,F28,0))),0) -> 0 | G42: =IFERROR(IF(G45="interest only",0,-CUMPRINC(G59/12,12*G46,G40,1,12,0)),0) -> 0 | H42: 0 | I42: 0 | J42: 0 | K42: 0 | L42: 0 | M42: 0 | N42: 0 | O42: 0 | P42: 0 | Q42: 0 | R42: 0 | S42: 0 | T42: 0 | U42: 0 | V42: 0 | W42: 0 | X42: 0 | Y42: 0 | Z42: 0 | AA42: 0 | AB42: 0 | AC42: 0 | AD42: 0 | AE42: 0 | AF42: 0 | AG42: 0 | AH42: 0 | AI42: 0
B43: Net Equity | D43: =D39-D40 -> 
B45: Mortgage Type | D45: =IF('Property Set Up'!$D$38="Principal & interest","P+I","Interest Only") -> Interest Only | E45: =IF('Property Set Up'!$D$38="Principal & interest","P+I","Interest Only") -> Interest Only | F45: =IF('Property Set Up'!$D$38="Principal & interest","P+I","Interest Only") -> Interest Only | G45: =IF(ISBLANK(G48),F45,G48) -> Interest Only | H45: =IF(ISBLANK(H48),G45,H48) -> Interest Only | I45: Interest Only | J45: Interest Only | K45: Interest Only | L45: Interest Only | M45: Interest Only | N45: Interest Only | O45: Interest Only | P45: Interest Only | Q45: Interest Only | R45: Interest Only | S45: =IF(ISBLANK(S48),R45,S48) -> Interest Only | T45: =IF(ISBLANK(T48),S45,T48) -> Interest Only | U45: =IF(ISBLANK(U48),T45,U48) -> Interest Only | V45: =IF(ISBLANK(V48),U45,V48) -> Interest Only | W45: =IF(ISBLANK(W48),V45,W48) -> Interest Only | X45: =IF(ISBLANK(X48),W45,X48) -> Interest Only | Y45: =IF(ISBLANK(Y48),X45,Y48) -> Interest Only | Z45: =IF(ISBLANK(Z48),Y45,Z48) -> Interest Only | AA45: =IF(ISBLANK(AA48),Z45,AA48) -> Interest Only | AB45: =IF(ISBLANK(AB48),AA45,AB48) -> Interest Only | AC45: =IF(ISBLANK(AC48),AB45,AC48) -> Interest Only | AD45: =IF(ISBLANK(AD48),AC45,AD48) -> Interest Only | AE45: =IF(ISBLANK(AE48),AD45,AE48) -> Interest Only | AF45: =IF(ISBLANK(AF48),AE45,AF48) -> Interest Only | AG45: =IF(ISBLANK(AG48),AF45,AG48) -> Interest Only | AH45: =IF(ISBLANK(AH48),AG45,AH48) -> Interest Only | AI45: =IF(ISBLANK(AI48),AH45,AI48) -> Interest Only
B46: Mortgage Term | D46: =IF(D45="P+I",D30,"N/A") -> N/A | E46: =IF(E45="P+I",E30,"N/A") -> N/A | F46: =IF(F45="P+I",F30,"N/A") -> N/A | G46: =IF(G45="Interest Only","N/A",IF(G45=F45,IF(F46<>"N/A",MAX(F46-1,0),F46),G49)) -> N/A | H46: =IF(H45="Interest Only","N/A",IF(H45=G45,IF(G46<>"N/A",MAX(G46-1,0),G46),H49)) -> N/A | I46: N/A | J46: N/A | K46: N/A | L46: N/A | M46: N/A | N46: N/A | O46: N/A | P46: N/A | Q46: N/A | R46: N/A | S46: =IF(S45="Interest Only","N/A",IF(S45=R45,IF(R46<>"N/A",MAX(R46-1,0),R46),S49)) -> N/A | T46: =IF(T45="Interest Only","N/A",IF(T45=S45,IF(S46<>"N/A",MAX(S46-1,0),S46),T49)) -> N/A | U46: =IF(U45="Interest Only","N/A",IF(U45=T45,IF(T46<>"N/A",MAX(T46-1,0),T46),U49)) -> N/A | V46: =IF(V45="Interest Only","N/A",IF(V45=U45,IF(U46<>"N/A",MAX(U46-1,0),U46),V49)) -> N/A | W46: =IF(W45="Interest Only","N/A",IF(W45=V45,IF(V46<>"N/A",MAX(V46-1,0),V46),W49)) -> N/A | X46: =IF(X45="Interest Only","N/A",IF(X45=W45,IF(W46<>"N/A",MAX(W46-1,0),W46),X49)) -> N/A | Y46: =IF(Y45="Interest Only","N/A",IF(Y45=X45,IF(X46<>"N/A",MAX(X46-1,0),X46),Y49)) -> N/A | Z46: =IF(Z45="Interest Only","N/A",IF(Z45=Y45,IF(Y46<>"N/A",MAX(Y46-1,0),Y46),Z49)) -> N/A | AA46: =IF(AA45="Interest Only","N/A",IF(AA45=Z45,IF(Z46<>"N/A",MAX(Z46-1,0),Z46),AA49)) -> N/A | AB46: =IF(AB45="Interest Only","N/A",IF(AB45=AA45,IF(AA46<>"N/A",MAX(AA46-1,0),AA46),AB49)) -> N/A | AC46: =IF(AC45="Interest Only","N/A",IF(AC45=AB45,IF(AB46<>"N/A",MAX(AB46-1,0),AB46),AC49)) -> N/A | AD46: =IF(AD45="Interest Only","N/A",IF(AD45=AC45,IF(AC46<>"N/A",MAX(AC46-1,0),AC46),AD49)) -> N/A | AE46: =IF(AE45="Interest Only","N/A",IF(AE45=AD45,IF(AD46<>"N/A",MAX(AD46-1,0),AD46),AE49)) -> N/A | AF46: =IF(AF45="Interest Only","N/A",IF(AF45=AE45,IF(AE46<>"N/A",MAX(AE46-1,0),AE46),AF49)) -> N/A | AG46: =IF(AG45="Interest Only","N/A",IF(AG45=AF45,IF(AF46<>"N/A",MAX(AF46-1,0),AF46),AG49)) -> N/A | AH46: =IF(AH45="Interest Only","N/A",IF(AH45=AG45,IF(AG46<>"N/A",MAX(AG46-1,0),AG46),AH49)) -> N/A | AI46: =IF(AI45="Interest Only","N/A",IF(AI45=AH45,IF(AH46<>"N/A",MAX(AH46-1,0),AH46),AI49)) -> N/A
B48: Change Mortgage Type | D48: N/A | E48: N/A | F48: N/A
B49: Change Mortgage Term | D49: N/A | E49: N/A | F49: N/A
B52: PRE-TAX CASHFLOW
B55: Rent Per Annum | D55: =IF(D67>=12,0,IF(D67>0,(12-D67)/12*D71,D71)) -> 0 | E55: =IF(E67>=12,0,IF(E67>0,(12-E67)/12*E71,E71)) -> 0 | F55: =IF(F67>=12,0,IF(F67>0,(12-F67)/12*F71,F71)) -> 0 | G55: 0 | H55: 0 | I55: 0 | J55: 0 | K55: 0 | L55: 0 | M55: 0 | N55: 0 | O55: 0 | P55: 0 | Q55: 0 | R55: 0 | S55: 0 | T55: 0 | U55: 0 | V55: 0 | W55: 0 | X55: 0 | Y55: 0 | Z55: 0 | AA55: 0 | AB55: 0 | AC55: 0 | AD55: 0 | AE55: 0 | AF55: 0 | AG55: 0 | AH55: 0 | AI55: 0
B56: Financing Costs | D56: =SUM(D78:D79) -> 0 | E56: =SUM(E78:E79) -> 157.5 | F56: 150 | G56: 135 | H56: 135 | I56: 135 | J56: 135 | K56: 135 | L56: 135 | M56: 135 | N56: 135 | O56: 135 | P56: 135 | Q56: 135 | R56: 135 | S56: 135 | T56: 135 | U56: 135 | V56: 135 | W56: 135 | X56: 135 | Y56: 135 | Z56: 135 | AA56: 135 | AB56: 135 | AC56: 135 | AD56: 135 | AE56: 135 | AF56: 135 | AG56: 135 | AH56: 135 | AI56: 135
B57: Operating Costs | D57: =IF(D67>=12,0,IF(D67>0,(12-D67)/12*(D72+D73),D72+D73)) -> 0 | E57: =IF(E67>=12,0,IF(E67>0,(12-E67)/12*(E72+E73),E72+E73)) -> 7264.95 | F57: =IF(F67>=12,0,IF(F67>0,(12-F67)/12*(F72+F73),F72+F73)) -> 7410.249 | G57: =IF(G67>=12,0,IF(G67>0,(12-G67)/12*(G72+G73),G72+G73)) -> 7558.45398 | H57: =IF(H67>=12,0,IF(H67>0,(12-H67)/12*(H72+H73),H72+H73)) -> 7709.62306 | I57: 7863.815521 | J57: 8021.091831 | K57: 8181.513668 | L57: 8345.143941 | M57: 8512.04682 | N57: 8682.287756 | O57: 8855.933512 | P57: 9033.052182 | Q57: 9213.713225 | R57: 9397.98749 | S57: =IF(S67>=12,0,IF(S67>0,(12-S67)/12*(S72+S73),S72+S73)) -> 9585.94724 | T57: 9777.666185 | U57: 9973.219508 | V57: 10172.6839 | W57: 10376.13758 | X57: 10583.66033 | Y57: 10795.33353 | Z57: 11011.24021 | AA57: 11231.46501 | AB57: 11456.09431 | AC57: 11685.2162 | AD57: 11918.92052 | AE57: 12157.29893 | AF57: 12400.44491 | AG57: 12648.45381 | AH57: 12901.42288 | AI57: 13159.45134
B59: Interest Rate | D59: =Assumptions!I34 -> 0.045 | E59: =Assumptions!J34 -> 0.0525 | F59: =Assumptions!K34 -> 0.05 | G59: =Assumptions!L34 -> 0.045 | H59: =Assumptions!M34 -> 0.045 | I59: =Assumptions!N34 -> 0.045 | J59: =Assumptions!O34 -> 0.045 | K59: =Assumptions!P34 -> 0.045 | L59: =Assumptions!Q34 -> 0.045 | M59: =Assumptions!R34 -> 0.045 | N59: =Assumptions!S34 -> 0.045 | O59: =Assumptions!T34 -> 0.045 | P59: =Assumptions!U34 -> 0.045 | Q59: =Assumptions!V34 -> 0.045 | R59: =Assumptions!W34 -> 0.045 | S59: =Assumptions!X34 -> 0.045 | T59: =Assumptions!Y34 -> 0.045 | U59: =Assumptions!Z34 -> 0.045 | V59: =Assumptions!AA34 -> 0.045 | W59: =Assumptions!AB34 -> 0.045 | X59: =Assumptions!AC34 -> 0.045 | Y59: =Assumptions!AD34 -> 0.045 | Z59: =Assumptions!AE34 -> 0.045 | AA59: =Assumptions!AF34 -> 0.045 | AB59: =Assumptions!AG34 -> 0.045 | AC59: =Assumptions!AH34 -> 0.045 | AD59: =Assumptions!AI34 -> 0.045 | AE59: =Assumptions!AJ34 -> 0.045 | AF59: =Assumptions!AK34 -> 0.045 | AG59: =Assumptions!AL34 -> 0.045 | AH59: =Assumptions!AM34 -> 0.045 | AI59: =Assumptions!AN34 -> 0.045
B61: Annual Pre-Tax Cashflow | C61: =C55-SUM(C56:C56) -> 0 | D61: =D55-SUM(D56:D57) -> 0 | E61: -7422.45 | F61: -7560.249 | G61: -7693.45398 | H61: -7844.62306 | I61: -7998.815521 | J61: -8156.091831 | K61: -8316.513668 | L61: -8480.143941 | M61: -8647.04682 | N61: -8817.287756 | O61: -8990.933512 | P61: -9168.052182 | Q61: -9348.713225 | R61: -9532.98749 | S61: -9720.94724 | T61: -9912.666185 | U61: -10108.21951 | V61: -10307.6839 | W61: -10511.13758 | X61: -10718.66033 | Y61: -10930.33353 | Z61: -11146.24021 | AA61: -11366.46501 | AB61: -11591.09431 | AC61: -11820.2162 | AD61: -12053.92052 | AE61: -12292.29893 | AF61: -12535.44491 | AG61: -12783.45381 | AH61: -13036.42288 | AI61: -13294.45134
B64: HIDDEN RENTAL INFLATION CALCULATIONS
B67: Months Left in Construction | D67: =IF('Property Set Up'!D103="Yes",'Property Set Up'!D104,0) -> 12 | E67: =D67-12 -> 0 | F67: =E67-12 -> -12 | G67: -24 | H67: -36 | I67: -48 | J67: -60 | K67: -72 | L67: -84 | M67: -96 | N67: -108 | O67: -120 | P67: -132 | Q67: -144 | R67: -156 | S67: =R67-12 -> -168 | T67: -180 | U67: -192 | V67: -204 | W67: -216 | X67: -228 | Y67: -240 | Z67: -252 | AA67: -264 | AB67: -276 | AC67: -288 | AD67: -300 | AE67: -312 | AF67: -324 | AG67: -336 | AH67: -348 | AI67: -360
B68: Months in Construction | D68: =12-D69 -> 12 | E68: =12-E69 -> 0 | F68: 0 | G68: 0 | H68: 0 | I68: 0 | J68: 0 | K68: 0 | L68: 0 | M68: 0 | N68: 0 | O68: 0 | P68: 0 | Q68: 0 | R68: 0 | S68: 0 | T68: 0 | U68: 0 | V68: 0 | W68: 0 | X68: 0 | Y68: 0 | Z68: 0 | AA68: 0 | AB68: 0 | AC68: 0 | AD68: 0 | AE68: 0 | AF68: 0 | AG68: 0 | AH68: 0 | AI68: 0
B69: Months Operating | D69: =MAX(MIN(12-D67,12),0) -> 0 | E69: =MAX(MIN(12-E67,12),0) -> 12 | F69: 12 | G69: 12 | H69: 12 | I69: 12 | J69: 12 | K69: 12 | L69: 12 | M69: 12 | N69: 12 | O69: 12 | P69: 12 | Q69: 12 | R69: 12 | S69: =MAX(MIN(12-S67,12),0) -> 12 | T69: 12 | U69: 12 | V69: 12 | W69: 12 | X69: 12 | Y69: 12 | Z69: 12 | AA69: 12 | AB69: 12 | AC69: 12 | AD69: 12 | AE69: 12 | AF69: 12 | AG69: 12 | AH69: 12 | AI69: 12
B70: P+I Term | D70: ='Property Set Up'!$D39 -> 25 | E70: ='Property Set Up'!$D39 -> 25 | F70: ='Property Set Up'!$D39 -> 25 | G70: ='Property Set Up'!$D39 -> 25 | H70: ='Property Set Up'!$D39 -> 25 | I70: ='Property Set Up'!$D39 -> 25 | J70: ='Property Set Up'!$D39 -> 25 | K70: ='Property Set Up'!$D39 -> 25 | L70: ='Property Set Up'!$D39 -> 25 | M70: ='Property Set Up'!$D39 -> 25 | N70: ='Property Set Up'!$D39 -> 25 | O70: ='Property Set Up'!$D39 -> 25 | P70: ='Property Set Up'!$D39 -> 25 | Q70: ='Property Set Up'!$D39 -> 25 | R70: ='Property Set Up'!$D39 -> 25 | S70: ='Property Set Up'!$D39 -> 25 | T70: ='Property Set Up'!$D39 -> 25 | U70: ='Property Set Up'!$D39 -> 25 | V70: ='Property Set Up'!$D39 -> 25 | W70: ='Property Set Up'!$D39 -> 25 | X70: ='Property Set Up'!$D39 -> 25 | Y70: ='Property Set Up'!$D39 -> 25 | Z70: ='Property Set Up'!$D39 -> 25 | AA70: ='Property Set Up'!$D39 -> 25 | AB70: ='Property Set Up'!$D39 -> 25 | AC70: ='Property Set Up'!$D39 -> 25 | AD70: ='Property Set Up'!$D39 -> 25 | AE70: ='Property Set Up'!$D39 -> 25 | AF70: ='Property Set Up'!$D39 -> 25 | AG70: ='Property Set Up'!$D39 -> 25 | AH70: ='Property Set Up'!$D39 -> 25 | AI70: ='Property Set Up'!$D39 -> 25
B71: Full Sized Annual Rent | D71: ='Property Set Up'!$D$42*(52-'Property Set Up'!$D$43) -> 0 | E71: =D71*(1+D76) -> 0 | F71: =E71*(1+E76) -> 0 | G71: 0 | H71: 0 | I71: 0 | J71: 0 | K71: 0 | L71: 0 | M71: 0 | N71: 0 | O71: 0 | P71: 0 | Q71: 0 | R71: 0 | S71: =R71*(1+R76) -> 0 | T71: 0 | U71: 0 | V71: 0 | W71: 0 | X71: 0 | Y71: 0 | Z71: 0 | AA71: 0 | AB71: 0 | AC71: 0 | AD71: 0 | AE71: 0 | AF71: 0 | AG71: 0 | AH71: 0 | AI71: 0
B72: Full Sized Rental Inflation Based Operating Costs | D72: =IF('Property Set Up'!$D$58="Weeks",'Projection – Property #2'!D71*(1/(52-'Property Set Up'!$D$43))*1.15+'Property Set Up'!$D$57*1.15*'Projection – Property #2'!D71,'Property Set Up'!$D$57*1.15*'Projection – Property #2'!D71) -> 0 | E72: =IF('Property Set Up'!$D$58="Weeks",'Projection – Property #2'!E71*(1/(52-'Property Set Up'!$D$43))*1.15+'Property Set Up'!$D$57*1.15*'Projection – Property #2'!E71,'Property Set Up'!$D$57*1.15*'Projection – Property #2'!E71) -> 0 | F72: =IF('Property Set Up'!$D$58="Weeks",'Projection – Property #2'!F71*(1/(52-'Property Set Up'!$D$43))*1.15+'Property Set Up'!$D$57*1.15*'Projection – Property #2'!F71,'Property Set Up'!$D$57*1.15*'Projection – Property #2'!F71) -> 0 | G72: =IF('Property Set Up'!$D$58="Weeks",'Projection – Property #2'!G71*(1/(52-'Property Set Up'!$D$43))*1.15+'Property Set Up'!$D$57*1.15*'Projection – Property #2'!G71,'Property Set Up'!$D$57*1.15*'Projection – Property #2'!G71) -> 0 | H72: =IF('Property Set Up'!$D$58="Weeks",'Projection – Property #2'!H71*(1/(52-'Property Set Up'!$D$43))*1.15+'Property Set Up'!$D$57*1.15*'Projection – Property #2'!H71,'Property Set Up'!$D$57*1.15*'Projection – Property #2'!H71) -> 0 | I72: =IF('Property Set Up'!$D$58="Weeks",'Projection – Property #2'!I71*(1/(52-'Property Set Up'!$D$43))*1.15+'Property Set Up'!$D$57*1.15*'Projection – Property #2'!I71,'Property Set Up'!$D$57*1.15*'Projection – Property #2'!I71) -> 0 | J72: =IF('Property Set Up'!$D$58="Weeks",'Projection – Property #2'!J71*(1/(52-'Property Set Up'!$D$43))*1.15+'Property Set Up'!$D$57*1.15*'Projection – Property #2'!J71,'Property Set Up'!$D$57*1.15*'Projection – Property #2'!J71) -> 0 | K72: =IF('Property Set Up'!$D$58="Weeks",'Projection – Property #2'!K71*(1/(52-'Property Set Up'!$D$43))*1.15+'Property Set Up'!$D$57*1.15*'Projection – Property #2'!K71,'Property Set Up'!$D$57*1.15*'Projection – Property #2'!K71) -> 0 | L72: =IF('Property Set Up'!$D$58="Weeks",'Projection – Property #2'!L71*(1/(52-'Property Set Up'!$D$43))*1.15+'Property Set Up'!$D$57*1.15*'Projection – Property #2'!L71,'Property Set Up'!$D$57*1.15*'Projection – Property #2'!L71) -> 0 | M72: =IF('Property Set Up'!$D$58="Weeks",'Projection – Property #2'!M71*(1/(52-'Property Set Up'!$D$43))*1.15+'Property Set Up'!$D$57*1.15*'Projection – Property #2'!M71,'Property Set Up'!$D$57*1.15*'Projection – Property #2'!M71) -> 0 | N72: =IF('Property Set Up'!$D$58="Weeks",'Projection – Property #2'!N71*(1/(52-'Property Set Up'!$D$43))*1.15+'Property Set Up'!$D$57*1.15*'Projection – Property #2'!N71,'Property Set Up'!$D$57*1.15*'Projection – Property #2'!N71) -> 0 | O72: =IF('Property Set Up'!$D$58="Weeks",'Projection – Property #2'!O71*(1/(52-'Property Set Up'!$D$43))*1.15+'Property Set Up'!$D$57*1.15*'Projection – Property #2'!O71,'Property Set Up'!$D$57*1.15*'Projection – Property #2'!O71) -> 0 | P72: =IF('Property Set Up'!$D$58="Weeks",'Projection – Property #2'!P71*(1/(52-'Property Set Up'!$D$43))*1.15+'Property Set Up'!$D$57*1.15*'Projection – Property #2'!P71,'Property Set Up'!$D$57*1.15*'Projection – Property #2'!P71) -> 0 | Q72: =IF('Property Set Up'!$D$58="Weeks",'Projection – Property #2'!Q71*(1/(52-'Property Set Up'!$D$43))*1.15+'Property Set Up'!$D$57*1.15*'Projection – Property #2'!Q71,'Property Set Up'!$D$57*1.15*'Projection – Property #2'!Q71) -> 0 | R72: =IF('Property Set Up'!$D$58="Weeks",'Projection – Property #2'!R71*(1/(52-'Property Set Up'!$D$43))*1.15+'Property Set Up'!$D$57*1.15*'Projection – Property #2'!R71,'Property Set Up'!$D$57*1.15*'Projection – Property #2'!R71) -> 0 | S72: =IF('Property Set Up'!$D$58="Weeks",'Projection – Property #2'!S71*(1/(52-'Property Set Up'!$D$43))*1.15+'Property Set Up'!$D$57*1.15*'Projection – Property #2'!S71,'Property Set Up'!$D$57*1.15*'Projection – Property #2'!S71) -> 0 | T72: =IF('Property Set Up'!$D$58="Weeks",'Projection – Property #2'!T71*(1/(52-'Property Set Up'!$D$43))*1.15+'Property Set Up'!$D$57*1.15*'Projection – Property #2'!T71,'Property Set Up'!$D$57*1.15*'Projection – Property #2'!T71) -> 0 | U72: =IF('Property Set Up'!$D$58="Weeks",'Projection – Property #2'!U71*(1/(52-'Property Set Up'!$D$43))*1.15+'Property Set Up'!$D$57*1.15*'Projection – Property #2'!U71,'Property Set Up'!$D$57*1.15*'Projection – Property #2'!U71) -> 0 | V72: =IF('Property Set Up'!$D$58="Weeks",'Projection – Property #2'!V71*(1/(52-'Property Set Up'!$D$43))*1.15+'Property Set Up'!$D$57*1.15*'Projection – Property #2'!V71,'Property Set Up'!$D$57*1.15*'Projection – Property #2'!V71) -> 0 | W72: =IF('Property Set Up'!$D$58="Weeks",'Projection – Property #2'!W71*(1/(52-'Property Set Up'!$D$43))*1.15+'Property Set Up'!$D$57*1.15*'Projection – Property #2'!W71,'Property Set Up'!$D$57*1.15*'Projection – Property #2'!W71) -> 0 | X72: =IF('Property Set Up'!$D$58="Weeks",'Projection – Property #2'!X71*(1/(52-'Property Set Up'!$D$43))*1.15+'Property Set Up'!$D$57*1.15*'Projection – Property #2'!X71,'Property Set Up'!$D$57*1.15*'Projection – Property #2'!X71) -> 0 | Y72: =IF('Property Set Up'!$D$58="Weeks",'Projection – Property #2'!Y71*(1/(52-'Property Set Up'!$D$43))*1.15+'Property Set Up'!$D$57*1.15*'Projection – Property #2'!Y71,'Property Set Up'!$D$57*1.15*'Projection – Property #2'!Y71) -> 0 | Z72: =IF('Property Set Up'!$D$58="Weeks",'Projection – Property #2'!Z71*(1/(52-'Property Set Up'!$D$43))*1.15+'Property Set Up'!$D$57*1.15*'Projection – Property #2'!Z71,'Property Set Up'!$D$57*1.15*'Projection – Property #2'!Z71) -> 0 | AA72: =IF('Property Set Up'!$D$58="Weeks",'Projection – Property #2'!AA71*(1/(52-'Property Set Up'!$D$43))*1.15+'Property Set Up'!$D$57*1.15*'Projection – Property #2'!AA71,'Property Set Up'!$D$57*1.15*'Projection – Property #2'!AA71) -> 0 | AB72: =IF('Property Set Up'!$D$58="Weeks",'Projection – Property #2'!AB71*(1/(52-'Property Set Up'!$D$43))*1.15+'Property Set Up'!$D$57*1.15*'Projection – Property #2'!AB71,'Property Set Up'!$D$57*1.15*'Projection – Property #2'!AB71) -> 0 | AC72: =IF('Property Set Up'!$D$58="Weeks",'Projection – Property #2'!AC71*(1/(52-'Property Set Up'!$D$43))*1.15+'Property Set Up'!$D$57*1.15*'Projection – Property #2'!AC71,'Property Set Up'!$D$57*1.15*'Projection – Property #2'!AC71) -> 0 | AD72: =IF('Property Set Up'!$D$58="Weeks",'Projection – Property #2'!AD71*(1/(52-'Property Set Up'!$D$43))*1.15+'Property Set Up'!$D$57*1.15*'Projection – Property #2'!AD71,'Property Set Up'!$D$57*1.15*'Projection – Property #2'!AD71) -> 0 | AE72: =IF('Property Set Up'!$D$58="Weeks",'Projection – Property #2'!AE71*(1/(52-'Property Set Up'!$D$43))*1.15+'Property Set Up'!$D$57*1.15*'Projection – Property #2'!AE71,'Property Set Up'!$D$57*1.15*'Projection – Property #2'!AE71) -> 0 | AF72: =IF('Property Set Up'!$D$58="Weeks",'Projection – Property #2'!AF71*(1/(52-'Property Set Up'!$D$43))*1.15+'Property Set Up'!$D$57*1.15*'Projection – Property #2'!AF71,'Property Set Up'!$D$57*1.15*'Projection – Property #2'!AF71) -> 0 | AG72: =IF('Property Set Up'!$D$58="Weeks",'Projection – Property #2'!AG71*(1/(52-'Property Set Up'!$D$43))*1.15+'Property Set Up'!$D$57*1.15*'Projection – Property #2'!AG71,'Property Set Up'!$D$57*1.15*'Projection – Property #2'!AG71) -> 0 | AH72: =IF('Property Set Up'!$D$58="Weeks",'Projection – Property #2'!AH71*(1/(52-'Property Set Up'!$D$43))*1.15+'Property Set Up'!$D$57*1.15*'Projection – Property #2'!AH71,'Property Set Up'!$D$57*1.15*'Projection – Property #2'!AH71) -> 0 | AI72: =IF('Property Set Up'!$D$58="Weeks",'Projection – Property #2'!AI71*(1/(52-'Property Set Up'!$D$43))*1.15+'Property Set Up'!$D$57*1.15*'Projection – Property #2'!AI71,'Property Set Up'!$D$57*1.15*'Projection – Property #2'!AI71) -> 0
B73: Full Sized Inflation Based Operating Costs | D73: =IF('Property Set Up'!$D$58="Weeks",(SUM('Property Set Up'!$D$61:$D$68)-'Property Set Up'!D66)*(1+'Property Set Up'!$D77)^'Projection – Property #2'!D26,(SUM('Property Set Up'!$D$60:$D$68)-'Property Set Up'!D66)*(1+'Property Set Up'!D77)^'Projection – Property #2'!D26) -> 7122.5 | E73: =D73*(1+'Property Set Up'!$D$77) -> 7264.95 | F73: =E73*(1+'Property Set Up'!$D$77) -> 7410.249 | G73: =F73*(1+'Property Set Up'!$D$77) -> 7558.45398 | H73: =G73*(1+'Property Set Up'!$D$77) -> 7709.62306 | I73: =H73*(1+'Property Set Up'!$D$77) -> 7863.815521 | J73: =I73*(1+'Property Set Up'!$D$77) -> 8021.091831 | K73: =J73*(1+'Property Set Up'!$D$77) -> 8181.513668 | L73: =K73*(1+'Property Set Up'!$D$77) -> 8345.143941 | M73: =L73*(1+'Property Set Up'!$D$77) -> 8512.04682 | N73: =M73*(1+'Property Set Up'!$D$77) -> 8682.287756 | O73: =N73*(1+'Property Set Up'!$D$77) -> 8855.933512 | P73: =O73*(1+'Property Set Up'!$D$77) -> 9033.052182 | Q73: =P73*(1+'Property Set Up'!$D$77) -> 9213.713225 | R73: =Q73*(1+'Property Set Up'!$D$77) -> 9397.98749 | S73: =R73*(1+'Property Set Up'!$D$77) -> 9585.94724 | T73: =S73*(1+'Property Set Up'!$D$77) -> 9777.666185 | U73: =T73*(1+'Property Set Up'!$D$77) -> 9973.219508 | V73: =U73*(1+'Property Set Up'!$D$77) -> 10172.6839 | W73: =V73*(1+'Property Set Up'!$D$77) -> 10376.13758 | X73: =W73*(1+'Property Set Up'!$D$77) -> 10583.66033 | Y73: =X73*(1+'Property Set Up'!$D$77) -> 10795.33353 | Z73: =Y73*(1+'Property Set Up'!$D$77) -> 11011.24021 | AA73: =Z73*(1+'Property Set Up'!$D$77) -> 11231.46501 | AB73: =AA73*(1+'Property Set Up'!$D$77) -> 11456.09431 | AC73: =AB73*(1+'Property Set Up'!$D$77) -> 11685.2162 | AD73: =AC73*(1+'Property Set Up'!$D$77) -> 11918.92052 | AE73: =AD73*(1+'Property Set Up'!$D$77) -> 12157.29893 | AF73: =AE73*(1+'Property Set Up'!$D$77) -> 12400.44491 | AG73: =AF73*(1+'Property Set Up'!$D$77) -> 12648.45381 | AH73: =AG73*(1+'Property Set Up'!$D$77) -> 12901.42288 | AI73: =AH73*(1+'Property Set Up'!$D$77) -> 13159.45134
B74: Months Left At Short Term Rental Inflation Rate | D74: =Assumptions!E13*12 -> 36 | E74: =D74-D75 -> 24 | F74: 12 | G74: 0 | H74: -12 | I74: -24 | J74: -36 | K74: -48 | L74: -60 | M74: -72 | N74: -84 | O74: -96 | P74: -108 | Q74: -120 | R74: -132 | S74: =R74-R75 -> -144 | T74: -157 | U74: -171 | V74: -186 | W74: -202 | X74: -219 | Y74: -237 | Z74: -256 | AA74: -276 | AB74: -297 | AC74: -319 | AD74: -342 | AE74: -366 | AF74: -391 | AG74: -417 | AH74: -444 | AI74: -472
B75: Months in period | D75: 12 | E75: 12 | F75: 12 | G75: 12 | H75: 12 | I75: 12 | J75: 12 | K75: 12 | L75: 12 | M75: 12 | N75: 12 | O75: 12 | P75: 12 | Q75: 12 | R75: 12 | S75: 13 | T75: 14 | U75: 15 | V75: 16 | W75: 17 | X75: 18 | Y75: 19 | Z75: 20 | AA75: 21 | AB75: 22 | AC75: 23 | AD75: 24 | AE75: 25 | AF75: 26 | AG75: 27 | AH75: 28 | AI75: 29
B76: Rental Inflation Rate In Period | D76: =IF(D77>0,Assumptions!$E$12,Assumptions!$E$10) -> 0.06 | E76: =IF(E77>0,Assumptions!$E$12,Assumptions!$E$10) -> 0.06 | F76: =IF(F77>0,Assumptions!$E$12,Assumptions!$E$10) -> 0.06 | G76: =IF(G77>0,Assumptions!$E$12,Assumptions!$E$10) -> 0.047 | H76: =IF(H77>0,Assumptions!$E$12,Assumptions!$E$10) -> 0.047 | I76: =IF(I77>0,Assumptions!$E$12,Assumptions!$E$10) -> 0.047 | J76: =IF(J77>0,Assumptions!$E$12,Assumptions!$E$10) -> 0.047 | K76: =IF(K77>0,Assumptions!$E$12,Assumptions!$E$10) -> 0.047 | L76: =IF(L77>0,Assumptions!$E$12,Assumptions!$E$10) -> 0.047 | M76: =IF(M77>0,Assumptions!$E$12,Assumptions!$E$10) -> 0.047 | N76: =IF(N77>0,Assumptions!$E$12,Assumptions!$E$10) -> 0.047 | O76: =IF(O77>0,Assumptions!$E$12,Assumptions!$E$10) -> 0.047 | P76: =IF(P77>0,Assumptions!$E$12,Assumptions!$E$10) -> 0.047 | Q76: =IF(Q77>0,Assumptions!$E$12,Assumptions!$E$10) -> 0.047 | R76: =IF(R77>0,Assumptions!$E$12,Assumptions!$E$10) -> 0.047 | S76: =IF(S74>=12,(1+Assumptions!$E12)^(1/Assumptions!$E13)-1,IF(AND(S74<12,S74>0),(1+Assumptions!$E14)^('Projection – Property #2'!S74)*(1+Assumptions!$E11)^(12-'Projection – Property #2'!S74)-1,Assumptions!$E10)) -> 0.047 | T76: =IF(T74>=12,(1+Assumptions!$E12)^(1/Assumptions!$E13)-1,IF(AND(T74<12,T74>0),(1+Assumptions!$E14)^('Projection – Property #2'!T74)*(1+Assumptions!$E11)^(12-'Projection – Property #2'!T74)-1,Assumptions!$E10)) -> 0.047 | U76: =IF(U74>=12,(1+Assumptions!$E12)^(1/Assumptions!$E13)-1,IF(AND(U74<12,U74>0),(1+Assumptions!$E14)^('Projection – Property #2'!U74)*(1+Assumptions!$E11)^(12-'Projection – Property #2'!U74)-1,Assumptions!$E10)) -> 0.047 | V76: =IF(V74>=12,(1+Assumptions!$E12)^(1/Assumptions!$E13)-1,IF(AND(V74<12,V74>0),(1+Assumptions!$E14)^('Projection – Property #2'!V74)*(1+Assumptions!$E11)^(12-'Projection – Property #2'!V74)-1,Assumptions!$E10)) -> 0.047 | W76: =IF(W74>=12,(1+Assumptions!$E12)^(1/Assumptions!$E13)-1,IF(AND(W74<12,W74>0),(1+Assumptions!$E14)^('Projection – Property #2'!W74)*(1+Assumptions!$E11)^(12-'Projection – Property #2'!W74)-1,Assumptions!$E10)) -> 0.047 | X76: =IF(X74>=12,(1+Assumptions!$E12)^(1/Assumptions!$E13)-1,IF(AND(X74<12,X74>0),(1+Assumptions!$E14)^('Projection – Property #2'!X74)*(1+Assumptions!$E11)^(12-'Projection – Property #2'!X74)-1,Assumptions!$E10)) -> 0.047 | Y76: =IF(Y74>=12,(1+Assumptions!$E12)^(1/Assumptions!$E13)-1,IF(AND(Y74<12,Y74>0),(1+Assumptions!$E14)^('Projection – Property #2'!Y74)*(1+Assumptions!$E11)^(12-'Projection – Property #2'!Y74)-1,Assumptions!$E10)) -> 0.047 | Z76: =IF(Z74>=12,(1+Assumptions!$E12)^(1/Assumptions!$E13)-1,IF(AND(Z74<12,Z74>0),(1+Assumptions!$E14)^('Projection – Property #2'!Z74)*(1+Assumptions!$E11)^(12-'Projection – Property #2'!Z74)-1,Assumptions!$E10)) -> 0.047 | AA76: =IF(AA74>=12,(1+Assumptions!$E12)^(1/Assumptions!$E13)-1,IF(AND(AA74<12,AA74>0),(1+Assumptions!$E14)^('Projection – Property #2'!AA74)*(1+Assumptions!$E11)^(12-'Projection – Property #2'!AA74)-1,Assumptions!$E10)) -> 0.047 | AB76: =IF(AB74>=12,(1+Assumptions!$E12)^(1/Assumptions!$E13)-1,IF(AND(AB74<12,AB74>0),(1+Assumptions!$E14)^('Projection – Property #2'!AB74)*(1+Assumptions!$E11)^(12-'Projection – Property #2'!AB74)-1,Assumptions!$E10)) -> 0.047 | AC76: =IF(AC74>=12,(1+Assumptions!$E12)^(1/Assumptions!$E13)-1,IF(AND(AC74<12,AC74>0),(1+Assumptions!$E14)^('Projection – Property #2'!AC74)*(1+Assumptions!$E11)^(12-'Projection – Property #2'!AC74)-1,Assumptions!$E10)) -> 0.047 | AD76: =IF(AD74>=12,(1+Assumptions!$E12)^(1/Assumptions!$E13)-1,IF(AND(AD74<12,AD74>0),(1+Assumptions!$E14)^('Projection – Property #2'!AD74)*(1+Assumptions!$E11)^(12-'Projection – Property #2'!AD74)-1,Assumptions!$E10)) -> 0.047 | AE76: =IF(AE74>=12,(1+Assumptions!$E12)^(1/Assumptions!$E13)-1,IF(AND(AE74<12,AE74>0),(1+Assumptions!$E14)^('Projection – Property #2'!AE74)*(1+Assumptions!$E11)^(12-'Projection – Property #2'!AE74)-1,Assumptions!$E10)) -> 0.047 | AF76: =IF(AF74>=12,(1+Assumptions!$E12)^(1/Assumptions!$E13)-1,IF(AND(AF74<12,AF74>0),(1+Assumptions!$E14)^('Projection – Property #2'!AF74)*(1+Assumptions!$E11)^(12-'Projection – Property #2'!AF74)-1,Assumptions!$E10)) -> 0.047 | AG76: =IF(AG74>=12,(1+Assumptions!$E12)^(1/Assumptions!$E13)-1,IF(AND(AG74<12,AG74>0),(1+Assumptions!$E14)^('Projection – Property #2'!AG74)*(1+Assumptions!$E11)^(12-'Projection – Property #2'!AG74)-1,Assumptions!$E10)) -> 0.047 | AH76: =IF(AH74>=12,(1+Assumptions!$E12)^(1/Assumptions!$E13)-1,IF(AND(AH74<12,AH74>0),(1+Assumptions!$E14)^('Projection – Property #2'!AH74)*(1+Assumptions!$E11)^(12-'Projection – Property #2'!AH74)-1,Assumptions!$E10)) -> 0.047 | AI76: =IF(AI74>=12,(1+Assumptions!$E12)^(1/Assumptions!$E13)-1,IF(AND(AI74<12,AI74>0),(1+Assumptions!$E14)^('Projection – Property #2'!AI74)*(1+Assumptions!$E11)^(12-'Projection – Property #2'!AI74)-1,Assumptions!$E10)) -> 0.047
B77: Years of Above average inflation | D77: =Assumptions!E13 -> 3 | E77: =MAX(D77-1,0) -> 2 | F77: =MAX(E77-1,0) -> 1 | G77: 0 | H77: 0 | I77: 0 | J77: 0 | K77: 0 | L77: 0 | M77: 0 | N77: 0 | O77: 0 | P77: 0 | Q77: 0 | R77: 0
B78: Construction Financing Costs | D78: =(D68/12)*(D59*'Property Set Up'!$D106) -> 0 | E78: =(E68/12)*(E59*'Property Set Up'!$D106) -> 0 | F78: =(F68/12)*(F59*'Property Set Up'!$D106) -> 0 | G78: =(G68/12)*(G59*'Property Set Up'!$D106) -> 0 | H78: =(H68/12)*(H59*'Property Set Up'!$D106) -> 0 | I78: =(I68/12)*(I59*'Property Set Up'!$D106) -> 0 | J78: =(J68/12)*(J59*'Property Set Up'!$D106) -> 0 | K78: =(K68/12)*(K59*'Property Set Up'!$D106) -> 0 | L78: =(L68/12)*(L59*'Property Set Up'!$D106) -> 0 | M78: =(M68/12)*(M59*'Property Set Up'!$D106) -> 0 | N78: =(N68/12)*(N59*'Property Set Up'!$D106) -> 0 | O78: =(O68/12)*(O59*'Property Set Up'!$D106) -> 0 | P78: =(P68/12)*(P59*'Property Set Up'!$D106) -> 0 | Q78: =(Q68/12)*(Q59*'Property Set Up'!$D106) -> 0 | R78: =(R68/12)*(R59*'Property Set Up'!$D106) -> 0 | S78: =(S68/12)*(S59*'Property Set Up'!$D106) -> 0 | T78: =(T68/12)*(T59*'Property Set Up'!$D106) -> 0 | U78: =(U68/12)*(U59*'Property Set Up'!$D106) -> 0 | V78: =(V68/12)*(V59*'Property Set Up'!$D106) -> 0 | W78: =(W68/12)*(W59*'Property Set Up'!$D106) -> 0 | X78: =(X68/12)*(X59*'Property Set Up'!$D106) -> 0 | Y78: =(Y68/12)*(Y59*'Property Set Up'!$D106) -> 0 | Z78: =(Z68/12)*(Z59*'Property Set Up'!$D106) -> 0 | AA78: =(AA68/12)*(AA59*'Property Set Up'!$D106) -> 0 | AB78: =(AB68/12)*(AB59*'Property Set Up'!$D106) -> 0 | AC78: =(AC68/12)*(AC59*'Property Set Up'!$D106) -> 0 | AD78: =(AD68/12)*(AD59*'Property Set Up'!$D106) -> 0 | AE78: =(AE68/12)*(AE59*'Property Set Up'!$D106) -> 0 | AF78: =(AF68/12)*(AF59*'Property Set Up'!$D106) -> 0 | AG78: =(AG68/12)*(AG59*'Property Set Up'!$D106) -> 0 | AH78: =(AH68/12)*(AH59*'Property Set Up'!$D106) -> 0 | AI78: =(AI68/12)*(AI59*'Property Set Up'!$D106) -> 0
B79: Operating Financing Costs | D79: =IFERROR(IF(D45="Interest Only",D40*D59/12,-PMT(D59/12,D46*12,D40,,0))*D69,0) -> 0 | E79: 157.5 | F79: 150 | G79: 135 | H79: 135 | I79: 135 | J79: 135 | K79: 135 | L79: 135 | M79: 135 | N79: 135 | O79: 135 | P79: 135 | Q79: 135 | R79: 135 | S79: 135 | T79: 135 | U79: 135 | V79: 135 | W79: 135 | X79: 135 | Y79: 135 | Z79: 135 | AA79: 135 | AB79: 135 | AC79: 135 | AD79: 135 | AE79: 135 | AF79: 135 | AG79: 135 | AH79: 135 | AI79: 135
B82: HIDDEN INTEREST DEDUCTIBILITY CALCULATIONS
B85: Start Calendar Year | D85: =DATE(YEAR('Property Set Up'!C6),MONTH('Property Set Up'!C6)+1,1) -> 2022-05-01 | E85: =D86+1 -> 2023-05-01 | F85: 2024-05-01 | G85: 2025-05-01 | H85: 2026-05-01 | I85: 2027-05-01 | J85: 2028-05-01 | K85: 2029-05-01 | L85: 2030-05-01 | M85: 2031-05-01 | N85: 2032-05-01 | O85: 2033-05-01 | P85: 2034-05-01 | Q85: 2035-05-01 | R85: 2036-05-01 | S85: 2037-05-01 | T85: 2038-05-01 | U85: 2039-05-01 | V85: 2040-05-01 | W85: 2041-05-01 | X85: 2042-05-01 | Y85: 2043-05-01 | Z85: 2044-05-01 | AA85: 2045-05-01 | AB85: 2046-05-01 | AC85: 2047-05-01 | AD85: 2048-05-01 | AE85: 2049-05-01 | AF85: 2050-05-01 | AG85: 2051-05-01 | AH85: 2052-05-01 | AI85: 2053-05-01
B86: End Calendar Year | D86: =DATE(YEAR(D85)+1,MONTH(D85),DAY(D85)-1) -> 2023-04-30 | E86: 2024-04-30 | F86: 2025-04-30 | G86: 2026-04-30 | H86: 2027-04-30 | I86: 2028-04-30 | J86: 2029-04-30 | K86: 2030-04-30 | L86: 2031-04-30 | M86: 2032-04-30 | N86: 2033-04-30 | O86: 2034-04-30 | P86: 2035-04-30 | Q86: 2036-04-30 | R86: 2037-04-30 | S86: 2038-04-30 | T86: 2039-04-30 | U86: 2040-04-30 | V86: 2041-04-30 | W86: 2042-04-30 | X86: 2043-04-30 | Y86: 2044-04-30 | Z86: 2045-04-30 | AA86: 2046-04-30 | AB86: 2047-04-30 | AC86: 2048-04-30 | AD86: 2049-04-30 | AE86: 2050-04-30 | AF86: 2051-04-30 | AG86: 2052-04-30 | AH86: 2053-04-30 | AI86: 2054-04-30
B88: Middle Tax Year | D88: =IF(MONTH(D85)>3,YEAR(D86),YEAR(D85)) -> 2023 | E88: 2024 | F88: 2025 | G88: 2026 | H88: 2027 | I88: 2028 | J88: 2029 | K88: 2030 | L88: 2031 | M88: 2032 | N88: 2033 | O88: 2034 | P88: 2035 | Q88: 2036 | R88: 2037 | S88: 2038 | T88: 2039 | U88: 2040 | V88: 2041 | W88: 2042 | X88: 2043 | Y88: 2044 | Z88: 2045 | AA88: 2046 | AB88: 2047 | AC88: 2048 | AD88: 2049 | AE88: 2050 | AF88: 2051 | AG88: 2052 | AH88: 2053 | AI88: 2054
B89: Months in First Tax Period | D89: =IF(AND(YEAR(D85)=2021,MONTH(D85)<10),10-MONTH(D85),IF(MONTH(D85)>3,16-MONTH(D85),4-MONTH(D85))) -> 11 | E89: =IF(MONTH(E85)>3,16-MONTH(E85),4-MONTH(E85)) -> 11 | F89: 11 | G89: 11 | H89: 11 | I89: 11 | J89: 11 | K89: 11 | L89: 11 | M89: 11 | N89: 11 | O89: 11 | P89: 11 | Q89: 11 | R89: 11 | S89: 11 | T89: 11 | U89: 11 | V89: 11 | W89: 11 | X89: 11 | Y89: 11 | Z89: 11 | AA89: 11 | AB89: 11 | AC89: 11 | AD89: 11 | AE89: 11 | AF89: 11 | AG89: 11 | AH89: 11 | AI89: 11
B90: Months in 2nd Tax Period | D90: =12-D89 -> 1 | E90: 1 | F90: 1 | G90: 1 | H90: 1 | I90: 1 | J90: 1 | K90: 1 | L90: 1 | M90: 1 | N90: 1 | O90: 1 | P90: 1 | Q90: 1 | R90: 1 | S90: 1 | T90: 1 | U90: 1 | V90: 1 | W90: 1 | X90: 1 | Y90: 1 | Z90: 1 | AA90: 1 | AB90: 1 | AC90: 1 | AD90: 1 | AE90: 1 | AF90: 1 | AG90: 1 | AH90: 1 | AI90: 1
B92: P+I Starting Period (Months) – First Tax Period | D92: =IF(D67>=D89,0,1) -> 0 | E92: =IF(E67>=E89,0,D95+1) -> 1
B93: P+I Ending Period (Months) – First Tax Period | D93: =IF(D89>=D67,D89-D67,0) -> 0 | E93: =IF(E89>E67,E89-E67,0) -> 11
B94: P+I Starting Period (Months) – Second Tax Period | D94: =IF(D67>=12,0,D93+1) -> 0 | E94: =IF(E90=0,0,IF(E67=12,0,E93+1)) -> 12
B95: P+I Ending Period (Months) – Second Tax Period | D95: =IF(D67>=12,0,12-D67) -> 0 | E95: =IF(E94=0,0,12-E67) -> 12
B97: Interest in first half of the tax year | D97: =IF('Property Set Up'!$D38="Interest Only",D105+D106,D105+D107) -> 0 | E97: =IF('Property Set Up'!$D38="Interest Only",E105+E106,E105+E107) -> 144.375 | F97: =IF('Property Set Up'!$D38="Interest only",F59*'Property Set Up'!$D28*('Projection – Property #2'!F89/12),IFERROR(-CUMIPMT(F59/12,'Property Set Up'!$D39*12,'Property Set Up'!$D28,F27,F27+F89-1,0),0)) -> 137.5 | G97: =IFERROR(IF(G45="Interest Only",(G40*G59)*G89/12,-CUMIPMT(G59/12,12*G46,G40,1,G89,0)),0) -> 123.75 | H97: 123.75 | I97: 123.75 | J97: 123.75 | K97: 123.75 | L97: 123.75 | M97: 123.75 | N97: 123.75 | O97: 123.75 | P97: 123.75 | Q97: 123.75 | R97: 123.75 | S97: 123.75 | T97: 123.75 | U97: 123.75 | V97: 123.75 | W97: 123.75 | X97: 123.75 | Y97: 123.75 | Z97: 123.75 | AA97: 123.75 | AB97: 123.75 | AC97: 123.75 | AD97: 123.75 | AE97: 123.75 | AF97: 123.75 | AG97: 123.75 | AH97: 123.75 | AI97: 123.75
B98: Interest in second half of the tax year | D98: =IF('Property Set Up'!$D38="Interest Only",D114+D115,D114+D116) -> 0 | E98: =IF('Property Set Up'!$D38="Interest Only",E114+E115,E114+E116) -> 13.125 | F98: =IF('Property Set Up'!$D38="Interest only",F59*'Property Set Up'!$D28*(F90/12),IFERROR(-CUMIPMT(F59/12,'Property Set Up'!$D39*12,'Property Set Up'!$D28,F27+F89,F28,0),0)) -> 12.5 | G98: =IFERROR(IF(G45="Interest Only",(G40*G59)*G90/12,IFERROR(-CUMIPMT(G59/12,12*G46,G40,G89+1,12,0),0)),0) -> 11.25 | H98: 11.25 | I98: 11.25 | J98: 11.25 | K98: 11.25 | L98: 11.25 | M98: 11.25 | N98: 11.25 | O98: 11.25 | P98: 11.25 | Q98: 11.25 | R98: 11.25 | S98: 11.25 | T98: 11.25 | U98: 11.25 | V98: 11.25 | W98: 11.25 | X98: 11.25 | Y98: 11.25 | Z98: 11.25 | AA98: 11.25 | AB98: 11.25 | AC98: 11.25 | AD98: 11.25 | AE98: 11.25 | AF98: 11.25 | AG98: 11.25 | AH98: 11.25 | AI98: 11.25
B100: 1st Half Months in Period | D100: =D89 -> 11 | E100: =E89 -> 11
B101: 1st Half Construction | D101: =IF(D103>=1,D100,D100+D103) -> 11 | E101: =IF(D112>E100,E100,IF(D112=0,0,D112)) -> 0
B102: 1st Half Operating | D102: =D100-D101 -> 0 | E102: =E100-E101 -> 11
B103: 1st Half Residual | D103: =D67-D100 -> 1 | E103: =D112-E101 -> 0
B105: 1st Half (Interest Resulting From Construction) | D105: ='Property Set Up'!$D106*D59*(D101/12) -> 0 | E105: ='Property Set Up'!$D106*E59*(E101/12) -> 0
B106: 1st Half interest if i/o | D106: =(D102/12)*('Property Set Up'!$D28*D59) -> 0 | E106: =(E102/12)*('Property Set Up'!$D28*E59) -> 144.375
B107: 1st Half interest if P+I | D107: =IFERROR(-CUMIPMT(D59/12,'Property Set Up'!$D39*12,'Property Set Up'!$D28,D92,D93,0),0) -> 0 | E107: =IFERROR(-CUMIPMT(E59/12,'Property Set Up'!$D39*12,'Property Set Up'!$D28,E92,E93,0),0) -> 143.1919238
B109: 2nd Half Months in Period | D109: =D90 -> 1 | E109: =E90 -> 1
B110: 2nd Half Construction | D110: =IF(D103>=D109,D109,IF(D103>0,D103,0)) -> 1 | E110: =E103 -> 0
B111: 2nd Half Operating | D111: =D109-D110 -> 0 | E111: =E109-E110 -> 1
B112: 2nd Half Residual | D112: =IF(D103-D109<1,0,D103-D109) -> 0 | E112: =E109-SUM(E110:E111) -> 0
B114: 2nd Half (Interest Resulting From Construction) | D114: ='Property Set Up'!$D106*D59*(D110/12) -> 0 | E114: ='Property Set Up'!$D106*E59*(E110/12) -> 0
B115: 2nd Half interest if i/o | D115: =(D111/12)*('Property Set Up'!$D28*D59) -> 0 | E115: =(E111/12)*('Property Set Up'!$D28*E59) -> 13.125
B116: 2nd Half interest if P+I | D116: =IFERROR(-CUMIPMT(D59/12,'Property Set Up'!$D39*12,'Property Set Up'!$D28,D94,D95,0),0) -> 0 | E116: =IFERROR(-CUMIPMT(E59/12,'Property Set Up'!$D39*12,'Property Set Up'!$D28,E94,E95,0),0) -> 12.88630078
B118: Tax Treatment First Tax Year | D118: =IF('Property Set Up'!D21="NB",100%,IF(AND(YEAR(D85)=2021,MONTH(D85)<10),100%,IF('Property Set Up'!D21="Full",0,IF(D88=2022,100%,IF(D88=2023,75%,IF(D88=2024,50%,IF(D88=2025,25%,0%))))))) -> 1 | E118: =IF('Property Set Up'!$D21="NB",100%,IF('Property Set Up'!$D21="full",0,IF(E88=2022,100%,IF(E88=2023,75%,IF(E88=2024,50%,IF(E88=2025,25%,0%)))))) -> 1 | F118: =IF('Property Set Up'!$D21="NB",100%,IF('Property Set Up'!$D21="full",0,IF(F88=2022,100%,IF(F88=2023,75%,IF(F88=2024,50%,IF(F88=2025,25%,0%)))))) -> 1 | G118: =IF('Property Set Up'!$D21="NB",100%,IF('Property Set Up'!$D21="full",0,IF(G88=2022,100%,IF(G88=2023,75%,IF(G88=2024,50%,IF(G88=2025,25%,0%)))))) -> 1 | H118: =IF('Property Set Up'!$D21="NB",100%,IF('Property Set Up'!$D21="full",0,IF(H88=2022,100%,IF(H88=2023,75%,IF(H88=2024,50%,IF(H88=2025,25%,0%)))))) -> 1 | I118: =IF('Property Set Up'!$D21="NB",100%,IF('Property Set Up'!$D21="full",0,IF(I88=2022,100%,IF(I88=2023,75%,IF(I88=2024,50%,IF(I88=2025,25%,0%)))))) -> 1 | J118: =IF('Property Set Up'!$D21="NB",100%,IF('Property Set Up'!$D21="full",0,IF(J88=2022,100%,IF(J88=2023,75%,IF(J88=2024,50%,IF(J88=2025,25%,0%)))))) -> 1 | K118: =IF('Property Set Up'!$D21="NB",100%,IF('Property Set Up'!$D21="full",0,IF(K88=2022,100%,IF(K88=2023,75%,IF(K88=2024,50%,IF(K88=2025,25%,0%)))))) -> 1 | L118: =IF('Property Set Up'!$D21="NB",100%,IF('Property Set Up'!$D21="full",0,IF(L88=2022,100%,IF(L88=2023,75%,IF(L88=2024,50%,IF(L88=2025,25%,0%)))))) -> 1 | M118: =IF('Property Set Up'!$D21="NB",100%,IF('Property Set Up'!$D21="full",0,IF(M88=2022,100%,IF(M88=2023,75%,IF(M88=2024,50%,IF(M88=2025,25%,0%)))))) -> 1 | N118: =IF('Property Set Up'!$D21="NB",100%,IF('Property Set Up'!$D21="full",0,IF(N88=2022,100%,IF(N88=2023,75%,IF(N88=2024,50%,IF(N88=2025,25%,0%)))))) -> 1 | O118: =IF('Property Set Up'!$D21="NB",100%,IF('Property Set Up'!$D21="full",0,IF(O88=2022,100%,IF(O88=2023,75%,IF(O88=2024,50%,IF(O88=2025,25%,0%)))))) -> 1 | P118: =IF('Property Set Up'!$D21="NB",100%,IF('Property Set Up'!$D21="full",0,IF(P88=2022,100%,IF(P88=2023,75%,IF(P88=2024,50%,IF(P88=2025,25%,0%)))))) -> 1 | Q118: =IF('Property Set Up'!$D21="NB",100%,IF('Property Set Up'!$D21="full",0,IF(Q88=2022,100%,IF(Q88=2023,75%,IF(Q88=2024,50%,IF(Q88=2025,25%,0%)))))) -> 1 | R118: =IF('Property Set Up'!$D21="NB",100%,IF('Property Set Up'!$D21="full",0,IF(R88=2022,100%,IF(R88=2023,75%,IF(R88=2024,50%,IF(R88=2025,25%,0%)))))) -> 1 | S118: =IF('Property Set Up'!$D21="NB",100%,IF('Property Set Up'!$D21="full",0,IF(S88=2022,100%,IF(S88=2023,75%,IF(S88=2024,50%,IF(S88=2025,25%,0%)))))) -> 1 | T118: =IF('Property Set Up'!$D21="NB",100%,IF('Property Set Up'!$D21="full",0,IF(T88=2022,100%,IF(T88=2023,75%,IF(T88=2024,50%,IF(T88=2025,25%,0%)))))) -> 1 | U118: =IF('Property Set Up'!$D21="NB",100%,IF('Property Set Up'!$D21="full",0,IF(U88=2022,100%,IF(U88=2023,75%,IF(U88=2024,50%,IF(U88=2025,25%,0%)))))) -> 1 | V118: =IF('Property Set Up'!$D21="NB",100%,IF('Property Set Up'!$D21="full",0,IF(V88=2022,100%,IF(V88=2023,75%,IF(V88=2024,50%,IF(V88=2025,25%,0%)))))) -> 1 | W118: =IF('Property Set Up'!$D21="NB",100%,IF('Property Set Up'!$D21="full",0,IF(W88=2022,100%,IF(W88=2023,75%,IF(W88=2024,50%,IF(W88=2025,25%,0%)))))) -> 1 | X118: =IF('Property Set Up'!$D21="NB",100%,IF('Property Set Up'!$D21="full",0,IF(X88=2022,100%,IF(X88=2023,75%,IF(X88=2024,50%,IF(X88=2025,25%,0%)))))) -> 1 | Y118: =IF('Property Set Up'!$D21="NB",100%,IF('Property Set Up'!$D21="full",0,IF(Y88=2022,100%,IF(Y88=2023,75%,IF(Y88=2024,50%,IF(Y88=2025,25%,0%)))))) -> 1 | Z118: =IF('Property Set Up'!$D21="NB",100%,IF('Property Set Up'!$D21="full",0,IF(Z88=2022,100%,IF(Z88=2023,75%,IF(Z88=2024,50%,IF(Z88=2025,25%,0%)))))) -> 1 | AA118: =IF('Property Set Up'!$D21="NB",100%,IF('Property Set Up'!$D21="full",0,IF(AA88=2022,100%,IF(AA88=2023,75%,IF(AA88=2024,50%,IF(AA88=2025,25%,0%)))))) -> 1 | AB118: =IF('Property Set Up'!$D21="NB",100%,IF('Property Set Up'!$D21="full",0,IF(AB88=2022,100%,IF(AB88=2023,75%,IF(AB88=2024,50%,IF(AB88=2025,25%,0%)))))) -> 1 | AC118: =IF('Property Set Up'!$D21="NB",100%,IF('Property Set Up'!$D21="full",0,IF(AC88=2022,100%,IF(AC88=2023,75%,IF(AC88=2024,50%,IF(AC88=2025,25%,0%)))))) -> 1 | AD118: =IF('Property Set Up'!$D21="NB",100%,IF('Property Set Up'!$D21="full",0,IF(AD88=2022,100%,IF(AD88=2023,75%,IF(AD88=2024,50%,IF(AD88=2025,25%,0%)))))) -> 1 | AE118: =IF('Property Set Up'!$D21="NB",100%,IF('Property Set Up'!$D21="full",0,IF(AE88=2022,100%,IF(AE88=2023,75%,IF(AE88=2024,50%,IF(AE88=2025,25%,0%)))))) -> 1 | AF118: =IF('Property Set Up'!$D21="NB",100%,IF('Property Set Up'!$D21="full",0,IF(AF88=2022,100%,IF(AF88=2023,75%,IF(AF88=2024,50%,IF(AF88=2025,25%,0%)))))) -> 1 | AG118: =IF('Property Set Up'!$D21="NB",100%,IF('Property Set Up'!$D21="full",0,IF(AG88=2022,100%,IF(AG88=2023,75%,IF(AG88=2024,50%,IF(AG88=2025,25%,0%)))))) -> 1 | AH118: =IF('Property Set Up'!$D21="NB",100%,IF('Property Set Up'!$D21="full",0,IF(AH88=2022,100%,IF(AH88=2023,75%,IF(AH88=2024,50%,IF(AH88=2025,25%,0%)))))) -> 1 | AI118: =IF('Property Set Up'!$D21="NB",100%,IF('Property Set Up'!$D21="full",0,IF(AI88=2022,100%,IF(AI88=2023,75%,IF(AI88=2024,50%,IF(AI88=2025,25%,0%)))))) -> 1
B119: Tax Treatment 2nd Tax Year | D119: =IF('Property Set Up'!D21="NB",100%,IF('Property Set Up'!D21="Full",0,IF(AND(YEAR(D85)=2021,MONTH(D85)<10),75%,IF(D88=2022,75%,IF(D88=2023,50%,IF(D88=2024,25%,IF(D88=2025,0%,0%))))))) -> 1 | E119: =IF('Property Set Up'!$D21="NB",100%,IF('Property Set Up'!$D21="Full",0,IF(E88=2022,75%,IF(E88=2023,50%,IF(E88=2024,25%,0))))) -> 1 | F119: =IF('Property Set Up'!$D21="NB",100%,IF('Property Set Up'!$D21="Full",0,IF(F88=2022,75%,IF(F88=2023,50%,IF(F88=2024,25%,0))))) -> 1 | G119: =IF('Property Set Up'!$D21="NB",100%,IF('Property Set Up'!$D21="Full",0,IF(G88=2022,75%,IF(G88=2023,50%,IF(G88=2024,25%,0))))) -> 1 | H119: =IF('Property Set Up'!$D21="NB",100%,IF('Property Set Up'!$D21="Full",0,IF(H88=2022,75%,IF(H88=2023,50%,IF(H88=2024,25%,0))))) -> 1 | I119: =IF('Property Set Up'!$D21="NB",100%,IF('Property Set Up'!$D21="Full",0,IF(I88=2022,75%,IF(I88=2023,50%,IF(I88=2024,25%,0))))) -> 1 | J119: =IF('Property Set Up'!$D21="NB",100%,IF('Property Set Up'!$D21="Full",0,IF(J88=2022,75%,IF(J88=2023,50%,IF(J88=2024,25%,0))))) -> 1 | K119: =IF('Property Set Up'!$D21="NB",100%,IF('Property Set Up'!$D21="Full",0,IF(K88=2022,75%,IF(K88=2023,50%,IF(K88=2024,25%,0))))) -> 1 | L119: =IF('Property Set Up'!$D21="NB",100%,IF('Property Set Up'!$D21="Full",0,IF(L88=2022,75%,IF(L88=2023,50%,IF(L88=2024,25%,0))))) -> 1 | M119: =IF('Property Set Up'!$D21="NB",100%,IF('Property Set Up'!$D21="Full",0,IF(M88=2022,75%,IF(M88=2023,50%,IF(M88=2024,25%,0))))) -> 1 | N119: =IF('Property Set Up'!$D21="NB",100%,IF('Property Set Up'!$D21="Full",0,IF(N88=2022,75%,IF(N88=2023,50%,IF(N88=2024,25%,0))))) -> 1 | O119: =IF('Property Set Up'!$D21="NB",100%,IF('Property Set Up'!$D21="Full",0,IF(O88=2022,75%,IF(O88=2023,50%,IF(O88=2024,25%,0))))) -> 1 | P119: =IF('Property Set Up'!$D21="NB",100%,IF('Property Set Up'!$D21="Full",0,IF(P88=2022,75%,IF(P88=2023,50%,IF(P88=2024,25%,0))))) -> 1 | Q119: =IF('Property Set Up'!$D21="NB",100%,IF('Property Set Up'!$D21="Full",0,IF(Q88=2022,75%,IF(Q88=2023,50%,IF(Q88=2024,25%,0))))) -> 1 | R119: =IF('Property Set Up'!$D21="NB",100%,IF('Property Set Up'!$D21="Full",0,IF(R88=2022,75%,IF(R88=2023,50%,IF(R88=2024,25%,0))))) -> 1 | S119: =IF('Property Set Up'!$D21="NB",100%,IF('Property Set Up'!$D21="Full",0,IF(S88=2022,75%,IF(S88=2023,50%,IF(S88=2024,25%,0))))) -> 1 | T119: =IF('Property Set Up'!$D21="NB",100%,IF('Property Set Up'!$D21="Full",0,IF(T88=2022,75%,IF(T88=2023,50%,IF(T88=2024,25%,0))))) -> 1 | U119: =IF('Property Set Up'!$D21="NB",100%,IF('Property Set Up'!$D21="Full",0,IF(U88=2022,75%,IF(U88=2023,50%,IF(U88=2024,25%,0))))) -> 1 | V119: =IF('Property Set Up'!$D21="NB",100%,IF('Property Set Up'!$D21="Full",0,IF(V88=2022,75%,IF(V88=2023,50%,IF(V88=2024,25%,0))))) -> 1 | W119: =IF('Property Set Up'!$D21="NB",100%,IF('Property Set Up'!$D21="Full",0,IF(W88=2022,75%,IF(W88=2023,50%,IF(W88=2024,25%,0))))) -> 1 | X119: =IF('Property Set Up'!$D21="NB",100%,IF('Property Set Up'!$D21="Full",0,IF(X88=2022,75%,IF(X88=2023,50%,IF(X88=2024,25%,0))))) -> 1 | Y119: =IF('Property Set Up'!$D21="NB",100%,IF('Property Set Up'!$D21="Full",0,IF(Y88=2022,75%,IF(Y88=2023,50%,IF(Y88=2024,25%,0))))) -> 1 | Z119: =IF('Property Set Up'!$D21="NB",100%,IF('Property Set Up'!$D21="Full",0,IF(Z88=2022,75%,IF(Z88=2023,50%,IF(Z88=2024,25%,0))))) -> 1 | AA119: =IF('Property Set Up'!$D21="NB",100%,IF('Property Set Up'!$D21="Full",0,IF(AA88=2022,75%,IF(AA88=2023,50%,IF(AA88=2024,25%,0))))) -> 1 | AB119: =IF('Property Set Up'!$D21="NB",100%,IF('Property Set Up'!$D21="Full",0,IF(AB88=2022,75%,IF(AB88=2023,50%,IF(AB88=2024,25%,0))))) -> 1 | AC119: =IF('Property Set Up'!$D21="NB",100%,IF('Property Set Up'!$D21="Full",0,IF(AC88=2022,75%,IF(AC88=2023,50%,IF(AC88=2024,25%,0))))) -> 1 | AD119: =IF('Property Set Up'!$D21="NB",100%,IF('Property Set Up'!$D21="Full",0,IF(AD88=2022,75%,IF(AD88=2023,50%,IF(AD88=2024,25%,0))))) -> 1 | AE119: =IF('Property Set Up'!$D21="NB",100%,IF('Property Set Up'!$D21="Full",0,IF(AE88=2022,75%,IF(AE88=2023,50%,IF(AE88=2024,25%,0))))) -> 1 | AF119: =IF('Property Set Up'!$D21="NB",100%,IF('Property Set Up'!$D21="Full",0,IF(AF88=2022,75%,IF(AF88=2023,50%,IF(AF88=2024,25%,0))))) -> 1 | AG119: =IF('Property Set Up'!$D21="NB",100%,IF('Property Set Up'!$D21="Full",0,IF(AG88=2022,75%,IF(AG88=2023,50%,IF(AG88=2024,25%,0))))) -> 1 | AH119: =IF('Property Set Up'!$D21="NB",100%,IF('Property Set Up'!$D21="Full",0,IF(AH88=2022,75%,IF(AH88=2023,50%,IF(AH88=2024,25%,0))))) -> 1 | AI119: =IF('Property Set Up'!$D21="NB",100%,IF('Property Set Up'!$D21="Full",0,IF(AI88=2022,75%,IF(AI88=2023,50%,IF(AI88=2024,25%,0))))) -> 1
B122: TAX
B125: Tax Deductible Finance Costs | C125: =C56 -> 0 | D125: =(D97*D118)+(D98*D119) -> 0 | E125: 157.5 | F125: 150 | G125: 135 | H125: 135 | I125: 135 | J125: 135 | K125: 135 | L125: 135 | M125: 135 | N125: 135 | O125: 135 | P125: 135 | Q125: 135 | R125: 135 | S125: 135 | T125: 135 | U125: 135 | V125: 135 | W125: 135 | X125: 135 | Y125: 135 | Z125: 135 | AA125: 135 | AB125: 135 | AC125: 135 | AD125: 135 | AE125: 135 | AF125: 135 | AG125: 135 | AH125: 135 | AI125: 135
B126: Tax Deductible Operating Costs | C126: 0 | D126: =D57 -> 0 | E126: 7264.95 | F126: 7410.249 | G126: 7558.45398 | H126: 7709.62306 | I126: 7863.815521 | J126: 8021.091831 | K126: 8181.513668 | L126: 8345.143941 | M126: 8512.04682 | N126: 8682.287756 | O126: 8855.933512 | P126: 9033.052182 | Q126: 9213.713225 | R126: 9397.98749 | S126: 9585.94724 | T126: 9777.666185 | U126: 9973.219508 | V126: 10172.6839 | W126: 10376.13758 | X126: 10583.66033 | Y126: 10795.33353 | Z126: 11011.24021 | AA126: 11231.46501 | AB126: 11456.09431 | AC126: 11685.2162 | AD126: 11918.92052 | AE126: 12157.29893 | AF126: 12400.44491 | AG126: 12648.45381 | AH126: 12901.42288 | AI126: 13159.45134
B128: Operating Months | D128: =IF((12-D67)<0,0,IF((12-D67)>12,12,12-D67)) -> 0 | E128: =IF((12-E67)<0,0,IF((12-E67)>12,12,12-E67)) -> 12 | F128: =IF((12-F67)<0,0,IF((12-F67)>12,12,12-F67)) -> 12 | G128: 12 | H128: 12 | I128: 12 | J128: 12 | K128: 12 | L128: 12 | M128: 12 | N128: 12 | O128: 12 | P128: 12 | Q128: 12 | R128: 12 | S128: =IF((12-S67)<0,0,IF((12-S67)>12,12,12-S67)) -> 12 | T128: 12 | U128: 12 | V128: 12 | W128: 12 | X128: 12 | Y128: 12 | Z128: 12 | AA128: 12 | AB128: 12 | AC128: 12 | AD128: 12 | AE128: 12 | AF128: 12 | AG128: 12 | AH128: 12 | AI128: 12
B129: Chattel Value | C129: 0 | D129: =IF(D128=0,0,'Property Set Up'!D91) -> 0 | E129: =IF(D129>0,D129-D130,IF(E128>0,'Property Set Up'!D91,0)) -> 45000 | F129: =IF(E128=0,'Property Set Up'!D91,E129-E130) -> 35100 | G129: =F129-F130 -> 27378 | H129: 21354.84 | I129: 16656.7752 | J129: 12992.28466 | K129: 10133.98203 | L129: 7904.505985 | M129: 6165.514668 | N129: 4809.101441 | O129: 3751.099124 | P129: 2925.857317 | Q129: 2282.168707 | R129: 1780.091592 | S129: =R129-R130 -> 1388.471441 | T129: 1083.007724 | U129: 844.7460249 | V129: 658.9018995 | W129: 513.9434816 | X129: 400.8759156 | Y129: 312.6832142 | Z129: 243.8929071 | AA129: 190.2364675 | AB129: 148.3844447 | AC129: 115.7398668 | AD129: 90.27709613 | AE129: 70.41613498 | AF129: 54.92458529 | AG129: 42.84117652 | AH129: 33.41611769 | AI129: 26.0645718
B130: Depreciation | C130: 0 | D130: =D129-D129*(1-Assumptions!$E17)^'Projection – Property #2'!D128 -> 0 | E130: =E129-E129*(1-Assumptions!$E17)^'Projection – Property #2'!E128 -> 9900 | F130: =F129-F129*(1-Assumptions!$E17)^'Projection – Property #2'!F128 -> 7722 | G130: =G129-G129*(1-Assumptions!$E17)^'Projection – Property #2'!G128 -> 6023.16 | H130: =H129-H129*(1-Assumptions!$E17)^'Projection – Property #2'!H128 -> 4698.0648 | I130: =I129-I129*(1-Assumptions!$E17)^'Projection – Property #2'!I128 -> 3664.490544 | J130: =J129-J129*(1-Assumptions!$E17)^'Projection – Property #2'!J128 -> 2858.302624 | K130: =K129-K129*(1-Assumptions!$E17)^'Projection – Property #2'!K128 -> 2229.476047 | L130: =L129-L129*(1-Assumptions!$E17)^'Projection – Property #2'!L128 -> 1738.991317 | M130: =M129-M129*(1-Assumptions!$E17)^'Projection – Property #2'!M128 -> 1356.413227 | N130: =N129-N129*(1-Assumptions!$E17)^'Projection – Property #2'!N128 -> 1058.002317 | O130: =O129-O129*(1-Assumptions!$E17)^'Projection – Property #2'!O128 -> 825.2418073 | P130: =P129-P129*(1-Assumptions!$E17)^'Projection – Property #2'!P128 -> 643.6886097 | Q130: =Q129-Q129*(1-Assumptions!$E17)^'Projection – Property #2'!Q128 -> 502.0771156 | R130: =R129-R129*(1-Assumptions!$E17)^'Projection – Property #2'!R128 -> 391.6201501 | S130: =S129-S129*(1-Assumptions!$E17)^'Projection – Property #2'!S128 -> 305.4637171 | T130: =T129-T129*(1-Assumptions!$E17)^'Projection – Property #2'!T128 -> 238.2616993 | U130: =U129-U129*(1-Assumptions!$E17)^'Projection – Property #2'!U128 -> 185.8441255 | V130: =V129-V129*(1-Assumptions!$E17)^'Projection – Property #2'!V128 -> 144.9584179 | W130: =W129-W129*(1-Assumptions!$E17)^'Projection – Property #2'!W128 -> 113.0675659 | X130: =X129-X129*(1-Assumptions!$E17)^'Projection – Property #2'!X128 -> 88.19270144 | Y130: =Y129-Y129*(1-Assumptions!$E17)^'Projection – Property #2'!Y128 -> 68.79030712 | Z130: =Z129-Z129*(1-Assumptions!$E17)^'Projection – Property #2'!Z128 -> 53.65643955 | AA130: =AA129-AA129*(1-Assumptions!$E17)^'Projection – Property #2'!AA128 -> 41.85202285 | AB130: =AB129-AB129*(1-Assumptions!$E17)^'Projection – Property #2'!AB128 -> 32.64457783 | AC130: =AC129-AC129*(1-Assumptions!$E17)^'Projection – Property #2'!AC128 -> 25.4627707 | AD130: =AD129-AD129*(1-Assumptions!$E17)^'Projection – Property #2'!AD128 -> 19.86096115 | AE130: =AE129-AE129*(1-Assumptions!$E17)^'Projection – Property #2'!AE128 -> 15.4915497 | AF130: =AF129-AF129*(1-Assumptions!$E17)^'Projection – Property #2'!AF128 -> 12.08340876 | AG130: =AG129-AG129*(1-Assumptions!$E17)^'Projection – Property #2'!AG128 -> 9.425058835 | AH130: =AH129-AH129*(1-Assumptions!$E17)^'Projection – Property #2'!AH128 -> 7.351545891 | AI130: =AI129-AI129*(1-Assumptions!$E17)^'Projection – Property #2'!AI128 -> 5.734205795
B132: Taxable Profit | C132: =C55-C125-C126-C130 -> 0 | D132: 0 | E132: -17322.45 | F132: -15282.249 | G132: -13716.61398 | H132: -12542.68786 | I132: -11663.30606 | J132: -11014.39446 | K132: -10545.98971 | L132: -10219.13526 | M132: -10003.46005 | N132: -9875.290073 | O132: -9816.175319 | P132: -9811.740791 | Q132: -9850.790341 | R132: -9924.60764 | S132: -10026.41096 | T132: -10150.92788 | U132: -10294.06363 | V132: -10452.64232 | W132: -10624.20514 | X132: -10806.85303 | Y132: -10999.12384 | Z132: -11199.89664 | AA132: -11408.31703 | AB132: -11623.73889 | AC132: -11845.67897 | AD132: -12073.78148 | AE132: -12307.79048 | AF132: -12547.52832 | AG132: -12792.87887 | AH132: -13043.77443 | AI132: -13300.18555
B133: Tax Losses Carried Forward | C133: =IF(C132<0,C132,0) -> 0 | D133: =IF(D132<0,D132,0)-Assumptions!E15 -> 0 | E133: =IF(E132+D133<0,E132+D133,0) -> -17322.45 | F133: -32604.699 | G133: -46321.31298 | H133: -58864.00084 | I133: -70527.3069 | J133: -81541.70136 | K133: -92087.69107 | L133: -102306.8263 | M133: -112310.2864 | N133: -122185.5765 | O133: -132001.7518 | P133: -141813.4926 | Q133: -151664.2829 | R133: -161588.8905 | S133: -171615.3015 | T133: -181766.2294 | U133: -192060.293 | V133: -202512.9353 | W133: -213137.1405 | X133: -223943.9935 | Y133: -234943.1173 | Z133: -246143.014 | AA133: -257551.331 | AB133: -269175.0699 | AC133: -281020.7489 | AD133: -293094.5304 | AE133: -305402.3208 | AF133: -317949.8492 | AG133: -330742.728 | AH133: -343786.5024 | AI133: -357086.688
B134: Tax to Pay | C134: =IF(C132<0,0,IFERROR(C132*'Property Set Up'!B93,0)) -> 0 | D134: =IF(D132<0,0,D132*'Property Set Up'!D93) -> 0 | E134: =IF((D133+E132)>0,(D133+E132)*'Property Set Up'!$D$93,0) -> 0 | F134: =IF((E133+F132)>0,(E133+F132)*'Property Set Up'!$D$93,0) -> 0 | G134: =IF((F133+G132)>0,(F133+G132)*'Property Set Up'!$D$93,0) -> 0 | H134: =IF((G133+H132)>0,(G133+H132)*'Property Set Up'!$D$93,0) -> 0 | I134: =IF((H133+I132)>0,(H133+I132)*'Property Set Up'!$D$93,0) -> 0 | J134: =IF((I133+J132)>0,(I133+J132)*'Property Set Up'!$D$93,0) -> 0 | K134: =IF((J133+K132)>0,(J133+K132)*'Property Set Up'!$D$93,0) -> 0 | L134: =IF((K133+L132)>0,(K133+L132)*'Property Set Up'!$D$93,0) -> 0 | M134: =IF((L133+M132)>0,(L133+M132)*'Property Set Up'!$D$93,0) -> 0 | N134: =IF((M133+N132)>0,(M133+N132)*'Property Set Up'!$D$93,0) -> 0 | O134: =IF((N133+O132)>0,(N133+O132)*'Property Set Up'!$D$93,0) -> 0 | P134: =IF((O133+P132)>0,(O133+P132)*'Property Set Up'!$D$93,0) -> 0 | Q134: =IF((P133+Q132)>0,(P133+Q132)*'Property Set Up'!$D$93,0) -> 0 | R134: =IF((Q133+R132)>0,(Q133+R132)*'Property Set Up'!$D$93,0) -> 0 | S134: =IF((R133+S132)>0,(R133+S132)*'Property Set Up'!$D$93,0) -> 0 | T134: =IF((S133+T132)>0,(S133+T132)*'Property Set Up'!$D$93,0) -> 0 | U134: =IF((T133+U132)>0,(T133+U132)*'Property Set Up'!$D$93,0) -> 0 | V134: =IF((U133+V132)>0,(U133+V132)*'Property Set Up'!$D$93,0) -> 0 | W134: =IF((V133+W132)>0,(V133+W132)*'Property Set Up'!$D$93,0) -> 0 | X134: =IF((W133+X132)>0,(W133+X132)*'Property Set Up'!$D$93,0) -> 0 | Y134: =IF((X133+Y132)>0,(X133+Y132)*'Property Set Up'!$D$93,0) -> 0 | Z134: =IF((Y133+Z132)>0,(Y133+Z132)*'Property Set Up'!$D$93,0) -> 0 | AA134: =IF((Z133+AA132)>0,(Z133+AA132)*'Property Set Up'!$D$93,0) -> 0 | AB134: =IF((AA133+AB132)>0,(AA133+AB132)*'Property Set Up'!$D$93,0) -> 0 | AC134: =IF((AB133+AC132)>0,(AB133+AC132)*'Property Set Up'!$D$93,0) -> 0 | AD134: =IF((AC133+AD132)>0,(AC133+AD132)*'Property Set Up'!$D$93,0) -> 0 | AE134: =IF((AD133+AE132)>0,(AD133+AE132)*'Property Set Up'!$D$93,0) -> 0 | AF134: =IF((AE133+AF132)>0,(AE133+AF132)*'Property Set Up'!$D$93,0) -> 0 | AG134: =IF((AF133+AG132)>0,(AF133+AG132)*'Property Set Up'!$D$93,0) -> 0 | AH134: =IF((AG133+AH132)>0,(AG133+AH132)*'Property Set Up'!$D$93,0) -> 0 | AI134: =IF((AH133+AI132)>0,(AH133+AI132)*'Property Set Up'!$D$93,0) -> 0
B137: POST-TAX CASHFLOW
B140: Post Tax Cashflow | C140: =C61-C134 -> 0 | D140: =D61-D134 -> 0 | E140: =E61-E134 -> -7422.45 | F140: -7560.249 | G140: -7693.45398 | H140: -7844.62306 | I140: -7998.815521 | J140: -8156.091831 | K140: -8316.513668 | L140: -8480.143941 | M140: -8647.04682 | N140: -8817.287756 | O140: -8990.933512 | P140: -9168.052182 | Q140: -9348.713225 | R140: -9532.98749 | S140: -9720.94724 | T140: -9912.666185 | U140: -10108.21951 | V140: -10307.6839 | W140: -10511.13758 | X140: -10718.66033 | Y140: -10930.33353 | Z140: -11146.24021 | AA140: -11366.46501 | AB140: -11591.09431 | AC140: -11820.2162 | AD140: -12053.92052 | AE140: -12292.29893 | AF140: -12535.44491 | AG140: -12783.45381 | AH140: -13036.42288 | AI140: -13294.45134
B141: Inflation Discounted Post Tax Cashflow | C141: =C140 -> 0 | D141: =D140/(1+'Property Set Up'!$D$77)^'Projection – Property #2'!D26 -> 0 | E141: =E140/(1+'Property Set Up'!$D$77)^'Projection – Property #2'!E26 -> -7276.911765 | F141: =F140/(1+'Property Set Up'!$D$77)^'Projection – Property #2'!F26 -> -7266.675317 | G141: =G140/(1+'Property Set Up'!$D$77)^'Projection – Property #2'!G26 -> -7249.713515 | H141: =H140/(1+'Property Set Up'!$D$77)^'Projection – Property #2'!H26 -> -7247.219133 | I141: =I140/(1+'Property Set Up'!$D$77)^'Projection – Property #2'!I26 -> -7244.773659 | J141: =J140/(1+'Property Set Up'!$D$77)^'Projection – Property #2'!J26 -> -7242.376137 | K141: =K140/(1+'Property Set Up'!$D$77)^'Projection – Property #2'!K26 -> -7240.025624 | L141: =L140/(1+'Property Set Up'!$D$77)^'Projection – Property #2'!L26 -> -7237.7212 | M141: =M140/(1+'Property Set Up'!$D$77)^'Projection – Property #2'!M26 -> -7235.461961 | N141: =N140/(1+'Property Set Up'!$D$77)^'Projection – Property #2'!N26 -> -7233.24702 | O141: =O140/(1+'Property Set Up'!$D$77)^'Projection – Property #2'!O26 -> -7231.07551 | P141: =P140/(1+'Property Set Up'!$D$77)^'Projection – Property #2'!P26 -> -7228.946579 | Q141: =Q140/(1+'Property Set Up'!$D$77)^'Projection – Property #2'!Q26 -> -7226.859391 | R141: =R140/(1+'Property Set Up'!$D$77)^'Projection – Property #2'!R26 -> -7224.813128 | S141: =S140/(1+'Property Set Up'!$D$77)^'Projection – Property #2'!S26 -> -7222.806989 | T141: =T140/(1+'Property Set Up'!$D$77)^'Projection – Property #2'!T26 -> -7220.840185 | U141: =U140/(1+'Property Set Up'!$D$77)^'Projection – Property #2'!U26 -> -7218.911946 | V141: =V140/(1+'Property Set Up'!$D$77)^'Projection – Property #2'!V26 -> -7217.021516 | W141: =W140/(1+'Property Set Up'!$D$77)^'Projection – Property #2'!W26 -> -7215.168153 | X141: =X140/(1+'Property Set Up'!$D$77)^'Projection – Property #2'!X26 -> -7213.35113 | Y141: =Y140/(1+'Property Set Up'!$D$77)^'Projection – Property #2'!Y26 -> -7211.569735 | Z141: =Z140/(1+'Property Set Up'!$D$77)^'Projection – Property #2'!Z26 -> -7209.82327 | AA141: =AA140/(1+'Property Set Up'!$D$77)^'Projection – Property #2'!AA26 -> -7208.111049 | AB141: =AB140/(1+'Property Set Up'!$D$77)^'Projection – Property #2'!AB26 -> -7206.432401 | AC141: =AC140/(1+'Property Set Up'!$D$77)^'Projection – Property #2'!AC26 -> -7204.786668 | AD141: =AD140/(1+'Property Set Up'!$D$77)^'Projection – Property #2'!AD26 -> -7203.173203 | AE141: =AE140/(1+'Property Set Up'!$D$77)^'Projection – Property #2'!AE26 -> -7201.591376 | AF141: =AF140/(1+'Property Set Up'!$D$77)^'Projection – Property #2'!AF26 -> -7200.040565 | AG141: =AG140/(1+'Property Set Up'!$D$77)^'Projection – Property #2'!AG26 -> -7198.520161 | AH141: =AH140/(1+'Property Set Up'!$D$77)^'Projection – Property #2'!AH26 -> -7197.02957 | AI141: =AI140/(1+'Property Set Up'!$D$77)^'Projection – Property #2'!AI26 -> -7195.568206
B142: Post Tax Cashflow (Per Week) | C142: =C140/52 -> 0 | D142: 0 | E142: -142.7394231 | F142: -145.3894038 | G142: -147.9510381 | H142: -150.8581358 | I142: -153.8233754 | J142: -156.8479198 | K142: -159.9329552 | L142: -163.0796912 | M142: -166.2893619 | N142: -169.5632261 | O142: -172.9025675 | P142: -176.3086958 | Q142: -179.7829466 | R142: -183.3266825 | S142: -186.9412931 | T142: -190.6281959 | U142: -194.3888367 | V142: -198.2246904 | W142: -202.1372611 | X142: -206.1280832 | Y142: -210.1987218 | Z142: -214.3507732 | AA142: -218.5858656 | AB142: -222.9056598 | AC142: -227.3118499 | AD142: -231.8061638 | AE142: -236.390364 | AF142: -241.0662482 | AG142: -245.8356501 | AH142: -250.7004401 | AI142: -255.6625258
B143: Negatively Geared Test For Investment | C143: =IF(C141<0,C141,0) -> 0 | D143: =IF(D141<0,D141,0) -> 0 | E143: -7276.911765 | F143: -7266.675317 | G143: -7249.713515 | H143: -7247.219133 | I143: -7244.773659 | J143: -7242.376137 | K143: -7240.025624 | L143: -7237.7212 | M143: -7235.461961 | N143: -7233.24702 | O143: -7231.07551 | P143: -7228.946579 | Q143: -7226.859391 | R143: -7224.813128 | S143: -7222.806989 | T143: -7220.840185 | U143: -7218.911946 | V143: -7217.021516 | W143: -7215.168153 | X143: -7213.35113 | Y143: -7211.569735 | Z143: -7209.82327 | AA143: -7208.111049 | AB143: -7206.432401 | AC143: -7204.786668 | AD143: -7203.173203 | AE143: -7201.591376 | AF143: -7200.040565 | AG143: -7198.520161 | AH143: -7197.02957 | AI143: -7195.568206
B144: Positively Geared Test For Investment | C144: =IF(C141>0,C141,0) -> 0 | D144: =IF(D141>0,D141,0) -> 0 | E144: 0 | F144: 0 | G144: 0 | H144: 0 | I144: =IF(I141>0,I141,0) -> 0 | J144: 0 | K144: 0 | L144: 0 | M144: 0 | N144: 0 | O144: 0 | P144: 0 | Q144: 0 | R144: 0 | S144: 0 | T144: 0 | U144: 0 | V144: 0 | W144: 0 | X144: 0 | Y144: 0 | Z144: 0 | AA144: 0 | AB144: 0 | AC144: 0 | AD144: 0 | AE144: 0 | AF144: 0 | AG144: 0 | AH144: 0 | AI144: 0
B145: Positive Returns After adjusting for risk free rate | C145: =IF(C144>0,C140*(1+'Property Set Up'!$D95)^('Projection – Property #2'!$R26-'Projection – Property #2'!C26),0) -> 0 | D145: =IF(D144>0,D140*(1+'Property Set Up'!$D$95)^('Projection – Property #2'!$R26-'Projection – Property #2'!D26),0) -> 0 | E145: =IF(E144>0,E140*(1+'Property Set Up'!$D$95)^('Projection – Property #2'!$R26-'Projection – Property #2'!E26),0) -> 0 | F145: =IF(F144>0,F140*(1+'Property Set Up'!$D$95)^('Projection – Property #2'!$R26-'Projection – Property #2'!F26),0) -> 0 | G145: =IF(G144>0,G140*(1+'Property Set Up'!$D$95)^('Projection – Property #2'!$R26-'Projection – Property #2'!G26),0) -> 0 | H145: =IF(H144>0,H140*(1+'Property Set Up'!$D$95)^('Projection – Property #2'!$R26-'Projection – Property #2'!H26),0) -> 0 | I145: =IF(I144>0,I140*(1+'Property Set Up'!$D$95)^('Projection – Property #2'!$R26-'Projection – Property #2'!I26),0) -> 0 | J145: =IF(J144>0,J140*(1+'Property Set Up'!$D$95)^('Projection – Property #2'!$R26-'Projection – Property #2'!J26),0) -> 0 | K145: =IF(K144>0,K140*(1+'Property Set Up'!$D$95)^('Projection – Property #2'!$R26-'Projection – Property #2'!K26),0) -> 0 | L145: =IF(L144>0,L140*(1+'Property Set Up'!$D$95)^('Projection – Property #2'!$R26-'Projection – Property #2'!L26),0) -> 0 | M145: =IF(M144>0,M140*(1+'Property Set Up'!$D$95)^('Projection – Property #2'!$R26-'Projection – Property #2'!M26),0) -> 0 | N145: =IF(N144>0,N140*(1+'Property Set Up'!$D$95)^('Projection – Property #2'!$R26-'Projection – Property #2'!N26),0) -> 0 | O145: =IF(O144>0,O140*(1+'Property Set Up'!$D$95)^('Projection – Property #2'!$R26-'Projection – Property #2'!O26),0) -> 0 | P145: =IF(P144>0,P140*(1+'Property Set Up'!$D$95)^('Projection – Property #2'!$R26-'Projection – Property #2'!P26),0) -> 0 | Q145: =IF(Q144>0,Q140*(1+'Property Set Up'!$D$95)^('Projection – Property #2'!$R26-'Projection – Property #2'!Q26),0) -> 0 | R145: =IF(R144>0,R140*(1+'Property Set Up'!$D$95)^('Projection – Property #2'!$R26-'Projection – Property #2'!R26),0) -> 0 | S145: =IF(S144>0,S140*(1+'Property Set Up'!$D$95)^('Projection – Property #2'!$R26-'Projection – Property #2'!S26),0) -> 0 | T145: =IF(T144>0,T140*(1+'Property Set Up'!$D$95)^('Projection – Property #2'!$R26-'Projection – Property #2'!T26),0) -> 0 | U145: =IF(U144>0,U140*(1+'Property Set Up'!$D$95)^('Projection – Property #2'!$R26-'Projection – Property #2'!U26),0) -> 0 | V145: =IF(V144>0,V140*(1+'Property Set Up'!$D$95)^('Projection – Property #2'!$R26-'Projection – Property #2'!V26),0) -> 0 | W145: =IF(W144>0,W140*(1+'Property Set Up'!$D95)^('Projection – Property #2'!$R26-'Projection – Property #2'!W26),0) -> 0 | X145: =IF(X144>0,X140*(1+'Property Set Up'!$D95)^('Projection – Property #2'!$R26-'Projection – Property #2'!X26),0) -> 0 | Y145: =IF(Y144>0,Y140*(1+'Property Set Up'!$D95)^('Projection – Property #2'!$R26-'Projection – Property #2'!Y26),0) -> 0 | Z145: =IF(Z144>0,Z140*(1+'Property Set Up'!$D95)^('Projection – Property #2'!$R26-'Projection – Property #2'!Z26),0) -> 0 | AA145: =IF(AA144>0,AA140*(1+'Property Set Up'!$D95)^('Projection – Property #2'!$R26-'Projection – Property #2'!AA26),0) -> 0 | AB145: =IF(AB144>0,AB140*(1+'Property Set Up'!$D95)^('Projection – Property #2'!$R26-'Projection – Property #2'!AB26),0) -> 0 | AC145: =IF(AC144>0,AC140*(1+'Property Set Up'!$D95)^('Projection – Property #2'!$R26-'Projection – Property #2'!AC26),0) -> 0 | AD145: =IF(AD144>0,AD140*(1+'Property Set Up'!$D95)^('Projection – Property #2'!$R26-'Projection – Property #2'!AD26),0) -> 0 | AE145: =IF(AE144>0,AE140*(1+'Property Set Up'!$D95)^('Projection – Property #2'!$R26-'Projection – Property #2'!AE26),0) -> 0 | AF145: =IF(AF144>0,AF140*(1+'Property Set Up'!$D95)^('Projection – Property #2'!$R26-'Projection – Property #2'!AF26),0) -> 0 | AG145: =IF(AG144>0,AG140*(1+'Property Set Up'!$D95)^('Projection – Property #2'!$R26-'Projection – Property #2'!AG26),0) -> 0 | AH145: =IF(AH144>0,AH140*(1+'Property Set Up'!$D95)^('Projection – Property #2'!$R26-'Projection – Property #2'!AH26),0) -> 0 | AI145: =IF(AI144>0,AI140*(1+'Property Set Up'!$D95)^('Projection – Property #2'!$R26-'Projection – Property #2'!AI26),0) -> 0
B146: Inflation adjusted Positive Returns after risk free rate | C146: =C145/(1+'Property Set Up'!$D$77)^'Projection – Property #2'!C26 -> 0 | D146: =D145/(1+'Property Set Up'!$D$77)^'Projection – Property #2'!D26 -> 0 | E146: =E145/(1+'Property Set Up'!$D$77)^'Projection – Property #2'!E26 -> 0 | F146: =F145/(1+'Property Set Up'!$D$77)^'Projection – Property #2'!F26 -> 0 | G146: =G145/(1+'Property Set Up'!$D$77)^'Projection – Property #2'!G26 -> 0 | H146: =H145/(1+'Property Set Up'!$D$77)^'Projection – Property #2'!H26 -> 0 | I146: =I145/(1+'Property Set Up'!$D$77)^'Projection – Property #2'!I26 -> 0 | J146: =J145/(1+'Property Set Up'!$D$77)^'Projection – Property #2'!J26 -> 0 | K146: =K145/(1+'Property Set Up'!$D$77)^'Projection – Property #2'!K26 -> 0 | L146: =L145/(1+'Property Set Up'!$D$77)^'Projection – Property #2'!L26 -> 0 | M146: =M145/(1+'Property Set Up'!$D$77)^'Projection – Property #2'!M26 -> 0 | N146: =N145/(1+'Property Set Up'!$D$77)^'Projection – Property #2'!N26 -> 0 | O146: =O145/(1+'Property Set Up'!$D$77)^'Projection – Property #2'!O26 -> 0 | P146: =P145/(1+'Property Set Up'!$D$77)^'Projection – Property #2'!P26 -> 0 | Q146: =Q145/(1+'Property Set Up'!$D$77)^'Projection – Property #2'!Q26 -> 0 | R146: =R145/(1+'Property Set Up'!$D$77)^'Projection – Property #2'!R26 -> 0 | S146: =S145/(1+'Property Set Up'!$D$77)^'Projection – Property #2'!S26 -> 0 | T146: =T145/(1+'Property Set Up'!$D$77)^'Projection – Property #2'!T26 -> 0 | U146: =U145/(1+'Property Set Up'!$D$77)^'Projection – Property #2'!U26 -> 0 | V146: =V145/(1+'Property Set Up'!$D$77)^'Projection – Property #2'!V26 -> 0 | W146: =W145/(1+'Property Set Up'!$D$77)^'Projection – Property #2'!W26 -> 0 | X146: =X145/(1+'Property Set Up'!$D$77)^'Projection – Property #2'!X26 -> 0 | Y146: =Y145/(1+'Property Set Up'!$D$77)^'Projection – Property #2'!Y26 -> 0 | Z146: =Z145/(1+'Property Set Up'!$D$77)^'Projection – Property #2'!Z26 -> 0 | AA146: =AA145/(1+'Property Set Up'!$D$77)^'Projection – Property #2'!AA26 -> 0 | AB146: =AB145/(1+'Property Set Up'!$D$77)^'Projection – Property #2'!AB26 -> 0 | AC146: =AC145/(1+'Property Set Up'!$D$77)^'Projection – Property #2'!AC26 -> 0 | AD146: =AD145/(1+'Property Set Up'!$D$77)^'Projection – Property #2'!AD26 -> 0 | AE146: =AE145/(1+'Property Set Up'!$D$77)^'Projection – Property #2'!AE26 -> 0 | AF146: =AF145/(1+'Property Set Up'!$D$77)^'Projection – Property #2'!AF26 -> 0 | AG146: =AG145/(1+'Property Set Up'!$D$77)^'Projection – Property #2'!AG26 -> 0 | AH146: =AH145/(1+'Property Set Up'!$D$77)^'Projection – Property #2'!AH26 -> 0 | AI146: =AI145/(1+'Property Set Up'!$D$77)^'Projection – Property #2'!AI26 -> 0
B147: Uninflation Adjusted Cululative Cashflow | C147: =C140 -> 0 | D147: =IF(C147>0,(C147*(1+Assumptions!$E19)+'Projection – Property #2'!D140),(C147+'Projection – Property #2'!D140)) -> 0 | E147: =IF(D147>0,(D147*(1+Assumptions!$E19)+'Projection – Property #2'!E140),(D147+'Projection – Property #2'!E140)) -> -7422.45 | F147: =IF(E147>0,(E147*(1+Assumptions!$E19)+'Projection – Property #2'!F140),(E147+'Projection – Property #2'!F140)) -> -14982.699 | G147: =IF(F147>0,(F147*(1+Assumptions!$E19)+'Projection – Property #2'!G140),(F147+'Projection – Property #2'!G140)) -> -22676.15298 | H147: =IF(G147>0,(G147*(1+Assumptions!$E19)+'Projection – Property #2'!H140),(G147+'Projection – Property #2'!H140)) -> -30520.77604 | I147: =IF(H147>0,(H147*(1+Assumptions!$E19)+'Projection – Property #2'!I140),(H147+'Projection – Property #2'!I140)) -> -38519.59156 | J147: =IF(I147>0,(I147*(1+Assumptions!$E19)+'Projection – Property #2'!J140),(I147+'Projection – Property #2'!J140)) -> -46675.68339 | K147: =IF(J147>0,(J147*(1+Assumptions!$E19)+'Projection – Property #2'!K140),(J147+'Projection – Property #2'!K140)) -> -54992.19706 | L147: =IF(K147>0,(K147*(1+Assumptions!$E19)+'Projection – Property #2'!L140),(K147+'Projection – Property #2'!L140)) -> -63472.341 | M147: =IF(L147>0,(L147*(1+Assumptions!$E19)+'Projection – Property #2'!M140),(L147+'Projection – Property #2'!M140)) -> -72119.38782 | N147: =IF(M147>0,(M147*(1+Assumptions!$E19)+'Projection – Property #2'!N140),(M147+'Projection – Property #2'!N140)) -> -80936.67558 | O147: =IF(N147>0,(N147*(1+Assumptions!$E19)+'Projection – Property #2'!O140),(N147+'Projection – Property #2'!O140)) -> -89927.60909 | P147: =IF(O147>0,(O147*(1+Assumptions!$E19)+'Projection – Property #2'!P140),(O147+'Projection – Property #2'!P140)) -> -99095.66127 | Q147: =IF(P147>0,(P147*(1+Assumptions!$E19)+'Projection – Property #2'!Q140),(P147+'Projection – Property #2'!Q140)) -> -108444.3745 | R147: =IF(Q147>0,(Q147*(1+Assumptions!$E19)+'Projection – Property #2'!R140),(Q147+'Projection – Property #2'!R140)) -> -117977.362 | S147: =IF(R147>0,(R147*(1+Assumptions!$E19)+'Projection – Property #2'!S140),(R147+'Projection – Property #2'!S140)) -> -127698.3092 | T147: =IF(S147>0,(S147*(1+Assumptions!$E19)+'Projection – Property #2'!T140),(S147+'Projection – Property #2'!T140)) -> -137610.9754 | U147: =IF(T147>0,(T147*(1+Assumptions!$E19)+'Projection – Property #2'!U140),(T147+'Projection – Property #2'!U140)) -> -147719.1949 | V147: =IF(U147>0,(U147*(1+Assumptions!$E19)+'Projection – Property #2'!V140),(U147+'Projection – Property #2'!V140)) -> -158026.8788 | W147: =IF(V147>0,(V147*(1+Assumptions!$E19)+'Projection – Property #2'!W140),(V147+'Projection – Property #2'!W140)) -> -168538.0164 | X147: =IF(W147>0,(W147*(1+Assumptions!$E19)+'Projection – Property #2'!X140),(W147+'Projection – Property #2'!X140)) -> -179256.6767 | Y147: =IF(X147>0,(X147*(1+Assumptions!$E19)+'Projection – Property #2'!Y140),(X147+'Projection – Property #2'!Y140)) -> -190187.0103 | Z147: =IF(Y147>0,(Y147*(1+Assumptions!$E19)+'Projection – Property #2'!Z140),(Y147+'Projection – Property #2'!Z140)) -> -201333.2505 | AA147: =IF(Z147>0,(Z147*(1+Assumptions!$E19)+'Projection – Property #2'!AA140),(Z147+'Projection – Property #2'!AA140)) -> -212699.7155 | AB147: =IF(AA147>0,(AA147*(1+Assumptions!$E19)+'Projection – Property #2'!AB140),(AA147+'Projection – Property #2'!AB140)) -> -224290.8098 | AC147: =IF(AB147>0,(AB147*(1+Assumptions!$E19)+'Projection – Property #2'!AC140),(AB147+'Projection – Property #2'!AC140)) -> -236111.026 | AD147: =IF(AC147>0,(AC147*(1+Assumptions!$E19)+'Projection – Property #2'!AD140),(AC147+'Projection – Property #2'!AD140)) -> -248164.9465 | AE147: =IF(AD147>0,(AD147*(1+Assumptions!$E19)+'Projection – Property #2'!AE140),(AD147+'Projection – Property #2'!AE140)) -> -260457.2454 | AF147: =IF(AE147>0,(AE147*(1+Assumptions!$E19)+'Projection – Property #2'!AF140),(AE147+'Projection – Property #2'!AF140)) -> -272992.6903 | AG147: =IF(AF147>0,(AF147*(1+Assumptions!$E19)+'Projection – Property #2'!AG140),(AF147+'Projection – Property #2'!AG140)) -> -285776.1441 | AH147: =IF(AG147>0,(AG147*(1+Assumptions!$E19)+'Projection – Property #2'!AH140),(AG147+'Projection – Property #2'!AH140)) -> -298812.567 | AI147: =IF(AH147>0,(AH147*(1+Assumptions!$E19)+'Projection – Property #2'!AI140),(AH147+'Projection – Property #2'!AI140)) -> -312107.0184
B148: Inflation Adjusted Cululative Cashflow | C148: =C147/(1+Assumptions!$E9)^'Projection – Property #2'!C26 -> 0 | D148: =D147/(1+Assumptions!$E9)^'Projection – Property #2'!D26 -> 0 | E148: =E147/(1+Assumptions!$E9)^'Projection – Property #2'!E26 -> -7276.911765 | F148: =F147/(1+Assumptions!$E9)^'Projection – Property #2'!F26 -> -14400.90254 | G148: =G147/(1+Assumptions!$E9)^'Projection – Property #2'!G26 -> -21368.24541 | H148: =H147/(1+Assumptions!$E9)^'Projection – Property #2'!H26 -> -28196.47934 | I148: =I147/(1+Assumptions!$E9)^'Projection – Property #2'!I26 -> -34888.38086 | J148: =J147/(1+Assumptions!$E9)^'Projection – Property #2'!J26 -> -41446.6711 | K148: =K147/(1+Assumptions!$E9)^'Projection – Property #2'!K26 -> -47874.01689 | L148: =L147/(1+Assumptions!$E9)^'Projection – Property #2'!L26 -> -54173.03188 | M148: =M147/(1+Assumptions!$E9)^'Projection – Property #2'!M26 -> -60346.27753 | N148: =N147/(1+Assumptions!$E9)^'Projection – Property #2'!N26 -> -66396.26421 | O148: =O147/(1+Assumptions!$E9)^'Projection – Property #2'!O26 -> -72325.45218 | P148: =P147/(1+Assumptions!$E9)^'Projection – Property #2'!P26 -> -78136.25264 | Q148: =Q147/(1+Assumptions!$E9)^'Projection – Property #2'!Q26 -> -83831.02865 | R148: =R147/(1+Assumptions!$E9)^'Projection – Property #2'!R26 -> -89412.09612 | S148: =S147/(1+Assumptions!$E9)^'Projection – Property #2'!S26 -> -94881.72475 | T148: =T147/(1+Assumptions!$E9)^'Projection – Property #2'!T26 -> -100242.139 | U148: =U147/(1+Assumptions!$E9)^'Projection – Property #2'!U26 -> -105495.5188 | V148: =V147/(1+Assumptions!$E9)^'Projection – Property #2'!V26 -> -110644.0007 | W148: =W147/(1+Assumptions!$E9)^'Projection – Property #2'!W26 -> -115689.6786 | X148: =X147/(1+Assumptions!$E9)^'Projection – Property #2'!X26 -> -120634.6047 | Y148: =Y147/(1+Assumptions!$E9)^'Projection – Property #2'!Y26 -> -125480.79 | Z148: =Z147/(1+Assumptions!$E9)^'Projection – Property #2'!Z26 -> -130230.2057 | AA148: =AA147/(1+Assumptions!$E9)^'Projection – Property #2'!AA26 -> -134884.7833 | AB148: =AB147/(1+Assumptions!$E9)^'Projection – Property #2'!AB26 -> -139446.416 | AC148: =AC147/(1+Assumptions!$E9)^'Projection – Property #2'!AC26 -> -143916.9592 | AD148: =AD147/(1+Assumptions!$E9)^'Projection – Property #2'!AD26 -> -148298.2312 | AE148: =AE147/(1+Assumptions!$E9)^'Projection – Property #2'!AE26 -> -152592.0142 | AF148: =AF147/(1+Assumptions!$E9)^'Projection – Property #2'!AF26 -> -156800.0545 | AG148: =AG147/(1+Assumptions!$E9)^'Projection – Property #2'!AG26 -> -160924.0637 | AH148: =AH147/(1+Assumptions!$E9)^'Projection – Property #2'!AH26 -> -164965.7195 | AI148: =AI147/(1+Assumptions!$E9)^'Projection – Property #2'!AI26 -> -168926.6658
B149: In Range For Minimum Cashflow Calculation? | D149: =IF('My Wealth Plan Summary'!$C8-'Projection – Property #2'!D32<0,"No","Yes") -> Yes | E149: =IF('My Wealth Plan Summary'!$C8-'Projection – Property #2'!E32<0,"No","Yes") -> Yes | F149: =IF('My Wealth Plan Summary'!$C8-'Projection – Property #2'!F32<0,"No","Yes") -> Yes | G149: =IF('My Wealth Plan Summary'!$C8-'Projection – Property #2'!G32<0,"No","Yes") -> Yes | H149: =IF('My Wealth Plan Summary'!$C8-'Projection – Property #2'!H32<0,"No","Yes") -> Yes | I149: =IF('My Wealth Plan Summary'!$C8-'Projection – Property #2'!I32<0,"No","Yes") -> Yes | J149: =IF('My Wealth Plan Summary'!$C8-'Projection – Property #2'!J32<0,"No","Yes") -> Yes | K149: =IF('My Wealth Plan Summary'!$C8-'Projection – Property #2'!K32<0,"No","Yes") -> Yes | L149: =IF('My Wealth Plan Summary'!$C8-'Projection – Property #2'!L32<0,"No","Yes") -> Yes | M149: =IF('My Wealth Plan Summary'!$C8-'Projection – Property #2'!M32<0,"No","Yes") -> Yes | N149: =IF('My Wealth Plan Summary'!$C8-'Projection – Property #2'!N32<0,"No","Yes") -> Yes | O149: =IF('My Wealth Plan Summary'!$C8-'Projection – Property #2'!O32<0,"No","Yes") -> Yes | P149: =IF('My Wealth Plan Summary'!$C8-'Projection – Property #2'!P32<0,"No","Yes") -> Yes | Q149: =IF('My Wealth Plan Summary'!$C8-'Projection – Property #2'!Q32<0,"No","Yes") -> Yes | R149: =IF('My Wealth Plan Summary'!$C8-'Projection – Property #2'!R32<0,"No","Yes") -> Yes | S149: =IF('My Wealth Plan Summary'!$C8-'Projection – Property #2'!S32<0,"No","Yes") -> Yes | T149: =IF('My Wealth Plan Summary'!$C8-'Projection – Property #2'!T32<0,"No","Yes") -> Yes | U149: =IF('My Wealth Plan Summary'!$C8-'Projection – Property #2'!U32<0,"No","Yes") -> Yes | V149: =IF('My Wealth Plan Summary'!$C8-'Projection – Property #2'!V32<0,"No","Yes") -> Yes | W149: =IF('My Wealth Plan Summary'!$C8-'Projection – Property #2'!W32<0,"No","Yes") -> Yes | X149: =IF('My Wealth Plan Summary'!$C8-'Projection – Property #2'!X32<0,"No","Yes") -> No | Y149: =IF('My Wealth Plan Summary'!$C8-'Projection – Property #2'!Y32<0,"No","Yes") -> No | Z149: =IF('My Wealth Plan Summary'!$C8-'Projection – Property #2'!Z32<0,"No","Yes") -> No | AA149: =IF('My Wealth Plan Summary'!$C8-'Projection – Property #2'!AA32<0,"No","Yes") -> No | AB149: =IF('My Wealth Plan Summary'!$C8-'Projection – Property #2'!AB32<0,"No","Yes") -> No | AC149: =IF('My Wealth Plan Summary'!$C8-'Projection – Property #2'!AC32<0,"No","Yes") -> No | AD149: =IF('My Wealth Plan Summary'!$C8-'Projection – Property #2'!AD32<0,"No","Yes") -> No | AE149: =IF('My Wealth Plan Summary'!$C8-'Projection – Property #2'!AE32<0,"No","Yes") -> No | AF149: =IF('My Wealth Plan Summary'!$C8-'Projection – Property #2'!AF32<0,"No","Yes") -> No | AG149: =IF('My Wealth Plan Summary'!$C8-'Projection – Property #2'!AG32<0,"No","Yes") -> No | AH149: =IF('My Wealth Plan Summary'!$C8-'Projection – Property #2'!AH32<0,"No","Yes") -> No | AI149: =IF('My Wealth Plan Summary'!$C8-'Projection – Property #2'!AI32<0,"No","Yes") -> No
B150: Minimum Cashflow Position | D150: =IF(D149="Yes",D148,0) -> 0 | E150: -7276.911765 | F150: -14400.90254 | G150: -21368.24541 | H150: -28196.47934 | I150: -34888.38086 | J150: -41446.6711 | K150: -47874.01689 | L150: -54173.03188 | M150: -60346.27753 | N150: -66396.26421 | O150: -72325.45218 | P150: -78136.25264 | Q150: -83831.02865 | R150: -89412.09612 | S150: -94881.72475 | T150: -100242.139 | U150: -105495.5188 | V150: -110644.0007 | W150: -115689.6786 | X150: 0 | Y150: =IF(Y149="Yes",Y148,0) -> 0 | Z150: 0 | AA150: 0 | AB150: 0 | AC150: 0 | AD150: 0 | AE150: 0 | AF150: 0 | AG150: 0 | AH150: 0 | AI150: 0
B151: Net Position (Equity + Cashflow) | D151: =D147+E39-E40 ->  | AI151: -312107.0184
B152: Inflation Adjusted Post Tax Cashflow | C152: Max Position | D152: =MATCH(MAX(C141:R141),C141:R141,0) -> 1 | E152: Min Position | F152: =MATCH(MIN(C141:R141),C141:R141,0) -> 3 | G152: Max/Min Bigger | H152: =IF(ABS(MIN(C141:R141))>ABS(MAX(C141:R141)),"Min","Max") -> Min | I152: Cumulative | J152: Max Position | K152: =MATCH(MAX(C148:R148),C148:R148,0) -> 1 | L152: Min Position | M152: =MATCH(MIN(C148:R148),C148:R148,0) -> 16 | N152: Ratio | O152: =IF(H152="Max",INDEX(C141:R141,D152)/INDEX(C148:R148,K152),INDEX(C141:R141,F152)/INDEX(C148:R148,M152)) -> 0.0813862115 | P152: Secondary | Q152: =INDEX(C141:R141,F152)/O152 -> -89412.09612
B153: Inflation Adjusted Gross Return | D153: =((MAX(0,D140)+(D40-E40)+(E39-D39))/(1+Assumptions!$E$9)^'Projection – Property #2'!D26)/52 ->  | E153: =((MAX(0,E140)+(E40-F40)+(F39-E39))/(1+Assumptions!$E$9)^'Projection – Property #2'!E26)/52 ->  | F153: =((MAX(0,F140)+(F40-G40)+(G39-F39))/(1+Assumptions!$E$9)^'Projection – Property #2'!F26)/52 ->  | G153: =((MAX(0,G140)+(G40-H40)+(H39-G39))/(1+Assumptions!$E$9)^'Projection – Property #2'!G26)/52 ->  | H153: =((MAX(0,H140)+(H40-I40)+(I39-H39))/(1+Assumptions!$E$9)^'Projection – Property #2'!H26)/52 ->  | I153: =((MAX(0,I140)+(I40-J40)+(J39-I39))/(1+Assumptions!$E$9)^'Projection – Property #2'!I26)/52 ->  | J153: =((MAX(0,J140)+(J40-K40)+(K39-J39))/(1+Assumptions!$E$9)^'Projection – Property #2'!J26)/52 ->  | K153: =((MAX(0,K140)+(K40-L40)+(L39-K39))/(1+Assumptions!$E$9)^'Projection – Property #2'!K26)/52 ->  | L153: =((MAX(0,L140)+(L40-M40)+(M39-L39))/(1+Assumptions!$E$9)^'Projection – Property #2'!L26)/52 ->  | M153: =((MAX(0,M140)+(M40-N40)+(N39-M39))/(1+Assumptions!$E$9)^'Projection – Property #2'!M26)/52 ->  | N153: =((MAX(0,N140)+(N40-O40)+(O39-N39))/(1+Assumptions!$E$9)^'Projection – Property #2'!N26)/52 ->  | O153: =((MAX(0,O140)+(O40-P40)+(P39-O39))/(1+Assumptions!$E$9)^'Projection – Property #2'!O26)/52 ->  | P153: =((MAX(0,P140)+(P40-Q40)+(Q39-P39))/(1+Assumptions!$E$9)^'Projection – Property #2'!P26)/52 ->  | Q153: =((MAX(0,Q140)+(Q40-R40)+(R39-Q39))/(1+Assumptions!$E$9)^'Projection – Property #2'!Q26)/52 ->  | R153: =((MAX(0,R140)+(R40-S40)+(S39-R39))/(1+Assumptions!$E$9)^'Projection – Property #2'!R26)/52 -> 
B154: Inflation adjusted input per week | D154: =MAX(-D142,0) -> 0 | E154: =MAX(-E142,0) -> 142.7394231 | F154: 145.3894038 | G154: 147.9510381 | H154: 150.8581358 | I154: 153.8233754 | J154: 156.8479198 | K154: 159.9329552 | L154: 163.0796912 | M154: 166.2893619 | N154: 169.5632261 | O154: 172.9025675 | P154: 176.3086958 | Q154: =MAX(-Q142,0) -> 179.7829466 | R154: =MAX(-R142,0) -> 183.3266825
B158: Hidden Values
B159: Name of 1st Chart | D159: =CONCATENATE('Property Set Up'!D12," Cashflow") -> Property #2 Cashflow
B160: Name of 2nd Chart | D160: =CONCATENATE('Property Set Up'!D12," Return vs Cash Input") -> Property #2 Return vs Cash Input
B161: Name of 3rd Chart | D161: =CONCATENATE('Property Set Up'!D12," Net Equity (Including Cashflow)") -> Property #2 Net Equity (Including Cashflow)
B162: Name of 4th Chart | D162: =CONCATENATE('Property Set Up'!D12," Cumulative Cashflow") -> Property #2 Cumulative Cashflow
B165: REVOLVING CREDIT
B168: Top Up Amount Per week
B169: Investor Top Up | D169: =D168*52 -> 0 | E169: =D169 -> 0 | F169: =E169 -> 0 | G169: 0 | H169: 0 | I169: 0 | J169: 0 | K169: 0 | L169: 0 | M169: 0 | N169: 0 | O169: 0 | P169: 0 | Q169: 0 | R169: 0
B170: Investment Cashflow Net of Investor Contribution | D170: =D140+D169 -> 0 | E170: =E140+E169 -> -7422.45 | F170: -7560.249 | G170: -7693.45398 | H170: -7844.62306 | I170: -7998.815521 | J170: -8156.091831 | K170: -8316.513668 | L170: -8480.143941 | M170: -8647.04682 | N170: -8817.287756 | O170: -8990.933512 | P170: -9168.052182 | Q170: -9348.713225 | R170: -9532.98749
B171: Revolving Credit Balance | D171: =D170 -> 0 | E171: =D171+E170-IF((D171+E170)<0,500,0) -> -7922.45 | F171: -15982.699 | G171: -24176.15298 | H171: -32520.77604 | I171: -41019.59156 | J171: -49675.68339 | K171: -58492.19706 | L171: -67472.341 | M171: -76619.38782 | N171: -85936.67558 | O171: -95427.60909 | P171: -105095.6613 | Q171: -114944.3745 | R171: -124977.362 | S171: =R171+S170 -> -124977.362 | T171: =S171+T170 -> -124977.362 | U171: -124977.362 | V171: -124977.362 | W171: -124977.362 | X171: -124977.362 | Y171: -124977.362 | Z171: -124977.362 | AA171: -124977.362 | AB171: -124977.362 | AC171: -124977.362 | AD171: -124977.362 | AE171: -124977.362 | AF171: -124977.362 | AG171: -124977.362 | AH171: -124977.362 | AI171: -124977.362

Sheet Projection – Property #3
B6: =UPPER(CONCATENATE('Property Set Up'!E12," Return on INvestment")) -> PROPERTY #3 RETURN ON INVESTMENT
B8: Return Summary
B9: Inflation Adjusted Capital Gains | D9: =(S39-D39)/(1+'Property Set Up'!$E$77)^S26 ->  | E9: =D9/$D$13 -> 
B10: Inflation Adjusted Instant Equity | D10: =IF(ISBLANK('Property Set Up'!E24),0,MAX(0,('Property Set Up'!E23-'Property Set Up'!E24)/(1+Assumptions!F9)^15)) -> 0 | E10: =D10/$D$13 -> 
B11: Inflation Adjusted Debt Repayments | D11: =SUM(D41:R41) -> 0 | E11: =D11/D13 -> 
B12: Inflation Adjusted Cashflow | D12: =SUM(C146:R146) -> 0 | E12: =D12/$D$13 -> 
B13: Total Returns | D13: =SUM(D9:D12) -> 
B15: Investment Summary
B16: Equity Investment | D16: =MAX('Property Set Up'!$E$26,'Property Set Up'!$E$27*MIN('Property Set Up'!E23,'Property Set Up'!$E$24)+'Property Set Up'!$E$25) -> 3000 | E16: =D16/D18 -> 0.02659908845
B17: Cashflow Investment | D17: =-SUM(C143:R143) -> 109785.8199 | E17: =D17/D18 -> 0.9734009116
B18: Total Investment | D18: =SUM(D16:D17) -> 112785.8199
B20: Return on Investment | D20: =D13/D18 -> 
B23: =UPPER(CONCATENATE('Property Set Up'!E12," Cashflow Projection & Analysis")) -> PROPERTY #3 CASHFLOW PROJECTION & ANALYSIS
B26: Inflation Adjusted Years | D26: 0 | E26: =D26+1 -> 1 | F26: =E26+1 -> 2 | G26: 3 | H26: 4 | I26: 5 | J26: 6 | K26: 7 | L26: 8 | M26: 9 | N26: 10 | O26: 11 | P26: 12 | Q26: 13 | R26: 14 | S26: =R26+1 -> 15 | T26: 16 | U26: 17 | V26: 18 | W26: 19 | X26: 20 | Y26: 21 | Z26: 22 | AA26: 23 | AB26: 24 | AC26: 25 | AD26: 26 | AE26: 27 | AF26: 28 | AG26: 29 | AH26: 30 | AI26: 31
B27: P+I Starting Period (Months) – Construction | D27: =IF(D67>=12,0,1) -> 0 | E27: =IF(E67=12,0,D28+1) -> 1 | F27: =E28+1 -> 13 | G27: =F28+1 -> 25 | H27: 37 | I27: 49 | J27: 61 | K27: 73 | L27: 85 | M27: 97 | N27: 109 | O27: 121 | P27: 133 | Q27: 145 | R27: 157 | S27: =R28+1 -> 169 | T27: 181 | U27: 193 | V27: 205 | W27: 217 | X27: 229 | Y27: 241 | Z27: 253 | AA27: 265 | AB27: 277 | AC27: 289 | AD27: 301 | AE27: 313 | AF27: 325 | AG27: 337 | AH27: 349 | AI27: 361
B28: P+I Ending Period (Months) – Construction | D28: =IF(D27=0,0,12-D67) -> 0 | E28: =IF(D28=0,12-E67,E27+11) -> 12 | F28: =F27+11 -> 24 | G28: 36 | H28: 48 | I28: 60 | J28: 72 | K28: 84 | L28: 96 | M28: 108 | N28: 120 | O28: 132 | P28: 144 | Q28: 156 | R28: 168 | S28: =S27+11 -> 180 | T28: 192 | U28: 204 | V28: 216 | W28: 228 | X28: 240 | Y28: 252 | Z28: 264 | AA28: 276 | AB28: 288 | AC28: 300 | AD28: 312 | AE28: 324 | AF28: 336 | AG28: 348 | AH28: =AH27+11 -> 360 | AI28: =AI27+11 -> 372
B29: Months Left on Principal | D29: =MAX(0,'Property Set Up'!$E39*12-'Projection – Property #3'!C28) -> 360 | E29: =MAX(0,'Property Set Up'!$E39*12-'Projection – Property #3'!D28) -> 360 | F29: =MAX(0,'Property Set Up'!$E39*12-'Projection – Property #3'!E28) -> 348 | G29: =MAX(0,'Property Set Up'!$E39*12-'Projection – Property #3'!F28) -> 336 | H29: =MAX(0,'Property Set Up'!$E39*12-'Projection – Property #3'!G28) -> 324 | I29: =MAX(0,'Property Set Up'!$E39*12-'Projection – Property #3'!H28) -> 312 | J29: =MAX(0,'Property Set Up'!$E39*12-'Projection – Property #3'!I28) -> 300 | K29: =MAX(0,'Property Set Up'!$E39*12-'Projection – Property #3'!J28) -> 288 | L29: =MAX(0,'Property Set Up'!$E39*12-'Projection – Property #3'!K28) -> 276 | M29: =MAX(0,'Property Set Up'!$E39*12-'Projection – Property #3'!L28) -> 264 | N29: =MAX(0,'Property Set Up'!$E39*12-'Projection – Property #3'!M28) -> 252 | O29: =MAX(0,'Property Set Up'!$E39*12-'Projection – Property #3'!N28) -> 240 | P29: =MAX(0,'Property Set Up'!$E39*12-'Projection – Property #3'!O28) -> 228 | Q29: =MAX(0,'Property Set Up'!$E39*12-'Projection – Property #3'!P28) -> 216 | R29: =MAX(0,'Property Set Up'!$E39*12-'Projection – Property #3'!Q28) -> 204 | S29: =MAX(0,'Property Set Up'!$E39*12-'Projection – Property #3'!R28) -> 192 | T29: =MAX(0,'Property Set Up'!$E39*12-'Projection – Property #3'!S28) -> 180 | U29: =MAX(0,'Property Set Up'!$E39*12-'Projection – Property #3'!T28) -> 168 | V29: =MAX(0,'Property Set Up'!$E39*12-'Projection – Property #3'!U28) -> 156 | W29: =MAX(0,'Property Set Up'!$E39*12-'Projection – Property #3'!V28) -> 144 | X29: =MAX(0,'Property Set Up'!$E39*12-'Projection – Property #3'!W28) -> 132 | Y29: =MAX(0,'Property Set Up'!$E39*12-'Projection – Property #3'!X28) -> 120 | Z29: =MAX(0,'Property Set Up'!$E39*12-'Projection – Property #3'!Y28) -> 108 | AA29: =MAX(0,'Property Set Up'!$E39*12-'Projection – Property #3'!Z28) -> 96 | AB29: =MAX(0,'Property Set Up'!$E39*12-'Projection – Property #3'!AA28) -> 84 | AC29: =MAX(0,'Property Set Up'!$E39*12-'Projection – Property #3'!AB28) -> 72 | AD29: =MAX(0,'Property Set Up'!$E39*12-'Projection – Property #3'!AC28) -> 60 | AE29: =MAX(0,'Property Set Up'!$E39*12-'Projection – Property #3'!AD28) -> 48 | AF29: =MAX(0,'Property Set Up'!$E39*12-'Projection – Property #3'!AE28) -> 36 | AG29: =MAX(0,'Property Set Up'!$E39*12-'Projection – Property #3'!AF28) -> 24 | AH29: =MAX(0,'Property Set Up'!$E39*12-'Projection – Property #3'!AG28) -> 12 | AI29: =MAX(0,'Property Set Up'!$E39*12-'Projection – Property #3'!AH28) -> 0
B30: Months Left on Principal (Years) | D30: =D29/12 -> 30 | E30: =E29/12 -> 30 | F30: 29 | G30: 28 | H30: 27 | I30: 26 | J30: 25 | K30: 24 | L30: 23 | M30: 22 | N30: 21 | O30: 20 | P30: 19 | Q30: 18 | R30: 17 | S30: 16 | T30: 15 | U30: 14 | V30: 13 | W30: 12 | X30: 11 | Y30: 10 | Z30: 9 | AA30: 8 | AB30: 7 | AC30: 6 | AD30: 5 | AE30: 4 | AF30: 3 | AG30: 2 | AH30: 1 | AI30: 0
B31: Principal Payments Denominator. Months of Year | D31: =IF('Property Set Up'!$E38="Interest Only",2,IF(AND(D29>0,D29<=11),D29/12,IF(D29=0,0,1))) -> 2 | E31: =IF('Property Set Up'!$E38="Interest Only",2,IF(AND(E29>0,E29<=11),E29/12,IF(E29=0,0,1))) -> 2 | F31: =IF('Property Set Up'!$E38="Interest Only",2,IF(AND(F29>0,F29<=11),F29/12,IF(F29=0,0,1))) -> 2 | G31: =IF('Property Set Up'!$E38="Interest Only",2,IF(AND(G29>0,G29<=11),G29/12,IF(G29=0,0,1))) -> 2 | H31: =IF('Property Set Up'!$E38="Interest Only",2,IF(AND(H29>0,H29<=11),H29/12,IF(H29=0,0,1))) -> 2 | I31: =IF('Property Set Up'!$E38="Interest Only",2,IF(AND(I29>0,I29<=11),I29/12,IF(I29=0,0,1))) -> 2 | J31: =IF('Property Set Up'!$E38="Interest Only",2,IF(AND(J29>0,J29<=11),J29/12,IF(J29=0,0,1))) -> 2 | K31: =IF('Property Set Up'!$E38="Interest Only",2,IF(AND(K29>0,K29<=11),K29/12,IF(K29=0,0,1))) -> 2 | L31: =IF('Property Set Up'!$E38="Interest Only",2,IF(AND(L29>0,L29<=11),L29/12,IF(L29=0,0,1))) -> 2 | M31: =IF('Property Set Up'!$E38="Interest Only",2,IF(AND(M29>0,M29<=11),M29/12,IF(M29=0,0,1))) -> 2 | N31: =IF('Property Set Up'!$E38="Interest Only",2,IF(AND(N29>0,N29<=11),N29/12,IF(N29=0,0,1))) -> 2 | O31: =IF('Property Set Up'!$E38="Interest Only",2,IF(AND(O29>0,O29<=11),O29/12,IF(O29=0,0,1))) -> 2 | P31: =IF('Property Set Up'!$E38="Interest Only",2,IF(AND(P29>0,P29<=11),P29/12,IF(P29=0,0,1))) -> 2 | Q31: =IF('Property Set Up'!$E38="Interest Only",2,IF(AND(Q29>0,Q29<=11),Q29/12,IF(Q29=0,0,1))) -> 2 | R31: =IF('Property Set Up'!$E38="Interest Only",2,IF(AND(R29>0,R29<=11),R29/12,IF(R29=0,0,1))) -> 2 | S31: =IF('Property Set Up'!$E38="Interest Only",2,IF(AND(S29>0,S29<=11),S29/12,IF(S29=0,0,1))) -> 2 | T31: =IF('Property Set Up'!$E38="Interest Only",2,IF(AND(T29>0,T29<=11),T29/12,IF(T29=0,0,1))) -> 2 | U31: =IF('Property Set Up'!$E38="Interest Only",2,IF(AND(U29>0,U29<=11),U29/12,IF(U29=0,0,1))) -> 2 | V31: =IF('Property Set Up'!$E38="Interest Only",2,IF(AND(V29>0,V29<=11),V29/12,IF(V29=0,0,1))) -> 2 | W31: =IF('Property Set Up'!$E38="Interest Only",2,IF(AND(W29>0,W29<=11),W29/12,IF(W29=0,0,1))) -> 2 | X31: =IF('Property Set Up'!$E38="Interest Only",2,IF(AND(X29>0,X29<=11),X29/12,IF(X29=0,0,1))) -> 2 | Y31: =IF('Property Set Up'!$E38="Interest Only",2,IF(AND(Y29>0,Y29<=11),Y29/12,IF(Y29=0,0,1))) -> 2 | Z31: =IF('Property Set Up'!$E38="Interest Only",2,IF(AND(Z29>0,Z29<=11),Z29/12,IF(Z29=0,0,1))) -> 2 | AA31: =IF('Property Set Up'!$E38="Interest Only",2,IF(AND(AA29>0,AA29<=11),AA29/12,IF(AA29=0,0,1))) -> 2 | AB31: =IF('Property Set Up'!$E38="Interest Only",2,IF(AND(AB29>0,AB29<=11),AB29/12,IF(AB29=0,0,1))) -> 2 | AC31: =IF('Property Set Up'!$E38="Interest Only",2,IF(AND(AC29>0,AC29<=11),AC29/12,IF(AC29=0,0,1))) -> 2 | AD31: =IF('Property Set Up'!$E38="Interest Only",2,IF(AND(AD29>0,AD29<=11),AD29/12,IF(AD29=0,0,1))) -> 2 | AE31: =IF('Property Set Up'!$E38="Interest Only",2,IF(AND(AE29>0,AE29<=11),AE29/12,IF(AE29=0,0,1))) -> 2 | AF31: =IF('Property Set Up'!$E38="Interest Only",2,IF(AND(AF29>0,AF29<=11),AF29/12,IF(AF29=0,0,1))) -> 2 | AG31: =IF('Property Set Up'!$E38="Interest Only",2,IF(AND(AG29>0,AG29<=11),AG29/12,IF(AG29=0,0,1))) -> 2 | AH31: =IF('Property Set Up'!$E38="Interest Only",2,IF(AND(AH29>0,AH29<=11),AH29/12,IF(AH29=0,0,1))) -> 2 | AI31: =IF('Property Set Up'!$E38="Interest Only",2,IF(AND(AI29>0,AI29<=11),AI29/12,IF(AI29=0,0,1))) -> 2
B32: Years | D32: 1 | E32: 2 | F32: 3 | G32: 4 | H32: 5 | I32: 6 | J32: 7 | K32: 8 | L32: 9 | M32: 10 | N32: 11 | O32: 12 | P32: 13 | Q32: 14 | R32: 15 | S32: 16 | T32: 17 | U32: 18 | V32: 19 | W32: 20 | X32: 21 | Y32: 22 | Z32: 23 | AA32: 24 | AB32: 25 | AC32: 26 | AD32: 27 | AE32: 28 | AF32: 29 | AG32: 30 | AH32: 31 | AI32: 32
D33: =CONCATENATE(TEXT(D85,"mmm-yy")," – ",TEXT(D86,"mmm-yy")) -> May-22 – Apr-23 | E33: =CONCATENATE(TEXT(E85,"mmm-yy")," – ",TEXT(E86,"mmm-yy")) -> May-23 – Apr-24 | F33: May-24 – Apr-25 | G33: May-25 – Apr-26 | H33: May-26 – Apr-27 | I33: May-27 – Apr-28 | J33: May-28 – Apr-29 | K33: May-29 – Apr-30 | L33: May-30 – Apr-31 | M33: May-31 – Apr-32 | N33: May-32 – Apr-33 | O33: May-33 – Apr-34 | P33: May-34 – Apr-35 | Q33: May-35 – Apr-36 | R33: May-36 – Apr-37 | S33: =CONCATENATE(TEXT(S85,"mmm-yy")," – ",TEXT(S86,"mmm-yy")) -> May-37 – Apr-38 | T33: May-38 – Apr-39 | U33: May-39 – Apr-40 | V33: May-40 – Apr-41 | W33: May-41 – Apr-42 | X33: May-42 – Apr-43 | Y33: May-43 – Apr-44 | Z33: May-44 – Apr-45 | AA33: May-45 – Apr-46 | AB33: May-46 – Apr-47 | AC33: May-47 – Apr-48 | AD33: May-48 – Apr-49 | AE33: May-49 – Apr-50 | AF33: May-50 – Apr-51 | AG33: May-51 – Apr-52 | AH33: =CONCATENATE(TEXT(AH85,"mmm-yy")," – ",TEXT(AH86,"mmm-yy")) -> May-52 – Apr-53 | AI33: =CONCATENATE(TEXT(AI85,"mmm-yy")," – ",TEXT(AI86,"mmm-yy")) -> May-53 – Apr-54
B36: ASSETS AND LIABILITIES
B39: Asset Value (Start of Year) | C39: 0 | D39: ='Property Set Up'!$E$23*(1+'Property Set Up'!E87)^'Projection – Property #3'!D26 ->  | E39: =D39*(1+'Property Set Up'!$E$87) ->  | F39: =E39*(1+'Property Set Up'!$E$87) ->  | G39: =F39*(1+'Property Set Up'!$E$87) ->  | H39: =G39*(1+'Property Set Up'!$E$87) ->  | I39: =H39*(1+'Property Set Up'!$E$87) ->  | J39: =I39*(1+'Property Set Up'!$E$87) ->  | K39: =J39*(1+'Property Set Up'!$E$87) ->  | L39: =K39*(1+'Property Set Up'!$E$87) ->  | M39: =L39*(1+'Property Set Up'!$E$87) ->  | N39: =M39*(1+'Property Set Up'!$E$87) ->  | O39: =N39*(1+'Property Set Up'!$E$87) ->  | P39: =O39*(1+'Property Set Up'!$E$87) ->  | Q39: =P39*(1+'Property Set Up'!$E$87) ->  | R39: =Q39*(1+'Property Set Up'!$E$87) ->  | S39: =R39*(1+'Property Set Up'!$E$87) ->  | T39: =S39*(1+'Property Set Up'!$E$87) ->  | U39: =T39*(1+'Property Set Up'!$E$87) ->  | V39: =U39*(1+'Property Set Up'!$E$87) ->  | W39: =V39*(1+'Property Set Up'!$E$87) ->  | X39: =W39*(1+'Property Set Up'!$E$87) ->  | Y39: =X39*(1+'Property Set Up'!$E$87) ->  | Z39: =Y39*(1+'Property Set Up'!$E$87) ->  | AA39: =Z39*(1+'Property Set Up'!$E$87) ->  | AB39: =AA39*(1+'Property Set Up'!$E$87) ->  | AC39: =AB39*(1+'Property Set Up'!$E$87) ->  | AD39: =AC39*(1+'Property Set Up'!$E$87) ->  | AE39: =AD39*(1+'Property Set Up'!$E$87) ->  | AF39: =AE39*(1+'Property Set Up'!$E$87) ->  | AG39: =AF39*(1+'Property Set Up'!$E$87) ->  | AH39: =AG39*(1+'Property Set Up'!$E$87) ->  | AI39: =AH39*(1+'Property Set Up'!$E$87) -> 
B40: Mortgage (Start of Year) | C40: 0 | D40: ='Property Set Up'!$E$28 -> 3000 | E40: =MAX(0,D40-D42) -> 3000 | F40: =MAX(0,E40-E42) -> 3000 | G40: =MAX(0,F40-F42) -> 3000 | H40: 3000 | I40: 3000 | J40: 3000 | K40: 3000 | L40: 3000 | M40: 3000 | N40: 3000 | O40: 3000 | P40: 3000 | Q40: 3000 | R40: =MAX(0,Q40-Q42) -> 3000 | S40: =MAX(0,R40-R42) -> 3000 | T40: =MAX(0,S40-S42) -> 3000 | U40: =MAX(0,T40-T42) -> 3000 | V40: =MAX(0,U40-U42) -> 3000 | W40: =MAX(0,V40-V42) -> 3000 | X40: =MAX(0,W40-W42) -> 3000 | Y40: =MAX(0,X40-X42) -> 3000 | Z40: =MAX(0,Y40-Y42) -> 3000 | AA40: =MAX(0,Z40-Z42) -> 3000 | AB40: =MAX(0,AA40-AA42) -> 3000 | AC40: =MAX(0,AB40-AB42) -> 3000 | AD40: =MAX(0,AC40-AC42) -> 3000 | AE40: =MAX(0,AD40-AD42) -> 3000 | AF40: =MAX(0,AE40-AE42) -> 3000 | AG40: =MAX(0,AF40-AF42) -> 3000 | AH40: =MAX(0,AG40-AG42) -> 3000 | AI40: =MAX(0,AH40-AH42) -> 3000
B41: Inflation Adjusted Debt Repayments In The Year | C41: 0 | D41: =(D40-E40)/(1+'Property Set Up'!$E$77)^D26 -> 0 | E41: =(E40-F40)/(1+'Property Set Up'!$E$77)^E26 -> 0 | F41: =(F40-G40)/(1+'Property Set Up'!$E$77)^F26 -> 0 | G41: =(G40-H40)/(1+'Property Set Up'!$E$77)^G26 -> 0 | H41: =(H40-I40)/(1+'Property Set Up'!$E$77)^H26 -> 0 | I41: =(I40-J40)/(1+'Property Set Up'!$E$77)^I26 -> 0 | J41: =(J40-K40)/(1+'Property Set Up'!$E$77)^J26 -> 0 | K41: =(K40-L40)/(1+'Property Set Up'!$E$77)^K26 -> 0 | L41: =(L40-M40)/(1+'Property Set Up'!$E$77)^L26 -> 0 | M41: =(M40-N40)/(1+'Property Set Up'!$E$77)^M26 -> 0 | N41: =(N40-O40)/(1+'Property Set Up'!$E$77)^N26 -> 0 | O41: =(O40-P40)/(1+'Property Set Up'!$E$77)^O26 -> 0 | P41: =(P40-Q40)/(1+'Property Set Up'!$E$77)^P26 -> 0 | Q41: =(Q40-R40)/(1+'Property Set Up'!$E$77)^Q26 -> 0 | R41: =(R40-S40)/(1+'Property Set Up'!$E$77)^R26 -> 0 | S41: =($D$40-T40)/(1+'Property Set Up'!$E$77)^S26 -> 0 | T41: =($D$40-U40)/(1+'Property Set Up'!$E$77)^T26 -> 0 | U41: =($D$40-V40)/(1+'Property Set Up'!$E$77)^U26 -> 0 | V41: =($D$40-W40)/(1+'Property Set Up'!$E$77)^V26 -> 0 | W41: =($D$40-X40)/(1+'Property Set Up'!$E$77)^W26 -> 0 | X41: =($D$40-Y40)/(1+'Property Set Up'!$E$77)^X26 -> 0 | Y41: =($D$40-Z40)/(1+'Property Set Up'!$E$77)^Y26 -> 0 | Z41: =($D$40-AA40)/(1+'Property Set Up'!$E$77)^Z26 -> 0 | AA41: =($D$40-AB40)/(1+'Property Set Up'!$E$77)^AA26 -> 0 | AB41: =($D$40-AC40)/(1+'Property Set Up'!$E$77)^AB26 -> 0 | AC41: =($D$40-AD40)/(1+'Property Set Up'!$E$77)^AC26 -> 0 | AD41: =($D$40-AE40)/(1+'Property Set Up'!$E$77)^AD26 -> 0 | AE41: =($D$40-AF40)/(1+'Property Set Up'!$E$77)^AE26 -> 0 | AF41: =($D$40-AG40)/(1+'Property Set Up'!$E$77)^AF26 -> 0 | AG41: =($D$40-AH40)/(1+'Property Set Up'!$E$77)^AG26 -> 0 | AH41: =($D$40-AI40)/(1+'Property Set Up'!$E$77)^AH26 -> 0 | AI41: =($D$40-AJ40)/(1+'Property Set Up'!$E$77)^AI26 -> 1623.737909
B42: Hidden – Principal paid in year | D42: =IFERROR(IF(D45="Interest Only",0,IF(D28=0,0,-CUMPRINC(D59/12,12*D46,D40,D27,D28,0))),0) -> 0 | E42: =IFERROR(IF(E45="Interest Only",0,IF(E28=0,0,-CUMPRINC(E59/12,12*E46,E40,E27,E28,0))),0) -> 0 | F42: =IFERROR(IF(F45="Interest Only",0,IF(F28=0,0,-CUMPRINC(F59/12,12*F46,F40,F27,F28,0))),0) -> 0 | G42: =IFERROR(IF(G45="interest only",0,-CUMPRINC(G59/12,12*G46,G40,1,12,0)),0) -> 0 | H42: 0 | I42: 0 | J42: 0 | K42: 0 | L42: 0 | M42: 0 | N42: 0 | O42: 0 | P42: 0 | Q42: 0 | R42: 0 | S42: 0 | T42: 0 | U42: 0 | V42: 0 | W42: 0 | X42: 0 | Y42: 0 | Z42: 0 | AA42: 0 | AB42: 0 | AC42: 0 | AD42: 0 | AE42: 0 | AF42: 0 | AG42: 0 | AH42: 0 | AI42: 0
B43: Net Equity | D43: =D39-D40 -> 
B45: Mortgage Type | D45: =IF('Property Set Up'!$E$38="Principal & interest","P+I","Interest Only") -> Interest Only | E45: =IF('Property Set Up'!$E$38="Principal & interest","P+I","Interest Only") -> Interest Only | F45: =IF('Property Set Up'!$E$38="Principal & interest","P+I","Interest Only") -> Interest Only | G45: =IF(ISBLANK(G48),F45,G48) -> Interest Only | H45: =IF(ISBLANK(H48),G45,H48) -> Interest Only | I45: Interest Only | J45: Interest Only | K45: Interest Only | L45: Interest Only | M45: Interest Only | N45: Interest Only | O45: Interest Only | P45: Interest Only | Q45: Interest Only | R45: =IF(ISBLANK(R48),Q45,R48) -> Interest Only | S45: =IF(ISBLANK(S48),R45,S48) -> Interest Only | T45: =IF(ISBLANK(T48),S45,T48) -> Interest Only | U45: =IF(ISBLANK(U48),T45,U48) -> Interest Only | V45: =IF(ISBLANK(V48),U45,V48) -> Interest Only | W45: =IF(ISBLANK(W48),V45,W48) -> Interest Only | X45: =IF(ISBLANK(X48),W45,X48) -> Interest Only | Y45: =IF(ISBLANK(Y48),X45,Y48) -> Interest Only | Z45: =IF(ISBLANK(Z48),Y45,Z48) -> Interest Only | AA45: =IF(ISBLANK(AA48),Z45,AA48) -> Interest Only | AB45: =IF(ISBLANK(AB48),AA45,AB48) -> Interest Only | AC45: =IF(ISBLANK(AC48),AB45,AC48) -> Interest Only | AD45: =IF(ISBLANK(AD48),AC45,AD48) -> Interest Only | AE45: =IF(ISBLANK(AE48),AD45,AE48) -> Interest Only | AF45: =IF(ISBLANK(AF48),AE45,AF48) -> Interest Only | AG45: =IF(ISBLANK(AG48),AF45,AG48) -> Interest Only | AH45: =IF(ISBLANK(AH48),AG45,AH48) -> Interest Only | AI45: =IF(ISBLANK(AI48),AH45,AI48) -> Interest Only
B46: Mortgage Term | D46: =IF(D45="P+I",D30,"N/A") -> N/A | E46: =IF(E45="P+I",E30,"N/A") -> N/A | F46: =IF(F45="P+I",F30,"N/A") -> N/A | G46: =IF(G45="Interest Only","N/A",IF(G45=F45,IF(F46<>"N/A",MAX(F46-1,0),F46),G49)) -> N/A | H46: =IF(H45="Interest Only","N/A",IF(H45=G45,IF(G46<>"N/A",MAX(G46-1,0),G46),H49)) -> N/A | I46: N/A | J46: N/A | K46: N/A | L46: N/A | M46: N/A | N46: N/A | O46: N/A | P46: N/A | Q46: N/A | R46: =IF(R45="Interest Only","N/A",IF(R45=Q45,IF(Q46<>"N/A",MAX(Q46-1,0),Q46),R49)) -> N/A | S46: =IF(S45="Interest Only","N/A",IF(S45=R45,IF(R46<>"N/A",MAX(R46-1,0),R46),S49)) -> N/A | T46: =IF(T45="Interest Only","N/A",IF(T45=S45,IF(S46<>"N/A",MAX(S46-1,0),S46),T49)) -> N/A | U46: =IF(U45="Interest Only","N/A",IF(U45=T45,IF(T46<>"N/A",MAX(T46-1,0),T46),U49)) -> N/A | V46: =IF(V45="Interest Only","N/A",IF(V45=U45,IF(U46<>"N/A",MAX(U46-1,0),U46),V49)) -> N/A | W46: =IF(W45="Interest Only","N/A",IF(W45=V45,IF(V46<>"N/A",MAX(V46-1,0),V46),W49)) -> N/A | X46: =IF(X45="Interest Only","N/A",IF(X45=W45,IF(W46<>"N/A",MAX(W46-1,0),W46),X49)) -> N/A | Y46: =IF(Y45="Interest Only","N/A",IF(Y45=X45,IF(X46<>"N/A",MAX(X46-1,0),X46),Y49)) -> N/A | Z46: =IF(Z45="Interest Only","N/A",IF(Z45=Y45,IF(Y46<>"N/A",MAX(Y46-1,0),Y46),Z49)) -> N/A | AA46: =IF(AA45="Interest Only","N/A",IF(AA45=Z45,IF(Z46<>"N/A",MAX(Z46-1,0),Z46),AA49)) -> N/A | AB46: =IF(AB45="Interest Only","N/A",IF(AB45=AA45,IF(AA46<>"N/A",MAX(AA46-1,0),AA46),AB49)) -> N/A | AC46: =IF(AC45="Interest Only","N/A",IF(AC45=AB45,IF(AB46<>"N/A",MAX(AB46-1,0),AB46),AC49)) -> N/A | AD46: =IF(AD45="Interest Only","N/A",IF(AD45=AC45,IF(AC46<>"N/A",MAX(AC46-1,0),AC46),AD49)) -> N/A | AE46: =IF(AE45="Interest Only","N/A",IF(AE45=AD45,IF(AD46<>"N/A",MAX(AD46-1,0),AD46),AE49)) -> N/A | AF46: =IF(AF45="Interest Only","N/A",IF(AF45=AE45,IF(AE46<>"N/A",MAX(AE46-1,0),AE46),AF49)) -> N/A | AG46: =IF(AG45="Interest Only","N/A",IF(AG45=AF45,IF(AF46<>"N/A",MAX(AF46-1,0),AF46),AG49)) -> N/A | AH46: =IF(AH45="Interest Only","N/A",IF(AH45=AG45,IF(AG46<>"N/A",MAX(AG46-1,0),AG46),AH49)) -> N/A | AI46: =IF(AI45="Interest Only","N/A",IF(AI45=AH45,IF(AH46<>"N/A",MAX(AH46-1,0),AH46),AI49)) -> N/A
B48: Change Mortgage Type | D48: N/A | E48: N/A | F48: N/A
B49: Change Mortgage Term | D49: N/A | E49: N/A | F49: N/A
B52: PRE-TAX CASHFLOW
B55: Rent Per Annum | D55: =IF(D67>=12,0,IF(D67>0,(12-D67)/12*D71,D71)) -> 0 | E55: =IF(E67>=12,0,IF(E67>0,(12-E67)/12*E71,E71)) -> 0 | F55: =IF(F67>=12,0,IF(F67>0,(12-F67)/12*F71,F71)) -> 0 | G55: 0 | H55: 0 | I55: 0 | J55: 0 | K55: 0 | L55: 0 | M55: 0 | N55: 0 | O55: 0 | P55: 0 | Q55: 0 | R55: 0 | S55: =IF(S67>=12,0,IF(S67>0,(12-S67)/12*S71,S71)) -> 0 | T55: 0 | U55: 0 | V55: 0 | W55: 0 | X55: 0 | Y55: 0 | Z55: 0 | AA55: 0 | AB55: 0 | AC55: 0 | AD55: 0 | AE55: 0 | AF55: 0 | AG55: 0 | AH55: =IF(AH67>=12,0,IF(AH67>0,(12-AH67)/12*AH71,AH71)) -> 0 | AI55: =IF(AI67>=12,0,IF(AI67>0,(12-AI67)/12*AI71,AI71)) -> 0
B56: Financing Costs | D56: =SUM(D78:D79) -> 0 | E56: =SUM(E78:E79) -> 157.5 | F56: 150 | G56: 135 | H56: 135 | I56: =SUM(I78:I79) -> 135 | J56: 135 | K56: 135 | L56: 135 | M56: 135 | N56: 135 | O56: 135 | P56: 135 | Q56: 135 | R56: 135 | S56: 135 | T56: 135 | U56: 135 | V56: 135 | W56: 135 | X56: 135 | Y56: 135 | Z56: 135 | AA56: 135 | AB56: 135 | AC56: 135 | AD56: 135 | AE56: 135 | AF56: 135 | AG56: 135 | AH56: 135 | AI56: 135
B57: Operating Costs | D57: =IF(D67>=12,0,IF(D67>0,(12-D67)/12*(D72+D73),D72+D73)) -> 0 | E57: =IF(E67>=12,0,IF(E67>0,(12-E67)/12*(E72+E73),E72+E73)) -> 7876.95 | F57: =IF(F67>=12,0,IF(F67>0,(12-F67)/12*(F72+F73),F72+F73)) -> 8034.489 | G57: 8195.17878 | H57: 8359.082356 | I57: 8526.264003 | J57: 8696.789283 | K57: 8870.725068 | L57: 9048.13957 | M57: 9229.102361 | N57: 9413.684408 | O57: 9601.958097 | P57: 9793.997259 | Q57: 9989.877204 | R57: 10189.67475 | S57: =IF(S67>=12,0,IF(S67>0,(12-S67)/12*(S72+S73),S72+S73)) -> 10393.46824 | T57: 10601.33761 | U57: 10813.36436 | V57: 11029.63165 | W57: 11250.22428 | X57: 11475.22877 | Y57: 11704.73334 | Z57: 11938.82801 | AA57: 12177.60457 | AB57: 12421.15666 | AC57: 12669.57979 | AD57: 12922.97139 | AE57: 13181.43082 | AF57: 13445.05943 | AG57: 13713.96062 | AH57: =IF(AH67>=12,0,IF(AH67>0,(12-AH67)/12*(AH72+AH73),AH72+AH73)) -> 13988.23983 | AI57: =IF(AI67>=12,0,IF(AI67>0,(12-AI67)/12*(AI72+AI73),AI72+AI73)) -> 14268.00463
B59: Interest Rate | D59: =Assumptions!I38 -> 0.045 | E59: =Assumptions!J38 -> 0.0525 | F59: =Assumptions!K38 -> 0.05 | G59: =Assumptions!L38 -> 0.045 | H59: =Assumptions!M38 -> 0.045 | I59: =Assumptions!N38 -> 0.045 | J59: =Assumptions!O38 -> 0.045 | K59: =Assumptions!P38 -> 0.045 | L59: =Assumptions!Q38 -> 0.045 | M59: =Assumptions!R38 -> 0.045 | N59: =Assumptions!S38 -> 0.045 | O59: =Assumptions!T38 -> 0.045 | P59: =Assumptions!U38 -> 0.045 | Q59: =Assumptions!V38 -> 0.045 | R59: =Assumptions!W38 -> 0.045 | S59: =Assumptions!X38 -> 0.045 | T59: =Assumptions!Y38 -> 0.045 | U59: =Assumptions!Z38 -> 0.045 | V59: =Assumptions!AA38 -> 0.045 | W59: =Assumptions!AB38 -> 0.045 | X59: =Assumptions!AC38 -> 0.045 | Y59: =Assumptions!AD38 -> 0.045 | Z59: =Assumptions!AE38 -> 0.045 | AA59: =Assumptions!AF38 -> 0.045 | AB59: =Assumptions!AG38 -> 0.045 | AC59: =Assumptions!AH38 -> 0.045 | AD59: =Assumptions!AI38 -> 0.045 | AE59: =Assumptions!AJ38 -> 0.045 | AF59: =Assumptions!AK38 -> 0.045 | AG59: =Assumptions!AL38 -> 0.045 | AH59: =Assumptions!AM38 -> 0.045 | AI59: =Assumptions!AN38 -> 0.045
B61: Annual Pre-Tax Cashflow | C61: =C55-SUM(C56:C56) -> 0 | D61: =D55-SUM(D56:D57) -> 0 | E61: -8034.45 | F61: -8184.489 | G61: -8330.17878 | H61: -8494.082356 | I61: -8661.264003 | J61: -8831.789283 | K61: -9005.725068 | L61: -9183.13957 | M61: -9364.102361 | N61: -9548.684408 | O61: -9736.958097 | P61: -9928.997259 | Q61: -10124.8772 | R61: -10324.67475 | S61: -10528.46824 | T61: -10736.33761 | U61: -10948.36436 | V61: -11164.63165 | W61: -11385.22428 | X61: -11610.22877 | Y61: -11839.73334 | Z61: -12073.82801 | AA61: -12312.60457 | AB61: -12556.15666 | AC61: -12804.57979 | AD61: -13057.97139 | AE61: -13316.43082 | AF61: -13580.05943 | AG61: -13848.96062 | AH61: -14123.23983 | AI61: -14403.00463
B64: HIDDEN RENTAL INFLATION CALCULATIONS
B67: Months Left in Construction | D67: =IF('Property Set Up'!E103="Yes",'Property Set Up'!E104,0) -> 12 | E67: =D67-12 -> 0 | F67: =E67-12 -> -12 | G67: -24 | H67: -36 | I67: -48 | J67: -60 | K67: -72 | L67: -84 | M67: -96 | N67: -108 | O67: -120 | P67: -132 | Q67: -144 | R67: -156 | S67: =R67-12 -> -168 | T67: -180 | U67: -192 | V67: -204 | W67: -216 | X67: -228 | Y67: -240 | Z67: -252 | AA67: -264 | AB67: -276 | AC67: -288 | AD67: -300 | AE67: -312 | AF67: -324 | AG67: -336 | AH67: -348 | AI67: -360
B68: Months in Construction | D68: =12-D69 -> 12 | E68: =12-E69 -> 0 | F68: 0 | G68: 0 | H68: 0 | I68: 0 | J68: 0 | K68: 0 | L68: 0 | M68: 0 | N68: 0 | O68: 0 | P68: 0 | Q68: 0 | R68: 0 | S68: 0 | T68: 0 | U68: 0 | V68: 0 | W68: 0 | X68: 0 | Y68: 0 | Z68: 0 | AA68: 0 | AB68: 0 | AC68: 0 | AD68: 0 | AE68: 0 | AF68: 0 | AG68: 0 | AH68: 0 | AI68: 0
B69: Months Operating | D69: =MAX(MIN(12-D67,12),0) -> 0 | E69: =MAX(MIN(12-E67,12),0) -> 12 | F69: 12 | G69: 12 | H69: 12 | I69: 12 | J69: 12 | K69: 12 | L69: 12 | M69: 12 | N69: 12 | O69: 12 | P69: 12 | Q69: 12 | R69: 12 | S69: 12 | T69: 12 | U69: 12 | V69: 12 | W69: 12 | X69: 12 | Y69: 12 | Z69: 12 | AA69: 12 | AB69: 12 | AC69: 12 | AD69: 12 | AE69: 12 | AF69: 12 | AG69: 12 | AH69: 12 | AI69: 12
B70: P+I Term | D70: ='Property Set Up'!$E39 -> 30 | E70: ='Property Set Up'!$E39 -> 30 | F70: ='Property Set Up'!$E39 -> 30 | G70: ='Property Set Up'!$E39 -> 30 | H70: ='Property Set Up'!$E39 -> 30 | I70: ='Property Set Up'!$E39 -> 30 | J70: ='Property Set Up'!$E39 -> 30 | K70: ='Property Set Up'!$E39 -> 30 | L70: ='Property Set Up'!$E39 -> 30 | M70: ='Property Set Up'!$E39 -> 30 | N70: ='Property Set Up'!$E39 -> 30 | O70: ='Property Set Up'!$E39 -> 30 | P70: ='Property Set Up'!$E39 -> 30 | Q70: ='Property Set Up'!$E39 -> 30 | R70: ='Property Set Up'!$E39 -> 30 | S70: ='Property Set Up'!$E39 -> 30 | T70: ='Property Set Up'!$E39 -> 30 | U70: ='Property Set Up'!$E39 -> 30 | V70: ='Property Set Up'!$E39 -> 30 | W70: ='Property Set Up'!$E39 -> 30 | X70: ='Property Set Up'!$E39 -> 30 | Y70: ='Property Set Up'!$E39 -> 30 | Z70: ='Property Set Up'!$E39 -> 30 | AA70: ='Property Set Up'!$E39 -> 30 | AB70: ='Property Set Up'!$E39 -> 30 | AC70: ='Property Set Up'!$E39 -> 30 | AD70: ='Property Set Up'!$E39 -> 30 | AE70: ='Property Set Up'!$E39 -> 30 | AF70: ='Property Set Up'!$E39 -> 30 | AG70: ='Property Set Up'!$E39 -> 30 | AH70: ='Property Set Up'!$E39 -> 30 | AI70: ='Property Set Up'!$E39 -> 30
B71: Full Sized Annual Rent | D71: ='Property Set Up'!$E$42*(52-'Property Set Up'!$E$43) -> 0 | E71: =D71*(1+D76) -> 0 | F71: =E71*(1+E76) -> 0 | G71: 0 | H71: 0 | I71: 0 | J71: 0 | K71: 0 | L71: 0 | M71: 0 | N71: 0 | O71: 0 | P71: 0 | Q71: 0 | R71: 0 | S71: =R71*(1+R76) -> 0 | T71: 0 | U71: 0 | V71: 0 | W71: 0 | X71: 0 | Y71: 0 | Z71: 0 | AA71: 0 | AB71: 0 | AC71: 0 | AD71: 0 | AE71: 0 | AF71: 0 | AG71: 0 | AH71: 0 | AI71: 0
B72: Full Sized Rental Inflation Based Operating Costs | D72: =IF('Property Set Up'!$E$58="Weeks",'Projection – Property #3'!D71*(1/(52-'Property Set Up'!$E$43))*1.15+'Property Set Up'!$E$57*1.15*'Projection – Property #3'!D71,'Property Set Up'!$E$57*1.15*'Projection – Property #3'!D71) -> 0 | E72: =IF('Property Set Up'!$E$58="Weeks",'Projection – Property #3'!E71*(1/(52-'Property Set Up'!$E$43))*1.15+'Property Set Up'!$E$57*1.15*'Projection – Property #3'!E71,'Property Set Up'!$E$57*1.15*'Projection – Property #3'!E71) -> 0 | F72: =IF('Property Set Up'!$E$58="Weeks",'Projection – Property #3'!F71*(1/(52-'Property Set Up'!$E$43))*1.15+'Property Set Up'!$E$57*1.15*'Projection – Property #3'!F71,'Property Set Up'!$E$57*1.15*'Projection – Property #3'!F71) -> 0 | G72: =IF('Property Set Up'!$E$58="Weeks",'Projection – Property #3'!G71*(1/(52-'Property Set Up'!$E$43))*1.15+'Property Set Up'!$E$57*1.15*'Projection – Property #3'!G71,'Property Set Up'!$E$57*1.15*'Projection – Property #3'!G71) -> 0 | H72: =IF('Property Set Up'!$E$58="Weeks",'Projection – Property #3'!H71*(1/(52-'Property Set Up'!$E$43))*1.15+'Property Set Up'!$E$57*1.15*'Projection – Property #3'!H71,'Property Set Up'!$E$57*1.15*'Projection – Property #3'!H71) -> 0 | I72: =IF('Property Set Up'!$E$58="Weeks",'Projection – Property #3'!I71*(1/(52-'Property Set Up'!$E$43))*1.15+'Property Set Up'!$E$57*1.15*'Projection – Property #3'!I71,'Property Set Up'!$E$57*1.15*'Projection – Property #3'!I71) -> 0 | J72: =IF('Property Set Up'!$E$58="Weeks",'Projection – Property #3'!J71*(1/(52-'Property Set Up'!$E$43))*1.15+'Property Set Up'!$E$57*1.15*'Projection – Property #3'!J71,'Property Set Up'!$E$57*1.15*'Projection – Property #3'!J71) -> 0 | K72: =IF('Property Set Up'!$E$58="Weeks",'Projection – Property #3'!K71*(1/(52-'Property Set Up'!$E$43))*1.15+'Property Set Up'!$E$57*1.15*'Projection – Property #3'!K71,'Property Set Up'!$E$57*1.15*'Projection – Property #3'!K71) -> 0 | L72: =IF('Property Set Up'!$E$58="Weeks",'Projection – Property #3'!L71*(1/(52-'Property Set Up'!$E$43))*1.15+'Property Set Up'!$E$57*1.15*'Projection – Property #3'!L71,'Property Set Up'!$E$57*1.15*'Projection – Property #3'!L71) -> 0 | M72: =IF('Property Set Up'!$E$58="Weeks",'Projection – Property #3'!M71*(1/(52-'Property Set Up'!$E$43))*1.15+'Property Set Up'!$E$57*1.15*'Projection – Property #3'!M71,'Property Set Up'!$E$57*1.15*'Projection – Property #3'!M71) -> 0 | N72: =IF('Property Set Up'!$E$58="Weeks",'Projection – Property #3'!N71*(1/(52-'Property Set Up'!$E$43))*1.15+'Property Set Up'!$E$57*1.15*'Projection – Property #3'!N71,'Property Set Up'!$E$57*1.15*'Projection – Property #3'!N71) -> 0 | O72: =IF('Property Set Up'!$E$58="Weeks",'Projection – Property #3'!O71*(1/(52-'Property Set Up'!$E$43))*1.15+'Property Set Up'!$E$57*1.15*'Projection – Property #3'!O71,'Property Set Up'!$E$57*1.15*'Projection – Property #3'!O71) -> 0 | P72: =IF('Property Set Up'!$E$58="Weeks",'Projection – Property #3'!P71*(1/(52-'Property Set Up'!$E$43))*1.15+'Property Set Up'!$E$57*1.15*'Projection – Property #3'!P71,'Property Set Up'!$E$57*1.15*'Projection – Property #3'!P71) -> 0 | Q72: =IF('Property Set Up'!$E$58="Weeks",'Projection – Property #3'!Q71*(1/(52-'Property Set Up'!$E$43))*1.15+'Property Set Up'!$E$57*1.15*'Projection – Property #3'!Q71,'Property Set Up'!$E$57*1.15*'Projection – Property #3'!Q71) -> 0 | R72: =IF('Property Set Up'!$E$58="Weeks",'Projection – Property #3'!R71*(1/(52-'Property Set Up'!$E$43))*1.15+'Property Set Up'!$E$57*1.15*'Projection – Property #3'!R71,'Property Set Up'!$E$57*1.15*'Projection – Property #3'!R71) -> 0 | S72: =IF('Property Set Up'!$E$58="Weeks",'Projection – Property #3'!S71*(1/(52-'Property Set Up'!$E$43))*1.15+'Property Set Up'!$E$57*1.15*'Projection – Property #3'!S71,'Property Set Up'!$E$57*1.15*'Projection – Property #3'!S71) -> 0 | T72: =IF('Property Set Up'!$E$58="Weeks",'Projection – Property #3'!T71*(1/(52-'Property Set Up'!$E$43))*1.15+'Property Set Up'!$E$57*1.15*'Projection – Property #3'!T71,'Property Set Up'!$E$57*1.15*'Projection – Property #3'!T71) -> 0 | U72: =IF('Property Set Up'!$E$58="Weeks",'Projection – Property #3'!U71*(1/(52-'Property Set Up'!$E$43))*1.15+'Property Set Up'!$E$57*1.15*'Projection – Property #3'!U71,'Property Set Up'!$E$57*1.15*'Projection – Property #3'!U71) -> 0 | V72: =IF('Property Set Up'!$E$58="Weeks",'Projection – Property #3'!V71*(1/(52-'Property Set Up'!$E$43))*1.15+'Property Set Up'!$E$57*1.15*'Projection – Property #3'!V71,'Property Set Up'!$E$57*1.15*'Projection – Property #3'!V71) -> 0 | W72: =IF('Property Set Up'!$E$58="Weeks",'Projection – Property #3'!W71*(1/(52-'Property Set Up'!$E$43))*1.15+'Property Set Up'!$E$57*1.15*'Projection – Property #3'!W71,'Property Set Up'!$E$57*1.15*'Projection – Property #3'!W71) -> 0 | X72: =IF('Property Set Up'!$E$58="Weeks",'Projection – Property #3'!X71*(1/(52-'Property Set Up'!$E$43))*1.15+'Property Set Up'!$E$57*1.15*'Projection – Property #3'!X71,'Property Set Up'!$E$57*1.15*'Projection – Property #3'!X71) -> 0 | Y72: =IF('Property Set Up'!$E$58="Weeks",'Projection – Property #3'!Y71*(1/(52-'Property Set Up'!$E$43))*1.15+'Property Set Up'!$E$57*1.15*'Projection – Property #3'!Y71,'Property Set Up'!$E$57*1.15*'Projection – Property #3'!Y71) -> 0 | Z72: =IF('Property Set Up'!$E$58="Weeks",'Projection – Property #3'!Z71*(1/(52-'Property Set Up'!$E$43))*1.15+'Property Set Up'!$E$57*1.15*'Projection – Property #3'!Z71,'Property Set Up'!$E$57*1.15*'Projection – Property #3'!Z71) -> 0 | AA72: =IF('Property Set Up'!$E$58="Weeks",'Projection – Property #3'!AA71*(1/(52-'Property Set Up'!$E$43))*1.15+'Property Set Up'!$E$57*1.15*'Projection – Property #3'!AA71,'Property Set Up'!$E$57*1.15*'Projection – Property #3'!AA71) -> 0 | AB72: =IF('Property Set Up'!$E$58="Weeks",'Projection – Property #3'!AB71*(1/(52-'Property Set Up'!$E$43))*1.15+'Property Set Up'!$E$57*1.15*'Projection – Property #3'!AB71,'Property Set Up'!$E$57*1.15*'Projection – Property #3'!AB71) -> 0 | AC72: =IF('Property Set Up'!$E$58="Weeks",'Projection – Property #3'!AC71*(1/(52-'Property Set Up'!$E$43))*1.15+'Property Set Up'!$E$57*1.15*'Projection – Property #3'!AC71,'Property Set Up'!$E$57*1.15*'Projection – Property #3'!AC71) -> 0 | AD72: =IF('Property Set Up'!$E$58="Weeks",'Projection – Property #3'!AD71*(1/(52-'Property Set Up'!$E$43))*1.15+'Property Set Up'!$E$57*1.15*'Projection – Property #3'!AD71,'Property Set Up'!$E$57*1.15*'Projection – Property #3'!AD71) -> 0 | AE72: =IF('Property Set Up'!$E$58="Weeks",'Projection – Property #3'!AE71*(1/(52-'Property Set Up'!$E$43))*1.15+'Property Set Up'!$E$57*1.15*'Projection – Property #3'!AE71,'Property Set Up'!$E$57*1.15*'Projection – Property #3'!AE71) -> 0 | AF72: =IF('Property Set Up'!$E$58="Weeks",'Projection – Property #3'!AF71*(1/(52-'Property Set Up'!$E$43))*1.15+'Property Set Up'!$E$57*1.15*'Projection – Property #3'!AF71,'Property Set Up'!$E$57*1.15*'Projection – Property #3'!AF71) -> 0 | AG72: =IF('Property Set Up'!$E$58="Weeks",'Projection – Property #3'!AG71*(1/(52-'Property Set Up'!$E$43))*1.15+'Property Set Up'!$E$57*1.15*'Projection – Property #3'!AG71,'Property Set Up'!$E$57*1.15*'Projection – Property #3'!AG71) -> 0 | AH72: =IF('Property Set Up'!$E$58="Weeks",'Projection – Property #3'!AH71*(1/(52-'Property Set Up'!$E$43))*1.15+'Property Set Up'!$E$57*1.15*'Projection – Property #3'!AH71,'Property Set Up'!$E$57*1.15*'Projection – Property #3'!AH71) -> 0 | AI72: =IF('Property Set Up'!$E$58="Weeks",'Projection – Property #3'!AI71*(1/(52-'Property Set Up'!$E$43))*1.15+'Property Set Up'!$E$57*1.15*'Projection – Property #3'!AI71,'Property Set Up'!$E$57*1.15*'Projection – Property #3'!AI71) -> 0
B73: Full Sized Inflation Based Operating Costs | D73: =IF('Property Set Up'!$E$58="Weeks",(SUM('Property Set Up'!$E$61:$E$68)-'Property Set Up'!E66)*(1+'Property Set Up'!$E77)^'Projection – Property #3'!D26,(SUM('Property Set Up'!$E$60:$E$68)-'Property Set Up'!E66)*(1+'Property Set Up'!E77)^'Projection – Property #3'!D26) -> 7722.5 | E73: =D73*(1+'Property Set Up'!$E$77) -> 7876.95 | F73: =E73*(1+'Property Set Up'!$E$77) -> 8034.489 | G73: =F73*(1+'Property Set Up'!$E$77) -> 8195.17878 | H73: =G73*(1+'Property Set Up'!$E$77) -> 8359.082356 | I73: =H73*(1+'Property Set Up'!$E$77) -> 8526.264003 | J73: =I73*(1+'Property Set Up'!$E$77) -> 8696.789283 | K73: =J73*(1+'Property Set Up'!$E$77) -> 8870.725068 | L73: =K73*(1+'Property Set Up'!$E$77) -> 9048.13957 | M73: =L73*(1+'Property Set Up'!$E$77) -> 9229.102361 | N73: =M73*(1+'Property Set Up'!$E$77) -> 9413.684408 | O73: =N73*(1+'Property Set Up'!$E$77) -> 9601.958097 | P73: =O73*(1+'Property Set Up'!$E$77) -> 9793.997259 | Q73: =P73*(1+'Property Set Up'!$E$77) -> 9989.877204 | R73: =Q73*(1+'Property Set Up'!$E$77) -> 10189.67475 | S73: =R73*(1+'Property Set Up'!$E$77) -> 10393.46824 | T73: =S73*(1+'Property Set Up'!$E$77) -> 10601.33761 | U73: =T73*(1+'Property Set Up'!$E$77) -> 10813.36436 | V73: =U73*(1+'Property Set Up'!$E$77) -> 11029.63165 | W73: =V73*(1+'Property Set Up'!$E$77) -> 11250.22428 | X73: =W73*(1+'Property Set Up'!$E$77) -> 11475.22877 | Y73: =X73*(1+'Property Set Up'!$E$77) -> 11704.73334 | Z73: =Y73*(1+'Property Set Up'!$E$77) -> 11938.82801 | AA73: =Z73*(1+'Property Set Up'!$E$77) -> 12177.60457 | AB73: =AA73*(1+'Property Set Up'!$E$77) -> 12421.15666 | AC73: =AB73*(1+'Property Set Up'!$E$77) -> 12669.57979 | AD73: =AC73*(1+'Property Set Up'!$E$77) -> 12922.97139 | AE73: =AD73*(1+'Property Set Up'!$E$77) -> 13181.43082 | AF73: =AE73*(1+'Property Set Up'!$E$77) -> 13445.05943 | AG73: =AF73*(1+'Property Set Up'!$E$77) -> 13713.96062 | AH73: =AG73*(1+'Property Set Up'!$E$77) -> 13988.23983 | AI73: =AH73*(1+'Property Set Up'!$E$77) -> 14268.00463
B74: Months Left At Short Term Rental Inflation Rate | D74: =Assumptions!F13*12 -> 36 | E74: =D74-D75 -> 24 | F74: 12 | G74: 0 | H74: -12 | I74: -24 | J74: -36 | K74: -48 | L74: -60 | M74: -72 | N74: -84 | O74: -96 | P74: -108 | Q74: -120 | R74: -132 | S74: =R74-R75 -> -144 | T74: -157 | U74: -171 | V74: -186 | W74: -202 | X74: -219 | Y74: -237 | Z74: -256 | AA74: -276 | AB74: -297 | AC74: -319 | AD74: -342 | AE74: -366 | AF74: -391 | AG74: -417 | AH74: -444 | AI74: -472
B75: Months in period | D75: 12 | E75: 12 | F75: 12 | G75: 12 | H75: 12 | I75: 12 | J75: 12 | K75: 12 | L75: 12 | M75: 12 | N75: 12 | O75: 12 | P75: 12 | Q75: 12 | R75: 12 | S75: 13 | T75: 14 | U75: 15 | V75: 16 | W75: 17 | X75: 18 | Y75: 19 | Z75: 20 | AA75: 21 | AB75: 22 | AC75: 23 | AD75: 24 | AE75: 25 | AF75: 26 | AG75: 27 | AH75: 28 | AI75: 29
B76: Rental Inflation Rate In Period | D76: =IF(D77>0,Assumptions!$F$12,Assumptions!$F$10) -> 0.06 | E76: =IF(E77>0,Assumptions!$F$12,Assumptions!$F$10) -> 0.06 | F76: =IF(F77>0,Assumptions!$F$12,Assumptions!$F$10) -> 0.06 | G76: =IF(G77>0,Assumptions!$F$12,Assumptions!$F$10) -> 0.047 | H76: =IF(H77>0,Assumptions!$F$12,Assumptions!$F$10) -> 0.047 | I76: =IF(I77>0,Assumptions!$F$12,Assumptions!$F$10) -> 0.047 | J76: =IF(J77>0,Assumptions!$F$12,Assumptions!$F$10) -> 0.047 | K76: =IF(K77>0,Assumptions!$F$12,Assumptions!$F$10) -> 0.047 | L76: =IF(L77>0,Assumptions!$F$12,Assumptions!$F$10) -> 0.047 | M76: =IF(M77>0,Assumptions!$F$12,Assumptions!$F$10) -> 0.047 | N76: =IF(N77>0,Assumptions!$F$12,Assumptions!$F$10) -> 0.047 | O76: =IF(O77>0,Assumptions!$F$12,Assumptions!$F$10) -> 0.047 | P76: =IF(P77>0,Assumptions!$F$12,Assumptions!$F$10) -> 0.047 | Q76: =IF(Q77>0,Assumptions!$F$12,Assumptions!$F$10) -> 0.047 | R76: =IF(R77>0,Assumptions!$F$12,Assumptions!$F$10) -> 0.047 | S76: =IF(S74>=12,(1+Assumptions!$F12)^(1/Assumptions!$F13)-1,IF(AND(S74<12,S74>0),(1+Assumptions!$F14)^('Projection – Property #3'!S74)*(1+Assumptions!$F11)^(12-'Projection – Property #3'!S74)-1,Assumptions!$F10)) -> 0.047 | T76: =IF(T74>=12,(1+Assumptions!$F12)^(1/Assumptions!$F13)-1,IF(AND(T74<12,T74>0),(1+Assumptions!$F14)^('Projection – Property #3'!T74)*(1+Assumptions!$F11)^(12-'Projection – Property #3'!T74)-1,Assumptions!$F10)) -> 0.047 | U76: =IF(U74>=12,(1+Assumptions!$F12)^(1/Assumptions!$F13)-1,IF(AND(U74<12,U74>0),(1+Assumptions!$F14)^('Projection – Property #3'!U74)*(1+Assumptions!$F11)^(12-'Projection – Property #3'!U74)-1,Assumptions!$F10)) -> 0.047 | V76: =IF(V74>=12,(1+Assumptions!$F12)^(1/Assumptions!$F13)-1,IF(AND(V74<12,V74>0),(1+Assumptions!$F14)^('Projection – Property #3'!V74)*(1+Assumptions!$F11)^(12-'Projection – Property #3'!V74)-1,Assumptions!$F10)) -> 0.047 | W76: =IF(W74>=12,(1+Assumptions!$F12)^(1/Assumptions!$F13)-1,IF(AND(W74<12,W74>0),(1+Assumptions!$F14)^('Projection – Property #3'!W74)*(1+Assumptions!$F11)^(12-'Projection – Property #3'!W74)-1,Assumptions!$F10)) -> 0.047 | X76: =IF(X74>=12,(1+Assumptions!$F12)^(1/Assumptions!$F13)-1,IF(AND(X74<12,X74>0),(1+Assumptions!$F14)^('Projection – Property #3'!X74)*(1+Assumptions!$F11)^(12-'Projection – Property #3'!X74)-1,Assumptions!$F10)) -> 0.047 | Y76: =IF(Y74>=12,(1+Assumptions!$F12)^(1/Assumptions!$F13)-1,IF(AND(Y74<12,Y74>0),(1+Assumptions!$F14)^('Projection – Property #3'!Y74)*(1+Assumptions!$F11)^(12-'Projection – Property #3'!Y74)-1,Assumptions!$F10)) -> 0.047 | Z76: =IF(Z74>=12,(1+Assumptions!$F12)^(1/Assumptions!$F13)-1,IF(AND(Z74<12,Z74>0),(1+Assumptions!$F14)^('Projection – Property #3'!Z74)*(1+Assumptions!$F11)^(12-'Projection – Property #3'!Z74)-1,Assumptions!$F10)) -> 0.047 | AA76: =IF(AA74>=12,(1+Assumptions!$F12)^(1/Assumptions!$F13)-1,IF(AND(AA74<12,AA74>0),(1+Assumptions!$F14)^('Projection – Property #3'!AA74)*(1+Assumptions!$F11)^(12-'Projection – Property #3'!AA74)-1,Assumptions!$F10)) -> 0.047 | AB76: =IF(AB74>=12,(1+Assumptions!$F12)^(1/Assumptions!$F13)-1,IF(AND(AB74<12,AB74>0),(1+Assumptions!$F14)^('Projection – Property #3'!AB74)*(1+Assumptions!$F11)^(12-'Projection – Property #3'!AB74)-1,Assumptions!$F10)) -> 0.047 | AC76: =IF(AC74>=12,(1+Assumptions!$F12)^(1/Assumptions!$F13)-1,IF(AND(AC74<12,AC74>0),(1+Assumptions!$F14)^('Projection – Property #3'!AC74)*(1+Assumptions!$F11)^(12-'Projection – Property #3'!AC74)-1,Assumptions!$F10)) -> 0.047 | AD76: =IF(AD74>=12,(1+Assumptions!$F12)^(1/Assumptions!$F13)-1,IF(AND(AD74<12,AD74>0),(1+Assumptions!$F14)^('Projection – Property #3'!AD74)*(1+Assumptions!$F11)^(12-'Projection – Property #3'!AD74)-1,Assumptions!$F10)) -> 0.047 | AE76: =IF(AE74>=12,(1+Assumptions!$F12)^(1/Assumptions!$F13)-1,IF(AND(AE74<12,AE74>0),(1+Assumptions!$F14)^('Projection – Property #3'!AE74)*(1+Assumptions!$F11)^(12-'Projection – Property #3'!AE74)-1,Assumptions!$F10)) -> 0.047 | AF76: =IF(AF74>=12,(1+Assumptions!$F12)^(1/Assumptions!$F13)-1,IF(AND(AF74<12,AF74>0),(1+Assumptions!$F14)^('Projection – Property #3'!AF74)*(1+Assumptions!$F11)^(12-'Projection – Property #3'!AF74)-1,Assumptions!$F10)) -> 0.047 | AG76: =IF(AG74>=12,(1+Assumptions!$F12)^(1/Assumptions!$F13)-1,IF(AND(AG74<12,AG74>0),(1+Assumptions!$F14)^('Projection – Property #3'!AG74)*(1+Assumptions!$F11)^(12-'Projection – Property #3'!AG74)-1,Assumptions!$F10)) -> 0.047 | AH76: =IF(AH74>=12,(1+Assumptions!$F12)^(1/Assumptions!$F13)-1,IF(AND(AH74<12,AH74>0),(1+Assumptions!$F14)^('Projection – Property #3'!AH74)*(1+Assumptions!$F11)^(12-'Projection – Property #3'!AH74)-1,Assumptions!$F10)) -> 0.047 | AI76: =IF(AI74>=12,(1+Assumptions!$F12)^(1/Assumptions!$F13)-1,IF(AND(AI74<12,AI74>0),(1+Assumptions!$F14)^('Projection – Property #3'!AI74)*(1+Assumptions!$F11)^(12-'Projection – Property #3'!AI74)-1,Assumptions!$F10)) -> 0.047
B77: Years of Above average inflation | D77: =Assumptions!F13 -> 3 | E77: =MAX(D77-1,0) -> 2 | F77: =MAX(E77-1,0) -> 1 | G77: 0 | H77: 0 | I77: 0 | J77: 0 | K77: 0 | L77: 0 | M77: 0 | N77: 0 | O77: 0 | P77: 0 | Q77: 0 | R77: 0
B78: Construction Financing Costs | D78: =(D68/12)*(D59*'Property Set Up'!$E106) -> 0 | E78: =(E68/12)*(E59*'Property Set Up'!$E106) -> 0 | F78: =(F68/12)*(F59*'Property Set Up'!$E106) -> 0 | G78: =(G68/12)*(G59*'Property Set Up'!$E106) -> 0 | H78: =(H68/12)*(H59*'Property Set Up'!$E106) -> 0 | I78: =(I68/12)*(I59*'Property Set Up'!$E106) -> 0 | J78: =(J68/12)*(J59*'Property Set Up'!$E106) -> 0 | K78: =(K68/12)*(K59*'Property Set Up'!$E106) -> 0 | L78: =(L68/12)*(L59*'Property Set Up'!$E106) -> 0 | M78: =(M68/12)*(M59*'Property Set Up'!$E106) -> 0 | N78: =(N68/12)*(N59*'Property Set Up'!$E106) -> 0 | O78: =(O68/12)*(O59*'Property Set Up'!$E106) -> 0 | P78: =(P68/12)*(P59*'Property Set Up'!$E106) -> 0 | Q78: =(Q68/12)*(Q59*'Property Set Up'!$E106) -> 0 | R78: =(R68/12)*(R59*'Property Set Up'!$E106) -> 0 | S78: =(S68/12)*(S59*'Property Set Up'!$E106) -> 0 | T78: =(T68/12)*(T59*'Property Set Up'!$E106) -> 0 | U78: =(U68/12)*(U59*'Property Set Up'!$E106) -> 0 | V78: =(V68/12)*(V59*'Property Set Up'!$E106) -> 0 | W78: =(W68/12)*(W59*'Property Set Up'!$E106) -> 0 | X78: =(X68/12)*(X59*'Property Set Up'!$E106) -> 0 | Y78: =(Y68/12)*(Y59*'Property Set Up'!$E106) -> 0 | Z78: =(Z68/12)*(Z59*'Property Set Up'!$E106) -> 0 | AA78: =(AA68/12)*(AA59*'Property Set Up'!$E106) -> 0 | AB78: =(AB68/12)*(AB59*'Property Set Up'!$E106) -> 0 | AC78: =(AC68/12)*(AC59*'Property Set Up'!$E106) -> 0 | AD78: =(AD68/12)*(AD59*'Property Set Up'!$E106) -> 0 | AE78: =(AE68/12)*(AE59*'Property Set Up'!$E106) -> 0 | AF78: =(AF68/12)*(AF59*'Property Set Up'!$E106) -> 0 | AG78: =(AG68/12)*(AG59*'Property Set Up'!$E106) -> 0 | AH78: =(AH68/12)*(AH59*'Property Set Up'!$E106) -> 0 | AI78: =(AI68/12)*(AI59*'Property Set Up'!$E106) -> 0
B79: Operating Financing Costs | D79: =IFERROR(IF(D45="Interest Only",D40*D59/12,-PMT(D59/12,D46*12,D40,,0))*D69,0) -> 0 | E79: 157.5 | F79: 150 | G79: 135 | H79: 135 | I79: 135 | J79: 135 | K79: 135 | L79: 135 | M79: 135 | N79: 135 | O79: 135 | P79: 135 | Q79: 135 | R79: 135 | S79: 135 | T79: 135 | U79: 135 | V79: 135 | W79: 135 | X79: 135 | Y79: 135 | Z79: 135 | AA79: 135 | AB79: 135 | AC79: 135 | AD79: 135 | AE79: 135 | AF79: 135 | AG79: 135 | AH79: 135 | AI79: 135
B82: HIDDEN INTEREST DEDUCTIBILITY CALCULATIONS
B85: Start Calendar Year | D85: =DATE(YEAR('Property Set Up'!C6),MONTH('Property Set Up'!C6)+1,1) -> 2022-05-01 | E85: =D86+1 -> 2023-05-01 | F85: 2024-05-01 | G85: 2025-05-01 | H85: 2026-05-01 | I85: 2027-05-01 | J85: 2028-05-01 | K85: 2029-05-01 | L85: 2030-05-01 | M85: 2031-05-01 | N85: 2032-05-01 | O85: 2033-05-01 | P85: 2034-05-01 | Q85: 2035-05-01 | R85: 2036-05-01 | S85: =R86+1 -> 2037-05-01 | T85: 2038-05-01 | U85: 2039-05-01 | V85: 2040-05-01 | W85: 2041-05-01 | X85: 2042-05-01 | Y85: 2043-05-01 | Z85: 2044-05-01 | AA85: 2045-05-01 | AB85: 2046-05-01 | AC85: 2047-05-01 | AD85: 2048-05-01 | AE85: 2049-05-01 | AF85: 2050-05-01 | AG85: 2051-05-01 | AH85: 2052-05-01 | AI85: 2053-05-01
B86: End Calendar Year | D86: =DATE(YEAR(D85)+1,MONTH(D85),DAY(D85)-1) -> 2023-04-30 | E86: 2024-04-30 | F86: 2025-04-30 | G86: 2026-04-30 | H86: 2027-04-30 | I86: 2028-04-30 | J86: 2029-04-30 | K86: 2030-04-30 | L86: 2031-04-30 | M86: 2032-04-30 | N86: 2033-04-30 | O86: 2034-04-30 | P86: 2035-04-30 | Q86: 2036-04-30 | R86: 2037-04-30 | S86: =DATE(YEAR(S85)+1,MONTH(S85),DAY(S85)-1) -> 2038-04-30 | T86: 2039-04-30 | U86: 2040-04-30 | V86: 2041-04-30 | W86: 2042-04-30 | X86: 2043-04-30 | Y86: 2044-04-30 | Z86: 2045-04-30 | AA86: 2046-04-30 | AB86: 2047-04-30 | AC86: 2048-04-30 | AD86: 2049-04-30 | AE86: 2050-04-30 | AF86: 2051-04-30 | AG86: 2052-04-30 | AH86: =DATE(YEAR(AH85)+1,MONTH(AH85),DAY(AH85)-1) -> 2053-04-30 | AI86: =DATE(YEAR(AI85)+1,MONTH(AI85),DAY(AI85)-1) -> 2054-04-30
B88: Middle Tax Year | D88: =IF(MONTH(D85)>3,YEAR(D86),YEAR(D85)) -> 2023 | E88: 2024 | F88: 2025 | G88: 2026 | H88: 2027 | I88: 2028 | J88: 2029 | K88: 2030 | L88: 2031 | M88: 2032 | N88: 2033 | O88: 2034 | P88: 2035 | Q88: 2036 | R88: 2037 | S88: =IF(MONTH(S85)>3,YEAR(S86),YEAR(S85)) -> 2038 | T88: 2039 | U88: 2040 | V88: 2041 | W88: 2042 | X88: 2043 | Y88: 2044 | Z88: 2045 | AA88: 2046 | AB88: 2047 | AC88: 2048 | AD88: 2049 | AE88: 2050 | AF88: 2051 | AG88: 2052 | AH88: =IF(MONTH(AH85)>3,YEAR(AH86),YEAR(AH85)) -> 2053 | AI88: =IF(MONTH(AI85)>3,YEAR(AI86),YEAR(AI85)) -> 2054
B89: Months in First Tax Period | D89: =IF(AND(YEAR(D85)=2021,MONTH(D85)<10),10-MONTH(D85),IF(MONTH(D85)>3,16-MONTH(D85),4-MONTH(D85))) -> 11 | E89: =IF(MONTH(E85)>3,16-MONTH(E85),4-MONTH(E85)) -> 11 | F89: 11 | G89: 11 | H89: 11 | I89: 11 | J89: 11 | K89: 11 | L89: 11 | M89: 11 | N89: 11 | O89: 11 | P89: 11 | Q89: 11 | R89: 11 | S89: =IF(MONTH(S85)>3,16-MONTH(S85),4-MONTH(S85)) -> 11 | T89: 11 | U89: 11 | V89: 11 | W89: 11 | X89: 11 | Y89: 11 | Z89: 11 | AA89: 11 | AB89: 11 | AC89: 11 | AD89: 11 | AE89: 11 | AF89: 11 | AG89: 11 | AH89: =IF(MONTH(AH85)>3,16-MONTH(AH85),4-MONTH(AH85)) -> 11 | AI89: =IF(MONTH(AI85)>3,16-MONTH(AI85),4-MONTH(AI85)) -> 11
B90: Months in 2nd Tax Period | D90: =12-D89 -> 1 | E90: =12-E89 -> 1 | F90: 1 | G90: 1 | H90: 1 | I90: 1 | J90: 1 | K90: 1 | L90: 1 | M90: 1 | N90: 1 | O90: 1 | P90: 1 | Q90: 1 | R90: 1 | S90: =12-S89 -> 1 | T90: 1 | U90: 1 | V90: 1 | W90: 1 | X90: 1 | Y90: 1 | Z90: 1 | AA90: 1 | AB90: 1 | AC90: 1 | AD90: 1 | AE90: 1 | AF90: 1 | AG90: 1 | AH90: =12-AH89 -> 1 | AI90: =12-AI89 -> 1
B92: P+I Starting Period (Months) – First Tax Period | D92: =IF(D67>=D89,0,1) -> 0 | E92: =IF(E67>=E89,0,D95+1) -> 1
B93: P+I Ending Period (Months) – First Tax Period | D93: =IF(D89>=D67,D89-D67,0) -> 0 | E93: =IF(E89>E67,E89-E67,0) -> 11
B94: P+I Starting Period (Months) – Second Tax Period | D94: =IF(D67>=12,0,D93+1) -> 0 | E94: =IF(E90=0,0,IF(E67=12,0,E93+1)) -> 12
B95: P+I Ending Period (Months) – Second Tax Period | D95: =IF(D67>=12,0,12-D67) -> 0 | E95: =IF(E94=0,0,12-E67) -> 12
B97: Interest in first half of the tax year | D97: =IF('Property Set Up'!$E38="Interest Only",D105+D106,D105+D107) -> 0 | E97: =IF('Property Set Up'!$E38="Interest Only",E105+E106,E105+E107) -> 144.375 | F97: =IF('Property Set Up'!$E38="Interest only",F59*'Property Set Up'!$E28*('Projection – Property #3'!F89/12),IFERROR(-CUMIPMT(F59/12,'Property Set Up'!$E39*12,'Property Set Up'!$E28,F27,F27+F89-1,0),0)) -> 137.5 | G97: =IFERROR(IF(G45="Interest Only",(G40*G59)*G89/12,-CUMIPMT(G59/12,12*G46,G40,1,G89,0)),0) -> 123.75 | H97: 123.75 | I97: 123.75 | J97: 123.75 | K97: 123.75 | L97: 123.75 | M97: 123.75 | N97: 123.75 | O97: 123.75 | P97: 123.75 | Q97: 123.75 | R97: 123.75 | S97: 123.75 | T97: 123.75 | U97: 123.75 | V97: 123.75 | W97: 123.75 | X97: 123.75 | Y97: 123.75 | Z97: 123.75 | AA97: 123.75 | AB97: 123.75 | AC97: 123.75 | AD97: 123.75 | AE97: 123.75 | AF97: 123.75 | AG97: 123.75 | AH97: 123.75 | AI97: 123.75
B98: Interest in second half of the tax year | D98: =IF('Property Set Up'!$E38="Interest Only",D114+D115,D114+D116) -> 0 | E98: =IF('Property Set Up'!$E38="Interest Only",E114+E115,E114+E116) -> 13.125 | F98: =IF('Property Set Up'!$E38="Interest only",F59*'Property Set Up'!$E28*(F90/12),IFERROR(-CUMIPMT(F59/12,'Property Set Up'!$E39*12,'Property Set Up'!$E28,F27+F89,F28,0),0)) -> 12.5 | G98: =IFERROR(IF(G45="Interest Only",(G40*G59)*G90/12,IFERROR(-CUMIPMT(G59/12,12*G46,G40,G89+1,12,0),0)),0) -> 11.25 | H98: 11.25 | I98: 11.25 | J98: 11.25 | K98: 11.25 | L98: 11.25 | M98: 11.25 | N98: 11.25 | O98: 11.25 | P98: 11.25 | Q98: 11.25 | R98: 11.25 | S98: 11.25 | T98: 11.25 | U98: 11.25 | V98: 11.25 | W98: 11.25 | X98: 11.25 | Y98: 11.25 | Z98: 11.25 | AA98: 11.25 | AB98: 11.25 | AC98: 11.25 | AD98: 11.25 | AE98: 11.25 | AF98: 11.25 | AG98: 11.25 | AH98: 11.25 | AI98: 11.25
B100: 1st Half Months in Period | D100: =D89 -> 11 | E100: =E89 -> 11
B101: 1st Half Construction | D101: =IF(D103>=1,D100,D100+D103) -> 11 | E101: =IF(D112>E100,E100,IF(D112=0,0,D112)) -> 0
B102: 1st Half Operating | D102: =D100-D101 -> 0 | E102: =E100-E101 -> 11
B103: 1st Half Residual | D103: =D67-D100 -> 1 | E103: =D112-E101 -> 0
B105: 1st Half (Interest Resulting From Construction) | D105: ='Property Set Up'!$E106*D59*(D101/12) -> 0 | E105: ='Property Set Up'!$E106*E59*(E101/12) -> 0
B106: 1st Half interest if i/o | D106: =(D102/12)*('Property Set Up'!$E28*D59) -> 0 | E106: =(E102/12)*('Property Set Up'!$E28*E59) -> 144.375
B107: 1st Half interest if P+I | D107: =IFERROR(-CUMIPMT(D59/12,'Property Set Up'!$E39*12,'Property Set Up'!$E28,D92,D93,0),0) -> 0 | E107: =IFERROR(-CUMIPMT(E59/12,'Property Set Up'!$E39*12,'Property Set Up'!$E28,E92,E93,0),0) -> 143.5360192
B109: 2nd Half Months in Period | D109: =D90 -> 1 | E109: =E90 -> 1
B110: 2nd Half Construction | D110: =IF(D103>=D109,D109,IF(D103>0,D103,0)) -> 1 | E110: =E103 -> 0
B111: 2nd Half Operating | D111: =D109-D110 -> 0 | E111: =E109-E110 -> 1
B112: 2nd Half Residual | D112: =IF(D103-D109<1,0,D103-D109) -> 0 | E112: =E109-SUM(E110:E111) -> 0
B114: 2nd Half (Interest Resulting From Construction) | D114: ='Property Set Up'!$E106*D59*(D110/12) -> 0 | E114: ='Property Set Up'!$E106*E59*(E110/12) -> 0
B115: 2nd Half interest if i/o | D115: =(D111/12)*('Property Set Up'!$E28*D59) -> 0 | E115: =(E111/12)*('Property Set Up'!$E28*E59) -> 13.125
B116: 2nd Half interest if P+I | D116: =IFERROR(-CUMIPMT(D59/12,'Property Set Up'!$E39*12,'Property Set Up'!$E28,D94,D95,0),0) -> 0 | E116: =IFERROR(-CUMIPMT(E59/12,'Property Set Up'!$E39*12,'Property Set Up'!$E28,E94,E95,0),0) -> 12.95572599
B118: Tax Treatment First Tax Year | D118: =IF('Property Set Up'!E21="NB",100%,IF(AND(YEAR(D85)=2021,MONTH(D85)<10),100%,IF('Property Set Up'!E21="Full",0,IF(D88=2022,100%,IF(D88=2023,75%,IF(D88=2024,50%,IF(D88=2025,25%,0%))))))) -> 1 | E118: =IF('Property Set Up'!$E21="NB",100%,IF('Property Set Up'!$E21="full",0,IF(E88=2022,100%,IF(E88=2023,75%,IF(E88=2024,50%,IF(E88=2025,25%,0%)))))) -> 1 | F118: =IF('Property Set Up'!$E21="NB",100%,IF('Property Set Up'!$E21="full",0,IF(F88=2022,100%,IF(F88=2023,75%,IF(F88=2024,50%,IF(F88=2025,25%,0%)))))) -> 1 | G118: =IF('Property Set Up'!$E21="NB",100%,IF('Property Set Up'!$E21="full",0,IF(G88=2022,100%,IF(G88=2023,75%,IF(G88=2024,50%,IF(G88=2025,25%,0%)))))) -> 1 | H118: =IF('Property Set Up'!$E21="NB",100%,IF('Property Set Up'!$E21="full",0,IF(H88=2022,100%,IF(H88=2023,75%,IF(H88=2024,50%,IF(H88=2025,25%,0%)))))) -> 1 | I118: =IF('Property Set Up'!$E21="NB",100%,IF('Property Set Up'!$E21="full",0,IF(I88=2022,100%,IF(I88=2023,75%,IF(I88=2024,50%,IF(I88=2025,25%,0%)))))) -> 1 | J118: =IF('Property Set Up'!$E21="NB",100%,IF('Property Set Up'!$E21="full",0,IF(J88=2022,100%,IF(J88=2023,75%,IF(J88=2024,50%,IF(J88=2025,25%,0%)))))) -> 1 | K118: =IF('Property Set Up'!$E21="NB",100%,IF('Property Set Up'!$E21="full",0,IF(K88=2022,100%,IF(K88=2023,75%,IF(K88=2024,50%,IF(K88=2025,25%,0%)))))) -> 1 | L118: =IF('Property Set Up'!$E21="NB",100%,IF('Property Set Up'!$E21="full",0,IF(L88=2022,100%,IF(L88=2023,75%,IF(L88=2024,50%,IF(L88=2025,25%,0%)))))) -> 1 | M118: =IF('Property Set Up'!$E21="NB",100%,IF('Property Set Up'!$E21="full",0,IF(M88=2022,100%,IF(M88=2023,75%,IF(M88=2024,50%,IF(M88=2025,25%,0%)))))) -> 1 | N118: =IF('Property Set Up'!$E21="NB",100%,IF('Property Set Up'!$E21="full",0,IF(N88=2022,100%,IF(N88=2023,75%,IF(N88=2024,50%,IF(N88=2025,25%,0%)))))) -> 1 | O118: =IF('Property Set Up'!$E21="NB",100%,IF('Property Set Up'!$E21="full",0,IF(O88=2022,100%,IF(O88=2023,75%,IF(O88=2024,50%,IF(O88=2025,25%,0%)))))) -> 1 | P118: =IF('Property Set Up'!$E21="NB",100%,IF('Property Set Up'!$E21="full",0,IF(P88=2022,100%,IF(P88=2023,75%,IF(P88=2024,50%,IF(P88=2025,25%,0%)))))) -> 1 | Q118: =IF('Property Set Up'!$E21="NB",100%,IF('Property Set Up'!$E21="full",0,IF(Q88=2022,100%,IF(Q88=2023,75%,IF(Q88=2024,50%,IF(Q88=2025,25%,0%)))))) -> 1 | R118: =IF('Property Set Up'!$E21="NB",100%,IF('Property Set Up'!$E21="full",0,IF(R88=2022,100%,IF(R88=2023,75%,IF(R88=2024,50%,IF(R88=2025,25%,0%)))))) -> 1 | S118: =IF('Property Set Up'!$E21="NB",100%,IF('Property Set Up'!$E21="full",0,IF(S88=2022,100%,IF(S88=2023,75%,IF(S88=2024,50%,IF(S88=2025,25%,0%)))))) -> 1 | T118: =IF('Property Set Up'!$E21="NB",100%,IF('Property Set Up'!$E21="full",0,IF(T88=2022,100%,IF(T88=2023,75%,IF(T88=2024,50%,IF(T88=2025,25%,0%)))))) -> 1 | U118: =IF('Property Set Up'!$E21="NB",100%,IF('Property Set Up'!$E21="full",0,IF(U88=2022,100%,IF(U88=2023,75%,IF(U88=2024,50%,IF(U88=2025,25%,0%)))))) -> 1 | V118: =IF('Property Set Up'!$E21="NB",100%,IF('Property Set Up'!$E21="full",0,IF(V88=2022,100%,IF(V88=2023,75%,IF(V88=2024,50%,IF(V88=2025,25%,0%)))))) -> 1 | W118: =IF('Property Set Up'!$E21="NB",100%,IF('Property Set Up'!$E21="full",0,IF(W88=2022,100%,IF(W88=2023,75%,IF(W88=2024,50%,IF(W88=2025,25%,0%)))))) -> 1 | X118: =IF('Property Set Up'!$E21="NB",100%,IF('Property Set Up'!$E21="full",0,IF(X88=2022,100%,IF(X88=2023,75%,IF(X88=2024,50%,IF(X88=2025,25%,0%)))))) -> 1 | Y118: =IF('Property Set Up'!$E21="NB",100%,IF('Property Set Up'!$E21="full",0,IF(Y88=2022,100%,IF(Y88=2023,75%,IF(Y88=2024,50%,IF(Y88=2025,25%,0%)))))) -> 1 | Z118: =IF('Property Set Up'!$E21="NB",100%,IF('Property Set Up'!$E21="full",0,IF(Z88=2022,100%,IF(Z88=2023,75%,IF(Z88=2024,50%,IF(Z88=2025,25%,0%)))))) -> 1 | AA118: =IF('Property Set Up'!$E21="NB",100%,IF('Property Set Up'!$E21="full",0,IF(AA88=2022,100%,IF(AA88=2023,75%,IF(AA88=2024,50%,IF(AA88=2025,25%,0%)))))) -> 1 | AB118: =IF('Property Set Up'!$E21="NB",100%,IF('Property Set Up'!$E21="full",0,IF(AB88=2022,100%,IF(AB88=2023,75%,IF(AB88=2024,50%,IF(AB88=2025,25%,0%)))))) -> 1 | AC118: =IF('Property Set Up'!$E21="NB",100%,IF('Property Set Up'!$E21="full",0,IF(AC88=2022,100%,IF(AC88=2023,75%,IF(AC88=2024,50%,IF(AC88=2025,25%,0%)))))) -> 1 | AD118: =IF('Property Set Up'!$E21="NB",100%,IF('Property Set Up'!$E21="full",0,IF(AD88=2022,100%,IF(AD88=2023,75%,IF(AD88=2024,50%,IF(AD88=2025,25%,0%)))))) -> 1 | AE118: =IF('Property Set Up'!$E21="NB",100%,IF('Property Set Up'!$E21="full",0,IF(AE88=2022,100%,IF(AE88=2023,75%,IF(AE88=2024,50%,IF(AE88=2025,25%,0%)))))) -> 1 | AF118: =IF('Property Set Up'!$E21="NB",100%,IF('Property Set Up'!$E21="full",0,IF(AF88=2022,100%,IF(AF88=2023,75%,IF(AF88=2024,50%,IF(AF88=2025,25%,0%)))))) -> 1 | AG118: =IF('Property Set Up'!$E21="NB",100%,IF('Property Set Up'!$E21="full",0,IF(AG88=2022,100%,IF(AG88=2023,75%,IF(AG88=2024,50%,IF(AG88=2025,25%,0%)))))) -> 1 | AH118: =IF('Property Set Up'!$E21="NB",100%,IF('Property Set Up'!$E21="full",0,IF(AH88=2022,100%,IF(AH88=2023,75%,IF(AH88=2024,50%,IF(AH88=2025,25%,0%)))))) -> 1 | AI118: =IF('Property Set Up'!$E21="NB",100%,IF('Property Set Up'!$E21="full",0,IF(AI88=2022,100%,IF(AI88=2023,75%,IF(AI88=2024,50%,IF(AI88=2025,25%,0%)))))) -> 1
B119: Tax Treatment 2nd Tax Year | D119: =IF('Property Set Up'!E21="NB",100%,IF('Property Set Up'!E21="Full",0,IF(AND(YEAR(D85)=2021,MONTH(D85)<10),75%,IF(D88=2022,75%,IF(D88=2023,50%,IF(D88=2024,25%,IF(D88=2025,0%,0%))))))) -> 1 | E119: =IF('Property Set Up'!$E21="NB",100%,IF('Property Set Up'!$E21="Full",0,IF(E88=2022,75%,IF(E88=2023,50%,IF(E88=2024,25%,0))))) -> 1 | F119: =IF('Property Set Up'!$E21="NB",100%,IF('Property Set Up'!$E21="Full",0,IF(F88=2022,75%,IF(F88=2023,50%,IF(F88=2024,25%,0))))) -> 1 | G119: =IF('Property Set Up'!$E21="NB",100%,IF('Property Set Up'!$E21="Full",0,IF(G88=2022,75%,IF(G88=2023,50%,IF(G88=2024,25%,0))))) -> 1 | H119: =IF('Property Set Up'!$E21="NB",100%,IF('Property Set Up'!$E21="Full",0,IF(H88=2022,75%,IF(H88=2023,50%,IF(H88=2024,25%,0))))) -> 1 | I119: =IF('Property Set Up'!$E21="NB",100%,IF('Property Set Up'!$E21="Full",0,IF(I88=2022,75%,IF(I88=2023,50%,IF(I88=2024,25%,0))))) -> 1 | J119: =IF('Property Set Up'!$E21="NB",100%,IF('Property Set Up'!$E21="Full",0,IF(J88=2022,75%,IF(J88=2023,50%,IF(J88=2024,25%,0))))) -> 1 | K119: =IF('Property Set Up'!$E21="NB",100%,IF('Property Set Up'!$E21="Full",0,IF(K88=2022,75%,IF(K88=2023,50%,IF(K88=2024,25%,0))))) -> 1 | L119: =IF('Property Set Up'!$E21="NB",100%,IF('Property Set Up'!$E21="Full",0,IF(L88=2022,75%,IF(L88=2023,50%,IF(L88=2024,25%,0))))) -> 1 | M119: =IF('Property Set Up'!$E21="NB",100%,IF('Property Set Up'!$E21="Full",0,IF(M88=2022,75%,IF(M88=2023,50%,IF(M88=2024,25%,0))))) -> 1 | N119: =IF('Property Set Up'!$E21="NB",100%,IF('Property Set Up'!$E21="Full",0,IF(N88=2022,75%,IF(N88=2023,50%,IF(N88=2024,25%,0))))) -> 1 | O119: =IF('Property Set Up'!$E21="NB",100%,IF('Property Set Up'!$E21="Full",0,IF(O88=2022,75%,IF(O88=2023,50%,IF(O88=2024,25%,0))))) -> 1 | P119: =IF('Property Set Up'!$E21="NB",100%,IF('Property Set Up'!$E21="Full",0,IF(P88=2022,75%,IF(P88=2023,50%,IF(P88=2024,25%,0))))) -> 1 | Q119: =IF('Property Set Up'!$E21="NB",100%,IF('Property Set Up'!$E21="Full",0,IF(Q88=2022,75%,IF(Q88=2023,50%,IF(Q88=2024,25%,0))))) -> 1 | R119: =IF('Property Set Up'!$E21="NB",100%,IF('Property Set Up'!$E21="Full",0,IF(R88=2022,75%,IF(R88=2023,50%,IF(R88=2024,25%,0))))) -> 1 | S119: =IF('Property Set Up'!$E21="NB",100%,IF('Property Set Up'!$E21="Full",0,IF(S88=2022,75%,IF(S88=2023,50%,IF(S88=2024,25%,0))))) -> 1 | T119: =IF('Property Set Up'!$E21="NB",100%,IF('Property Set Up'!$E21="Full",0,IF(T88=2022,75%,IF(T88=2023,50%,IF(T88=2024,25%,0))))) -> 1 | U119: =IF('Property Set Up'!$E21="NB",100%,IF('Property Set Up'!$E21="Full",0,IF(U88=2022,75%,IF(U88=2023,50%,IF(U88=2024,25%,0))))) -> 1 | V119: =IF('Property Set Up'!$E21="NB",100%,IF('Property Set Up'!$E21="Full",0,IF(V88=2022,75%,IF(V88=2023,50%,IF(V88=2024,25%,0))))) -> 1 | W119: =IF('Property Set Up'!$E21="NB",100%,IF('Property Set Up'!$E21="Full",0,IF(W88=2022,75%,IF(W88=2023,50%,IF(W88=2024,25%,0))))) -> 1 | X119: =IF('Property Set Up'!$E21="NB",100%,IF('Property Set Up'!$E21="Full",0,IF(X88=2022,75%,IF(X88=2023,50%,IF(X88=2024,25%,0))))) -> 1 | Y119: =IF('Property Set Up'!$E21="NB",100%,IF('Property Set Up'!$E21="Full",0,IF(Y88=2022,75%,IF(Y88=2023,50%,IF(Y88=2024,25%,0))))) -> 1 | Z119: =IF('Property Set Up'!$E21="NB",100%,IF('Property Set Up'!$E21="Full",0,IF(Z88=2022,75%,IF(Z88=2023,50%,IF(Z88=2024,25%,0))))) -> 1 | AA119: =IF('Property Set Up'!$E21="NB",100%,IF('Property Set Up'!$E21="Full",0,IF(AA88=2022,75%,IF(AA88=2023,50%,IF(AA88=2024,25%,0))))) -> 1 | AB119: =IF('Property Set Up'!$E21="NB",100%,IF('Property Set Up'!$E21="Full",0,IF(AB88=2022,75%,IF(AB88=2023,50%,IF(AB88=2024,25%,0))))) -> 1 | AC119: =IF('Property Set Up'!$E21="NB",100%,IF('Property Set Up'!$E21="Full",0,IF(AC88=2022,75%,IF(AC88=2023,50%,IF(AC88=2024,25%,0))))) -> 1 | AD119: =IF('Property Set Up'!$E21="NB",100%,IF('Property Set Up'!$E21="Full",0,IF(AD88=2022,75%,IF(AD88=2023,50%,IF(AD88=2024,25%,0))))) -> 1 | AE119: =IF('Property Set Up'!$E21="NB",100%,IF('Property Set Up'!$E21="Full",0,IF(AE88=2022,75%,IF(AE88=2023,50%,IF(AE88=2024,25%,0))))) -> 1 | AF119: =IF('Property Set Up'!$E21="NB",100%,IF('Property Set Up'!$E21="Full",0,IF(AF88=2022,75%,IF(AF88=2023,50%,IF(AF88=2024,25%,0))))) -> 1 | AG119: =IF('Property Set Up'!$E21="NB",100%,IF('Property Set Up'!$E21="Full",0,IF(AG88=2022,75%,IF(AG88=2023,50%,IF(AG88=2024,25%,0))))) -> 1 | AH119: =IF('Property Set Up'!$E21="NB",100%,IF('Property Set Up'!$E21="Full",0,IF(AH88=2022,75%,IF(AH88=2023,50%,IF(AH88=2024,25%,0))))) -> 1 | AI119: =IF('Property Set Up'!$E21="NB",100%,IF('Property Set Up'!$E21="Full",0,IF(AI88=2022,75%,IF(AI88=2023,50%,IF(AI88=2024,25%,0))))) -> 1
B122: TAX
B125: Tax Deductible Finance Costs | C125: =C56 -> 0 | D125: =(D97*D118)+(D98*D119) -> 0 | E125: =(E97*E118)+(E98*E119) -> 157.5 | F125: 150 | G125: 135 | H125: 135 | I125: =(I97*I118)+(I98*I119) -> 135 | J125: 135 | K125: 135 | L125: 135 | M125: 135 | N125: 135 | O125: 135 | P125: 135 | Q125: 135 | R125: 135 | S125: =(S97*S118)+(S98*S119) -> 135 | T125: 135 | U125: 135 | V125: 135 | W125: 135 | X125: 135 | Y125: 135 | Z125: 135 | AA125: 135 | AB125: 135 | AC125: 135 | AD125: 135 | AE125: 135 | AF125: 135 | AG125: 135 | AH125: =(AH97*AH118)+(AH98*AH119) -> 135 | AI125: =(AI97*AI118)+(AI98*AI119) -> 135
B126: Tax Deductible Operating Costs | C126: 0 | D126: =D57 -> 0 | E126: 7876.95 | F126: 8034.489 | G126: 8195.17878 | H126: 8359.082356 | I126: 8526.264003 | J126: 8696.789283 | K126: 8870.725068 | L126: 9048.13957 | M126: 9229.102361 | N126: 9413.684408 | O126: 9601.958097 | P126: 9793.997259 | Q126: 9989.877204 | R126: 10189.67475 | S126: 10393.46824 | T126: 10601.33761 | U126: 10813.36436 | V126: 11029.63165 | W126: 11250.22428 | X126: 11475.22877 | Y126: 11704.73334 | Z126: 11938.82801 | AA126: 12177.60457 | AB126: 12421.15666 | AC126: 12669.57979 | AD126: 12922.97139 | AE126: 13181.43082 | AF126: 13445.05943 | AG126: 13713.96062 | AH126: 13988.23983 | AI126: 14268.00463
B128: Operating Months | D128: =IF((12-D67)<0,0,IF((12-D67)>12,12,12-D67)) -> 0 | E128: =IF((12-E67)<0,0,IF((12-E67)>12,12,12-E67)) -> 12 | F128: =IF((12-F67)<0,0,IF((12-F67)>12,12,12-F67)) -> 12 | G128: 12 | H128: 12 | I128: 12 | J128: 12 | K128: 12 | L128: 12 | M128: 12 | N128: 12 | O128: 12 | P128: 12 | Q128: 12 | R128: 12 | S128: =IF((12-S67)<0,0,IF((12-S67)>12,12,12-S67)) -> 12 | T128: 12 | U128: 12 | V128: 12 | W128: 12 | X128: 12 | Y128: 12 | Z128: 12 | AA128: 12 | AB128: 12 | AC128: 12 | AD128: 12 | AE128: 12 | AF128: 12 | AG128: 12 | AH128: =IF((12-AH67)<0,0,IF((12-AH67)>12,12,12-AH67)) -> 12 | AI128: =IF((12-AI67)<0,0,IF((12-AI67)>12,12,12-AI67)) -> 12
B129: Chattel Value | C129: 0 | D129: =IF(D128=0,0,'Property Set Up'!E91) -> 0 | E129: =IF(D129>0,D129-D130,IF(E128>0,'Property Set Up'!E91,0)) -> 45000 | F129: =IF(E128=0,'Property Set Up'!E91,E129-E130) -> 35100 | G129: =F129-F130 -> 27378 | H129: 21354.84 | I129: 16656.7752 | J129: 12992.28466 | K129: 10133.98203 | L129: 7904.505985 | M129: 6165.514668 | N129: 4809.101441 | O129: 3751.099124 | P129: 2925.857317 | Q129: 2282.168707 | R129: 1780.091592 | S129: =R129-R130 -> 1388.471441 | T129: 1083.007724 | U129: 844.7460249 | V129: 658.9018995 | W129: 513.9434816 | X129: 400.8759156 | Y129: 312.6832142 | Z129: 243.8929071 | AA129: 190.2364675 | AB129: 148.3844447 | AC129: 115.7398668 | AD129: 90.27709613 | AE129: 70.41613498 | AF129: 54.92458529 | AG129: 42.84117652 | AH129: 33.41611769 | AI129: 26.0645718
B130: Depreciation | C130: 0 | D130: =D129-D129*(1-Assumptions!$F17)^'Projection – Property #3'!D128 -> 0 | E130: =E129-E129*(1-Assumptions!$F17)^'Projection – Property #3'!E128 -> 9900 | F130: =F129-F129*(1-Assumptions!$F17)^'Projection – Property #3'!F128 -> 7722 | G130: =G129-G129*(1-Assumptions!$F17)^'Projection – Property #3'!G128 -> 6023.16 | H130: =H129-H129*(1-Assumptions!$F17)^'Projection – Property #3'!H128 -> 4698.0648 | I130: =I129-I129*(1-Assumptions!$F17)^'Projection – Property #3'!I128 -> 3664.490544 | J130: =J129-J129*(1-Assumptions!$F17)^'Projection – Property #3'!J128 -> 2858.302624 | K130: =K129-K129*(1-Assumptions!$F17)^'Projection – Property #3'!K128 -> 2229.476047 | L130: =L129-L129*(1-Assumptions!$F17)^'Projection – Property #3'!L128 -> 1738.991317 | M130: =M129-M129*(1-Assumptions!$F17)^'Projection – Property #3'!M128 -> 1356.413227 | N130: =N129-N129*(1-Assumptions!$F17)^'Projection – Property #3'!N128 -> 1058.002317 | O130: =O129-O129*(1-Assumptions!$F17)^'Projection – Property #3'!O128 -> 825.2418073 | P130: =P129-P129*(1-Assumptions!$F17)^'Projection – Property #3'!P128 -> 643.6886097 | Q130: =Q129-Q129*(1-Assumptions!$F17)^'Projection – Property #3'!Q128 -> 502.0771156 | R130: =R129-R129*(1-Assumptions!$F17)^'Projection – Property #3'!R128 -> 391.6201501 | S130: =S129-S129*(1-Assumptions!$F17)^'Projection – Property #3'!S128 -> 305.4637171 | T130: =T129-T129*(1-Assumptions!$F17)^'Projection – Property #3'!T128 -> 238.2616993 | U130: =U129-U129*(1-Assumptions!$F17)^'Projection – Property #3'!U128 -> 185.8441255 | V130: =V129-V129*(1-Assumptions!$F17)^'Projection – Property #3'!V128 -> 144.9584179 | W130: =W129-W129*(1-Assumptions!$F17)^'Projection – Property #3'!W128 -> 113.0675659 | X130: =X129-X129*(1-Assumptions!$F17)^'Projection – Property #3'!X128 -> 88.19270144 | Y130: =Y129-Y129*(1-Assumptions!$F17)^'Projection – Property #3'!Y128 -> 68.79030712 | Z130: =Z129-Z129*(1-Assumptions!$F17)^'Projection – Property #3'!Z128 -> 53.65643955 | AA130: =AA129-AA129*(1-Assumptions!$F17)^'Projection – Property #3'!AA128 -> 41.85202285 | AB130: =AB129-AB129*(1-Assumptions!$F17)^'Projection – Property #3'!AB128 -> 32.64457783 | AC130: =AC129-AC129*(1-Assumptions!$F17)^'Projection – Property #3'!AC128 -> 25.4627707 | AD130: =AD129-AD129*(1-Assumptions!$F17)^'Projection – Property #3'!AD128 -> 19.86096115 | AE130: =AE129-AE129*(1-Assumptions!$F17)^'Projection – Property #3'!AE128 -> 15.4915497 | AF130: =AF129-AF129*(1-Assumptions!$F17)^'Projection – Property #3'!AF128 -> 12.08340876 | AG130: =AG129-AG129*(1-Assumptions!$F17)^'Projection – Property #3'!AG128 -> 9.425058835 | AH130: =AH129-AH129*(1-Assumptions!$F17)^'Projection – Property #3'!AH128 -> 7.351545891 | AI130: =AI129-AI129*(1-Assumptions!$F17)^'Projection – Property #3'!AI128 -> 5.734205795
B132: Taxable Profit | C132: =C55-C125-C126-C130 -> 0 | D132: 0 | E132: -17934.45 | F132: -15906.489 | G132: -14353.33878 | H132: -13192.14716 | I132: -12325.75455 | J132: -11690.09191 | K132: -11235.20112 | L132: -10922.13089 | M132: -10720.51559 | N132: -10606.68673 | O132: -10562.1999 | P132: -10572.68587 | Q132: -10626.95432 | R132: -10716.2949 | S132: -10833.93196 | T132: -10974.59931 | U132: -11134.20849 | V132: -11309.59006 | W132: -11498.29185 | X132: -11698.42147 | Y132: -11908.52365 | Z132: -12127.48445 | AA132: -12354.45659 | AB132: -12588.80124 | AC132: -12830.04256 | AD132: -13077.83235 | AE132: -13331.92237 | AF132: -13592.14284 | AG132: -13858.38568 | AH132: -14130.59138 | AI132: -14408.73884
B133: Tax Losses Carried Forward | C133: =IF(C132<0,C132,0) -> 0 | D133: =IF(D132<0,D132,0)-Assumptions!F15 -> 0 | E133: =IF(E132+D133<0,E132+D133,0) -> -17934.45 | F133: =IF(F132+E133<0,F132+E133,0) -> -33840.939 | G133: -48194.27778 | H133: -61386.42494 | I133: -73712.17948 | J133: -85402.27139 | K133: -96637.4725 | L133: -107559.6034 | M133: -118280.119 | N133: -128886.8057 | O133: -139449.0056 | P133: -150021.6915 | Q133: -160648.6458 | R133: -171364.9407 | S133: =IF(S132+R133<0,S132+R133,0) -> -182198.8727 | T133: -193173.472 | U133: -204307.6804 | V133: -215617.2705 | W133: -227115.5624 | X133: -238813.9838 | Y133: -250722.5075 | Z133: -262849.9919 | AA133: -275204.4485 | AB133: -287793.2497 | AC133: -300623.2923 | AD133: -313701.1247 | AE133: -327033.047 | AF133: -340625.1899 | AG133: -354483.5755 | AH133: -368614.1669 | AI133: -383022.9058
B134: Tax to Pay | C134: =IF(C132<0,0,IFERROR(C132*'Property Set Up'!E93,0)) -> 0 | D134: =IF(D132<0,0,D132*'Property Set Up'!E93) -> 0 | E134: =IF((D133+E132)>0,(D133+E132)*'Property Set Up'!$E$93,0) -> 0 | F134: =IF((E133+F132)>0,(E133+F132)*'Property Set Up'!$E$93,0) -> 0 | G134: =IF((F133+G132)>0,(F133+G132)*'Property Set Up'!$E$93,0) -> 0 | H134: =IF((G133+H132)>0,(G133+H132)*'Property Set Up'!$E$93,0) -> 0 | I134: =IF((H133+I132)>0,(H133+I132)*'Property Set Up'!$E$93,0) -> 0 | J134: =IF((I133+J132)>0,(I133+J132)*'Property Set Up'!$E$93,0) -> 0 | K134: =IF((J133+K132)>0,(J133+K132)*'Property Set Up'!$E$93,0) -> 0 | L134: =IF((K133+L132)>0,(K133+L132)*'Property Set Up'!$E$93,0) -> 0 | M134: =IF((L133+M132)>0,(L133+M132)*'Property Set Up'!$E$93,0) -> 0 | N134: =IF((M133+N132)>0,(M133+N132)*'Property Set Up'!$E$93,0) -> 0 | O134: =IF((N133+O132)>0,(N133+O132)*'Property Set Up'!$E$93,0) -> 0 | P134: =IF((O133+P132)>0,(O133+P132)*'Property Set Up'!$E$93,0) -> 0 | Q134: =IF((P133+Q132)>0,(P133+Q132)*'Property Set Up'!$E$93,0) -> 0 | R134: =IF((Q133+R132)>0,(Q133+R132)*'Property Set Up'!$E$93,0) -> 0 | S134: =IF((R133+S132)>0,(R133+S132)*'Property Set Up'!$E$93,0) -> 0 | T134: =IF((S133+T132)>0,(S133+T132)*'Property Set Up'!$E$93,0) -> 0 | U134: =IF((T133+U132)>0,(T133+U132)*'Property Set Up'!$E$93,0) -> 0 | V134: =IF((U133+V132)>0,(U133+V132)*'Property Set Up'!$E$93,0) -> 0 | W134: =IF((V133+W132)>0,(V133+W132)*'Property Set Up'!$E$93,0) -> 0 | X134: =IF((W133+X132)>0,(W133+X132)*'Property Set Up'!$E$93,0) -> 0 | Y134: =IF((X133+Y132)>0,(X133+Y132)*'Property Set Up'!$E$93,0) -> 0 | Z134: =IF((Y133+Z132)>0,(Y133+Z132)*'Property Set Up'!$E$93,0) -> 0 | AA134: =IF((Z133+AA132)>0,(Z133+AA132)*'Property Set Up'!$E$93,0) -> 0 | AB134: =IF((AA133+AB132)>0,(AA133+AB132)*'Property Set Up'!$E$93,0) -> 0 | AC134: =IF((AB133+AC132)>0,(AB133+AC132)*'Property Set Up'!$E$93,0) -> 0 | AD134: =IF((AC133+AD132)>0,(AC133+AD132)*'Property Set Up'!$E$93,0) -> 0 | AE134: =IF((AD133+AE132)>0,(AD133+AE132)*'Property Set Up'!$E$93,0) -> 0 | AF134: =IF((AE133+AF132)>0,(AE133+AF132)*'Property Set Up'!$E$93,0) -> 0 | AG134: =IF((AF133+AG132)>0,(AF133+AG132)*'Property Set Up'!$E$93,0) -> 0 | AH134: =IF((AG133+AH132)>0,(AG133+AH132)*'Property Set Up'!$E$93,0) -> 0 | AI134: =IF((AH133+AI132)>0,(AH133+AI132)*'Property Set Up'!$E$93,0) -> 0
B137: POST-TAX CASHFLOW
B140: Post Tax Cashflow | C140: =C61-C134 -> 0 | D140: 0 | E140: -8034.45 | F140: -8184.489 | G140: -8330.17878 | H140: -8494.082356 | I140: -8661.264003 | J140: -8831.789283 | K140: -9005.725068 | L140: -9183.13957 | M140: -9364.102361 | N140: -9548.684408 | O140: -9736.958097 | P140: -9928.997259 | Q140: -10124.8772 | R140: -10324.67475 | S140: =S61-S134 -> -10528.46824 | T140: -10736.33761 | U140: -10948.36436 | V140: -11164.63165 | W140: -11385.22428 | X140: -11610.22877 | Y140: -11839.73334 | Z140: -12073.82801 | AA140: -12312.60457 | AB140: -12556.15666 | AC140: -12804.57979 | AD140: -13057.97139 | AE140: -13316.43082 | AF140: -13580.05943 | AG140: -13848.96062 | AH140: =AH61-AH134 -> -14123.23983 | AI140: =AI61-AI134 -> -14403.00463
B141: Inflation Discounted Post Tax Cashflow | C141: =C140 -> 0 | D141: =D140/(1+'Property Set Up'!$E$77)^'Projection – Property #3'!D26 -> 0 | E141: =E140/(1+'Property Set Up'!$E$77)^'Projection – Property #3'!E26 -> -7876.911765 | F141: =F140/(1+'Property Set Up'!$E$77)^'Projection – Property #3'!F26 -> -7866.675317 | G141: =G140/(1+'Property Set Up'!$E$77)^'Projection – Property #3'!G26 -> -7849.713515 | H141: =H140/(1+'Property Set Up'!$E$77)^'Projection – Property #3'!H26 -> -7847.219133 | I141: =I140/(1+'Property Set Up'!$E$77)^'Projection – Property #3'!I26 -> -7844.773659 | J141: =J140/(1+'Property Set Up'!$E$77)^'Projection – Property #3'!J26 -> -7842.376137 | K141: =K140/(1+'Property Set Up'!$E$77)^'Projection – Property #3'!K26 -> -7840.025624 | L141: =L140/(1+'Property Set Up'!$E$77)^'Projection – Property #3'!L26 -> -7837.7212 | M141: =M140/(1+'Property Set Up'!$E$77)^'Projection – Property #3'!M26 -> -7835.461961 | N141: =N140/(1+'Property Set Up'!$E$77)^'Projection – Property #3'!N26 -> -7833.24702 | O141: =O140/(1+'Property Set Up'!$E$77)^'Projection – Property #3'!O26 -> -7831.07551 | P141: =P140/(1+'Property Set Up'!$E$77)^'Projection – Property #3'!P26 -> -7828.946579 | Q141: =Q140/(1+'Property Set Up'!$E$77)^'Projection – Property #3'!Q26 -> -7826.859391 | R141: =R140/(1+'Property Set Up'!$E$77)^'Projection – Property #3'!R26 -> -7824.813128 | S141: =S140/(1+'Property Set Up'!$E$77)^'Projection – Property #3'!S26 -> -7822.806989 | T141: =T140/(1+'Property Set Up'!$E$77)^'Projection – Property #3'!T26 -> -7820.840185 | U141: =U140/(1+'Property Set Up'!$E$77)^'Projection – Property #3'!U26 -> -7818.911946 | V141: =V140/(1+'Property Set Up'!$E$77)^'Projection – Property #3'!V26 -> -7817.021516 | W141: =W140/(1+'Property Set Up'!$E$77)^'Projection – Property #3'!W26 -> -7815.168153 | X141: =X140/(1+'Property Set Up'!$E$77)^'Projection – Property #3'!X26 -> -7813.35113 | Y141: =Y140/(1+'Property Set Up'!$E$77)^'Projection – Property #3'!Y26 -> -7811.569735 | Z141: =Z140/(1+'Property Set Up'!$E$77)^'Projection – Property #3'!Z26 -> -7809.82327 | AA141: =AA140/(1+'Property Set Up'!$E$77)^'Projection – Property #3'!AA26 -> -7808.111049 | AB141: =AB140/(1+'Property Set Up'!$E$77)^'Projection – Property #3'!AB26 -> -7806.432401 | AC141: =AC140/(1+'Property Set Up'!$E$77)^'Projection – Property #3'!AC26 -> -7804.786668 | AD141: =AD140/(1+'Property Set Up'!$E$77)^'Projection – Property #3'!AD26 -> -7803.173203 | AE141: =AE140/(1+'Property Set Up'!$E$77)^'Projection – Property #3'!AE26 -> -7801.591376 | AF141: =AF140/(1+'Property Set Up'!$E$77)^'Projection – Property #3'!AF26 -> -7800.040565 | AG141: =AG140/(1+'Property Set Up'!$E$77)^'Projection – Property #3'!AG26 -> -7798.520161 | AH141: =AH140/(1+'Property Set Up'!$E$77)^'Projection – Property #3'!AH26 -> -7797.02957 | AI141: =AI140/(1+'Property Set Up'!$E$77)^'Projection – Property #3'!AI26 -> -7795.568206
B142: Post Tax Cashflow (Per Week) | C142: =C140/52 -> 0 | D142: =D140/52 -> 0 | E142: =E140/52 -> -154.5086538 | F142: -157.3940192 | G142: -160.1957458 | H142: -163.3477376 | I142: -166.5627693 | J142: -169.8421016 | K142: -173.1870205 | L142: -176.5988379 | M142: -180.0788916 | N142: -183.6285463 | O142: -187.2491942 | P142: -190.942255 | Q142: -194.709177 | R142: -198.5514375 | S142: =S140/52 -> -202.4705431 | T142: -206.4680309 | U142: -210.5454685 | V142: -214.7044547 | W142: -218.9466208 | X142: -223.2736301 | Y142: -227.6871796 | Z142: -232.1890001 | AA142: -236.7808571 | AB142: -241.4645511 | AC142: -246.2419191 | AD142: -251.1148344 | AE142: -256.085208 | AF142: -261.1549891 | AG142: -266.3261658 | AH142: =AH140/52 -> -271.600766 | AI142: =AI140/52 -> -276.9808583
B143: Negatively Geared Test For Investment | C143: =IF(C141<0,C141,0) -> 0 | D143: 0 | E143: -7876.911765 | F143: -7866.675317 | G143: -7849.713515 | H143: -7847.219133 | I143: -7844.773659 | J143: -7842.376137 | K143: -7840.025624 | L143: -7837.7212 | M143: -7835.461961 | N143: -7833.24702 | O143: -7831.07551 | P143: -7828.946579 | Q143: -7826.859391 | R143: -7824.813128 | S143: =IF(S141<0,S141,0) -> -7822.806989 | T143: -7820.840185 | U143: -7818.911946 | V143: -7817.021516 | W143: -7815.168153 | X143: -7813.35113 | Y143: -7811.569735 | Z143: -7809.82327 | AA143: -7808.111049 | AB143: -7806.432401 | AC143: -7804.786668 | AD143: -7803.173203 | AE143: -7801.591376 | AF143: -7800.040565 | AG143: -7798.520161 | AH143: =IF(AH141<0,AH141,0) -> -7797.02957 | AI143: =IF(AI141<0,AI141,0) -> -7795.568206
B144: Positively Geared Test For Investment | C144: =IF(C141>0,C141,0) -> 0 | D144: 0 | E144: 0 | F144: 0 | G144: 0 | H144: 0 | I144: 0 | J144: 0 | K144: 0 | L144: 0 | M144: 0 | N144: 0 | O144: 0 | P144: 0 | Q144: 0 | R144: 0 | S144: =IF(S141>0,S141,0) -> 0 | T144: 0 | U144: 0 | V144: 0 | W144: 0 | X144: 0 | Y144: 0 | Z144: 0 | AA144: 0 | AB144: 0 | AC144: 0 | AD144: 0 | AE144: 0 | AF144: 0 | AG144: 0 | AH144: =IF(AH141>0,AH141,0) -> 0 | AI144: =IF(AI141>0,AI141,0) -> 0
